Workbook

Sheet Orientation
B2: This workbook calculates term "Special Condition 6F. Baseline Generation Connection Outputs and Generation Connections volume driver" in the RIIO-T1 licence "Scottish Hydro Electric Transmission Plc Electricity transmission licence Special Conditions”
B4: Colour coding throughout this workbook | D4: How to use this workbook
B5: Blue text indicates user input | D5: On sheet "User Input" populate the table (named "Connections") with a view of the projects that form the capacity delivery schedule
B6: Black text that users should not directly modify the cell | D6: Ensure that you have overwritten/deleted any unwanted rows from the table (leaving rows blank does not interfere with calculations)
B7: Red text indicates the name of ranges, tables, pivot tables | D7: When satisfied with your inputs, click the macro button (above the table). This refreshes all pivot tables and recalculates all formulae
B8: Grey highlight indicates values taken form the licence | D8: The GCE term gives the outputs to be used as inputs to the PCFM, choose the output row that the current AIP requires
D11: * All purple and green sheets are named after licence terms. Note that baseline licence terms (BSLE and BSHE) require minimal calculation and so this has been integrated into sheets for DSLE and DSHE, respectively
C15: ForecastA is for spending not yet reported
C16: ForecastB is for planned spending
H17: [Sole/Shared]-[Typical/Atypical]
H18: Capex ForecastB
G21: Capex | H21: Opex | I21: Capex ForecastA
C23: Sole-Typical | F23: BSLE* | P23: BSLE*
C27: Shared-Typical | F27: BSHE* | P27: BSHE*
C31: Sole-Atypical
C35: Shared-Atypical

Sheet UserInput
A1: Generation Capacity Connections
E3: OptionsConnectionStatus | F3: OptionsUsage
E4: Delivered | F4: Sole
E5: Forecast | F5: Shared
B8: Connections
B9: Scheme Name | C9: Scheme reference | D9: Delivery year ending March | E9: ConnectionStatus (Delivered/Forecast) | F9: Usage? | G9: Generation connection capacity (MW/MVA) | H9: Actual expenditure (£2009/10 million prices) | I9: UCA (£m/MW / £m/MVA) | J9: Type?
B10: Example A, a name of the project delivering capacity. Does not impact calculations | C10: Serial number that does not impact calculations | D10: 2017 | E10: Delivered | F10: Sole | G10: 1000 | H10: 150 | I10: =IFERROR( Connections[[#This Row],[Actual expenditure (£2009/10 million prices)]]/Connections[[#This Row],[Generation connection capacity (MW/MVA)]], 0 ) -> 0.15 | J10: =IF( Connections[[#This Row],[UCA (£m/MW / £m/MVA)]] > INDEX(UCAallowances!$F$7:$F$8, MATCH(Connections[[#This Row],[Usage?]], UCAallowances!$B$7:$B$8, FALSE)), "Atypical", "Typical" ) -> Typical
B11: Example B, a shared use connection | C11: xxxxx01 | D11: 2018 | E11: Delivered | F11: shared | G11: 800 | H11: 100 | I11: =IFERROR( Connections[[#This Row],[Actual expenditure (£2009/10 million prices)]]/Connections[[#This Row],[Generation connection capacity (MW/MVA)]], 0 ) -> 0.125 | J11: =IF( Connections[[#This Row],[UCA (£m/MW / £m/MVA)]] > INDEX(UCAallowances!$F$7:$F$8, MATCH(Connections[[#This Row],[Usage?]], UCAallowances!$B$7:$B$8, FALSE)), "Atypical", "Typical" ) -> Typical
B12: Example C, an atypical scheme. This status is determined by formulae | C12: xxxxx02 | D12: 2018 | E12: Delivered | F12: Sole | G12: 400 | H12: 100 | I12: =IFERROR( Connections[[#This Row],[Actual expenditure (£2009/10 million prices)]]/Connections[[#This Row],[Generation connection capacity (MW/MVA)]], 0 ) -> 0.25 | J12: =IF( Connections[[#This Row],[UCA (£m/MW / £m/MVA)]] > INDEX(UCAallowances!$F$7:$F$8, MATCH(Connections[[#This Row],[Usage?]], UCAallowances!$B$7:$B$8, FALSE)), "Atypical", "Typical" ) -> Atypical
B13: Example D, forecast capacity | C13: xxxxx03 | D13: 2020 | E13: Forecast | F13: Shared | G13: 1000 | H13: 110 | I13: =IFERROR( Connections[[#This Row],[Actual expenditure (£2009/10 million prices)]]/Connections[[#This Row],[Generation connection capacity (MW/MVA)]], 0 ) -> 0.11 | J13: =IF( Connections[[#This Row],[UCA (£m/MW / £m/MVA)]] > INDEX(UCAallowances!$F$7:$F$8, MATCH(Connections[[#This Row],[Usage?]], UCAallowances!$B$7:$B$8, FALSE)), "Atypical", "Typical" ) -> Typical
B14: These blank rows do not interfer with formulae, but can be deleted if the user prefers. The talbe will auto-extend if more rows are required. After any changes to this table the macro button (above) must be clicked before calcualtions will refresh. The macro exists only as a conveninet way of refreshing pivot tables. It has no other functionality | I14: =IFERROR( Connections[[#This Row],[Actual expenditure (£2009/10 million prices)]]/Connections[[#This Row],[Generation connection capacity (MW/MVA)]], 0 ) -> 0 | J14: =IF( Connections[[#This Row],[UCA (£m/MW / £m/MVA)]] > INDEX(UCAallowances!$F$7:$F$8, MATCH(Connections[[#This Row],[Usage?]], UCAallowances!$B$7:$B$8, FALSE)), "Atypical", "Typical" ) -> 
B15: These blank rows do not interfer with formulae, but can be deleted if the user prefers. The talbe will auto-extend if more rows are required. After any changes to this table the macro button (above) must be clicked before calcualtions will refresh. The macro exists only as a conveninet way of refreshing pivot tables. It has no other functionality | I15: =IFERROR( Connections[[#This Row],[Actual expenditure (£2009/10 million prices)]]/Connections[[#This Row],[Generation connection capacity (MW/MVA)]], 0 ) -> 0 | J15: =IF( Connections[[#This Row],[UCA (£m/MW / £m/MVA)]] > INDEX(UCAallowances!$F$7:$F$8, MATCH(Connections[[#This Row],[Usage?]], UCAallowances!$B$7:$B$8, FALSE)), "Atypical", "Typical" ) -> 
B16: These blank rows do not interfer with formulae, but can be deleted if the user prefers. The talbe will auto-extend if more rows are required. After any changes to this table the macro button (above) must be clicked before calcualtions will refresh. The macro exists only as a conveninet way of refreshing pivot tables. It has no other functionality | I16: =IFERROR( Connections[[#This Row],[Actual expenditure (£2009/10 million prices)]]/Connections[[#This Row],[Generation connection capacity (MW/MVA)]], 0 ) -> 0 | J16: =IF( Connections[[#This Row],[UCA (£m/MW / £m/MVA)]] > INDEX(UCAallowances!$F$7:$F$8, MATCH(Connections[[#This Row],[Usage?]], UCAallowances!$B$7:$B$8, FALSE)), "Atypical", "Typical" ) -> 
B17: These blank rows do not interfer with formulae, but can be deleted if the user prefers. The talbe will auto-extend if more rows are required. After any changes to this table the macro button (above) must be clicked before calcualtions will refresh. The macro exists only as a conveninet way of refreshing pivot tables. It has no other functionality | I17: =IFERROR( Connections[[#This Row],[Actual expenditure (£2009/10 million prices)]]/Connections[[#This Row],[Generation connection capacity (MW/MVA)]], 0 ) -> 0 | J17: =IF( Connections[[#This Row],[UCA (£m/MW / £m/MVA)]] > INDEX(UCAallowances!$F$7:$F$8, MATCH(Connections[[#This Row],[Usage?]], UCAallowances!$B$7:$B$8, FALSE)), "Atypical", "Typical" ) -> 
B18: These blank rows do not interfer with formulae, but can be deleted if the user prefers. The talbe will auto-extend if more rows are required. After any changes to this table the macro button (above) must be clicked before calcualtions will refresh. The macro exists only as a conveninet way of refreshing pivot tables. It has no other functionality | I18: =IFERROR( Connections[[#This Row],[Actual expenditure (£2009/10 million prices)]]/Connections[[#This Row],[Generation connection capacity (MW/MVA)]], 0 ) -> 0 | J18: =IF( Connections[[#This Row],[UCA (£m/MW / £m/MVA)]] > INDEX(UCAallowances!$F$7:$F$8, MATCH(Connections[[#This Row],[Usage?]], UCAallowances!$B$7:$B$8, FALSE)), "Atypical", "Typical" ) -> 
B19: These blank rows do not interfer with formulae, but can be deleted if the user prefers. The talbe will auto-extend if more rows are required. After any changes to this table the macro button (above) must be clicked before calcualtions will refresh. The macro exists only as a conveninet way of refreshing pivot tables. It has no other functionality | I19: =IFERROR( Connections[[#This Row],[Actual expenditure (£2009/10 million prices)]]/Connections[[#This Row],[Generation connection capacity (MW/MVA)]], 0 ) -> 0 | J19: =IF( Connections[[#This Row],[UCA (£m/MW / £m/MVA)]] > INDEX(UCAallowances!$F$7:$F$8, MATCH(Connections[[#This Row],[Usage?]], UCAallowances!$B$7:$B$8, FALSE)), "Atypical", "Typical" ) -> 
B20: These blank rows do not interfer with formulae, but can be deleted if the user prefers. The talbe will auto-extend if more rows are required. After any changes to this table the macro button (above) must be clicked before calcualtions will refresh. The macro exists only as a conveninet way of refreshing pivot tables. It has no other functionality | I20: =IFERROR( Connections[[#This Row],[Actual expenditure (£2009/10 million prices)]]/Connections[[#This Row],[Generation connection capacity (MW/MVA)]], 0 ) -> 0 | J20: =IF( Connections[[#This Row],[UCA (£m/MW / £m/MVA)]] > INDEX(UCAallowances!$F$7:$F$8, MATCH(Connections[[#This Row],[Usage?]], UCAallowances!$B$7:$B$8, FALSE)), "Atypical", "Typical" ) -> 
B21: These blank rows do not interfer with formulae, but can be deleted if the user prefers. The talbe will auto-extend if more rows are required. After any changes to this table the macro button (above) must be clicked before calcualtions will refresh. The macro exists only as a conveninet way of refreshing pivot tables. It has no other functionality | I21: =IFERROR( Connections[[#This Row],[Actual expenditure (£2009/10 million prices)]]/Connections[[#This Row],[Generation connection capacity (MW/MVA)]], 0 ) -> 0 | J21: =IF( Connections[[#This Row],[UCA (£m/MW / £m/MVA)]] > INDEX(UCAallowances!$F$7:$F$8, MATCH(Connections[[#This Row],[Usage?]], UCAallowances!$B$7:$B$8, FALSE)), "Atypical", "Typical" ) -> 
B22: These blank rows do not interfer with formulae, but can be deleted if the user prefers. The talbe will auto-extend if more rows are required. After any changes to this table the macro button (above) must be clicked before calcualtions will refresh. The macro exists only as a conveninet way of refreshing pivot tables. It has no other functionality | I22: =IFERROR( Connections[[#This Row],[Actual expenditure (£2009/10 million prices)]]/Connections[[#This Row],[Generation connection capacity (MW/MVA)]], 0 ) -> 0 | J22: =IF( Connections[[#This Row],[UCA (£m/MW / £m/MVA)]] > INDEX(UCAallowances!$F$7:$F$8, MATCH(Connections[[#This Row],[Usage?]], UCAallowances!$B$7:$B$8, FALSE)), "Atypical", "Typical" ) -> 
B23: These blank rows do not interfer with formulae, but can be deleted if the user prefers. The talbe will auto-extend if more rows are required. After any changes to this table the macro button (above) must be clicked before calcualtions will refresh. The macro exists only as a conveninet way of refreshing pivot tables. It has no other functionality | I23: =IFERROR( Connections[[#This Row],[Actual expenditure (£2009/10 million prices)]]/Connections[[#This Row],[Generation connection capacity (MW/MVA)]], 0 ) -> 0 | J23: =IF( Connections[[#This Row],[UCA (£m/MW / £m/MVA)]] > INDEX(UCAallowances!$F$7:$F$8, MATCH(Connections[[#This Row],[Usage?]], UCAallowances!$B$7:$B$8, FALSE)), "Atypical", "Typical" ) -> 
B24: These blank rows do not interfer with formulae, but can be deleted if the user prefers. The talbe will auto-extend if more rows are required. After any changes to this table the macro button (above) must be clicked before calcualtions will refresh. The macro exists only as a conveninet way of refreshing pivot tables. It has no other functionality | I24: =IFERROR( Connections[[#This Row],[Actual expenditure (£2009/10 million prices)]]/Connections[[#This Row],[Generation connection capacity (MW/MVA)]], 0 ) -> 0 | J24: =IF( Connections[[#This Row],[UCA (£m/MW / £m/MVA)]] > INDEX(UCAallowances!$F$7:$F$8, MATCH(Connections[[#This Row],[Usage?]], UCAallowances!$B$7:$B$8, FALSE)), "Atypical", "Typical" ) -> 
B25: These blank rows do not interfer with formulae, but can be deleted if the user prefers. The talbe will auto-extend if more rows are required. After any changes to this table the macro button (above) must be clicked before calcualtions will refresh. The macro exists only as a conveninet way of refreshing pivot tables. It has no other functionality | I25: =IFERROR( Connections[[#This Row],[Actual expenditure (£2009/10 million prices)]]/Connections[[#This Row],[Generation connection capacity (MW/MVA)]], 0 ) -> 0 | J25: =IF( Connections[[#This Row],[UCA (£m/MW / £m/MVA)]] > INDEX(UCAallowances!$F$7:$F$8, MATCH(Connections[[#This Row],[Usage?]], UCAallowances!$B$7:$B$8, FALSE)), "Atypical", "Typical" ) -> 
B26: These blank rows do not interfer with formulae, but can be deleted if the user prefers. The talbe will auto-extend if more rows are required. After any changes to this table the macro button (above) must be clicked before calcualtions will refresh. The macro exists only as a conveninet way of refreshing pivot tables. It has no other functionality | I26: =IFERROR( Connections[[#This Row],[Actual expenditure (£2009/10 million prices)]]/Connections[[#This Row],[Generation connection capacity (MW/MVA)]], 0 ) -> 0 | J26: =IF( Connections[[#This Row],[UCA (£m/MW / £m/MVA)]] > INDEX(UCAallowances!$F$7:$F$8, MATCH(Connections[[#This Row],[Usage?]], UCAallowances!$B$7:$B$8, FALSE)), "Atypical", "Typical" ) -> 
B27: These blank rows do not interfer with formulae, but can be deleted if the user prefers. The talbe will auto-extend if more rows are required. After any changes to this table the macro button (above) must be clicked before calcualtions will refresh. The macro exists only as a conveninet way of refreshing pivot tables. It has no other functionality | I27: =IFERROR( Connections[[#This Row],[Actual expenditure (£2009/10 million prices)]]/Connections[[#This Row],[Generation connection capacity (MW/MVA)]], 0 ) -> 0 | J27: =IF( Connections[[#This Row],[UCA (£m/MW / £m/MVA)]] > INDEX(UCAallowances!$F$7:$F$8, MATCH(Connections[[#This Row],[Usage?]], UCAallowances!$B$7:$B$8, FALSE)), "Atypical", "Typical" ) -> 
B28: These blank rows do not interfer with formulae, but can be deleted if the user prefers. The talbe will auto-extend if more rows are required. After any changes to this table the macro button (above) must be clicked before calcualtions will refresh. The macro exists only as a conveninet way of refreshing pivot tables. It has no other functionality | I28: =IFERROR( Connections[[#This Row],[Actual expenditure (£2009/10 million prices)]]/Connections[[#This Row],[Generation connection capacity (MW/MVA)]], 0 ) -> 0 | J28: =IF( Connections[[#This Row],[UCA (£m/MW / £m/MVA)]] > INDEX(UCAallowances!$F$7:$F$8, MATCH(Connections[[#This Row],[Usage?]], UCAallowances!$B$7:$B$8, FALSE)), "Atypical", "Typical" ) -> 
B29: These blank rows do not interfer with formulae, but can be deleted if the user prefers. The talbe will auto-extend if more rows are required. After any changes to this table the macro button (above) must be clicked before calcualtions will refresh. The macro exists only as a conveninet way of refreshing pivot tables. It has no other functionality | I29: =IFERROR( Connections[[#This Row],[Actual expenditure (£2009/10 million prices)]]/Connections[[#This Row],[Generation connection capacity (MW/MVA)]], 0 ) -> 0 | J29: =IF( Connections[[#This Row],[UCA (£m/MW / £m/MVA)]] > INDEX(UCAallowances!$F$7:$F$8, MATCH(Connections[[#This Row],[Usage?]], UCAallowances!$B$7:$B$8, FALSE)), "Atypical", "Typical" ) -> 
B30: These blank rows do not interfer with formulae, but can be deleted if the user prefers. The talbe will auto-extend if more rows are required. After any changes to this table the macro button (above) must be clicked before calcualtions will refresh. The macro exists only as a conveninet way of refreshing pivot tables. It has no other functionality | I30: =IFERROR( Connections[[#This Row],[Actual expenditure (£2009/10 million prices)]]/Connections[[#This Row],[Generation connection capacity (MW/MVA)]], 0 ) -> 0 | J30: =IF( Connections[[#This Row],[UCA (£m/MW / £m/MVA)]] > INDEX(UCAallowances!$F$7:$F$8, MATCH(Connections[[#This Row],[Usage?]], UCAallowances!$B$7:$B$8, FALSE)), "Atypical", "Typical" ) -> 
B31: These blank rows do not interfer with formulae, but can be deleted if the user prefers. The talbe will auto-extend if more rows are required. After any changes to this table the macro button (above) must be clicked before calcualtions will refresh. The macro exists only as a conveninet way of refreshing pivot tables. It has no other functionality | I31: =IFERROR( Connections[[#This Row],[Actual expenditure (£2009/10 million prices)]]/Connections[[#This Row],[Generation connection capacity (MW/MVA)]], 0 ) -> 0 | J31: =IF( Connections[[#This Row],[UCA (£m/MW / £m/MVA)]] > INDEX(UCAallowances!$F$7:$F$8, MATCH(Connections[[#This Row],[Usage?]], UCAallowances!$B$7:$B$8, FALSE)), "Atypical", "Typical" ) -> 
B32: These blank rows do not interfer with formulae, but can be deleted if the user prefers. The talbe will auto-extend if more rows are required. After any changes to this table the macro button (above) must be clicked before calcualtions will refresh. The macro exists only as a conveninet way of refreshing pivot tables. It has no other functionality | I32: =IFERROR( Connections[[#This Row],[Actual expenditure (£2009/10 million prices)]]/Connections[[#This Row],[Generation connection capacity (MW/MVA)]], 0 ) -> 0 | J32: =IF( Connections[[#This Row],[UCA (£m/MW / £m/MVA)]] > INDEX(UCAallowances!$F$7:$F$8, MATCH(Connections[[#This Row],[Usage?]], UCAallowances!$B$7:$B$8, FALSE)), "Atypical", "Typical" ) -> 
B33: These blank rows do not interfer with formulae, but can be deleted if the user prefers. The talbe will auto-extend if more rows are required. After any changes to this table the macro button (above) must be clicked before calcualtions will refresh. The macro exists only as a conveninet way of refreshing pivot tables. It has no other functionality | I33: =IFERROR( Connections[[#This Row],[Actual expenditure (£2009/10 million prices)]]/Connections[[#This Row],[Generation connection capacity (MW/MVA)]], 0 ) -> 0 | J33: =IF( Connections[[#This Row],[UCA (£m/MW / £m/MVA)]] > INDEX(UCAallowances!$F$7:$F$8, MATCH(Connections[[#This Row],[Usage?]], UCAallowances!$B$7:$B$8, FALSE)), "Atypical", "Typical" ) -> 
B34: These blank rows do not interfer with formulae, but can be deleted if the user prefers. The talbe will auto-extend if more rows are required. After any changes to this table the macro button (above) must be clicked before calcualtions will refresh. The macro exists only as a conveninet way of refreshing pivot tables. It has no other functionality | I34: =IFERROR( Connections[[#This Row],[Actual expenditure (£2009/10 million prices)]]/Connections[[#This Row],[Generation connection capacity (MW/MVA)]], 0 ) -> 0 | J34: =IF( Connections[[#This Row],[UCA (£m/MW / £m/MVA)]] > INDEX(UCAallowances!$F$7:$F$8, MATCH(Connections[[#This Row],[Usage?]], UCAallowances!$B$7:$B$8, FALSE)), "Atypical", "Typical" ) -> 
B35: These blank rows do not interfer with formulae, but can be deleted if the user prefers. The talbe will auto-extend if more rows are required. After any changes to this table the macro button (above) must be clicked before calcualtions will refresh. The macro exists only as a conveninet way of refreshing pivot tables. It has no other functionality | I35: =IFERROR( Connections[[#This Row],[Actual expenditure (£2009/10 million prices)]]/Connections[[#This Row],[Generation connection capacity (MW/MVA)]], 0 ) -> 0 | J35: =IF( Connections[[#This Row],[UCA (£m/MW / £m/MVA)]] > INDEX(UCAallowances!$F$7:$F$8, MATCH(Connections[[#This Row],[Usage?]], UCAallowances!$B$7:$B$8, FALSE)), "Atypical", "Typical" ) -> 
B36: These blank rows do not interfer with formulae, but can be deleted if the user prefers. The talbe will auto-extend if more rows are required. After any changes to this table the macro button (above) must be clicked before calcualtions will refresh. The macro exists only as a conveninet way of refreshing pivot tables. It has no other functionality | I36: =IFERROR( Connections[[#This Row],[Actual expenditure (£2009/10 million prices)]]/Connections[[#This Row],[Generation connection capacity (MW/MVA)]], 0 ) -> 0 | J36: =IF( Connections[[#This Row],[UCA (£m/MW / £m/MVA)]] > INDEX(UCAallowances!$F$7:$F$8, MATCH(Connections[[#This Row],[Usage?]], UCAallowances!$B$7:$B$8, FALSE)), "Atypical", "Typical" ) -> 
B37: These blank rows do not interfer with formulae, but can be deleted if the user prefers. The talbe will auto-extend if more rows are required. After any changes to this table the macro button (above) must be clicked before calcualtions will refresh. The macro exists only as a conveninet way of refreshing pivot tables. It has no other functionality | I37: =IFERROR( Connections[[#This Row],[Actual expenditure (£2009/10 million prices)]]/Connections[[#This Row],[Generation connection capacity (MW/MVA)]], 0 ) -> 0 | J37: =IF( Connections[[#This Row],[UCA (£m/MW / £m/MVA)]] > INDEX(UCAallowances!$F$7:$F$8, MATCH(Connections[[#This Row],[Usage?]], UCAallowances!$B$7:$B$8, FALSE)), "Atypical", "Typical" ) -> 
B38: These blank rows do not interfer with formulae, but can be deleted if the user prefers. The talbe will auto-extend if more rows are required. After any changes to this table the macro button (above) must be clicked before calcualtions will refresh. The macro exists only as a conveninet way of refreshing pivot tables. It has no other functionality | I38: =IFERROR( Connections[[#This Row],[Actual expenditure (£2009/10 million prices)]]/Connections[[#This Row],[Generation connection capacity (MW/MVA)]], 0 ) -> 0 | J38: =IF( Connections[[#This Row],[UCA (£m/MW / £m/MVA)]] > INDEX(UCAallowances!$F$7:$F$8, MATCH(Connections[[#This Row],[Usage?]], UCAallowances!$B$7:$B$8, FALSE)), "Atypical", "Typical" ) -> 
B39: These blank rows do not interfer with formulae, but can be deleted if the user prefers. The talbe will auto-extend if more rows are required. After any changes to this table the macro button (above) must be clicked before calcualtions will refresh. The macro exists only as a conveninet way of refreshing pivot tables. It has no other functionality | I39: =IFERROR( Connections[[#This Row],[Actual expenditure (£2009/10 million prices)]]/Connections[[#This Row],[Generation connection capacity (MW/MVA)]], 0 ) -> 0 | J39: =IF( Connections[[#This Row],[UCA (£m/MW / £m/MVA)]] > INDEX(UCAallowances!$F$7:$F$8, MATCH(Connections[[#This Row],[Usage?]], UCAallowances!$B$7:$B$8, FALSE)), "Atypical", "Typical" ) -> 
B40: These blank rows do not interfer with formulae, but can be deleted if the user prefers. The talbe will auto-extend if more rows are required. After any changes to this table the macro button (above) must be clicked before calcualtions will refresh. The macro exists only as a conveninet way of refreshing pivot tables. It has no other functionality | I40: =IFERROR( Connections[[#This Row],[Actual expenditure (£2009/10 million prices)]]/Connections[[#This Row],[Generation connection capacity (MW/MVA)]], 0 ) -> 0 | J40: =IF( Connections[[#This Row],[UCA (£m/MW / £m/MVA)]] > INDEX(UCAallowances!$F$7:$F$8, MATCH(Connections[[#This Row],[Usage?]], UCAallowances!$B$7:$B$8, FALSE)), "Atypical", "Typical" ) -> 
B41: These blank rows do not interfer with formulae, but can be deleted if the user prefers. The talbe will auto-extend if more rows are required. After any changes to this table the macro button (above) must be clicked before calcualtions will refresh. The macro exists only as a conveninet way of refreshing pivot tables. It has no other functionality | I41: =IFERROR( Connections[[#This Row],[Actual expenditure (£2009/10 million prices)]]/Connections[[#This Row],[Generation connection capacity (MW/MVA)]], 0 ) -> 0 | J41: =IF( Connections[[#This Row],[UCA (£m/MW / £m/MVA)]] > INDEX(UCAallowances!$F$7:$F$8, MATCH(Connections[[#This Row],[Usage?]], UCAallowances!$B$7:$B$8, FALSE)), "Atypical", "Typical" ) -> 
B42: These blank rows do not interfer with formulae, but can be deleted if the user prefers. The talbe will auto-extend if more rows are required. After any changes to this table the macro button (above) must be clicked before calcualtions will refresh. The macro exists only as a conveninet way of refreshing pivot tables. It has no other functionality | I42: =IFERROR( Connections[[#This Row],[Actual expenditure (£2009/10 million prices)]]/Connections[[#This Row],[Generation connection capacity (MW/MVA)]], 0 ) -> 0 | J42: =IF( Connections[[#This Row],[UCA (£m/MW / £m/MVA)]] > INDEX(UCAallowances!$F$7:$F$8, MATCH(Connections[[#This Row],[Usage?]], UCAallowances!$B$7:$B$8, FALSE)), "Atypical", "Typical" ) -> 
B43: These blank rows do not interfer with formulae, but can be deleted if the user prefers. The talbe will auto-extend if more rows are required. After any changes to this table the macro button (above) must be clicked before calcualtions will refresh. The macro exists only as a conveninet way of refreshing pivot tables. It has no other functionality | I43: =IFERROR( Connections[[#This Row],[Actual expenditure (£2009/10 million prices)]]/Connections[[#This Row],[Generation connection capacity (MW/MVA)]], 0 ) -> 0 | J43: =IF( Connections[[#This Row],[UCA (£m/MW / £m/MVA)]] > INDEX(UCAallowances!$F$7:$F$8, MATCH(Connections[[#This Row],[Usage?]], UCAallowances!$B$7:$B$8, FALSE)), "Atypical", "Typical" ) -> 
B44: These blank rows do not interfer with formulae, but can be deleted if the user prefers. The talbe will auto-extend if more rows are required. After any changes to this table the macro button (above) must be clicked before calcualtions will refresh. The macro exists only as a conveninet way of refreshing pivot tables. It has no other functionality | I44: =IFERROR( Connections[[#This Row],[Actual expenditure (£2009/10 million prices)]]/Connections[[#This Row],[Generation connection capacity (MW/MVA)]], 0 ) -> 0 | J44: =IF( Connections[[#This Row],[UCA (£m/MW / £m/MVA)]] > INDEX(UCAallowances!$F$7:$F$8, MATCH(Connections[[#This Row],[Usage?]], UCAallowances!$B$7:$B$8, FALSE)), "Atypical", "Typical" ) -> 

Sheet RPE
A1: RPE - Real Price Effects
B3: Real Price Effect factors as set out in Appendix 1 of Special Condition 6F.
B4: For years beyond 2021 the licence does not stipulate the RPE value. This will be resolved as part of determination of the next price control. For now a simple extrapolation has been used
B5: Extrapolation factor: | C5: 0.015
B7: RIIO-T1 Year | C7: 1 | D7: 2 | E7: 3 | F7: 4 | G7: 5 | H7: 6 | I7: 7 | J7: 8 | K7: 9 | L7: 10 | M7: 11
B8: Relevant Year ending March | C8: 2014 | D8: 2015 | E8: 2016 | F8: 2017 | G8: 2018 | H8: 2019 | I8: 2020 | J8: 2021 | K8: 2022 | L8: 2023 | M8: 2024
B9: RPE factor | C9: 1.046 | D9: 1.061 | E9: 1.077 | F9: 1.093 | G9: 1.11 | H9: 1.126 | I9: 1.143 | J9: 1.161 | K9: =ROUND((1+$C$5)^(K7+2),3) -> 1.178 | L9: =ROUND((1+$C$5)^(L7+2),3) -> 1.196 | M9: =ROUND((1+$C$5)^(M7+2),3) -> 1.214

Sheet UCAallowances
A1: UCA - Unit Cost Allowances
B6: Usage? | C6: Typical Capacity Threshold (MW) | D6: Typical UCA (£m/MW) | E6: Atypical UCA (£m/MVA) | F6: Type Threshold (Typical/Atypical)
B7: Sole | C7: 1168 | D7: 0.075 | E7: 0.294 | F7: 0.15
B8: Shared | C8: 1006 | D8: 0.083 | E8: 0.182 | F8: 0.166

Sheet Baselines
A1: Baseline allowances
F5: 2014 | G5: 2015 | H5: 2016 | I5: 2017 | J5: 2018 | K5: 2019 | L5: 2020 | M5: 2021
B6: Parameter | C6: Units | D6: Constant
B7: BSLE | C7: £m 2009/10 Prices | F7: 17.645 | G7: 21.923 | H7: 22.031 | I7: 17.582 | J7: 14.161 | K7: 5.506 | L7: 0 | M7: 0
B8: BSHE | C8: £m 2009/10 Prices | F8: 0.215 | G8: 6.02 | H8: 45.944 | I8: 30.881 | J8: 0 | K8: 0 | L8: 0 | M8: 0

Sheet ConnectionsCapacity
A1: Cumulative Connection Capacity
A5: ConnectionsCapacity
A6: Cummulative sum of generation connection capacity (MW/MVA) | B6: Connection Status and Type
B7: Forecast | F7: Delivered
B8: Sole | D8: shared | F8: Sole | H8: shared
A9: Delivery Year ending March | B9: Typical | C9: Atypical | D9: Typical | E9: Atypical | F9: Typical | G9: Atypical | H9: Typical | I9: Atypical
A10: 2017 | B10: 0 | C10: 0 | D10: 0 | E10: 0 | F10: 1000 | G10: 0 | H10: 0 | I10: 0
A11: 2018 | B11: 0 | C11: 0 | D11: 0 | E11: 0 | F11: 1000 | G11: 400 | H11: 800 | I11: 0
A12: 2020 | B12: 0 | C12: 0 | D12: 1000 | E12: 0 | F12: 1000 | G12: 400 | H12: 800 | I12: 0
A13: (blank) | B13: 0 | C13: 0 | D13: 1000 | E13: 0 | F13: 1000 | G13: 400 | H13: 800 | I13: 0

Sheet ConnectionsCostForecastAtypical
A1: Cumulative Connection Cost (Forecast-Atypical)
A5: ConnectionsCost
A6: Incremental Actual expenditure (£2009/10 million prices) | B6: Connection Status and Type
B7: Forecast | D7: Delivered
B8: Sole | C8: shared | D8: Sole | E8: shared
A9: Delivery Year ending March | B9: Atypical | C9: Atypical | D9: Atypical | E9: Atypical
A10: 2017
A11: 2018 | D11: 100
A12: 2020
A13: (blank)

Sheet GCE
A1: GCE - Allowed expenditure for Generation Connections
G3: For any given revenue year, t, for its MOD calculation the PCFM considers allowances only up to n <= t.
G4: Values for n>t are never used by the PCFM
G5: Data for all years, n, may be revised as each year, t, has its values calculated for use in the PCFM. For a view of what values the allowances will finally take, use the green sheets of this workbook instead of the purple
B6: Parameter | C6: Units | E6: Constant | F6: n= | G6: 2014 | H6: 2015 | I6: 2016 | J6: 2017 | K6: 2018 | L6: 2019 | M6: 2020 | N6: 2021 | O6: 2022 | P6: 2023 | R6: Total
B7: GCE t, n | C7: £m 2009/10 Prices
B8: t (Year ending March) =
B9: 2014 | G9: =G22+G35 -> 18.68156 | H9: =H22+H35 -> 29.647523 | I9: 73.209075 | J9: 52.970059 | K9: 15.71871 | L9: 6.199756 | M9: 0 | N9: 0 | O9: 0 | P9: 0 | R9: =SUM(G9:P9) -> 196.426683 | S9: =SUMIF(G$6:P$6, "<=" & $B9, $G9:$P9) -> 18.68156
B10: 2015 | G10: =G23+G36 -> 18.68156 | H10: 29.647523 | I10: 73.209075 | J10: 52.970059 | K10: 15.71871 | L10: 6.199756 | M10: 0 | N10: 0 | O10: 0 | P10: 0 | R10: 196.426683 | S10: =SUMIF(G$6:P$6, "<=" & $B10, $G10:$P10) -> 48.329083
B11: 2016 | G11: 18.68156 | H11: 29.647523 | I11: 73.209075 | J11: 52.970059 | K11: 15.71871 | L11: 6.199756 | M11: 0 | N11: 0 | O11: 0 | P11: 0 | R11: 196.426683 | S11: 121.538158
B12: 2017 | G12: 18.68156 | H12: 29.647523 | I12: 73.209075 | J12: 70.9777805 | K12: 15.71871 | L12: 6.199756 | M12: 0 | N12: 0 | O12: 0 | P12: 0 | R12: 214.4344045 | S12: 192.5159385
B13: 2018 | G13: 18.68156 | H13: 29.647523 | I13: 73.209075 | J13: 70.9777805 | K13: 34.006515 | L13: 6.199756 | M13: 0 | N13: 0 | O13: 0 | P13: 0 | R13: 232.7222095 | S13: 226.5224535
B14: 2019 | G14: 18.68156 | H14: 29.647523 | I14: 73.209075 | J14: 70.9777805 | K14: 34.006515 | L14: 24.751169 | M14: 0 | N14: 0 | O14: 0 | P14: 0 | R14: 251.2736225 | S14: 251.2736225
B15: 2020 | G15: 18.68156 | H15: 58.506723 | I15: 102.503475 | J15: 100.7073805 | K15: 65.406195 | L15: 24.751169 | M15: 18.8314965 | N15: 0 | O15: 0 | P15: 0 | R15: 389.387999 | S15: 389.387999
B16: 2021 | G16: 18.68156 | H16: 58.506723 | I16: 102.503475 | J16: 100.7073805 | K16: 65.406195 | L16: 24.751169 | M16: 18.8314965 | N16: 0 | O16: 0 | P16: 0 | R16: 389.387999 | S16: 389.387999
B17: 2022 | G17: 18.68156 | H17: 58.506723 | I17: 102.503475 | J17: 98.766759 | K17: 63.43539 | L17: 22.751956 | M17: 17.474184 | N17: 0 | O17: 0 | P17: 0 | R17: 382.120047 | S17: 382.120047
B18: 2023 | G18: 18.68156 | H18: 58.506723 | I18: 102.503475 | J18: 98.766759 | K18: 63.43539 | L18: 22.751956 | M18: 17.474184 | N18: 0 | O18: 0 | P18: 0 | R18: 382.120047 | S18: 382.120047
B20: FGCE t, n | C20: £m 2009/10 Prices
B21: t (Year ending March) =
B22: 2014 | G22: =FGCE!G9 -> 0 | H22: =FGCE!H9 -> 0 | I22: =FGCE!I9 -> 0 | J22: =FGCE!J9 -> 0 | K22: =FGCE!K9 -> 0 | L22: =FGCE!L9 -> 0 | M22: =FGCE!M9 -> 0 | N22: =FGCE!N9 -> 0 | O22: =FGCE!O9 -> 0 | P22: =FGCE!P9 -> 0 | R22: =SUM(G22:P22) -> 0 | S22: =SUMIF(G$6:P$6, "<=" & $B22, $G22:$P22) -> 0
B23: 2015 | G23: =FGCE!G10 -> 0 | H23: =FGCE!H10 -> 0 | I23: =FGCE!I10 -> 0 | J23: =FGCE!J10 -> 0 | K23: =FGCE!K10 -> 0 | L23: =FGCE!L10 -> 0 | M23: =FGCE!M10 -> 0 | N23: =FGCE!N10 -> 0 | O23: =FGCE!O10 -> 0 | P23: =FGCE!P10 -> 0 | R23: 0 | S23: =SUMIF(G$6:P$6, "<=" & $B23, $G23:$P23) -> 0
B24: 2016 | G24: =FGCE!G11 -> 0 | H24: =FGCE!H11 -> 0 | I24: =FGCE!I11 -> 0 | J24: =FGCE!J11 -> 0 | K24: =FGCE!K11 -> 0 | L24: =FGCE!L11 -> 0 | M24: =FGCE!M11 -> 0 | N24: =FGCE!N11 -> 0 | O24: =FGCE!O11 -> 0 | P24: =FGCE!P11 -> 0 | R24: 0 | S24: 0
B25: 2017 | G25: =FGCE!G12 -> 0 | H25: =FGCE!H12 -> 0 | I25: =FGCE!I12 -> 0 | J25: =FGCE!J12 -> 0 | K25: =FGCE!K12 -> 0 | L25: =FGCE!L12 -> 0 | M25: =FGCE!M12 -> 0 | N25: =FGCE!N12 -> 0 | O25: =FGCE!O12 -> 0 | P25: =FGCE!P12 -> 0 | R25: 0 | S25: 0
B26: 2018 | G26: =FGCE!G13 -> 0 | H26: =FGCE!H13 -> 0 | I26: =FGCE!I13 -> 0 | J26: =FGCE!J13 -> 0 | K26: =FGCE!K13 -> 0 | L26: =FGCE!L13 -> 0 | M26: =FGCE!M13 -> 0 | N26: =FGCE!N13 -> 0 | O26: =FGCE!O13 -> 0 | P26: =FGCE!P13 -> 0 | R26: 0 | S26: 0
B27: 2019 | G27: =FGCE!G14 -> 0 | H27: =FGCE!H14 -> 0 | I27: =FGCE!I14 -> 0 | J27: =FGCE!J14 -> 0 | K27: =FGCE!K14 -> 0 | L27: =FGCE!L14 -> 0 | M27: =FGCE!M14 -> 0 | N27: =FGCE!N14 -> 0 | O27: =FGCE!O14 -> 0 | P27: =FGCE!P14 -> 0 | R27: 0 | S27: 0
B28: 2020 | G28: =FGCE!G15 -> 0 | H28: =FGCE!H15 -> 0 | I28: =FGCE!I15 -> 0 | J28: =FGCE!J15 -> 18.0077215 | K28: =FGCE!K15 -> 18.287805 | L28: =FGCE!L15 -> 18.551413 | M28: =FGCE!M15 -> 18.8314965 | N28: =FGCE!N15 -> 0 | O28: =FGCE!O15 -> 0 | P28: =FGCE!P15 -> 0 | R28: 73.678436 | S28: 73.678436
B29: 2021 | G29: =FGCE!G16 -> 0 | H29: =FGCE!H16 -> 0 | I29: =FGCE!I16 -> 0 | J29: =FGCE!J16 -> 18.0077215 | K29: =FGCE!K16 -> 18.287805 | L29: =FGCE!L16 -> 18.551413 | M29: =FGCE!M16 -> 18.8314965 | N29: =FGCE!N16 -> 0 | O29: =FGCE!O16 -> 0 | P29: =FGCE!P16 -> 0 | R29: 73.678436 | S29: 73.678436
B30: 2022 | G30: =FGCE!G17 -> 0 | H30: =FGCE!H17 -> 0 | I30: =FGCE!I17 -> 0 | J30: =FGCE!J17 -> 0 | K30: =FGCE!K17 -> 0 | L30: =FGCE!L17 -> 0 | M30: =FGCE!M17 -> 0 | N30: =FGCE!N17 -> 0 | O30: =FGCE!O17 -> 0 | P30: =FGCE!P17 -> 0 | R30: 0 | S30: 0
B31: 2023 | G31: =FGCE!G18 -> 0 | H31: =FGCE!H18 -> 0 | I31: =FGCE!I18 -> 0 | J31: =FGCE!J18 -> 0 | K31: =FGCE!K18 -> 0 | L31: =FGCE!L18 -> 0 | M31: =FGCE!M18 -> 0 | N31: =FGCE!N18 -> 0 | O31: =FGCE!O18 -> 0 | P31: =FGCE!P18 -> 0 | R31: 0 | S31: 0
B33: DGCE t, n | C33: £m 2009/10 Prices
B34: t (Year ending March) =
B35: 2014 | G35: =DGCE!G9 -> 18.68156 | H35: =DGCE!H9 -> 29.647523 | I35: =DGCE!I9 -> 73.209075 | J35: =DGCE!J9 -> 52.970059 | K35: =DGCE!K9 -> 15.71871 | L35: =DGCE!L9 -> 6.199756 | M35: =DGCE!M9 -> 0 | N35: =DGCE!N9 -> 0 | O35: =DGCE!O9 -> 0 | P35: =DGCE!P9 -> 0 | R35: =SUM(G35:P35) -> 196.426683 | S35: =SUMIF(G$6:P$6, "<=" & $B35, $G35:$P35) -> 18.68156
B36: 2015 | G36: =DGCE!G10 -> 18.68156 | H36: =DGCE!H10 -> 29.647523 | I36: =DGCE!I10 -> 73.209075 | J36: =DGCE!J10 -> 52.970059 | K36: =DGCE!K10 -> 15.71871 | L36: =DGCE!L10 -> 6.199756 | M36: =DGCE!M10 -> 0 | N36: =DGCE!N10 -> 0 | O36: =DGCE!O10 -> 0 | P36: =DGCE!P10 -> 0 | R36: 196.426683 | S36: =SUMIF(G$6:P$6, "<=" & $B36, $G36:$P36) -> 48.329083
B37: 2016 | G37: =DGCE!G11 -> 18.68156 | H37: =DGCE!H11 -> 29.647523 | I37: =DGCE!I11 -> 73.209075 | J37: =DGCE!J11 -> 52.970059 | K37: =DGCE!K11 -> 15.71871 | L37: =DGCE!L11 -> 6.199756 | M37: =DGCE!M11 -> 0 | N37: =DGCE!N11 -> 0 | O37: =DGCE!O11 -> 0 | P37: =DGCE!P11 -> 0 | R37: 196.426683 | S37: 121.538158
B38: 2017 | G38: =DGCE!G12 -> 18.68156 | H38: =DGCE!H12 -> 29.647523 | I38: =DGCE!I12 -> 73.209075 | J38: =DGCE!J12 -> 70.9777805 | K38: =DGCE!K12 -> 15.71871 | L38: =DGCE!L12 -> 6.199756 | M38: =DGCE!M12 -> 0 | N38: =DGCE!N12 -> 0 | O38: =DGCE!O12 -> 0 | P38: =DGCE!P12 -> 0 | R38: 214.4344045 | S38: 192.5159385
B39: 2018 | G39: =DGCE!G13 -> 18.68156 | H39: =DGCE!H13 -> 29.647523 | I39: =DGCE!I13 -> 73.209075 | J39: =DGCE!J13 -> 70.9777805 | K39: =DGCE!K13 -> 34.006515 | L39: =DGCE!L13 -> 6.199756 | M39: =DGCE!M13 -> 0 | N39: =DGCE!N13 -> 0 | O39: =DGCE!O13 -> 0 | P39: =DGCE!P13 -> 0 | R39: 232.7222095 | S39: 226.5224535
B40: 2019 | G40: =DGCE!G14 -> 18.68156 | H40: =DGCE!H14 -> 29.647523 | I40: =DGCE!I14 -> 73.209075 | J40: =DGCE!J14 -> 70.9777805 | K40: =DGCE!K14 -> 34.006515 | L40: =DGCE!L14 -> 24.751169 | M40: =DGCE!M14 -> 0 | N40: =DGCE!N14 -> 0 | O40: =DGCE!O14 -> 0 | P40: =DGCE!P14 -> 0 | R40: 251.2736225 | S40: 251.2736225
B41: 2020 | G41: =DGCE!G15 -> 18.68156 | H41: =DGCE!H15 -> 58.506723 | I41: =DGCE!I15 -> 102.503475 | J41: =DGCE!J15 -> 82.699659 | K41: =DGCE!K15 -> 47.11839 | L41: =DGCE!L15 -> 6.199756 | M41: =DGCE!M15 -> 0 | N41: =DGCE!N15 -> 0 | O41: =DGCE!O15 -> 0 | P41: =DGCE!P15 -> 0 | R41: 315.709563 | S41: 315.709563
B42: 2021 | G42: =DGCE!G16 -> 18.68156 | H42: =DGCE!H16 -> 58.506723 | I42: =DGCE!I16 -> 102.503475 | J42: =DGCE!J16 -> 82.699659 | K42: =DGCE!K16 -> 47.11839 | L42: =DGCE!L16 -> 6.199756 | M42: =DGCE!M16 -> 0 | N42: =DGCE!N16 -> 0 | O42: =DGCE!O16 -> 0 | P42: =DGCE!P16 -> 0 | R42: 315.709563 | S42: 315.709563
B43: 2022 | G43: =DGCE!G17 -> 18.68156 | H43: =DGCE!H17 -> 58.506723 | I43: =DGCE!I17 -> 102.503475 | J43: =DGCE!J17 -> 98.766759 | K43: =DGCE!K17 -> 63.43539 | L43: =DGCE!L17 -> 22.751956 | M43: =DGCE!M17 -> 17.474184 | N43: =DGCE!N17 -> 0 | O43: =DGCE!O17 -> 0 | P43: =DGCE!P17 -> 0 | R43: 382.120047 | S43: 382.120047
B44: 2023 | G44: =DGCE!G18 -> 18.68156 | H44: =DGCE!H18 -> 58.506723 | I44: =DGCE!I18 -> 102.503475 | J44: =DGCE!J18 -> 98.766759 | K44: =DGCE!K18 -> 63.43539 | L44: =DGCE!L18 -> 22.751956 | M44: =DGCE!M18 -> 17.474184 | N44: =DGCE!N18 -> 0 | O44: =DGCE!O18 -> 0 | P44: =DGCE!P18 -> 0 | R44: 382.120047 | S44: 382.120047

Sheet DGCE
A1: FGCE - Total Forecast Expenditure for Generation Connections
B6: Parameter | C6: Units | E6: Constant | F6: n= | G6: 2014 | H6: 2015 | I6: 2016 | J6: 2017 | K6: 2018 | L6: 2019 | M6: 2020 | N6: 2021 | O6: 2022 | P6: 2023 | R6: Total
B7: DGCE t, n | C7: £m 2009/10 Prices
B8: t (Year ending March) =
B9: 2014 | G9: =G22+G35+G48+G61 -> 18.68156 | H9: =H22+H35+H48+H61 -> 29.647523 | I9: 73.209075 | J9: 52.970059 | K9: 15.71871 | L9: 6.199756 | M9: 0 | N9: 0 | O9: 0 | P9: 0 | R9: =SUM(G9:P9) -> 196.426683 | S9: =SUMIF(G$6:P$6, "<=" & $B9, $G9:$P9) -> 18.68156
B10: 2015 | G10: =G23+G36+G49+G62 -> 18.68156 | H10: 29.647523 | I10: 73.209075 | J10: 52.970059 | K10: 15.71871 | L10: 6.199756 | M10: 0 | N10: 0 | O10: 0 | P10: 0 | R10: 196.426683 | S10: =SUMIF(G$6:P$6, "<=" & $B10, $G10:$P10) -> 48.329083
B11: 2016 | G11: 18.68156 | H11: 29.647523 | I11: 73.209075 | J11: 52.970059 | K11: 15.71871 | L11: 6.199756 | M11: 0 | N11: 0 | O11: 0 | P11: 0 | R11: 196.426683 | S11: 121.538158
B12: 2017 | G12: 18.68156 | H12: 29.647523 | I12: 73.209075 | J12: 70.9777805 | K12: 15.71871 | L12: 6.199756 | M12: 0 | N12: 0 | O12: 0 | P12: 0 | R12: 214.4344045 | S12: 192.5159385
B13: 2018 | G13: 18.68156 | H13: 29.647523 | I13: 73.209075 | J13: 70.9777805 | K13: 34.006515 | L13: 6.199756 | M13: 0 | N13: 0 | O13: 0 | P13: 0 | R13: 232.7222095 | S13: 226.5224535
B14: 2019 | G14: 18.68156 | H14: 29.647523 | I14: 73.209075 | J14: 70.9777805 | K14: 34.006515 | L14: 24.751169 | M14: 0 | N14: 0 | O14: 0 | P14: 0 | R14: 251.2736225 | S14: 251.2736225
B15: 2020 | G15: 18.68156 | H15: 58.506723 | I15: 102.503475 | J15: 82.699659 | K15: 47.11839 | L15: 6.199756 | M15: 0 | N15: 0 | O15: 0 | P15: 0 | R15: 315.709563 | S15: 315.709563
B16: 2021 | G16: 18.68156 | H16: 58.506723 | I16: 102.503475 | J16: 82.699659 | K16: 47.11839 | L16: 6.199756 | M16: 0 | N16: 0 | O16: 0 | P16: 0 | R16: 315.709563 | S16: 315.709563
B17: 2022 | G17: 18.68156 | H17: 58.506723 | I17: 102.503475 | J17: 98.766759 | K17: 63.43539 | L17: 22.751956 | M17: 17.474184 | N17: 0 | O17: 0 | P17: 0 | R17: 382.120047 | S17: 382.120047
B18: 2023 | G18: 18.68156 | H18: 58.506723 | I18: 102.503475 | J18: 98.766759 | K18: 63.43539 | L18: 22.751956 | M18: 17.474184 | N18: 0 | O18: 0 | P18: 0 | R18: 382.120047 | S18: 382.120047
B20: DSLE t, n | C20: £m 2009/10 Prices
B21: t (Year ending March) =
B22: 2014 | G22: =DSLE!G9 -> 18.45667 | H22: =DSLE!H9 -> 23.260303 | I22: =DSLE!I9 -> 23.727387 | J22: =DSLE!J9 -> 19.217126 | K22: =DSLE!K9 -> 15.71871 | L22: =DSLE!L9 -> 6.199756 | M22: =DSLE!M9 -> 0 | N22: =DSLE!N9 -> 0 | O22: =DSLE!O9 -> 0 | P22: =DSLE!P9 -> 0 | R22: =SUM(G22:P22) -> 106.579952 | S22: =SUMIF(G$6:P$6, "<=" & $B22, $G22:$P22) -> 18.45667
B23: 2015 | G23: =DSLE!G10 -> 18.45667 | H23: =DSLE!H10 -> 23.260303 | I23: =DSLE!I10 -> 23.727387 | J23: =DSLE!J10 -> 19.217126 | K23: =DSLE!K10 -> 15.71871 | L23: =DSLE!L10 -> 6.199756 | M23: =DSLE!M10 -> 0 | N23: =DSLE!N10 -> 0 | O23: =DSLE!O10 -> 0 | P23: =DSLE!P10 -> 0 | R23: 106.579952 | S23: =SUMIF(G$6:P$6, "<=" & $B23, $G23:$P23) -> 41.716973
B24: 2016 | G24: =DSLE!G11 -> 18.45667 | H24: =DSLE!H11 -> 23.260303 | I24: =DSLE!I11 -> 23.727387 | J24: =DSLE!J11 -> 19.217126 | K24: =DSLE!K11 -> 15.71871 | L24: =DSLE!L11 -> 6.199756 | M24: =DSLE!M11 -> 0 | N24: =DSLE!N11 -> 0 | O24: =DSLE!O11 -> 0 | P24: =DSLE!P11 -> 0 | R24: 106.579952 | S24: 65.44436
B25: 2017 | G25: =DSLE!G12 -> 18.45667 | H25: =DSLE!H12 -> 23.260303 | I25: =DSLE!I12 -> 23.727387 | J25: =DSLE!J12 -> 19.217126 | K25: =DSLE!K12 -> 15.71871 | L25: =DSLE!L12 -> 6.199756 | M25: =DSLE!M12 -> 0 | N25: =DSLE!N12 -> 0 | O25: =DSLE!O12 -> 0 | P25: =DSLE!P12 -> 0 | R25: 106.579952 | S25: 84.661486
B26: 2018 | G26: =DSLE!G13 -> 18.45667 | H26: =DSLE!H13 -> 23.260303 | I26: =DSLE!I13 -> 23.727387 | J26: =DSLE!J13 -> 19.217126 | K26: =DSLE!K13 -> 15.71871 | L26: =DSLE!L13 -> 6.199756 | M26: =DSLE!M13 -> 0 | N26: =DSLE!N13 -> 0 | O26: =DSLE!O13 -> 0 | P26: =DSLE!P13 -> 0 | R26: 106.579952 | S26: 100.380196
B27: 2019 | G27: =DSLE!G14 -> 18.45667 | H27: =DSLE!H14 -> 23.260303 | I27: =DSLE!I14 -> 23.727387 | J27: =DSLE!J14 -> 19.217126 | K27: =DSLE!K14 -> 15.71871 | L27: =DSLE!L14 -> 6.199756 | M27: =DSLE!M14 -> 0 | N27: =DSLE!N14 -> 0 | O27: =DSLE!O14 -> 0 | P27: =DSLE!P14 -> 0 | R27: 106.579952 | S27: 106.579952
B28: 2020 | G28: =DSLE!G15 -> 18.45667 | H28: =DSLE!H15 -> 23.260303 | I28: =DSLE!I15 -> 23.727387 | J28: =DSLE!J15 -> 19.217126 | K28: =DSLE!K15 -> 15.71871 | L28: =DSLE!L15 -> 6.199756 | M28: =DSLE!M15 -> 0 | N28: =DSLE!N15 -> 0 | O28: =DSLE!O15 -> 0 | P28: =DSLE!P15 -> 0 | R28: 106.579952 | S28: 106.579952
B29: 2021 | G29: =DSLE!G16 -> 18.45667 | H29: =DSLE!H16 -> 23.260303 | I29: =DSLE!I16 -> 23.727387 | J29: =DSLE!J16 -> 19.217126 | K29: =DSLE!K16 -> 15.71871 | L29: =DSLE!L16 -> 6.199756 | M29: =DSLE!M16 -> 0 | N29: =DSLE!N16 -> 0 | O29: =DSLE!O16 -> 0 | P29: =DSLE!P16 -> 0 | R29: 106.579952 | S29: 106.579952
B30: 2022 | G30: =DSLE!G17 -> 18.45667 | H30: =DSLE!H17 -> 23.260303 | I30: =DSLE!I17 -> 23.727387 | J30: =DSLE!J17 -> 19.217126 | K30: =DSLE!K17 -> 15.71871 | L30: =DSLE!L17 -> 6.199756 | M30: =DSLE!M17 -> 0 | N30: =DSLE!N17 -> 0 | O30: =DSLE!O17 -> 0 | P30: =DSLE!P17 -> 0 | R30: 106.579952 | S30: 106.579952
B31: 2023 | G31: =DSLE!G18 -> 18.45667 | H31: =DSLE!H18 -> 23.260303 | I31: =DSLE!I18 -> 23.727387 | J31: =DSLE!J18 -> 19.217126 | K31: =DSLE!K18 -> 15.71871 | L31: =DSLE!L18 -> 6.199756 | M31: =DSLE!M18 -> 0 | N31: =DSLE!N18 -> 0 | O31: =DSLE!O18 -> 0 | P31: =DSLE!P18 -> 0 | R31: 106.579952 | S31: 106.579952
B33: DSHE t, n | C33: £m 2009/10 Prices
B34: t (Year ending March) =
B35: 2014 | G35: =DSHE!G9 -> 0.22489 | H35: =DSHE!H9 -> 6.38722 | I35: =DSHE!I9 -> 49.481688 | J35: =DSHE!J9 -> 33.752933 | K35: =DSHE!K9 -> 0 | L35: =DSHE!L9 -> 0 | M35: =DSHE!M9 -> 0 | N35: =DSHE!N9 -> 0 | O35: =DSHE!O9 -> 0 | P35: =DSHE!P9 -> 0 | R35: =SUM(G35:P35) -> 89.846731 | S35: =SUMIF(G$6:P$6, "<=" & $B35, $G35:$P35) -> 0.22489
B36: 2015 | G36: =DSHE!G10 -> 0.22489 | H36: =DSHE!H10 -> 6.38722 | I36: =DSHE!I10 -> 49.481688 | J36: =DSHE!J10 -> 33.752933 | K36: =DSHE!K10 -> 0 | L36: =DSHE!L10 -> 0 | M36: =DSHE!M10 -> 0 | N36: =DSHE!N10 -> 0 | O36: =DSHE!O10 -> 0 | P36: =DSHE!P10 -> 0 | R36: 89.846731 | S36: =SUMIF(G$6:P$6, "<=" & $B36, $G36:$P36) -> 6.61211
B37: 2016 | G37: =DSHE!G11 -> 0.22489 | H37: =DSHE!H11 -> 6.38722 | I37: =DSHE!I11 -> 49.481688 | J37: =DSHE!J11 -> 33.752933 | K37: =DSHE!K11 -> 0 | L37: =DSHE!L11 -> 0 | M37: =DSHE!M11 -> 0 | N37: =DSHE!N11 -> 0 | O37: =DSHE!O11 -> 0 | P37: =DSHE!P11 -> 0 | R37: 89.846731 | S37: 56.093798
B38: 2017 | G38: =DSHE!G12 -> 0.22489 | H38: =DSHE!H12 -> 6.38722 | I38: =DSHE!I12 -> 49.481688 | J38: =DSHE!J12 -> 51.7606545 | K38: =DSHE!K12 -> 0 | L38: =DSHE!L12 -> 0 | M38: =DSHE!M12 -> 0 | N38: =DSHE!N12 -> 0 | O38: =DSHE!O12 -> 0 | P38: =DSHE!P12 -> 0 | R38: 107.8544525 | S38: 107.8544525
B39: 2018 | G39: =DSHE!G13 -> 0.22489 | H39: =DSHE!H13 -> 6.38722 | I39: =DSHE!I13 -> 49.481688 | J39: =DSHE!J13 -> 51.7606545 | K39: =DSHE!K13 -> 18.287805 | L39: =DSHE!L13 -> 0 | M39: =DSHE!M13 -> 0 | N39: =DSHE!N13 -> 0 | O39: =DSHE!O13 -> 0 | P39: =DSHE!P13 -> 0 | R39: 126.1422575 | S39: 126.1422575
B40: 2019 | G40: =DSHE!G14 -> 0.22489 | H40: =DSHE!H14 -> 6.38722 | I40: =DSHE!I14 -> 49.481688 | J40: =DSHE!J14 -> 51.7606545 | K40: =DSHE!K14 -> 18.287805 | L40: =DSHE!L14 -> 18.551413 | M40: =DSHE!M14 -> 0 | N40: =DSHE!N14 -> 0 | O40: =DSHE!O14 -> 0 | P40: =DSHE!P14 -> 0 | R40: 144.6936705 | S40: 144.6936705
B41: 2020 | G41: =DSHE!G15 -> 0.22489 | H41: =DSHE!H15 -> 6.38722 | I41: =DSHE!I15 -> 49.481688 | J41: =DSHE!J15 -> 33.752933 | K41: =DSHE!K15 -> 0 | L41: =DSHE!L15 -> 0 | M41: =DSHE!M15 -> 0 | N41: =DSHE!N15 -> 0 | O41: =DSHE!O15 -> 0 | P41: =DSHE!P15 -> 0 | R41: 89.846731 | S41: 89.846731
B42: 2021 | G42: =DSHE!G16 -> 0.22489 | H42: =DSHE!H16 -> 6.38722 | I42: =DSHE!I16 -> 49.481688 | J42: =DSHE!J16 -> 33.752933 | K42: =DSHE!K16 -> 0 | L42: =DSHE!L16 -> 0 | M42: =DSHE!M16 -> 0 | N42: =DSHE!N16 -> 0 | O42: =DSHE!O16 -> 0 | P42: =DSHE!P16 -> 0 | R42: 89.846731 | S42: 89.846731
B43: 2022 | G43: =DSHE!G17 -> 0.22489 | H43: =DSHE!H17 -> 6.38722 | I43: =DSHE!I17 -> 49.481688 | J43: =DSHE!J17 -> 33.752933 | K43: =DSHE!K17 -> 0 | L43: =DSHE!L17 -> 0 | M43: =DSHE!M17 -> 0 | N43: =DSHE!N17 -> 0 | O43: =DSHE!O17 -> 0 | P43: =DSHE!P17 -> 0 | R43: 89.846731 | S43: 89.846731
B44: 2023 | G44: =DSHE!G18 -> 0.22489 | H44: =DSHE!H18 -> 6.38722 | I44: =DSHE!I18 -> 49.481688 | J44: =DSHE!J18 -> 33.752933 | K44: =DSHE!K18 -> 0 | L44: =DSHE!L18 -> 0 | M44: =DSHE!M18 -> 0 | N44: =DSHE!N18 -> 0 | O44: =DSHE!O18 -> 0 | P44: =DSHE!P18 -> 0 | R44: 89.846731 | S44: 89.846731
B46: DASLE t, n | C46: £m 2009/10 Prices
B47: t (Year ending March) =
B48: 2014 | G48: =DASLE!G9 -> 0 | H48: =DASLE!H9 -> 0 | I48: =DASLE!I9 -> 0 | J48: =DASLE!J9 -> 0 | K48: =DASLE!K9 -> 0 | L48: =DASLE!L9 -> 0 | M48: =DASLE!M9 -> 0 | N48: =DASLE!N9 -> 0 | O48: =DASLE!O9 -> 0 | P48: =DASLE!P9 -> 0 | R48: =SUM(G48:P48) -> 0 | S48: =SUMIF(G$6:P$6, "<=" & $B48, $G48:$P48) -> 0
B49: 2015 | G49: =DASLE!G10 -> 0 | H49: =DASLE!H10 -> 0 | I49: =DASLE!I10 -> 0 | J49: =DASLE!J10 -> 0 | K49: =DASLE!K10 -> 0 | L49: =DASLE!L10 -> 0 | M49: =DASLE!M10 -> 0 | N49: =DASLE!N10 -> 0 | O49: =DASLE!O10 -> 0 | P49: =DASLE!P10 -> 0 | R49: 0 | S49: =SUMIF(G$6:P$6, "<=" & $B49, $G49:$P49) -> 0
B50: 2016 | G50: =DASLE!G11 -> 0 | H50: =DASLE!H11 -> 0 | I50: =DASLE!I11 -> 0 | J50: =DASLE!J11 -> 0 | K50: =DASLE!K11 -> 0 | L50: =DASLE!L11 -> 0 | M50: =DASLE!M11 -> 0 | N50: =DASLE!N11 -> 0 | O50: =DASLE!O11 -> 0 | P50: =DASLE!P11 -> 0 | R50: 0 | S50: 0
B51: 2017 | G51: =DASLE!G12 -> 0 | H51: =DASLE!H12 -> 0 | I51: =DASLE!I12 -> 0 | J51: =DASLE!J12 -> 0 | K51: =DASLE!K12 -> 0 | L51: =DASLE!L12 -> 0 | M51: =DASLE!M12 -> 0 | N51: =DASLE!N12 -> 0 | O51: =DASLE!O12 -> 0 | P51: =DASLE!P12 -> 0 | R51: 0 | S51: 0
B52: 2018 | G52: =DASLE!G13 -> 0 | H52: =DASLE!H13 -> 0 | I52: =DASLE!I13 -> 0 | J52: =DASLE!J13 -> 0 | K52: =DASLE!K13 -> 0 | L52: =DASLE!L13 -> 0 | M52: =DASLE!M13 -> 0 | N52: =DASLE!N13 -> 0 | O52: =DASLE!O13 -> 0 | P52: =DASLE!P13 -> 0 | R52: 0 | S52: 0
B53: 2019 | G53: =DASLE!G14 -> 0 | H53: =DASLE!H14 -> 0 | I53: =DASLE!I14 -> 0 | J53: =DASLE!J14 -> 0 | K53: =DASLE!K14 -> 0 | L53: =DASLE!L14 -> 0 | M53: =DASLE!M14 -> 0 | N53: =DASLE!N14 -> 0 | O53: =DASLE!O14 -> 0 | P53: =DASLE!P14 -> 0 | R53: 0 | S53: 0
B54: 2020 | G54: =DASLE!G15 -> 0 | H54: =DASLE!H15 -> 28.8592 | I54: =DASLE!I15 -> 29.2944 | J54: =DASLE!J15 -> 29.7296 | K54: =DASLE!K15 -> 31.39968 | L54: =DASLE!L15 -> 0 | M54: =DASLE!M15 -> 0 | N54: =DASLE!N15 -> 0 | O54: =DASLE!O15 -> 0 | P54: =DASLE!P15 -> 0 | R54: 119.28288 | S54: 119.28288
B55: 2021 | G55: =DASLE!G16 -> 0 | H55: =DASLE!H16 -> 28.8592 | I55: =DASLE!I16 -> 29.2944 | J55: =DASLE!J16 -> 29.7296 | K55: =DASLE!K16 -> 31.39968 | L55: =DASLE!L16 -> 0 | M55: =DASLE!M16 -> 0 | N55: =DASLE!N16 -> 0 | O55: =DASLE!O16 -> 0 | P55: =DASLE!P16 -> 0 | R55: 119.28288 | S55: 119.28288
B56: 2022 | G56: =DASLE!G17 -> 0 | H56: =DASLE!H17 -> 28.8592 | I56: =DASLE!I17 -> 29.2944 | J56: =DASLE!J17 -> 45.7967 | K56: =DASLE!K17 -> 47.71668 | L56: =DASLE!L17 -> 16.5522 | M56: =DASLE!M17 -> 17.474184 | N56: =DASLE!N17 -> 0 | O56: =DASLE!O17 -> 0 | P56: =DASLE!P17 -> 0 | R56: 185.693364 | S56: 185.693364
B57: 2023 | G57: =DASLE!G18 -> 0 | H57: =DASLE!H18 -> 28.8592 | I57: =DASLE!I18 -> 29.2944 | J57: =DASLE!J18 -> 45.7967 | K57: =DASLE!K18 -> 47.71668 | L57: =DASLE!L18 -> 16.5522 | M57: =DASLE!M18 -> 17.474184 | N57: =DASLE!N18 -> 0 | O57: =DASLE!O18 -> 0 | P57: =DASLE!P18 -> 0 | R57: 185.693364 | S57: 185.693364
B59: DASHE t, n | C59: £m 2009/10 Prices
B60: t (Year ending March) =
B61: 2014 | G61: =DASHE!G9 -> 0 | H61: =DASHE!H9 -> 0 | I61: =DASHE!I9 -> 0 | J61: =DASHE!J9 -> 0 | K61: =DASHE!K9 -> 0 | L61: =DASHE!L9 -> 0 | M61: =DASHE!M9 -> 0 | N61: =DASHE!N9 -> 0 | O61: =DASHE!O9 -> 0 | P61: =DASHE!P9 -> 0 | R61: =SUM(G61:P61) -> 0 | S61: =SUMIF(G$6:P$6, "<=" & $B61, $G61:$P61) -> 0
B62: 2015 | G62: =DASHE!G10 -> 0 | H62: =DASHE!H10 -> 0 | I62: =DASHE!I10 -> 0 | J62: =DASHE!J10 -> 0 | K62: =DASHE!K10 -> 0 | L62: =DASHE!L10 -> 0 | M62: =DASHE!M10 -> 0 | N62: =DASHE!N10 -> 0 | O62: =DASHE!O10 -> 0 | P62: =DASHE!P10 -> 0 | R62: 0 | S62: =SUMIF(G$6:P$6, "<=" & $B62, $G62:$P62) -> 0
B63: 2016 | G63: =DASHE!G11 -> 0 | H63: =DASHE!H11 -> 0 | I63: =DASHE!I11 -> 0 | J63: =DASHE!J11 -> 0 | K63: =DASHE!K11 -> 0 | L63: =DASHE!L11 -> 0 | M63: =DASHE!M11 -> 0 | N63: =DASHE!N11 -> 0 | O63: =DASHE!O11 -> 0 | P63: =DASHE!P11 -> 0 | R63: 0 | S63: 0
B64: 2017 | G64: =DASHE!G12 -> 0 | H64: =DASHE!H12 -> 0 | I64: =DASHE!I12 -> 0 | J64: =DASHE!J12 -> 0 | K64: =DASHE!K12 -> 0 | L64: =DASHE!L12 -> 0 | M64: =DASHE!M12 -> 0 | N64: =DASHE!N12 -> 0 | O64: =DASHE!O12 -> 0 | P64: =DASHE!P12 -> 0 | R64: 0 | S64: 0
B65: 2018 | G65: =DASHE!G13 -> 0 | H65: =DASHE!H13 -> 0 | I65: =DASHE!I13 -> 0 | J65: =DASHE!J13 -> 0 | K65: =DASHE!K13 -> 0 | L65: =DASHE!L13 -> 0 | M65: =DASHE!M13 -> 0 | N65: =DASHE!N13 -> 0 | O65: =DASHE!O13 -> 0 | P65: =DASHE!P13 -> 0 | R65: 0 | S65: 0
B66: 2019 | G66: =DASHE!G14 -> 0 | H66: =DASHE!H14 -> 0 | I66: =DASHE!I14 -> 0 | J66: =DASHE!J14 -> 0 | K66: =DASHE!K14 -> 0 | L66: =DASHE!L14 -> 0 | M66: =DASHE!M14 -> 0 | N66: =DASHE!N14 -> 0 | O66: =DASHE!O14 -> 0 | P66: =DASHE!P14 -> 0 | R66: 0 | S66: 0
B67: 2020 | G67: =DASHE!G15 -> 0 | H67: =DASHE!H15 -> 0 | I67: =DASHE!I15 -> 0 | J67: =DASHE!J15 -> 0 | K67: =DASHE!K15 -> 0 | L67: =DASHE!L15 -> 0 | M67: =DASHE!M15 -> 0 | N67: =DASHE!N15 -> 0 | O67: =DASHE!O15 -> 0 | P67: =DASHE!P15 -> 0 | R67: 0 | S67: 0
B68: 2021 | G68: =DASHE!G16 -> 0 | H68: =DASHE!H16 -> 0 | I68: =DASHE!I16 -> 0 | J68: =DASHE!J16 -> 0 | K68: =DASHE!K16 -> 0 | L68: =DASHE!L16 -> 0 | M68: =DASHE!M16 -> 0 | N68: =DASHE!N16 -> 0 | O68: =DASHE!O16 -> 0 | P68: =DASHE!P16 -> 0 | R68: 0 | S68: 0
B69: 2022 | G69: =DASHE!G17 -> 0 | H69: =DASHE!H17 -> 0 | I69: =DASHE!I17 -> 0 | J69: =DASHE!J17 -> 0 | K69: =DASHE!K17 -> 0 | L69: =DASHE!L17 -> 0 | M69: =DASHE!M17 -> 0 | N69: =DASHE!N17 -> 0 | O69: =DASHE!O17 -> 0 | P69: =DASHE!P17 -> 0 | R69: 0 | S69: 0
B70: 2023 | G70: =DASHE!G18 -> 0 | H70: =DASHE!H18 -> 0 | I70: =DASHE!I18 -> 0 | J70: =DASHE!J18 -> 0 | K70: =DASHE!K18 -> 0 | L70: =DASHE!L18 -> 0 | M70: =DASHE!M18 -> 0 | N70: =DASHE!N18 -> 0 | O70: =DASHE!O18 -> 0 | P70: =DASHE!P18 -> 0 | R70: 0 | S70: 0

Sheet DSLE
A1: DSLE - Sole-Use Allowed Expenditure for Delivered Connections Capacity
B6: Parameter | C6: Units | E6: Constant | F6: n= | G6: 2014 | H6: 2015 | I6: 2016 | J6: 2017 | K6: 2018 | L6: 2019 | M6: 2020 | N6: 2021 | O6: 2022 | P6: 2023 | R6: Total
B7: DSLE t, n | C7: £m 2009/10 Prices
B8: t (Year ending March) =
B9: 2014 | G9: =G$21* G$22 + G52 + G26 + G39 -> 18.45667 | H9: =H$21* H$22 + H52 + H26 + H39 -> 23.260303 | I9: 23.727387 | J9: 19.217126 | K9: 15.71871 | L9: 6.199756 | M9: 0 | N9: 0 | O9: 0 | P9: 0 | R9: =SUM(G9:P9) -> 106.579952 | S9: =SUMIF(G$6:P$6, "<=" & $B9, $G9:$P9) -> 18.45667
B10: 2015 | G10: =G$21* G$22 + G53 + G27 + G40 -> 18.45667 | H10: 23.260303 | I10: 23.727387 | J10: 19.217126 | K10: 15.71871 | L10: 6.199756 | M10: 0 | N10: 0 | O10: 0 | P10: 0 | R10: 106.579952 | S10: =SUMIF(G$6:P$6, "<=" & $B10, $G10:$P10) -> 41.716973
B11: 2016 | G11: 18.45667 | H11: 23.260303 | I11: 23.727387 | J11: 19.217126 | K11: 15.71871 | L11: 6.199756 | M11: 0 | N11: 0 | O11: 0 | P11: 0 | R11: 106.579952 | S11: 65.44436
B12: 2017 | G12: 18.45667 | H12: 23.260303 | I12: 23.727387 | J12: 19.217126 | K12: 15.71871 | L12: 6.199756 | M12: 0 | N12: 0 | O12: 0 | P12: 0 | R12: 106.579952 | S12: 84.661486
B13: 2018 | G13: 18.45667 | H13: 23.260303 | I13: 23.727387 | J13: 19.217126 | K13: 15.71871 | L13: 6.199756 | M13: 0 | N13: 0 | O13: 0 | P13: 0 | R13: 106.579952 | S13: 100.380196
B14: 2019 | G14: 18.45667 | H14: 23.260303 | I14: 23.727387 | J14: 19.217126 | K14: 15.71871 | L14: 6.199756 | M14: 0 | N14: 0 | O14: 0 | P14: 0 | R14: 106.579952 | S14: 106.579952
B15: 2020 | G15: 18.45667 | H15: 23.260303 | I15: 23.727387 | J15: 19.217126 | K15: 15.71871 | L15: 6.199756 | M15: 0 | N15: 0 | O15: 0 | P15: 0 | R15: 106.579952 | S15: 106.579952
B16: 2021 | G16: 18.45667 | H16: 23.260303 | I16: 23.727387 | J16: 19.217126 | K16: 15.71871 | L16: 6.199756 | M16: 0 | N16: 0 | O16: 0 | P16: 0 | R16: 106.579952 | S16: 106.579952
B17: 2022 | G17: 18.45667 | H17: 23.260303 | I17: 23.727387 | J17: 19.217126 | K17: 15.71871 | L17: 6.199756 | M17: 0 | N17: 0 | O17: 0 | P17: 0 | R17: 106.579952 | S17: 106.579952
B18: 2023 | G18: 18.45667 | H18: 23.260303 | I18: 23.727387 | J18: 19.217126 | K18: 15.71871 | L18: 6.199756 | M18: 0 | N18: 0 | O18: 0 | P18: 0 | R18: 106.579952 | S18: 106.579952
B20: DSLG n | C20: MW | G20: =IFERROR( GETPIVOTDATA( TEXT(Connections[[#Headers],[Generation connection capacity (MW/MVA)]], 0), ConnectionsCapacity!$A$6, Connections[[#Headers],[Delivery year ending March]], G$6, Connections[[#Headers],[ConnectionStatus (Delivered/Forecast)]], "Delivered", Connections[[#Headers],[Usage?]], "Sole", Connections[[#Headers],[Type?]], "Typical" ), 0 ) -> 0 | H20: =IFERROR( GETPIVOTDATA( TEXT(Connections[[#Headers],[Generation connection capacity (MW/MVA)]], 0), ConnectionsCapacity!$A$6, Connections[[#Headers],[Delivery year ending March]], H$6, Connections[[#Headers],[ConnectionStatus (Delivered/Forecast)]], "Delivered", Connections[[#Headers],[Usage?]], "Sole", Connections[[#Headers],[Type?]], "Typical" ), 0 ) -> 0 | I20: =IFERROR( GETPIVOTDATA( TEXT(Connections[[#Headers],[Generation connection capacity (MW/MVA)]], 0), ConnectionsCapacity!$A$6, Connections[[#Headers],[Delivery year ending March]], I$6, Connections[[#Headers],[ConnectionStatus (Delivered/Forecast)]], "Delivered", Connections[[#Headers],[Usage?]], "Sole", Connections[[#Headers],[Type?]], "Typical" ), 0 ) -> 0 | J20: =IFERROR( GETPIVOTDATA( TEXT(Connections[[#Headers],[Generation connection capacity (MW/MVA)]], 0), ConnectionsCapacity!$A$6, Connections[[#Headers],[Delivery year ending March]], J$6, Connections[[#Headers],[ConnectionStatus (Delivered/Forecast)]], "Delivered", Connections[[#Headers],[Usage?]], "Sole", Connections[[#Headers],[Type?]], "Typical" ), 0 ) -> 1000 | K20: =IFERROR( GETPIVOTDATA( TEXT(Connections[[#Headers],[Generation connection capacity (MW/MVA)]], 0), ConnectionsCapacity!$A$6, Connections[[#Headers],[Delivery year ending March]], K$6, Connections[[#Headers],[ConnectionStatus (Delivered/Forecast)]], "Delivered", Connections[[#Headers],[Usage?]], "Sole", Connections[[#Headers],[Type?]], "Typical" ), 0 ) -> 1000 | L20: =IFERROR( GETPIVOTDATA( TEXT(Connections[[#Headers],[Generation connection capacity (MW/MVA)]], 0), ConnectionsCapacity!$A$6, Connections[[#Headers],[Delivery year ending March]], L$6, Connections[[#Headers],[ConnectionStatus (Delivered/Forecast)]], "Delivered", Connections[[#Headers],[Usage?]], "Sole", Connections[[#Headers],[Type?]], "Typical" ), 0 ) -> 0 | M20: =IFERROR( GETPIVOTDATA( TEXT(Connections[[#Headers],[Generation connection capacity (MW/MVA)]], 0), ConnectionsCapacity!$A$6, Connections[[#Headers],[Delivery year ending March]], M$6, Connections[[#Headers],[ConnectionStatus (Delivered/Forecast)]], "Delivered", Connections[[#Headers],[Usage?]], "Sole", Connections[[#Headers],[Type?]], "Typical" ), 0 ) -> 1000 | N20: =IFERROR( GETPIVOTDATA( TEXT(Connections[[#Headers],[Generation connection capacity (MW/MVA)]], 0), ConnectionsCapacity!$A$6, Connections[[#Headers],[Delivery year ending March]], N$6, Connections[[#Headers],[ConnectionStatus (Delivered/Forecast)]], "Delivered", Connections[[#Headers],[Usage?]], "Sole", Connections[[#Headers],[Type?]], "Typical" ), 0 ) -> 0 | O20: =IFERROR( GETPIVOTDATA( TEXT(Connections[[#Headers],[Generation connection capacity (MW/MVA)]], 0), ConnectionsCapacity!$A$6, Connections[[#Headers],[Delivery year ending March]], O$6, Connections[[#Headers],[ConnectionStatus (Delivered/Forecast)]], "Delivered", Connections[[#Headers],[Usage?]], "Sole", Connections[[#Headers],[Type?]], "Typical" ), 0 ) -> 0 | P20: =IFERROR( GETPIVOTDATA( TEXT(Connections[[#Headers],[Generation connection capacity (MW/MVA)]], 0), ConnectionsCapacity!$A$6, Connections[[#Headers],[Delivery year ending March]], P$6, Connections[[#Headers],[ConnectionStatus (Delivered/Forecast)]], "Delivered", Connections[[#Headers],[Usage?]], "Sole", Connections[[#Headers],[Type?]], "Typical" ), 0 ) -> 0
B21: BSLE n | C21: £m 2009/10 Prices | G21: =Baselines!F7 -> 17.645 | H21: =Baselines!G7 -> 21.923 | I21: =Baselines!H7 -> 22.031 | J21: =Baselines!I7 -> 17.582 | K21: =Baselines!J7 -> 14.161 | L21: =Baselines!K7 -> 5.506 | M21: =Baselines!L7 -> 0 | N21: =Baselines!M7 -> 0 | O21: =Baselines!N7 -> 0 | P21: =Baselines!O7 -> 0 | R21: =SUM(G21:P21) -> 98.848
B22: RPE n | C22: Scaler | G22: =RPE!C9 -> 1.046 | H22: =RPE!D9 -> 1.061 | I22: =RPE!E9 -> 1.077 | J22: =RPE!F9 -> 1.093 | K22: =RPE!G9 -> 1.11 | L22: =RPE!H9 -> 1.126 | M22: =RPE!I9 -> 1.143 | N22: =RPE!J9 -> 1.161 | O22: =RPE!K9 -> 1.178 | P22: =RPE!L9 -> 1.196
B24: OLSE t, n | C24: £m 2009/10 Prices
B25: t (Year ending March) =
B26: 2014 | G26: =OSLE!G9 -> 0 | H26: =OSLE!H9 -> 0 | I26: =OSLE!I9 -> 0 | J26: =OSLE!J9 -> 0 | K26: =OSLE!K9 -> 0 | L26: =OSLE!L9 -> 0 | M26: =OSLE!M9 -> 0 | N26: =OSLE!N9 -> 0 | O26: =OSLE!O9 -> 0 | P26: =OSLE!P9 -> 0 | R26: =SUM(G26:P26) -> 0 | S26: =SUMIF(G$6:P$6, "<=" & $B26, $G26:$P26) -> 0
B27: 2015 | G27: =OSLE!G10 -> 0 | H27: =OSLE!H10 -> 0 | I27: =OSLE!I10 -> 0 | J27: =OSLE!J10 -> 0 | K27: =OSLE!K10 -> 0 | L27: =OSLE!L10 -> 0 | M27: =OSLE!M10 -> 0 | N27: =OSLE!N10 -> 0 | O27: =OSLE!O10 -> 0 | P27: =OSLE!P10 -> 0 | R27: 0 | S27: =SUMIF(G$6:P$6, "<=" & $B27, $G27:$P27) -> 0
B28: 2016 | G28: =OSLE!G11 -> 0 | H28: =OSLE!H11 -> 0 | I28: =OSLE!I11 -> 0 | J28: =OSLE!J11 -> 0 | K28: =OSLE!K11 -> 0 | L28: =OSLE!L11 -> 0 | M28: =OSLE!M11 -> 0 | N28: =OSLE!N11 -> 0 | O28: =OSLE!O11 -> 0 | P28: =OSLE!P11 -> 0 | R28: 0 | S28: 0
B29: 2017 | G29: =OSLE!G12 -> 0 | H29: =OSLE!H12 -> 0 | I29: =OSLE!I12 -> 0 | J29: =OSLE!J12 -> 0 | K29: =OSLE!K12 -> 0 | L29: =OSLE!L12 -> 0 | M29: =OSLE!M12 -> 0 | N29: =OSLE!N12 -> 0 | O29: =OSLE!O12 -> 0 | P29: =OSLE!P12 -> 0 | R29: 0 | S29: 0
B30: 2018 | G30: =OSLE!G13 -> 0 | H30: =OSLE!H13 -> 0 | I30: =OSLE!I13 -> 0 | J30: =OSLE!J13 -> 0 | K30: =OSLE!K13 -> 0 | L30: =OSLE!L13 -> 0 | M30: =OSLE!M13 -> 0 | N30: =OSLE!N13 -> 0 | O30: =OSLE!O13 -> 0 | P30: =OSLE!P13 -> 0 | R30: 0 | S30: 0
B31: 2019 | G31: =OSLE!G14 -> 0 | H31: =OSLE!H14 -> 0 | I31: =OSLE!I14 -> 0 | J31: =OSLE!J14 -> 0 | K31: =OSLE!K14 -> 0 | L31: =OSLE!L14 -> 0 | M31: =OSLE!M14 -> 0 | N31: =OSLE!N14 -> 0 | O31: =OSLE!O14 -> 0 | P31: =OSLE!P14 -> 0 | R31: 0 | S31: 0
B32: 2020 | G32: =OSLE!G15 -> 0 | H32: =OSLE!H15 -> 0 | I32: =OSLE!I15 -> 0 | J32: =OSLE!J15 -> 0 | K32: =OSLE!K15 -> 0 | L32: =OSLE!L15 -> 0 | M32: =OSLE!M15 -> 0 | N32: =OSLE!N15 -> 0 | O32: =OSLE!O15 -> 0 | P32: =OSLE!P15 -> 0 | R32: 0 | S32: 0
B33: 2021 | G33: =OSLE!G16 -> 0 | H33: =OSLE!H16 -> 0 | I33: =OSLE!I16 -> 0 | J33: =OSLE!J16 -> 0 | K33: =OSLE!K16 -> 0 | L33: =OSLE!L16 -> 0 | M33: =OSLE!M16 -> 0 | N33: =OSLE!N16 -> 0 | O33: =OSLE!O16 -> 0 | P33: =OSLE!P16 -> 0 | R33: 0 | S33: 0
B34: 2022 | G34: =OSLE!G17 -> 0 | H34: =OSLE!H17 -> 0 | I34: =OSLE!I17 -> 0 | J34: =OSLE!J17 -> 0 | K34: =OSLE!K17 -> 0 | L34: =OSLE!L17 -> 0 | M34: =OSLE!M17 -> 0 | N34: =OSLE!N17 -> 0 | O34: =OSLE!O17 -> 0 | P34: =OSLE!P17 -> 0 | R34: 0 | S34: 0
B35: 2023 | G35: =OSLE!G18 -> 0 | H35: =OSLE!H18 -> 0 | I35: =OSLE!I18 -> 0 | J35: =OSLE!J18 -> 0 | K35: =OSLE!K18 -> 0 | L35: =OSLE!L18 -> 0 | M35: =OSLE!M18 -> 0 | N35: =OSLE!N18 -> 0 | O35: =OSLE!O18 -> 0 | P35: =OSLE!P18 -> 0 | R35: 0 | S35: 0
B37: OPSL t - n | C37: £m 2009/10 Prices
B38: t (Year ending March) =
B39: 2014 | G39: =OPSL!G16 -> 0 | H39: =OPSL!H16 -> 0 | I39: =OPSL!I16 -> 0 | J39: =OPSL!J16 -> 0 | K39: =OPSL!K16 -> 0 | L39: =OPSL!L16 -> 0 | M39: =OPSL!M16 -> 0 | N39: =OPSL!N16 -> 0 | O39: =OPSL!O16 -> 0 | P39: =OPSL!P16 -> 0 | R39: =SUM(G39:P39) -> 0 | S39: =SUMIF(G$6:P$6, "<=" & $B39, $G39:$P39) -> 0
B40: 2015 | G40: =OPSL!G17 -> 0 | H40: =OPSL!H17 -> 0 | I40: =OPSL!I17 -> 0 | J40: =OPSL!J17 -> 0 | K40: =OPSL!K17 -> 0 | L40: =OPSL!L17 -> 0 | M40: =OPSL!M17 -> 0 | N40: =OPSL!N17 -> 0 | O40: =OPSL!O17 -> 0 | P40: =OPSL!P17 -> 0 | R40: 0 | S40: =SUMIF(G$6:P$6, "<=" & $B40, $G40:$P40) -> 0
B41: 2016 | G41: =OPSL!G18 -> 0 | H41: =OPSL!H18 -> 0 | I41: =OPSL!I18 -> 0 | J41: =OPSL!J18 -> 0 | K41: =OPSL!K18 -> 0 | L41: =OPSL!L18 -> 0 | M41: =OPSL!M18 -> 0 | N41: =OPSL!N18 -> 0 | O41: =OPSL!O18 -> 0 | P41: =OPSL!P18 -> 0 | R41: 0 | S41: 0
B42: 2017 | G42: =OPSL!G19 -> 0 | H42: =OPSL!H19 -> 0 | I42: =OPSL!I19 -> 0 | J42: =OPSL!J19 -> 0 | K42: =OPSL!K19 -> 0 | L42: =OPSL!L19 -> 0 | M42: =OPSL!M19 -> 0 | N42: =OPSL!N19 -> 0 | O42: =OPSL!O19 -> 0 | P42: =OPSL!P19 -> 0 | R42: 0 | S42: 0
B43: 2018 | G43: =OPSL!G20 -> 0 | H43: =OPSL!H20 -> 0 | I43: =OPSL!I20 -> 0 | J43: =OPSL!J20 -> 0 | K43: =OPSL!K20 -> 0 | L43: =OPSL!L20 -> 0 | M43: =OPSL!M20 -> 0 | N43: =OPSL!N20 -> 0 | O43: =OPSL!O20 -> 0 | P43: =OPSL!P20 -> 0 | R43: 0 | S43: 0
B44: 2019 | G44: =OPSL!G21 -> 0 | H44: =OPSL!H21 -> 0 | I44: =OPSL!I21 -> 0 | J44: =OPSL!J21 -> 0 | K44: =OPSL!K21 -> 0 | L44: =OPSL!L21 -> 0 | M44: =OPSL!M21 -> 0 | N44: =OPSL!N21 -> 0 | O44: =OPSL!O21 -> 0 | P44: =OPSL!P21 -> 0 | R44: 0 | S44: 0
B45: 2020 | G45: =OPSL!G22 -> 0 | H45: =OPSL!H22 -> 0 | I45: =OPSL!I22 -> 0 | J45: =OPSL!J22 -> 0 | K45: =OPSL!K22 -> 0 | L45: =OPSL!L22 -> 0 | M45: =OPSL!M22 -> 0 | N45: =OPSL!N22 -> 0 | O45: =OPSL!O22 -> 0 | P45: =OPSL!P22 -> 0 | R45: 0 | S45: 0
B46: 2021 | G46: =OPSL!G23 -> 0 | H46: =OPSL!H23 -> 0 | I46: =OPSL!I23 -> 0 | J46: =OPSL!J23 -> 0 | K46: =OPSL!K23 -> 0 | L46: =OPSL!L23 -> 0 | M46: =OPSL!M23 -> 0 | N46: =OPSL!N23 -> 0 | O46: =OPSL!O23 -> 0 | P46: =OPSL!P23 -> 0 | R46: 0 | S46: 0
B47: 2022 | G47: =OPSL!G24 -> 0 | H47: =OPSL!H24 -> 0 | I47: =OPSL!I24 -> 0 | J47: =OPSL!J24 -> 0 | K47: =OPSL!K24 -> 0 | L47: =OPSL!L24 -> 0 | M47: =OPSL!M24 -> 0 | N47: =OPSL!N24 -> 0 | O47: =OPSL!O24 -> 0 | P47: =OPSL!P24 -> 0 | R47: 0 | S47: 0
B48: 2023 | G48: =OPSL!G25 -> 0 | H48: =OPSL!H25 -> 0 | I48: =OPSL!I25 -> 0 | J48: =OPSL!J25 -> 0 | K48: =OPSL!K25 -> 0 | L48: =OPSL!L25 -> 0 | M48: =OPSL!M25 -> 0 | N48: =OPSL!N25 -> 0 | O48: =OPSL!O25 -> 0 | P48: =OPSL!P25 -> 0 | R48: 0 | S48: 0
B50: FSLA t - n - 2 | C50: £m 2009/10 Prices
B51: t (Year ending March) =
B52: 2014 | G52: =FSLA!G9 -> 0 | H52: =FSLA!H9 -> 0 | I52: =FSLA!I9 -> 0 | J52: =FSLA!J9 -> 0 | K52: =FSLA!K9 -> 0 | L52: =FSLA!L9 -> 0 | M52: =FSLA!M9 -> 0 | N52: =FSLA!N9 -> 0 | O52: =FSLA!O9 -> 0 | P52: =FSLA!P9 -> 0 | R52: =SUM(G52:P52) -> 0 | S52: =SUMIF(G$6:P$6, "<=" & $B52, $G52:$P52) -> 0
B53: 2015 | G53: =FSLA!G10 -> 0 | H53: =FSLA!H10 -> 0 | I53: =FSLA!I10 -> 0 | J53: =FSLA!J10 -> 0 | K53: =FSLA!K10 -> 0 | L53: =FSLA!L10 -> 0 | M53: =FSLA!M10 -> 0 | N53: =FSLA!N10 -> 0 | O53: =FSLA!O10 -> 0 | P53: =FSLA!P10 -> 0 | R53: 0 | S53: =SUMIF(G$6:P$6, "<=" & $B53, $G53:$P53) -> 0
B54: 2016 | G54: =FSLA!G11 -> 0 | H54: =FSLA!H11 -> 0 | I54: =FSLA!I11 -> 0 | J54: =FSLA!J11 -> 0 | K54: =FSLA!K11 -> 0 | L54: =FSLA!L11 -> 0 | M54: =FSLA!M11 -> 0 | N54: =FSLA!N11 -> 0 | O54: =FSLA!O11 -> 0 | P54: =FSLA!P11 -> 0 | R54: 0 | S54: 0
B55: 2017 | G55: =FSLA!G12 -> 0 | H55: =FSLA!H12 -> 0 | I55: =FSLA!I12 -> 0 | J55: =FSLA!J12 -> 0 | K55: =FSLA!K12 -> 0 | L55: =FSLA!L12 -> 0 | M55: =FSLA!M12 -> 0 | N55: =FSLA!N12 -> 0 | O55: =FSLA!O12 -> 0 | P55: =FSLA!P12 -> 0 | R55: 0 | S55: 0
B56: 2018 | G56: =FSLA!G13 -> 0 | H56: =FSLA!H13 -> 0 | I56: =FSLA!I13 -> 0 | J56: =FSLA!J13 -> 0 | K56: =FSLA!K13 -> 0 | L56: =FSLA!L13 -> 0 | M56: =FSLA!M13 -> 0 | N56: =FSLA!N13 -> 0 | O56: =FSLA!O13 -> 0 | P56: =FSLA!P13 -> 0 | R56: 0 | S56: 0
B57: 2019 | G57: =FSLA!G14 -> 0 | H57: =FSLA!H14 -> 0 | I57: =FSLA!I14 -> 0 | J57: =FSLA!J14 -> 0 | K57: =FSLA!K14 -> 0 | L57: =FSLA!L14 -> 0 | M57: =FSLA!M14 -> 0 | N57: =FSLA!N14 -> 0 | O57: =FSLA!O14 -> 0 | P57: =FSLA!P14 -> 0 | R57: 0 | S57: 0
B58: 2020 | G58: =FSLA!G15 -> 0 | H58: =FSLA!H15 -> 0 | I58: =FSLA!I15 -> 0 | J58: =FSLA!J15 -> 0 | K58: =FSLA!K15 -> 0 | L58: =FSLA!L15 -> 0 | M58: =FSLA!M15 -> 0 | N58: =FSLA!N15 -> 0 | O58: =FSLA!O15 -> 0 | P58: =FSLA!P15 -> 0 | R58: 0 | S58: 0
B59: 2021 | G59: =FSLA!G16 -> 0 | H59: =FSLA!H16 -> 0 | I59: =FSLA!I16 -> 0 | J59: =FSLA!J16 -> 0 | K59: =FSLA!K16 -> 0 | L59: =FSLA!L16 -> 0 | M59: =FSLA!M16 -> 0 | N59: =FSLA!N16 -> 0 | O59: =FSLA!O16 -> 0 | P59: =FSLA!P16 -> 0 | R59: 0 | S59: 0
B60: 2022 | G60: =FSLA!G17 -> 0 | H60: =FSLA!H17 -> 0 | I60: =FSLA!I17 -> 0 | J60: =FSLA!J17 -> 0 | K60: =FSLA!K17 -> 0 | L60: =FSLA!L17 -> 0 | M60: =FSLA!M17 -> 0 | N60: =FSLA!N17 -> 0 | O60: =FSLA!O17 -> 0 | P60: =FSLA!P17 -> 0 | R60: 0 | S60: 0
B61: 2023 | G61: =FSLA!G18 -> 0 | H61: =FSLA!H18 -> 0 | I61: =FSLA!I18 -> 0 | J61: =FSLA!J18 -> 0 | K61: =FSLA!K18 -> 0 | L61: =FSLA!L18 -> 0 | M61: =FSLA!M18 -> 0 | N61: =FSLA!N18 -> 0 | O61: =FSLA!O18 -> 0 | P61: =FSLA!P18 -> 0 | R61: 0 | S61: 0

Sheet OSLE
A1: OSLE - Sole-Use Allowed Expenditure for delivered capacity beyond the capacity threshold
B6: Parameter | C6: Units | E6: Constant | F6: n= | G6: 2014 | H6: 2015 | I6: 2016 | J6: 2017 | K6: 2018 | L6: 2019 | M6: 2020 | N6: 2021 | O6: 2022 | P6: 2023 | R6: Total
B7: OLSE t, n | C7: £m 2009/10 Prices | D7: m= | E7: all
B8: t (Year ending March) =
B9: 2014 | G9: =IFERROR( INDEX($G41:$P41,1,MATCH(G$6,$G$39:$P$39,FALSE)), 0) +IFERROR( INDEX($G54:$P54,1,MATCH(G$6,$G$52:$P$52,FALSE)), 0) +IFERROR( INDEX($G67:$P67,1,MATCH(G$6,$G$65:$P$65,FALSE)), 0) +IFERROR( INDEX($G80:$P80,1,MATCH(G$6,$G$78:$P$78,FALSE)), 0) -> 0 | H9: 0 | I9: 0 | J9: 0 | K9: 0 | L9: 0 | M9: 0 | N9: 0 | O9: 0 | P9: 0 | R9: =SUM(G9:P9) -> 0 | S9: =SUMIF(G$6:P$6, "<=" & $B9, $G9:$P9) -> 0
B10: 2015 | G10: =IFERROR( INDEX($G42:$P42,1,MATCH(G$6,$G$39:$P$39,FALSE)), 0) +IFERROR( INDEX($G55:$P55,1,MATCH(G$6,$G$52:$P$52,FALSE)), 0) +IFERROR( INDEX($G68:$P68,1,MATCH(G$6,$G$65:$P$65,FALSE)), 0) +IFERROR( INDEX($G81:$P81,1,MATCH(G$6,$G$78:$P$78,FALSE)), 0) -> 0 | H10: 0 | I10: 0 | J10: 0 | K10: 0 | L10: 0 | M10: 0 | N10: 0 | O10: 0 | P10: 0 | R10: 0 | S10: =SUMIF(G$6:P$6, "<=" & $B10, $G10:$P10) -> 0
B11: 2016 | G11: =IFERROR( INDEX($G43:$P43,1,MATCH(G$6,$G$39:$P$39,FALSE)), 0) +IFERROR( INDEX($G56:$P56,1,MATCH(G$6,$G$52:$P$52,FALSE)), 0) +IFERROR( INDEX($G69:$P69,1,MATCH(G$6,$G$65:$P$65,FALSE)), 0) +IFERROR( INDEX($G82:$P82,1,MATCH(G$6,$G$78:$P$78,FALSE)), 0) -> 0 | H11: 0 | I11: 0 | J11: 0 | K11: 0 | L11: 0 | M11: 0 | N11: 0 | O11: 0 | P11: 0 | R11: 0 | S11: 0
B12: 2017 | G12: =IFERROR( INDEX($G44:$P44,1,MATCH(G$6,$G$39:$P$39,FALSE)), 0) +IFERROR( INDEX($G57:$P57,1,MATCH(G$6,$G$52:$P$52,FALSE)), 0) +IFERROR( INDEX($G70:$P70,1,MATCH(G$6,$G$65:$P$65,FALSE)), 0) +IFERROR( INDEX($G83:$P83,1,MATCH(G$6,$G$78:$P$78,FALSE)), 0) -> 0 | H12: 0 | I12: 0 | J12: 0 | K12: 0 | L12: 0 | M12: 0 | N12: 0 | O12: 0 | P12: 0 | R12: 0 | S12: 0
B13: 2018 | G13: =IFERROR( INDEX($G45:$P45,1,MATCH(G$6,$G$39:$P$39,FALSE)), 0) +IFERROR( INDEX($G58:$P58,1,MATCH(G$6,$G$52:$P$52,FALSE)), 0) +IFERROR( INDEX($G71:$P71,1,MATCH(G$6,$G$65:$P$65,FALSE)), 0) +IFERROR( INDEX($G84:$P84,1,MATCH(G$6,$G$78:$P$78,FALSE)), 0) -> 0 | H13: 0 | I13: 0 | J13: 0 | K13: 0 | L13: 0 | M13: 0 | N13: 0 | O13: 0 | P13: 0 | R13: 0 | S13: 0
B14: 2019 | G14: =IFERROR( INDEX($G46:$P46,1,MATCH(G$6,$G$39:$P$39,FALSE)), 0) +IFERROR( INDEX($G59:$P59,1,MATCH(G$6,$G$52:$P$52,FALSE)), 0) +IFERROR( INDEX($G72:$P72,1,MATCH(G$6,$G$65:$P$65,FALSE)), 0) +IFERROR( INDEX($G85:$P85,1,MATCH(G$6,$G$78:$P$78,FALSE)), 0) -> 0 | H14: 0 | I14: 0 | J14: 0 | K14: 0 | L14: 0 | M14: 0 | N14: 0 | O14: 0 | P14: 0 | R14: 0 | S14: 0
B15: 2020 | G15: =IFERROR( INDEX($G47:$P47,1,MATCH(G$6,$G$39:$P$39,FALSE)), 0) +IFERROR( INDEX($G60:$P60,1,MATCH(G$6,$G$52:$P$52,FALSE)), 0) +IFERROR( INDEX($G73:$P73,1,MATCH(G$6,$G$65:$P$65,FALSE)), 0) +IFERROR( INDEX($G86:$P86,1,MATCH(G$6,$G$78:$P$78,FALSE)), 0) -> 0 | H15: 0 | I15: 0 | J15: 0 | K15: 0 | L15: 0 | M15: 0 | N15: 0 | O15: 0 | P15: 0 | R15: 0 | S15: 0
B16: 2021 | G16: =IFERROR( INDEX($G48:$P48,1,MATCH(G$6,$G$39:$P$39,FALSE)), 0) +IFERROR( INDEX($G61:$P61,1,MATCH(G$6,$G$52:$P$52,FALSE)), 0) +IFERROR( INDEX($G74:$P74,1,MATCH(G$6,$G$65:$P$65,FALSE)), 0) +IFERROR( INDEX($G87:$P87,1,MATCH(G$6,$G$78:$P$78,FALSE)), 0) -> 0 | H16: 0 | I16: 0 | J16: 0 | K16: 0 | L16: 0 | M16: 0 | N16: 0 | O16: 0 | P16: 0 | R16: 0 | S16: 0
B17: 2022 | G17: =IFERROR( INDEX($G49:$P49,1,MATCH(G$6,$G$39:$P$39,FALSE)), 0) +IFERROR( INDEX($G62:$P62,1,MATCH(G$6,$G$52:$P$52,FALSE)), 0) +IFERROR( INDEX($G75:$P75,1,MATCH(G$6,$G$65:$P$65,FALSE)), 0) +IFERROR( INDEX($G88:$P88,1,MATCH(G$6,$G$78:$P$78,FALSE)), 0) -> 0 | H17: 0 | I17: 0 | J17: 0 | K17: 0 | L17: 0 | M17: 0 | N17: 0 | O17: 0 | P17: 0 | R17: 0 | S17: 0
B18: 2023 | G18: =IFERROR( INDEX($G50:$P50,1,MATCH(G$6,$G$39:$P$39,FALSE)), 0) +IFERROR( INDEX($G63:$P63,1,MATCH(G$6,$G$52:$P$52,FALSE)), 0) +IFERROR( INDEX($G76:$P76,1,MATCH(G$6,$G$65:$P$65,FALSE)), 0) +IFERROR( INDEX($G89:$P89,1,MATCH(G$6,$G$78:$P$78,FALSE)), 0) -> 0 | H18: 0 | I18: 0 | J18: 0 | K18: 0 | L18: 0 | M18: 0 | N18: 0 | O18: 0 | P18: 0 | R18: 0 | S18: 0
B20: UCA | C20: £m 2009/10 Prices /MW | E20: =UCAallowances!$D$7 -> 0.075
B21: Capacity Threshold | C21: MW | E21: =UCAallowances!$C$7 -> 1168
B22: RPE n | C22: Scaler | G22: =RPE!C9 -> 1.046 | H22: =RPE!D9 -> 1.061 | I22: =RPE!E9 -> 1.077 | J22: =RPE!F9 -> 1.093 | K22: =RPE!G9 -> 1.11 | L22: =RPE!H9 -> 1.126 | M22: =RPE!I9 -> 1.143 | N22: =RPE!J9 -> 1.161 | O22: =RPE!K9 -> 1.178 | P22: =RPE!L9 -> 1.196
B23: DSLG n - 1 | C23: MW | G23: =IFERROR( GETPIVOTDATA( TEXT(Connections[[#Headers],[Generation connection capacity (MW/MVA)]], 0), ConnectionsCapacity!$A$6, Connections[[#Headers],[Delivery year ending March]], G$6 - 1, Connections[[#Headers],[ConnectionStatus (Delivered/Forecast)]], "Delivered", Connections[[#Headers],[Usage?]], "Sole", Connections[[#Headers],[Type?]], "Typical" ), 0 ) -> 0 | H23: =IFERROR( GETPIVOTDATA( TEXT(Connections[[#Headers],[Generation connection capacity (MW/MVA)]], 0), ConnectionsCapacity!$A$6, Connections[[#Headers],[Delivery year ending March]], H$6 - 1, Connections[[#Headers],[ConnectionStatus (Delivered/Forecast)]], "Delivered", Connections[[#Headers],[Usage?]], "Sole", Connections[[#Headers],[Type?]], "Typical" ), 0 ) -> 0 | I23: =IFERROR( GETPIVOTDATA( TEXT(Connections[[#Headers],[Generation connection capacity (MW/MVA)]], 0), ConnectionsCapacity!$A$6, Connections[[#Headers],[Delivery year ending March]], I$6 - 1, Connections[[#Headers],[ConnectionStatus (Delivered/Forecast)]], "Delivered", Connections[[#Headers],[Usage?]], "Sole", Connections[[#Headers],[Type?]], "Typical" ), 0 ) -> 0 | J23: =IFERROR( GETPIVOTDATA( TEXT(Connections[[#Headers],[Generation connection capacity (MW/MVA)]], 0), ConnectionsCapacity!$A$6, Connections[[#Headers],[Delivery year ending March]], J$6 - 1, Connections[[#Headers],[ConnectionStatus (Delivered/Forecast)]], "Delivered", Connections[[#Headers],[Usage?]], "Sole", Connections[[#Headers],[Type?]], "Typical" ), 0 ) -> 0 | K23: =IFERROR( GETPIVOTDATA( TEXT(Connections[[#Headers],[Generation connection capacity (MW/MVA)]], 0), ConnectionsCapacity!$A$6, Connections[[#Headers],[Delivery year ending March]], K$6 - 1, Connections[[#Headers],[ConnectionStatus (Delivered/Forecast)]], "Delivered", Connections[[#Headers],[Usage?]], "Sole", Connections[[#Headers],[Type?]], "Typical" ), 0 ) -> 1000 | L23: =IFERROR( GETPIVOTDATA( TEXT(Connections[[#Headers],[Generation connection capacity (MW/MVA)]], 0), ConnectionsCapacity!$A$6, Connections[[#Headers],[Delivery year ending March]], L$6 - 1, Connections[[#Headers],[ConnectionStatus (Delivered/Forecast)]], "Delivered", Connections[[#Headers],[Usage?]], "Sole", Connections[[#Headers],[Type?]], "Typical" ), 0 ) -> 1000 | M23: =IFERROR( GETPIVOTDATA( TEXT(Connections[[#Headers],[Generation connection capacity (MW/MVA)]], 0), ConnectionsCapacity!$A$6, Connections[[#Headers],[Delivery year ending March]], M$6 - 1, Connections[[#Headers],[ConnectionStatus (Delivered/Forecast)]], "Delivered", Connections[[#Headers],[Usage?]], "Sole", Connections[[#Headers],[Type?]], "Typical" ), 0 ) -> 0 | N23: =IFERROR( GETPIVOTDATA( TEXT(Connections[[#Headers],[Generation connection capacity (MW/MVA)]], 0), ConnectionsCapacity!$A$6, Connections[[#Headers],[Delivery year ending March]], N$6 - 1, Connections[[#Headers],[ConnectionStatus (Delivered/Forecast)]], "Delivered", Connections[[#Headers],[Usage?]], "Sole", Connections[[#Headers],[Type?]], "Typical" ), 0 ) -> 1000 | O23: =IFERROR( GETPIVOTDATA( TEXT(Connections[[#Headers],[Generation connection capacity (MW/MVA)]], 0), ConnectionsCapacity!$A$6, Connections[[#Headers],[Delivery year ending March]], O$6 - 1, Connections[[#Headers],[ConnectionStatus (Delivered/Forecast)]], "Delivered", Connections[[#Headers],[Usage?]], "Sole", Connections[[#Headers],[Type?]], "Typical" ), 0 ) -> 0 | P23: =IFERROR( GETPIVOTDATA( TEXT(Connections[[#Headers],[Generation connection capacity (MW/MVA)]], 0), ConnectionsCapacity!$A$6, Connections[[#Headers],[Delivery year ending March]], P$6 - 1, Connections[[#Headers],[ConnectionStatus (Delivered/Forecast)]], "Delivered", Connections[[#Headers],[Usage?]], "Sole", Connections[[#Headers],[Type?]], "Typical" ), 0 ) -> 0
B24: DSLG n | C24: MW | G24: =IFERROR( GETPIVOTDATA( TEXT(Connections[[#Headers],[Generation connection capacity (MW/MVA)]], 0), ConnectionsCapacity!$A$6, Connections[[#Headers],[Delivery year ending March]], G$6, Connections[[#Headers],[ConnectionStatus (Delivered/Forecast)]], "Delivered", Connections[[#Headers],[Usage?]], "Sole", Connections[[#Headers],[Type?]], "Typical" ), 0 ) -> 0 | H24: =IFERROR( GETPIVOTDATA( TEXT(Connections[[#Headers],[Generation connection capacity (MW/MVA)]], 0), ConnectionsCapacity!$A$6, Connections[[#Headers],[Delivery year ending March]], H$6, Connections[[#Headers],[ConnectionStatus (Delivered/Forecast)]], "Delivered", Connections[[#Headers],[Usage?]], "Sole", Connections[[#Headers],[Type?]], "Typical" ), 0 ) -> 0 | I24: =IFERROR( GETPIVOTDATA( TEXT(Connections[[#Headers],[Generation connection capacity (MW/MVA)]], 0), ConnectionsCapacity!$A$6, Connections[[#Headers],[Delivery year ending March]], I$6, Connections[[#Headers],[ConnectionStatus (Delivered/Forecast)]], "Delivered", Connections[[#Headers],[Usage?]], "Sole", Connections[[#Headers],[Type?]], "Typical" ), 0 ) -> 0 | J24: =IFERROR( GETPIVOTDATA( TEXT(Connections[[#Headers],[Generation connection capacity (MW/MVA)]], 0), ConnectionsCapacity!$A$6, Connections[[#Headers],[Delivery year ending March]], J$6, Connections[[#Headers],[ConnectionStatus (Delivered/Forecast)]], "Delivered", Connections[[#Headers],[Usage?]], "Sole", Connections[[#Headers],[Type?]], "Typical" ), 0 ) -> 1000 | K24: =IFERROR( GETPIVOTDATA( TEXT(Connections[[#Headers],[Generation connection capacity (MW/MVA)]], 0), ConnectionsCapacity!$A$6, Connections[[#Headers],[Delivery year ending March]], K$6, Connections[[#Headers],[ConnectionStatus (Delivered/Forecast)]], "Delivered", Connections[[#Headers],[Usage?]], "Sole", Connections[[#Headers],[Type?]], "Typical" ), 0 ) -> 1000 | L24: =IFERROR( GETPIVOTDATA( TEXT(Connections[[#Headers],[Generation connection capacity (MW/MVA)]], 0), ConnectionsCapacity!$A$6, Connections[[#Headers],[Delivery year ending March]], L$6, Connections[[#Headers],[ConnectionStatus (Delivered/Forecast)]], "Delivered", Connections[[#Headers],[Usage?]], "Sole", Connections[[#Headers],[Type?]], "Typical" ), 0 ) -> 0 | M24: =IFERROR( GETPIVOTDATA( TEXT(Connections[[#Headers],[Generation connection capacity (MW/MVA)]], 0), ConnectionsCapacity!$A$6, Connections[[#Headers],[Delivery year ending March]], M$6, Connections[[#Headers],[ConnectionStatus (Delivered/Forecast)]], "Delivered", Connections[[#Headers],[Usage?]], "Sole", Connections[[#Headers],[Type?]], "Typical" ), 0 ) -> 1000 | N24: =IFERROR( GETPIVOTDATA( TEXT(Connections[[#Headers],[Generation connection capacity (MW/MVA)]], 0), ConnectionsCapacity!$A$6, Connections[[#Headers],[Delivery year ending March]], N$6, Connections[[#Headers],[ConnectionStatus (Delivered/Forecast)]], "Delivered", Connections[[#Headers],[Usage?]], "Sole", Connections[[#Headers],[Type?]], "Typical" ), 0 ) -> 0 | O24: =IFERROR( GETPIVOTDATA( TEXT(Connections[[#Headers],[Generation connection capacity (MW/MVA)]], 0), ConnectionsCapacity!$A$6, Connections[[#Headers],[Delivery year ending March]], O$6, Connections[[#Headers],[ConnectionStatus (Delivered/Forecast)]], "Delivered", Connections[[#Headers],[Usage?]], "Sole", Connections[[#Headers],[Type?]], "Typical" ), 0 ) -> 0 | P24: =IFERROR( GETPIVOTDATA( TEXT(Connections[[#Headers],[Generation connection capacity (MW/MVA)]], 0), ConnectionsCapacity!$A$6, Connections[[#Headers],[Delivery year ending March]], P$6, Connections[[#Headers],[ConnectionStatus (Delivered/Forecast)]], "Delivered", Connections[[#Headers],[Usage?]], "Sole", Connections[[#Headers],[Type?]], "Typical" ), 0 ) -> 0
B26: WF t, n | E26: 4
B27: t (Year ending March) =
B28: 2014 | G28: =IF($B28 > G$6, MIN($E$26, G$6 - 2014 + 1), 0) -> 0 | H28: 0 | I28: 0 | J28: 0 | K28: 0 | L28: 0 | M28: 0 | N28: 0 | O28: 0 | P28: 0
B29: 2015 | G29: 1 | H29: 0 | I29: 0 | J29: 0 | K29: 0 | L29: 0 | M29: 0 | N29: 0 | O29: 0 | P29: 0
B30: 2016 | G30: 1 | H30: 2 | I30: 0 | J30: 0 | K30: 0 | L30: 0 | M30: 0 | N30: 0 | O30: 0 | P30: 0
B31: 2017 | G31: 1 | H31: 2 | I31: 3 | J31: 0 | K31: 0 | L31: 0 | M31: 0 | N31: 0 | O31: 0 | P31: 0
B32: 2018 | G32: 1 | H32: 2 | I32: 3 | J32: 4 | K32: 0 | L32: 0 | M32: 0 | N32: 0 | O32: 0 | P32: 0
B33: 2019 | G33: 1 | H33: 2 | I33: 3 | J33: 4 | K33: 4 | L33: 0 | M33: 0 | N33: 0 | O33: 0 | P33: 0
B34: 2020 | G34: 1 | H34: 2 | I34: 3 | J34: 4 | K34: 4 | L34: 4 | M34: 0 | N34: 0 | O34: 0 | P34: 0
B35: 2021 | G35: 1 | H35: 2 | I35: 3 | J35: 4 | K35: 4 | L35: 4 | M35: 4 | N35: 0 | O35: 0 | P35: 0
B36: 2022 | G36: 1 | H36: 2 | I36: 3 | J36: 4 | K36: 4 | L36: 4 | M36: 4 | N36: 4 | O36: 0 | P36: 0
B37: 2023 | G37: 1 | H37: 2 | I37: 3 | J37: 4 | K37: 4 | L37: 4 | M37: 4 | N37: 4 | O37: 4 | P37: 0
B39: OLSE t, n | C39: £m 2009/10 Prices | D39: m = | E39: 0 | F39: n - m= | G39: =IF( G$6 - $E39 < 2014, "exclude", G$6 - $E39 ) -> 2014 | H39: =IF( H$6 - $E39 < 2014, "exclude", H$6 - $E39 ) -> 2015 | I39: 2016 | J39: 2017 | K39: 2018 | L39: 2019 | M39: 2020 | N39: 2021 | O39: 2022 | P39: 2023
B40: t (Year ending March) =
B41: 2014 | G41: =IF( G$39 = "exclude", 0, IF(OR(G28 <=0, $B41 - 2 < G$6), 0, MAX(0, (G$24 - MAX($E$21,G$23))) * $E$20 / G28 * INDEX($G$22:$P$22, 1, MATCH(G$39,$G$6:$P$6,FALSE)) ) ) -> 0 | H41: =IF( H$39 = "exclude", 0, IF(OR(H28 <=0, $B41 - 2 < H$6), 0, MAX(0, (H$24 - MAX($E$21,H$23))) * $E$20 / H28 * INDEX($G$22:$P$22, 1, MATCH(H$39,$G$6:$P$6,FALSE)) ) ) -> 0 | I41: 0 | J41: 0 | K41: 0 | L41: 0 | M41: 0 | N41: 0 | O41: 0 | P41: 0
B42: 2015 | G42: =IF( G$39 = "exclude", 0, IF(OR(G29 <=0, $B42 - 2 < G$6), 0, MAX(0, (G$24 - MAX($E$21,G$23))) * $E$20 / G29 * INDEX($G$22:$P$22, 1, MATCH(G$39,$G$6:$P$6,FALSE)) ) ) -> 0 | H42: 0 | I42: 0 | J42: 0 | K42: 0 | L42: 0 | M42: 0 | N42: 0 | O42: 0 | P42: 0
B43: 2016 | G43: 0 | H43: 0 | I43: 0 | J43: 0 | K43: 0 | L43: 0 | M43: 0 | N43: 0 | O43: 0 | P43: 0
B44: 2017 | G44: 0 | H44: 0 | I44: 0 | J44: 0 | K44: 0 | L44: 0 | M44: 0 | N44: 0 | O44: 0 | P44: 0
B45: 2018 | G45: 0 | H45: 0 | I45: 0 | J45: 0 | K45: 0 | L45: 0 | M45: 0 | N45: 0 | O45: 0 | P45: 0
B46: 2019 | G46: 0 | H46: 0 | I46: 0 | J46: 0 | K46: 0 | L46: 0 | M46: 0 | N46: 0 | O46: 0 | P46: 0
B47: 2020 | G47: 0 | H47: 0 | I47: 0 | J47: 0 | K47: 0 | L47: 0 | M47: 0 | N47: 0 | O47: 0 | P47: 0
B48: 2021 | G48: 0 | H48: 0 | I48: 0 | J48: 0 | K48: 0 | L48: 0 | M48: 0 | N48: 0 | O48: 0 | P48: 0
B49: 2022 | G49: 0 | H49: 0 | I49: 0 | J49: 0 | K49: 0 | L49: 0 | M49: 0 | N49: 0 | O49: 0 | P49: 0
B50: 2023 | G50: 0 | H50: 0 | I50: 0 | J50: 0 | K50: 0 | L50: 0 | M50: 0 | N50: 0 | O50: 0 | P50: 0
B52: OLSE t, n | C52: £m 2009/10 Prices | D52: m = | E52: 1 | F52: n - m= | G52: =IF( G$6 - $E52 < 2014, "exclude", G$6 - $E52 ) -> exclude | H52: =IF( H$6 - $E52 < 2014, "exclude", H$6 - $E52 ) -> 2014 | I52: 2015 | J52: 2016 | K52: 2017 | L52: 2018 | M52: 2019 | N52: 2020 | O52: 2021 | P52: 2022
B53: t (Year ending March) =
B54: 2014 | G54: =IF( G$52 = "exclude", 0, IF(OR(G41 <=0, $B54 - 2 < G$6), 0, MAX(0, (G$24 - MAX($E$21,G$23))) * $E$20 / G28 * INDEX($G$22:$P$22, 1, MATCH(G$52,$G$6:$P$6,FALSE)) ) ) -> 0 | H54: =IF( H$52 = "exclude", 0, IF(OR(H41 <=0, $B54 - 2 < H$6), 0, MAX(0, (H$24 - MAX($E$21,H$23))) * $E$20 / H28 * INDEX($G$22:$P$22, 1, MATCH(H$52,$G$6:$P$6,FALSE)) ) ) -> 0 | I54: 0 | J54: 0 | K54: 0 | L54: 0 | M54: 0 | N54: 0 | O54: 0 | P54: 0
B55: 2015 | G55: =IF( G$52 = "exclude", 0, IF(OR(G42 <=0, $B55 - 2 < G$6), 0, MAX(0, (G$24 - MAX($E$21,G$23))) * $E$20 / G29 * INDEX($G$22:$P$22, 1, MATCH(G$52,$G$6:$P$6,FALSE)) ) ) -> 0 | H55: 0 | I55: 0 | J55: 0 | K55: 0 | L55: 0 | M55: 0 | N55: 0 | O55: 0 | P55: 0
B56: 2016 | G56: 0 | H56: 0 | I56: 0 | J56: 0 | K56: 0 | L56: 0 | M56: 0 | N56: 0 | O56: 0 | P56: 0
B57: 2017 | G57: 0 | H57: 0 | I57: 0 | J57: 0 | K57: 0 | L57: 0 | M57: 0 | N57: 0 | O57: 0 | P57: 0
B58: 2018 | G58: 0 | H58: 0 | I58: 0 | J58: 0 | K58: 0 | L58: 0 | M58: 0 | N58: 0 | O58: 0 | P58: 0
B59: 2019 | G59: 0 | H59: 0 | I59: 0 | J59: 0 | K59: 0 | L59: 0 | M59: 0 | N59: 0 | O59: 0 | P59: 0
B60: 2020 | G60: 0 | H60: 0 | I60: 0 | J60: 0 | K60: 0 | L60: 0 | M60: 0 | N60: 0 | O60: 0 | P60: 0
B61: 2021 | G61: 0 | H61: 0 | I61: 0 | J61: 0 | K61: 0 | L61: 0 | M61: 0 | N61: 0 | O61: 0 | P61: 0
B62: 2022 | G62: 0 | H62: 0 | I62: 0 | J62: 0 | K62: 0 | L62: 0 | M62: 0 | N62: 0 | O62: 0 | P62: 0
B63: 2023 | G63: 0 | H63: 0 | I63: 0 | J63: 0 | K63: 0 | L63: 0 | M63: 0 | N63: 0 | O63: 0 | P63: 0
B65: OLSE t, n | C65: £m 2009/10 Prices | D65: m = | E65: 2 | F65: n - m= | G65: =IF( G$6 - $E65 < 2014, "exclude", G$6 - $E65 ) -> exclude | H65: =IF( H$6 - $E65 < 2014, "exclude", H$6 - $E65 ) -> exclude | I65: 2014 | J65: 2015 | K65: 2016 | L65: 2017 | M65: 2018 | N65: 2019 | O65: 2020 | P65: 2021
B66: t (Year ending March) =
B67: 2014 | G67: =IF( G$65 = "exclude", 0, IF(OR(G54 <=0, $B67 - 2 < G$6), 0, MAX(0, (G$24 - MAX($E$21,G$23))) * $E$20 / G28 * INDEX($G$22:$P$22, 1, MATCH(G$65,$G$6:$P$6,FALSE)) ) ) -> 0 | H67: =IF( H$65 = "exclude", 0, IF(OR(H54 <=0, $B67 - 2 < H$6), 0, MAX(0, (H$24 - MAX($E$21,H$23))) * $E$20 / H28 * INDEX($G$22:$P$22, 1, MATCH(H$65,$G$6:$P$6,FALSE)) ) ) -> 0 | I67: 0 | J67: 0 | K67: 0 | L67: 0 | M67: 0 | N67: 0 | O67: 0 | P67: 0
B68: 2015 | G68: =IF( G$65 = "exclude", 0, IF(OR(G55 <=0, $B68 - 2 < G$6), 0, MAX(0, (G$24 - MAX($E$21,G$23))) * $E$20 / G29 * INDEX($G$22:$P$22, 1, MATCH(G$65,$G$6:$P$6,FALSE)) ) ) -> 0 | H68: 0 | I68: 0 | J68: 0 | K68: 0 | L68: 0 | M68: 0 | N68: 0 | O68: 0 | P68: 0
B69: 2016 | G69: 0 | H69: 0 | I69: 0 | J69: 0 | K69: 0 | L69: 0 | M69: 0 | N69: 0 | O69: 0 | P69: 0
B70: 2017 | G70: 0 | H70: 0 | I70: 0 | J70: 0 | K70: 0 | L70: 0 | M70: 0 | N70: 0 | O70: 0 | P70: 0
B71: 2018 | G71: 0 | H71: 0 | I71: 0 | J71: 0 | K71: 0 | L71: 0 | M71: 0 | N71: 0 | O71: 0 | P71: 0
B72: 2019 | G72: 0 | H72: 0 | I72: 0 | J72: 0 | K72: 0 | L72: 0 | M72: 0 | N72: 0 | O72: 0 | P72: 0
B73: 2020 | G73: 0 | H73: 0 | I73: 0 | J73: 0 | K73: 0 | L73: 0 | M73: 0 | N73: 0 | O73: 0 | P73: 0
B74: 2021 | G74: 0 | H74: 0 | I74: 0 | J74: 0 | K74: 0 | L74: 0 | M74: 0 | N74: 0 | O74: 0 | P74: 0
B75: 2022 | G75: 0 | H75: 0 | I75: 0 | J75: 0 | K75: 0 | L75: 0 | M75: 0 | N75: 0 | O75: 0 | P75: 0
B76: 2023 | G76: 0 | H76: 0 | I76: 0 | J76: 0 | K76: 0 | L76: 0 | M76: 0 | N76: 0 | O76: 0 | P76: 0
B78: OLSE t, n | C78: £m 2009/10 Prices | D78: m = | E78: 3 | F78: n - m= | G78: =IF( G$6 - $E78 < 2014, "exclude", G$6 - $E78 ) -> exclude | H78: =IF( H$6 - $E78 < 2014, "exclude", H$6 - $E78 ) -> exclude | I78: exclude | J78: 2014 | K78: 2015 | L78: 2016 | M78: 2017 | N78: 2018 | O78: 2019 | P78: 2020
B79: t (Year ending March) =
B80: 2014 | G80: =IF( G$78 = "exclude", 0, IF(OR(G67 <=0, $B80 - 2 < G$6), 0, MAX(0, (G$24 - MAX($E$21,G$23))) * $E$20 / G28 * INDEX($G$22:$P$22, 1, MATCH(G$78,$G$6:$P$6,FALSE)) ) ) -> 0 | H80: =IF( H$78 = "exclude", 0, IF(OR(H67 <=0, $B80 - 2 < H$6), 0, MAX(0, (H$24 - MAX($E$21,H$23))) * $E$20 / H28 * INDEX($G$22:$P$22, 1, MATCH(H$78,$G$6:$P$6,FALSE)) ) ) -> 0 | I80: 0 | J80: 0 | K80: 0 | L80: 0 | M80: 0 | N80: 0 | O80: 0 | P80: 0
B81: 2015 | G81: =IF( G$78 = "exclude", 0, IF(OR(G68 <=0, $B81 - 2 < G$6), 0, MAX(0, (G$24 - MAX($E$21,G$23))) * $E$20 / G29 * INDEX($G$22:$P$22, 1, MATCH(G$78,$G$6:$P$6,FALSE)) ) ) -> 0 | H81: 0 | I81: 0 | J81: 0 | K81: 0 | L81: 0 | M81: 0 | N81: 0 | O81: 0 | P81: 0
B82: 2016 | G82: 0 | H82: 0 | I82: 0 | J82: 0 | K82: 0 | L82: 0 | M82: 0 | N82: 0 | O82: 0 | P82: 0
B83: 2017 | G83: 0 | H83: 0 | I83: 0 | J83: 0 | K83: 0 | L83: 0 | M83: 0 | N83: 0 | O83: 0 | P83: 0
B84: 2018 | G84: 0 | H84: 0 | I84: 0 | J84: 0 | K84: 0 | L84: 0 | M84: 0 | N84: 0 | O84: 0 | P84: 0
B85: 2019 | G85: 0 | H85: 0 | I85: 0 | J85: 0 | K85: 0 | L85: 0 | M85: 0 | N85: 0 | O85: 0 | P85: 0
B86: 2020 | G86: 0 | H86: 0 | I86: 0 | J86: 0 | K86: 0 | L86: 0 | M86: 0 | N86: 0 | O86: 0 | P86: 0
B87: 2021 | G87: 0 | H87: 0 | I87: 0 | J87: 0 | K87: 0 | L87: 0 | M87: 0 | N87: 0 | O87: 0 | P87: 0
B88: 2022 | G88: 0 | H88: 0 | I88: 0 | J88: 0 | K88: 0 | L88: 0 | M88: 0 | N88: 0 | O88: 0 | P88: 0
B89: 2023 | G89: 0 | H89: 0 | I89: 0 | J89: 0 | K89: 0 | L89: 0 | M89: 0 | N89: 0 | O89: 0 | P89: 0

Sheet OPSL
A1: OPSL - Sole-Use Allowed Expenditure for O&M costs for Delivered Outputs
B6: Parameter | C6: Units | E6: Constant | F6: n= | G6: 2014 | H6: 2015 | I6: 2016 | J6: 2017 | K6: 2018 | L6: 2019 | M6: 2020 | N6: 2021 | O6: 2022 | P6: 2023 | R6: Total
B8: Capacity Threshold | C8: MW | E8: =UCAallowances!$C$7 -> 1168
B9: DSLG n | C9: MW | G9: =IFERROR( GETPIVOTDATA( TEXT(Connections[[#Headers],[Generation connection capacity (MW/MVA)]], 0), ConnectionsCapacity!$A$6, Connections[[#Headers],[Delivery year ending March]], G$6, Connections[[#Headers],[ConnectionStatus (Delivered/Forecast)]], "Delivered", Connections[[#Headers],[Usage?]], "Sole", Connections[[#Headers],[Type?]], "Typical" ), 0 ) -> 0 | H9: =IFERROR( GETPIVOTDATA( TEXT(Connections[[#Headers],[Generation connection capacity (MW/MVA)]], 0), ConnectionsCapacity!$A$6, Connections[[#Headers],[Delivery year ending March]], H$6, Connections[[#Headers],[ConnectionStatus (Delivered/Forecast)]], "Delivered", Connections[[#Headers],[Usage?]], "Sole", Connections[[#Headers],[Type?]], "Typical" ), 0 ) -> 0 | I9: =IFERROR( GETPIVOTDATA( TEXT(Connections[[#Headers],[Generation connection capacity (MW/MVA)]], 0), ConnectionsCapacity!$A$6, Connections[[#Headers],[Delivery year ending March]], I$6, Connections[[#Headers],[ConnectionStatus (Delivered/Forecast)]], "Delivered", Connections[[#Headers],[Usage?]], "Sole", Connections[[#Headers],[Type?]], "Typical" ), 0 ) -> 0 | J9: =IFERROR( GETPIVOTDATA( TEXT(Connections[[#Headers],[Generation connection capacity (MW/MVA)]], 0), ConnectionsCapacity!$A$6, Connections[[#Headers],[Delivery year ending March]], J$6, Connections[[#Headers],[ConnectionStatus (Delivered/Forecast)]], "Delivered", Connections[[#Headers],[Usage?]], "Sole", Connections[[#Headers],[Type?]], "Typical" ), 0 ) -> 1000 | K9: =IFERROR( GETPIVOTDATA( TEXT(Connections[[#Headers],[Generation connection capacity (MW/MVA)]], 0), ConnectionsCapacity!$A$6, Connections[[#Headers],[Delivery year ending March]], K$6, Connections[[#Headers],[ConnectionStatus (Delivered/Forecast)]], "Delivered", Connections[[#Headers],[Usage?]], "Sole", Connections[[#Headers],[Type?]], "Typical" ), 0 ) -> 1000 | L9: =IFERROR( GETPIVOTDATA( TEXT(Connections[[#Headers],[Generation connection capacity (MW/MVA)]], 0), ConnectionsCapacity!$A$6, Connections[[#Headers],[Delivery year ending March]], L$6, Connections[[#Headers],[ConnectionStatus (Delivered/Forecast)]], "Delivered", Connections[[#Headers],[Usage?]], "Sole", Connections[[#Headers],[Type?]], "Typical" ), 0 ) -> 0 | M9: =IFERROR( GETPIVOTDATA( TEXT(Connections[[#Headers],[Generation connection capacity (MW/MVA)]], 0), ConnectionsCapacity!$A$6, Connections[[#Headers],[Delivery year ending March]], M$6, Connections[[#Headers],[ConnectionStatus (Delivered/Forecast)]], "Delivered", Connections[[#Headers],[Usage?]], "Sole", Connections[[#Headers],[Type?]], "Typical" ), 0 ) -> 1000 | N9: =IFERROR( GETPIVOTDATA( TEXT(Connections[[#Headers],[Generation connection capacity (MW/MVA)]], 0), ConnectionsCapacity!$A$6, Connections[[#Headers],[Delivery year ending March]], N$6, Connections[[#Headers],[ConnectionStatus (Delivered/Forecast)]], "Delivered", Connections[[#Headers],[Usage?]], "Sole", Connections[[#Headers],[Type?]], "Typical" ), 0 ) -> 0 | O9: =IFERROR( GETPIVOTDATA( TEXT(Connections[[#Headers],[Generation connection capacity (MW/MVA)]], 0), ConnectionsCapacity!$A$6, Connections[[#Headers],[Delivery year ending March]], O$6, Connections[[#Headers],[ConnectionStatus (Delivered/Forecast)]], "Delivered", Connections[[#Headers],[Usage?]], "Sole", Connections[[#Headers],[Type?]], "Typical" ), 0 ) -> 0 | P9: =IFERROR( GETPIVOTDATA( TEXT(Connections[[#Headers],[Generation connection capacity (MW/MVA)]], 0), ConnectionsCapacity!$A$6, Connections[[#Headers],[Delivery year ending March]], P$6, Connections[[#Headers],[ConnectionStatus (Delivered/Forecast)]], "Delivered", Connections[[#Headers],[Usage?]], "Sole", Connections[[#Headers],[Type?]], "Typical" ), 0 ) -> 0
B10: Cumulative over threshold | C10: MW | G10: =MAX(0,G9-$E$8) -> 0 | H10: =MAX(0,H9-$E$8) -> 0 | I10: 0 | J10: 0 | K10: 0 | L10: 0 | M10: 0 | N10: 0 | O10: 0 | P10: 0
B11: UCA | C11: £m 2009/10 Prices /MW | E11: =UCAallowances!$D$7 -> 0.075
B12: RPE n | C12: Scaler | G12: =RPE!C9 -> 1.046 | H12: =RPE!D9 -> 1.061 | I12: =RPE!E9 -> 1.077 | J12: =RPE!F9 -> 1.093 | K12: =RPE!G9 -> 1.11 | L12: =RPE!H9 -> 1.126 | M12: =RPE!I9 -> 1.143 | N12: =RPE!J9 -> 1.161 | O12: =RPE!K9 -> 1.178 | P12: =RPE!L9 -> 1.196
B14: OPSL t, n | C14: £m 2009/10 Prices
B15: t (Year ending March) =
B16: 2014 | G16: =IF( OR($B16 - 2 < G$6, G$6 = 2014), 0, G$10 * $E$11 * G$12 * 0.01 ) -> 0 | H16: =IF( OR($B16 - 2 < H$6, H$6 = 2014), 0, H$10 * $E$11 * H$12 * 0.01 ) -> 0 | I16: 0 | J16: 0 | K16: 0 | L16: 0 | M16: 0 | N16: 0 | O16: 0 | P16: 0 | R16: =SUM(G16:P16) -> 0 | S16: =SUMIF(G$6:P$6, "<=" & $B16, $G16:$P16) -> 0
B17: 2015 | G17: =IF( OR($B17 - 2 < G$6, G$6 = 2014), 0, G$10 * $E$11 * G$12 * 0.01 ) -> 0 | H17: 0 | I17: 0 | J17: 0 | K17: 0 | L17: 0 | M17: 0 | N17: 0 | O17: 0 | P17: 0 | R17: =SUM(G17:P17) -> 0 | S17: =SUMIF(G$6:P$6, "<=" & $B17, $G17:$P17) -> 0
B18: 2016 | G18: 0 | H18: 0 | I18: 0 | J18: 0 | K18: 0 | L18: 0 | M18: 0 | N18: 0 | O18: 0 | P18: 0 | R18: 0 | S18: 0
B19: 2017 | G19: 0 | H19: 0 | I19: 0 | J19: 0 | K19: 0 | L19: 0 | M19: 0 | N19: 0 | O19: 0 | P19: 0 | R19: 0 | S19: 0
B20: 2018 | G20: 0 | H20: 0 | I20: 0 | J20: 0 | K20: 0 | L20: 0 | M20: 0 | N20: 0 | O20: 0 | P20: 0 | R20: 0 | S20: 0
B21: 2019 | G21: 0 | H21: 0 | I21: 0 | J21: 0 | K21: 0 | L21: 0 | M21: 0 | N21: 0 | O21: 0 | P21: 0 | R21: 0 | S21: 0
B22: 2020 | G22: 0 | H22: 0 | I22: 0 | J22: 0 | K22: 0 | L22: 0 | M22: 0 | N22: 0 | O22: 0 | P22: 0 | R22: 0 | S22: 0
B23: 2021 | G23: 0 | H23: 0 | I23: 0 | J23: 0 | K23: 0 | L23: 0 | M23: 0 | N23: 0 | O23: 0 | P23: 0 | R23: 0 | S23: 0
B24: 2022 | G24: 0 | H24: 0 | I24: 0 | J24: 0 | K24: 0 | L24: 0 | M24: 0 | N24: 0 | O24: 0 | P24: 0 | R24: 0 | S24: 0
B25: 2023 | G25: 0 | H25: 0 | I25: 0 | J25: 0 | K25: 0 | L25: 0 | M25: 0 | N25: 0 | O25: 0 | P25: 0 | R25: 0 | S25: 0

Sheet FSLA
A1: FSLA - Sole-Use Adjusted Allowed Expenditure for works still to be delivered
B6: Parameter | C6: Units | E6: Constant | F6: n= | G6: 2014 | H6: 2015 | I6: 2016 | J6: 2017 | K6: 2018 | L6: 2019 | M6: 2020 | N6: 2021 | O6: 2022 | P6: 2023 | R6: Total
B7: FSLA t, n | C7: £m 2009/10 Prices | D7: m= | E7: all
B8: t (Year ending March) =
B9: 2014 | G9: =IFERROR( INDEX($G32:$P32,1,MATCH(G$6,$G$30:$P$30,FALSE)), 0) +IFERROR( INDEX($G45:$P45,1,MATCH(G$6,$G$43:$P$43,FALSE)), 0) +IFERROR( INDEX($G58:$P58,1,MATCH(G$6,$G$56:$P$56,FALSE)), 0) -> 0 | H9: 0 | I9: 0 | J9: 0 | K9: 0 | L9: 0 | M9: 0 | N9: 0 | O9: 0 | P9: 0 | R9: =SUM(G9:P9) -> 0 | S9: =SUMIF(G$6:P$6, "<=" & $B9, $G9:$P9) -> 0
B10: 2015 | G10: =IFERROR( INDEX($G33:$P33,1,MATCH(G$6,$G$30:$P$30,FALSE)), 0) +IFERROR( INDEX($G46:$P46,1,MATCH(G$6,$G$43:$P$43,FALSE)), 0) +IFERROR( INDEX($G59:$P59,1,MATCH(G$6,$G$56:$P$56,FALSE)), 0) -> 0 | H10: 0 | I10: 0 | J10: 0 | K10: 0 | L10: 0 | M10: 0 | N10: 0 | O10: 0 | P10: 0 | R10: =SUM(G10:P10) -> 0 | S10: =SUMIF(G$6:P$6, "<=" & $B10, $G10:$P10) -> 0
B11: 2016 | G11: =IFERROR( INDEX($G34:$P34,1,MATCH(G$6,$G$30:$P$30,FALSE)), 0) +IFERROR( INDEX($G47:$P47,1,MATCH(G$6,$G$43:$P$43,FALSE)), 0) +IFERROR( INDEX($G60:$P60,1,MATCH(G$6,$G$56:$P$56,FALSE)), 0) -> 0 | H11: 0 | I11: 0 | J11: 0 | K11: 0 | L11: 0 | M11: 0 | N11: 0 | O11: 0 | P11: 0 | R11: 0 | S11: 0
B12: 2017 | G12: =IFERROR( INDEX($G35:$P35,1,MATCH(G$6,$G$30:$P$30,FALSE)), 0) +IFERROR( INDEX($G48:$P48,1,MATCH(G$6,$G$43:$P$43,FALSE)), 0) +IFERROR( INDEX($G61:$P61,1,MATCH(G$6,$G$56:$P$56,FALSE)), 0) -> 0 | H12: 0 | I12: 0 | J12: 0 | K12: 0 | L12: 0 | M12: 0 | N12: 0 | O12: 0 | P12: 0 | R12: 0 | S12: 0
B13: 2018 | G13: =IFERROR( INDEX($G36:$P36,1,MATCH(G$6,$G$30:$P$30,FALSE)), 0) +IFERROR( INDEX($G49:$P49,1,MATCH(G$6,$G$43:$P$43,FALSE)), 0) +IFERROR( INDEX($G62:$P62,1,MATCH(G$6,$G$56:$P$56,FALSE)), 0) -> 0 | H13: 0 | I13: 0 | J13: 0 | K13: 0 | L13: 0 | M13: 0 | N13: 0 | O13: 0 | P13: 0 | R13: 0 | S13: 0
B14: 2019 | G14: =IFERROR( INDEX($G37:$P37,1,MATCH(G$6,$G$30:$P$30,FALSE)), 0) +IFERROR( INDEX($G50:$P50,1,MATCH(G$6,$G$43:$P$43,FALSE)), 0) +IFERROR( INDEX($G63:$P63,1,MATCH(G$6,$G$56:$P$56,FALSE)), 0) -> 0 | H14: 0 | I14: 0 | J14: 0 | K14: 0 | L14: 0 | M14: 0 | N14: 0 | O14: 0 | P14: 0 | R14: 0 | S14: 0
B15: 2020 | G15: =IFERROR( INDEX($G38:$P38,1,MATCH(G$6,$G$30:$P$30,FALSE)), 0) +IFERROR( INDEX($G51:$P51,1,MATCH(G$6,$G$43:$P$43,FALSE)), 0) +IFERROR( INDEX($G64:$P64,1,MATCH(G$6,$G$56:$P$56,FALSE)), 0) -> 0 | H15: 0 | I15: 0 | J15: 0 | K15: 0 | L15: 0 | M15: 0 | N15: 0 | O15: 0 | P15: 0 | R15: 0 | S15: 0
B16: 2021 | G16: =IFERROR( INDEX($G39:$P39,1,MATCH(G$6,$G$30:$P$30,FALSE)), 0) +IFERROR( INDEX($G52:$P52,1,MATCH(G$6,$G$43:$P$43,FALSE)), 0) +IFERROR( INDEX($G65:$P65,1,MATCH(G$6,$G$56:$P$56,FALSE)), 0) -> 0 | H16: 0 | I16: 0 | J16: 0 | K16: 0 | L16: 0 | M16: 0 | N16: 0 | O16: 0 | P16: 0 | R16: 0 | S16: 0
B17: 2022 | G17: =IFERROR( INDEX($G40:$P40,1,MATCH(G$6,$G$30:$P$30,FALSE)), 0) +IFERROR( INDEX($G53:$P53,1,MATCH(G$6,$G$43:$P$43,FALSE)), 0) +IFERROR( INDEX($G66:$P66,1,MATCH(G$6,$G$56:$P$56,FALSE)), 0) -> 0 | H17: 0 | I17: 0 | J17: 0 | K17: 0 | L17: 0 | M17: 0 | N17: 0 | O17: 0 | P17: 0 | R17: 0 | S17: 0
B18: 2023 | G18: =IFERROR( INDEX($G41:$P41,1,MATCH(G$6,$G$30:$P$30,FALSE)), 0) +IFERROR( INDEX($G54:$P54,1,MATCH(G$6,$G$43:$P$43,FALSE)), 0) +IFERROR( INDEX($G67:$P67,1,MATCH(G$6,$G$56:$P$56,FALSE)), 0) -> 0 | H18: 0 | I18: 0 | J18: 0 | K18: 0 | L18: 0 | M18: 0 | N18: 0 | O18: 0 | P18: 0 | R18: 0 | S18: 0
B20: UCA | C20: £m 2009/10 Prices /MW | E20: =UCAallowances!$D$7 -> 0.075
B21: Capacity Threshold | C21: MW | E21: =UCAallowances!$C$7 -> 1168
B22: RPE n | C22: Scaler | G22: =RPE!C9 -> 1.046 | H22: =RPE!D9 -> 1.061 | I22: =RPE!E9 -> 1.077 | J22: =RPE!F9 -> 1.093 | K22: =RPE!G9 -> 1.11 | L22: =RPE!H9 -> 1.126 | M22: =RPE!I9 -> 1.143 | N22: =RPE!J9 -> 1.161 | O22: =RPE!K9 -> 1.178 | P22: =RPE!L9 -> 1.196
B23: DSLG n - 1 (Delivered) | C23: MW | G23: =IFERROR( GETPIVOTDATA( TEXT(Connections[[#Headers],[Generation connection capacity (MW/MVA)]], 0), ConnectionsCapacity!$A$6, Connections[[#Headers],[Delivery year ending March]], G$6 - 1, Connections[[#Headers],[ConnectionStatus (Delivered/Forecast)]], "Delivered", Connections[[#Headers],[Usage?]], "Sole", Connections[[#Headers],[Type?]], "Typical" ), 0 ) -> 0 | H23: =IFERROR( GETPIVOTDATA( TEXT(Connections[[#Headers],[Generation connection capacity (MW/MVA)]], 0), ConnectionsCapacity!$A$6, Connections[[#Headers],[Delivery year ending March]], H$6 - 1, Connections[[#Headers],[ConnectionStatus (Delivered/Forecast)]], "Delivered", Connections[[#Headers],[Usage?]], "Sole", Connections[[#Headers],[Type?]], "Typical" ), 0 ) -> 0 | I23: =IFERROR( GETPIVOTDATA( TEXT(Connections[[#Headers],[Generation connection capacity (MW/MVA)]], 0), ConnectionsCapacity!$A$6, Connections[[#Headers],[Delivery year ending March]], I$6 - 1, Connections[[#Headers],[ConnectionStatus (Delivered/Forecast)]], "Delivered", Connections[[#Headers],[Usage?]], "Sole", Connections[[#Headers],[Type?]], "Typical" ), 0 ) -> 0 | J23: =IFERROR( GETPIVOTDATA( TEXT(Connections[[#Headers],[Generation connection capacity (MW/MVA)]], 0), ConnectionsCapacity!$A$6, Connections[[#Headers],[Delivery year ending March]], J$6 - 1, Connections[[#Headers],[ConnectionStatus (Delivered/Forecast)]], "Delivered", Connections[[#Headers],[Usage?]], "Sole", Connections[[#Headers],[Type?]], "Typical" ), 0 ) -> 0 | K23: =IFERROR( GETPIVOTDATA( TEXT(Connections[[#Headers],[Generation connection capacity (MW/MVA)]], 0), ConnectionsCapacity!$A$6, Connections[[#Headers],[Delivery year ending March]], K$6 - 1, Connections[[#Headers],[ConnectionStatus (Delivered/Forecast)]], "Delivered", Connections[[#Headers],[Usage?]], "Sole", Connections[[#Headers],[Type?]], "Typical" ), 0 ) -> 1000 | L23: =IFERROR( GETPIVOTDATA( TEXT(Connections[[#Headers],[Generation connection capacity (MW/MVA)]], 0), ConnectionsCapacity!$A$6, Connections[[#Headers],[Delivery year ending March]], L$6 - 1, Connections[[#Headers],[ConnectionStatus (Delivered/Forecast)]], "Delivered", Connections[[#Headers],[Usage?]], "Sole", Connections[[#Headers],[Type?]], "Typical" ), 0 ) -> 1000 | M23: =IFERROR( GETPIVOTDATA( TEXT(Connections[[#Headers],[Generation connection capacity (MW/MVA)]], 0), ConnectionsCapacity!$A$6, Connections[[#Headers],[Delivery year ending March]], M$6 - 1, Connections[[#Headers],[ConnectionStatus (Delivered/Forecast)]], "Delivered", Connections[[#Headers],[Usage?]], "Sole", Connections[[#Headers],[Type?]], "Typical" ), 0 ) -> 0 | N23: =IFERROR( GETPIVOTDATA( TEXT(Connections[[#Headers],[Generation connection capacity (MW/MVA)]], 0), ConnectionsCapacity!$A$6, Connections[[#Headers],[Delivery year ending March]], N$6 - 1, Connections[[#Headers],[ConnectionStatus (Delivered/Forecast)]], "Delivered", Connections[[#Headers],[Usage?]], "Sole", Connections[[#Headers],[Type?]], "Typical" ), 0 ) -> 1000 | O23: =IFERROR( GETPIVOTDATA( TEXT(Connections[[#Headers],[Generation connection capacity (MW/MVA)]], 0), ConnectionsCapacity!$A$6, Connections[[#Headers],[Delivery year ending March]], O$6 - 1, Connections[[#Headers],[ConnectionStatus (Delivered/Forecast)]], "Delivered", Connections[[#Headers],[Usage?]], "Sole", Connections[[#Headers],[Type?]], "Typical" ), 0 ) -> 0 | P23: =IFERROR( GETPIVOTDATA( TEXT(Connections[[#Headers],[Generation connection capacity (MW/MVA)]], 0), ConnectionsCapacity!$A$6, Connections[[#Headers],[Delivery year ending March]], P$6 - 1, Connections[[#Headers],[ConnectionStatus (Delivered/Forecast)]], "Delivered", Connections[[#Headers],[Usage?]], "Sole", Connections[[#Headers],[Type?]], "Typical" ), 0 ) -> 0
B24: DSLG n (Delivered) | C24: MW | G24: =IFERROR( GETPIVOTDATA( TEXT(Connections[[#Headers],[Generation connection capacity (MW/MVA)]], 0), ConnectionsCapacity!$A$6, Connections[[#Headers],[Delivery year ending March]], G$6, Connections[[#Headers],[ConnectionStatus (Delivered/Forecast)]], "Delivered", Connections[[#Headers],[Usage?]], "Sole", Connections[[#Headers],[Type?]], "Typical" ), 0 ) -> 0 | H24: =IFERROR( GETPIVOTDATA( TEXT(Connections[[#Headers],[Generation connection capacity (MW/MVA)]], 0), ConnectionsCapacity!$A$6, Connections[[#Headers],[Delivery year ending March]], H$6, Connections[[#Headers],[ConnectionStatus (Delivered/Forecast)]], "Delivered", Connections[[#Headers],[Usage?]], "Sole", Connections[[#Headers],[Type?]], "Typical" ), 0 ) -> 0 | I24: =IFERROR( GETPIVOTDATA( TEXT(Connections[[#Headers],[Generation connection capacity (MW/MVA)]], 0), ConnectionsCapacity!$A$6, Connections[[#Headers],[Delivery year ending March]], I$6, Connections[[#Headers],[ConnectionStatus (Delivered/Forecast)]], "Delivered", Connections[[#Headers],[Usage?]], "Sole", Connections[[#Headers],[Type?]], "Typical" ), 0 ) -> 0 | J24: =IFERROR( GETPIVOTDATA( TEXT(Connections[[#Headers],[Generation connection capacity (MW/MVA)]], 0), ConnectionsCapacity!$A$6, Connections[[#Headers],[Delivery year ending March]], J$6, Connections[[#Headers],[ConnectionStatus (Delivered/Forecast)]], "Delivered", Connections[[#Headers],[Usage?]], "Sole", Connections[[#Headers],[Type?]], "Typical" ), 0 ) -> 1000 | K24: =IFERROR( GETPIVOTDATA( TEXT(Connections[[#Headers],[Generation connection capacity (MW/MVA)]], 0), ConnectionsCapacity!$A$6, Connections[[#Headers],[Delivery year ending March]], K$6, Connections[[#Headers],[ConnectionStatus (Delivered/Forecast)]], "Delivered", Connections[[#Headers],[Usage?]], "Sole", Connections[[#Headers],[Type?]], "Typical" ), 0 ) -> 1000 | L24: =IFERROR( GETPIVOTDATA( TEXT(Connections[[#Headers],[Generation connection capacity (MW/MVA)]], 0), ConnectionsCapacity!$A$6, Connections[[#Headers],[Delivery year ending March]], L$6, Connections[[#Headers],[ConnectionStatus (Delivered/Forecast)]], "Delivered", Connections[[#Headers],[Usage?]], "Sole", Connections[[#Headers],[Type?]], "Typical" ), 0 ) -> 0 | M24: =IFERROR( GETPIVOTDATA( TEXT(Connections[[#Headers],[Generation connection capacity (MW/MVA)]], 0), ConnectionsCapacity!$A$6, Connections[[#Headers],[Delivery year ending March]], M$6, Connections[[#Headers],[ConnectionStatus (Delivered/Forecast)]], "Delivered", Connections[[#Headers],[Usage?]], "Sole", Connections[[#Headers],[Type?]], "Typical" ), 0 ) -> 1000 | N24: =IFERROR( GETPIVOTDATA( TEXT(Connections[[#Headers],[Generation connection capacity (MW/MVA)]], 0), ConnectionsCapacity!$A$6, Connections[[#Headers],[Delivery year ending March]], N$6, Connections[[#Headers],[ConnectionStatus (Delivered/Forecast)]], "Delivered", Connections[[#Headers],[Usage?]], "Sole", Connections[[#Headers],[Type?]], "Typical" ), 0 ) -> 0 | O24: =IFERROR( GETPIVOTDATA( TEXT(Connections[[#Headers],[Generation connection capacity (MW/MVA)]], 0), ConnectionsCapacity!$A$6, Connections[[#Headers],[Delivery year ending March]], O$6, Connections[[#Headers],[ConnectionStatus (Delivered/Forecast)]], "Delivered", Connections[[#Headers],[Usage?]], "Sole", Connections[[#Headers],[Type?]], "Typical" ), 0 ) -> 0 | P24: =IFERROR( GETPIVOTDATA( TEXT(Connections[[#Headers],[Generation connection capacity (MW/MVA)]], 0), ConnectionsCapacity!$A$6, Connections[[#Headers],[Delivery year ending March]], P$6, Connections[[#Headers],[ConnectionStatus (Delivered/Forecast)]], "Delivered", Connections[[#Headers],[Usage?]], "Sole", Connections[[#Headers],[Type?]], "Typical" ), 0 ) -> 0
B25: DSLG n - 1 (Forecast) | C25: MW | G25: =IFERROR( GETPIVOTDATA( TEXT(Connections[[#Headers],[Generation connection capacity (MW/MVA)]], 0), ConnectionsCapacity!$A$6, Connections[[#Headers],[Delivery year ending March]], G$6 - 1, Connections[[#Headers],[ConnectionStatus (Delivered/Forecast)]], "Forecast", Connections[[#Headers],[Usage?]], "Sole", Connections[[#Headers],[Type?]], "Typical" ), 0 ) -> 0 | H25: =IFERROR( GETPIVOTDATA( TEXT(Connections[[#Headers],[Generation connection capacity (MW/MVA)]], 0), ConnectionsCapacity!$A$6, Connections[[#Headers],[Delivery year ending March]], H$6 - 1, Connections[[#Headers],[ConnectionStatus (Delivered/Forecast)]], "Forecast", Connections[[#Headers],[Usage?]], "Sole", Connections[[#Headers],[Type?]], "Typical" ), 0 ) -> 0 | I25: =IFERROR( GETPIVOTDATA( TEXT(Connections[[#Headers],[Generation connection capacity (MW/MVA)]], 0), ConnectionsCapacity!$A$6, Connections[[#Headers],[Delivery year ending March]], I$6 - 1, Connections[[#Headers],[ConnectionStatus (Delivered/Forecast)]], "Forecast", Connections[[#Headers],[Usage?]], "Sole", Connections[[#Headers],[Type?]], "Typical" ), 0 ) -> 0 | J25: =IFERROR( GETPIVOTDATA( TEXT(Connections[[#Headers],[Generation connection capacity (MW/MVA)]], 0), ConnectionsCapacity!$A$6, Connections[[#Headers],[Delivery year ending March]], J$6 - 1, Connections[[#Headers],[ConnectionStatus (Delivered/Forecast)]], "Forecast", Connections[[#Headers],[Usage?]], "Sole", Connections[[#Headers],[Type?]], "Typical" ), 0 ) -> 0 | K25: =IFERROR( GETPIVOTDATA( TEXT(Connections[[#Headers],[Generation connection capacity (MW/MVA)]], 0), ConnectionsCapacity!$A$6, Connections[[#Headers],[Delivery year ending March]], K$6 - 1, Connections[[#Headers],[ConnectionStatus (Delivered/Forecast)]], "Forecast", Connections[[#Headers],[Usage?]], "Sole", Connections[[#Headers],[Type?]], "Typical" ), 0 ) -> 0 | L25: =IFERROR( GETPIVOTDATA( TEXT(Connections[[#Headers],[Generation connection capacity (MW/MVA)]], 0), ConnectionsCapacity!$A$6, Connections[[#Headers],[Delivery year ending March]], L$6 - 1, Connections[[#Headers],[ConnectionStatus (Delivered/Forecast)]], "Forecast", Connections[[#Headers],[Usage?]], "Sole", Connections[[#Headers],[Type?]], "Typical" ), 0 ) -> 0 | M25: =IFERROR( GETPIVOTDATA( TEXT(Connections[[#Headers],[Generation connection capacity (MW/MVA)]], 0), ConnectionsCapacity!$A$6, Connections[[#Headers],[Delivery year ending March]], M$6 - 1, Connections[[#Headers],[ConnectionStatus (Delivered/Forecast)]], "Forecast", Connections[[#Headers],[Usage?]], "Sole", Connections[[#Headers],[Type?]], "Typical" ), 0 ) -> 0 | N25: =IFERROR( GETPIVOTDATA( TEXT(Connections[[#Headers],[Generation connection capacity (MW/MVA)]], 0), ConnectionsCapacity!$A$6, Connections[[#Headers],[Delivery year ending March]], N$6 - 1, Connections[[#Headers],[ConnectionStatus (Delivered/Forecast)]], "Forecast", Connections[[#Headers],[Usage?]], "Sole", Connections[[#Headers],[Type?]], "Typical" ), 0 ) -> 0 | O25: =IFERROR( GETPIVOTDATA( TEXT(Connections[[#Headers],[Generation connection capacity (MW/MVA)]], 0), ConnectionsCapacity!$A$6, Connections[[#Headers],[Delivery year ending March]], O$6 - 1, Connections[[#Headers],[ConnectionStatus (Delivered/Forecast)]], "Forecast", Connections[[#Headers],[Usage?]], "Sole", Connections[[#Headers],[Type?]], "Typical" ), 0 ) -> 0 | P25: =IFERROR( GETPIVOTDATA( TEXT(Connections[[#Headers],[Generation connection capacity (MW/MVA)]], 0), ConnectionsCapacity!$A$6, Connections[[#Headers],[Delivery year ending March]], P$6 - 1, Connections[[#Headers],[ConnectionStatus (Delivered/Forecast)]], "Forecast", Connections[[#Headers],[Usage?]], "Sole", Connections[[#Headers],[Type?]], "Typical" ), 0 ) -> 0
B26: DSLG n (Forecast) | C26: MW | G26: =IFERROR( GETPIVOTDATA( TEXT(Connections[[#Headers],[Generation connection capacity (MW/MVA)]], 0), ConnectionsCapacity!$A$6, Connections[[#Headers],[Delivery year ending March]], G$6, Connections[[#Headers],[ConnectionStatus (Delivered/Forecast)]], "Forecast", Connections[[#Headers],[Usage?]], "Sole", Connections[[#Headers],[Type?]], "Typical" ), 0 ) -> 0 | H26: =IFERROR( GETPIVOTDATA( TEXT(Connections[[#Headers],[Generation connection capacity (MW/MVA)]], 0), ConnectionsCapacity!$A$6, Connections[[#Headers],[Delivery year ending March]], H$6, Connections[[#Headers],[ConnectionStatus (Delivered/Forecast)]], "Forecast", Connections[[#Headers],[Usage?]], "Sole", Connections[[#Headers],[Type?]], "Typical" ), 0 ) -> 0 | I26: =IFERROR( GETPIVOTDATA( TEXT(Connections[[#Headers],[Generation connection capacity (MW/MVA)]], 0), ConnectionsCapacity!$A$6, Connections[[#Headers],[Delivery year ending March]], I$6, Connections[[#Headers],[ConnectionStatus (Delivered/Forecast)]], "Forecast", Connections[[#Headers],[Usage?]], "Sole", Connections[[#Headers],[Type?]], "Typical" ), 0 ) -> 0 | J26: =IFERROR( GETPIVOTDATA( TEXT(Connections[[#Headers],[Generation connection capacity (MW/MVA)]], 0), ConnectionsCapacity!$A$6, Connections[[#Headers],[Delivery year ending March]], J$6, Connections[[#Headers],[ConnectionStatus (Delivered/Forecast)]], "Forecast", Connections[[#Headers],[Usage?]], "Sole", Connections[[#Headers],[Type?]], "Typical" ), 0 ) -> 0 | K26: =IFERROR( GETPIVOTDATA( TEXT(Connections[[#Headers],[Generation connection capacity (MW/MVA)]], 0), ConnectionsCapacity!$A$6, Connections[[#Headers],[Delivery year ending March]], K$6, Connections[[#Headers],[ConnectionStatus (Delivered/Forecast)]], "Forecast", Connections[[#Headers],[Usage?]], "Sole", Connections[[#Headers],[Type?]], "Typical" ), 0 ) -> 0 | L26: =IFERROR( GETPIVOTDATA( TEXT(Connections[[#Headers],[Generation connection capacity (MW/MVA)]], 0), ConnectionsCapacity!$A$6, Connections[[#Headers],[Delivery year ending March]], L$6, Connections[[#Headers],[ConnectionStatus (Delivered/Forecast)]], "Forecast", Connections[[#Headers],[Usage?]], "Sole", Connections[[#Headers],[Type?]], "Typical" ), 0 ) -> 0 | M26: =IFERROR( GETPIVOTDATA( TEXT(Connections[[#Headers],[Generation connection capacity (MW/MVA)]], 0), ConnectionsCapacity!$A$6, Connections[[#Headers],[Delivery year ending March]], M$6, Connections[[#Headers],[ConnectionStatus (Delivered/Forecast)]], "Forecast", Connections[[#Headers],[Usage?]], "Sole", Connections[[#Headers],[Type?]], "Typical" ), 0 ) -> 0 | N26: =IFERROR( GETPIVOTDATA( TEXT(Connections[[#Headers],[Generation connection capacity (MW/MVA)]], 0), ConnectionsCapacity!$A$6, Connections[[#Headers],[Delivery year ending March]], N$6, Connections[[#Headers],[ConnectionStatus (Delivered/Forecast)]], "Forecast", Connections[[#Headers],[Usage?]], "Sole", Connections[[#Headers],[Type?]], "Typical" ), 0 ) -> 0 | O26: =IFERROR( GETPIVOTDATA( TEXT(Connections[[#Headers],[Generation connection capacity (MW/MVA)]], 0), ConnectionsCapacity!$A$6, Connections[[#Headers],[Delivery year ending March]], O$6, Connections[[#Headers],[ConnectionStatus (Delivered/Forecast)]], "Forecast", Connections[[#Headers],[Usage?]], "Sole", Connections[[#Headers],[Type?]], "Typical" ), 0 ) -> 0 | P26: =IFERROR( GETPIVOTDATA( TEXT(Connections[[#Headers],[Generation connection capacity (MW/MVA)]], 0), ConnectionsCapacity!$A$6, Connections[[#Headers],[Delivery year ending March]], P$6, Connections[[#Headers],[ConnectionStatus (Delivered/Forecast)]], "Forecast", Connections[[#Headers],[Usage?]], "Sole", Connections[[#Headers],[Type?]], "Typical" ), 0 ) -> 0
B27: SLF n - 1 (Delivered + Forecast) | C27: MW | G27: =G23+G25 -> 0 | H27: =H23+H25 -> 0 | I27: 0 | J27: 0 | K27: 1000 | L27: 1000 | M27: 0 | N27: 1000 | O27: 0 | P27: 0
B28: SLF n (Delivered + Forecast) | C28: MW | G28: =G24+G26 -> 0 | H28: =H24+H26 -> 0 | I28: 0 | J28: 1000 | K28: 1000 | L28: 0 | M28: 1000 | N28: 0 | O28: 0 | P28: 0
B30: FSLA t, n | C30: £m 2009/10 Prices | D30: m = | E30: 0 | F30: n - m - 1= | G30: =IF( G$6 - $E30 - 1 < 2014, "exclude", G$6 - $E30 - 1 ) -> exclude | H30: =IF( H$6 - $E30 - 1 < 2014, "exclude", H$6 - $E30 - 1 ) -> 2014 | I30: 2015 | J30: 2016 | K30: 2017 | L30: 2018 | M30: 2019 | N30: 2020 | O30: 2021 | P30: 2022
B31: t (Year ending March) =
B32: 2014 | G32: =IF( G$30 = "exclude", 0, IF(OR($B32 >= G$30 + 3, G$30 > $B32, G$6 <= $B32), 0, MAX(0,G$28-MAX(G$27,MAX($E$21,G$24))) * $E$20 * INDEX($G$22:$P$22, 1, MATCH(G$30,$G$6:$P$6,FALSE)) / 4 ) ) -> 0 | H32: =IF( H$30 = "exclude", 0, IF(OR($B32 >= H$30 + 3, H$30 > $B32, H$6 <= $B32), 0, MAX(0,H$28-MAX(H$27,MAX($E$21,H$24))) * $E$20 * INDEX($G$22:$P$22, 1, MATCH(H$30,$G$6:$P$6,FALSE)) / 4 ) ) -> 0 | I32: 0 | J32: 0 | K32: 0 | L32: 0 | M32: 0 | N32: 0 | O32: 0 | P32: 0
B33: 2015 | G33: =IF( G$30 = "exclude", 0, IF(OR($B33 >= G$30 + 3, G$30 > $B33, G$6 <= $B33), 0, MAX(0,G$28-MAX(G$27,MAX($E$21,G$24))) * $E$20 * INDEX($G$22:$P$22, 1, MATCH(G$30,$G$6:$P$6,FALSE)) / 4 ) ) -> 0 | H33: 0 | I33: 0 | J33: 0 | K33: 0 | L33: 0 | M33: 0 | N33: 0 | O33: 0 | P33: 0
B34: 2016 | G34: 0 | H34: 0 | I34: 0 | J34: 0 | K34: 0 | L34: 0 | M34: 0 | N34: 0 | O34: 0 | P34: 0
B35: 2017 | G35: 0 | H35: 0 | I35: 0 | J35: 0 | K35: 0 | L35: 0 | M35: 0 | N35: 0 | O35: 0 | P35: 0
B36: 2018 | G36: 0 | H36: 0 | I36: 0 | J36: 0 | K36: 0 | L36: 0 | M36: 0 | N36: 0 | O36: 0 | P36: 0
B37: 2019 | G37: 0 | H37: 0 | I37: 0 | J37: 0 | K37: 0 | L37: 0 | M37: 0 | N37: 0 | O37: 0 | P37: 0
B38: 2020 | G38: 0 | H38: 0 | I38: 0 | J38: 0 | K38: 0 | L38: 0 | M38: 0 | N38: 0 | O38: 0 | P38: 0
B39: 2021 | G39: 0 | H39: 0 | I39: 0 | J39: 0 | K39: 0 | L39: 0 | M39: 0 | N39: 0 | O39: 0 | P39: 0
B40: 2022 | G40: 0 | H40: 0 | I40: 0 | J40: 0 | K40: 0 | L40: 0 | M40: 0 | N40: 0 | O40: 0 | P40: 0
B41: 2023 | G41: 0 | H41: 0 | I41: 0 | J41: 0 | K41: 0 | L41: 0 | M41: 0 | N41: 0 | O41: 0 | P41: 0
B43: FSLA t, n | C43: £m 2009/10 Prices | D43: m = | E43: 1 | F43: n - m - 1= | G43: =IF( G$6 - $E43 - 1 < 2014, "exclude", G$6 - $E43 - 1 ) -> exclude | H43: =IF( H$6 - $E43 - 1 < 2014, "exclude", H$6 - $E43 - 1 ) -> exclude | I43: 2014 | J43: 2015 | K43: 2016 | L43: 2017 | M43: 2018 | N43: 2019 | O43: 2020 | P43: 2021
B44: t (Year ending March) =
B45: 2014 | G45: =IF( G$43 = "exclude", 0, IF(OR($B45 >= G$43 + 3, G$43 > $B45, G$6 <= $B45), 0, MAX(0,G$28-MAX(G$27,MAX($E$21,G$24))) * $E$20 * INDEX($G$22:$P$22, 1, MATCH(G$43,$G$6:$P$6,FALSE)) / 4 ) ) -> 0 | H45: =IF( H$43 = "exclude", 0, IF(OR($B45 >= H$43 + 3, H$43 > $B45, H$6 <= $B45), 0, MAX(0,H$28-MAX(H$27,MAX($E$21,H$24))) * $E$20 * INDEX($G$22:$P$22, 1, MATCH(H$43,$G$6:$P$6,FALSE)) / 4 ) ) -> 0 | I45: 0 | J45: 0 | K45: 0 | L45: 0 | M45: 0 | N45: 0 | O45: 0 | P45: 0
B46: 2015 | G46: =IF( G$43 = "exclude", 0, IF(OR($B46 >= G$43 + 3, G$43 > $B46, G$6 <= $B46), 0, MAX(0,G$28-MAX(G$27,MAX($E$21,G$24))) * $E$20 * INDEX($G$22:$P$22, 1, MATCH(G$43,$G$6:$P$6,FALSE)) / 4 ) ) -> 0 | H46: 0 | I46: 0 | J46: 0 | K46: 0 | L46: 0 | M46: 0 | N46: 0 | O46: 0 | P46: 0
B47: 2016 | G47: 0 | H47: 0 | I47: 0 | J47: 0 | K47: 0 | L47: 0 | M47: 0 | N47: 0 | O47: 0 | P47: 0
B48: 2017 | G48: 0 | H48: 0 | I48: 0 | J48: 0 | K48: 0 | L48: 0 | M48: 0 | N48: 0 | O48: 0 | P48: 0
B49: 2018 | G49: 0 | H49: 0 | I49: 0 | J49: 0 | K49: 0 | L49: 0 | M49: 0 | N49: 0 | O49: 0 | P49: 0
B50: 2019 | G50: 0 | H50: 0 | I50: 0 | J50: 0 | K50: 0 | L50: 0 | M50: 0 | N50: 0 | O50: 0 | P50: 0
B51: 2020 | G51: 0 | H51: 0 | I51: 0 | J51: 0 | K51: 0 | L51: 0 | M51: 0 | N51: 0 | O51: 0 | P51: 0
B52: 2021 | G52: 0 | H52: 0 | I52: 0 | J52: 0 | K52: 0 | L52: 0 | M52: 0 | N52: 0 | O52: 0 | P52: 0
B53: 2022 | G53: 0 | H53: 0 | I53: 0 | J53: 0 | K53: 0 | L53: 0 | M53: 0 | N53: 0 | O53: 0 | P53: 0
B54: 2023 | G54: 0 | H54: 0 | I54: 0 | J54: 0 | K54: 0 | L54: 0 | M54: 0 | N54: 0 | O54: 0 | P54: 0
B56: FSLA t, n | C56: £m 2009/10 Prices | D56: m = | E56: 2 | F56: n - m - 1= | G56: =IF( G$6 - $E56 - 1 < 2014, "exclude", G$6 - $E56 - 1 ) -> exclude | H56: =IF( H$6 - $E56 - 1 < 2014, "exclude", H$6 - $E56 - 1 ) -> exclude | I56: exclude | J56: 2014 | K56: 2015 | L56: 2016 | M56: 2017 | N56: 2018 | O56: 2019 | P56: 2020
B57: t (Year ending March) =
B58: 2014 | G58: =IF( G$56 = "exclude", 0, IF(OR($B58 >= G$56 + 3, G$56 > $B58, G$6 <= $B58), 0, MAX(0,G$28-MAX(G$27,MAX($E$21,G$24))) * $E$20 * INDEX($G$22:$P$22, 1, MATCH(G$56,$G$6:$P$6,FALSE)) / 4 ) ) -> 0 | H58: =IF( H$56 = "exclude", 0, IF(OR($B58 >= H$56 + 3, H$56 > $B58, H$6 <= $B58), 0, MAX(0,H$28-MAX(H$27,MAX($E$21,H$24))) * $E$20 * INDEX($G$22:$P$22, 1, MATCH(H$56,$G$6:$P$6,FALSE)) / 4 ) ) -> 0 | I58: 0 | J58: 0 | K58: 0 | L58: 0 | M58: 0 | N58: 0 | O58: 0 | P58: 0
B59: 2015 | G59: =IF( G$56 = "exclude", 0, IF(OR($B59 >= G$56 + 3, G$56 > $B59, G$6 <= $B59), 0, MAX(0,G$28-MAX(G$27,MAX($E$21,G$24))) * $E$20 * INDEX($G$22:$P$22, 1, MATCH(G$56,$G$6:$P$6,FALSE)) / 4 ) ) -> 0 | H59: 0 | I59: 0 | J59: 0 | K59: 0 | L59: 0 | M59: 0 | N59: 0 | O59: 0 | P59: 0
B60: 2016 | G60: 0 | H60: 0 | I60: 0 | J60: 0 | K60: 0 | L60: 0 | M60: 0 | N60: 0 | O60: 0 | P60: 0
B61: 2017 | G61: 0 | H61: 0 | I61: 0 | J61: 0 | K61: 0 | L61: 0 | M61: 0 | N61: 0 | O61: 0 | P61: 0
B62: 2018 | G62: 0 | H62: 0 | I62: 0 | J62: 0 | K62: 0 | L62: 0 | M62: 0 | N62: 0 | O62: 0 | P62: 0
B63: 2019 | G63: 0 | H63: 0 | I63: 0 | J63: 0 | K63: 0 | L63: 0 | M63: 0 | N63: 0 | O63: 0 | P63: 0
B64: 2020 | G64: 0 | H64: 0 | I64: 0 | J64: 0 | K64: 0 | L64: 0 | M64: 0 | N64: 0 | O64: 0 | P64: 0
B65: 2021 | G65: 0 | H65: 0 | I65: 0 | J65: 0 | K65: 0 | L65: 0 | M65: 0 | N65: 0 | O65: 0 | P65: 0
B66: 2022 | G66: 0 | H66: 0 | I66: 0 | J66: 0 | K66: 0 | L66: 0 | M66: 0 | N66: 0 | O66: 0 | P66: 0
B67: 2023 | G67: 0 | H67: 0 | I67: 0 | J67: 0 | K67: 0 | L67: 0 | M67: 0 | N67: 0 | O67: 0 | P67: 0

Sheet DSHE
A1: DSHE - Shared-Use Allowed Expenditure for Delivered Connections Capacity
B6: Parameter | C6: Units | E6: Constant | F6: n= | G6: 2014 | H6: 2015 | I6: 2016 | J6: 2017 | K6: 2018 | L6: 2019 | M6: 2020 | N6: 2021 | O6: 2022 | P6: 2023 | R6: Total
B7: DSLE t, n | C7: £m 2009/10 Prices
B8: t (Year ending March) =
B9: 2014 | G9: =G$21* G$22 + G52 + G26 + G39 -> 0.22489 | H9: =H$21* H$22 + H52 + H26 + H39 -> 6.38722 | I9: 49.481688 | J9: 33.752933 | K9: 0 | L9: 0 | M9: 0 | N9: 0 | O9: 0 | P9: 0 | R9: =SUM(G9:P9) -> 89.846731 | S9: =SUMIF(G$6:P$6, "<=" & $B9, $G9:$P9) -> 0.22489
B10: 2015 | G10: =G$21* G$22 + G53 + G27 + G40 -> 0.22489 | H10: 6.38722 | I10: 49.481688 | J10: 33.752933 | K10: 0 | L10: 0 | M10: 0 | N10: 0 | O10: 0 | P10: 0 | R10: 89.846731 | S10: =SUMIF(G$6:P$6, "<=" & $B10, $G10:$P10) -> 6.61211
B11: 2016 | G11: 0.22489 | H11: 6.38722 | I11: 49.481688 | J11: 33.752933 | K11: 0 | L11: 0 | M11: 0 | N11: 0 | O11: 0 | P11: 0 | R11: 89.846731 | S11: 56.093798
B12: 2017 | G12: 0.22489 | H12: 6.38722 | I12: 49.481688 | J12: 51.7606545 | K12: 0 | L12: 0 | M12: 0 | N12: 0 | O12: 0 | P12: 0 | R12: 107.8544525 | S12: 107.8544525
B13: 2018 | G13: 0.22489 | H13: 6.38722 | I13: 49.481688 | J13: 51.7606545 | K13: 18.287805 | L13: 0 | M13: 0 | N13: 0 | O13: 0 | P13: 0 | R13: 126.1422575 | S13: 126.1422575
B14: 2019 | G14: 0.22489 | H14: 6.38722 | I14: 49.481688 | J14: 51.7606545 | K14: 18.287805 | L14: 18.551413 | M14: 0 | N14: 0 | O14: 0 | P14: 0 | R14: 144.6936705 | S14: 144.6936705
B15: 2020 | G15: 0.22489 | H15: 6.38722 | I15: 49.481688 | J15: 33.752933 | K15: 0 | L15: 0 | M15: 0 | N15: 0 | O15: 0 | P15: 0 | R15: 89.846731 | S15: 89.846731
B16: 2021 | G16: 0.22489 | H16: 6.38722 | I16: 49.481688 | J16: 33.752933 | K16: 0 | L16: 0 | M16: 0 | N16: 0 | O16: 0 | P16: 0 | R16: 89.846731 | S16: 89.846731
B17: 2022 | G17: 0.22489 | H17: 6.38722 | I17: 49.481688 | J17: 33.752933 | K17: 0 | L17: 0 | M17: 0 | N17: 0 | O17: 0 | P17: 0 | R17: 89.846731 | S17: 89.846731
B18: 2023 | G18: 0.22489 | H18: 6.38722 | I18: 49.481688 | J18: 33.752933 | K18: 0 | L18: 0 | M18: 0 | N18: 0 | O18: 0 | P18: 0 | R18: 89.846731 | S18: 89.846731
B20: DSHG n | C20: MW | G20: =IFERROR( GETPIVOTDATA( TEXT(Connections[[#Headers],[Generation connection capacity (MW/MVA)]], 0), ConnectionsCapacity!$A$6, Connections[[#Headers],[Delivery year ending March]], G$6, Connections[[#Headers],[ConnectionStatus (Delivered/Forecast)]], "Delivered", Connections[[#Headers],[Usage?]], "Shared", Connections[[#Headers],[Type?]], "Typical" ), 0 ) -> 0 | H20: =IFERROR( GETPIVOTDATA( TEXT(Connections[[#Headers],[Generation connection capacity (MW/MVA)]], 0), ConnectionsCapacity!$A$6, Connections[[#Headers],[Delivery year ending March]], H$6, Connections[[#Headers],[ConnectionStatus (Delivered/Forecast)]], "Delivered", Connections[[#Headers],[Usage?]], "Shared", Connections[[#Headers],[Type?]], "Typical" ), 0 ) -> 0 | I20: =IFERROR( GETPIVOTDATA( TEXT(Connections[[#Headers],[Generation connection capacity (MW/MVA)]], 0), ConnectionsCapacity!$A$6, Connections[[#Headers],[Delivery year ending March]], I$6, Connections[[#Headers],[ConnectionStatus (Delivered/Forecast)]], "Delivered", Connections[[#Headers],[Usage?]], "Shared", Connections[[#Headers],[Type?]], "Typical" ), 0 ) -> 0 | J20: =IFERROR( GETPIVOTDATA( TEXT(Connections[[#Headers],[Generation connection capacity (MW/MVA)]], 0), ConnectionsCapacity!$A$6, Connections[[#Headers],[Delivery year ending March]], J$6, Connections[[#Headers],[ConnectionStatus (Delivered/Forecast)]], "Delivered", Connections[[#Headers],[Usage?]], "Shared", Connections[[#Headers],[Type?]], "Typical" ), 0 ) -> 0 | K20: =IFERROR( GETPIVOTDATA( TEXT(Connections[[#Headers],[Generation connection capacity (MW/MVA)]], 0), ConnectionsCapacity!$A$6, Connections[[#Headers],[Delivery year ending March]], K$6, Connections[[#Headers],[ConnectionStatus (Delivered/Forecast)]], "Delivered", Connections[[#Headers],[Usage?]], "Shared", Connections[[#Headers],[Type?]], "Typical" ), 0 ) -> 800 | L20: =IFERROR( GETPIVOTDATA( TEXT(Connections[[#Headers],[Generation connection capacity (MW/MVA)]], 0), ConnectionsCapacity!$A$6, Connections[[#Headers],[Delivery year ending March]], L$6, Connections[[#Headers],[ConnectionStatus (Delivered/Forecast)]], "Delivered", Connections[[#Headers],[Usage?]], "Shared", Connections[[#Headers],[Type?]], "Typical" ), 0 ) -> 0 | M20: =IFERROR( GETPIVOTDATA( TEXT(Connections[[#Headers],[Generation connection capacity (MW/MVA)]], 0), ConnectionsCapacity!$A$6, Connections[[#Headers],[Delivery year ending March]], M$6, Connections[[#Headers],[ConnectionStatus (Delivered/Forecast)]], "Delivered", Connections[[#Headers],[Usage?]], "Shared", Connections[[#Headers],[Type?]], "Typical" ), 0 ) -> 800 | N20: =IFERROR( GETPIVOTDATA( TEXT(Connections[[#Headers],[Generation connection capacity (MW/MVA)]], 0), ConnectionsCapacity!$A$6, Connections[[#Headers],[Delivery year ending March]], N$6, Connections[[#Headers],[ConnectionStatus (Delivered/Forecast)]], "Delivered", Connections[[#Headers],[Usage?]], "Shared", Connections[[#Headers],[Type?]], "Typical" ), 0 ) -> 0 | O20: =IFERROR( GETPIVOTDATA( TEXT(Connections[[#Headers],[Generation connection capacity (MW/MVA)]], 0), ConnectionsCapacity!$A$6, Connections[[#Headers],[Delivery year ending March]], O$6, Connections[[#Headers],[ConnectionStatus (Delivered/Forecast)]], "Delivered", Connections[[#Headers],[Usage?]], "Shared", Connections[[#Headers],[Type?]], "Typical" ), 0 ) -> 0 | P20: =IFERROR( GETPIVOTDATA( TEXT(Connections[[#Headers],[Generation connection capacity (MW/MVA)]], 0), ConnectionsCapacity!$A$6, Connections[[#Headers],[Delivery year ending March]], P$6, Connections[[#Headers],[ConnectionStatus (Delivered/Forecast)]], "Delivered", Connections[[#Headers],[Usage?]], "Shared", Connections[[#Headers],[Type?]], "Typical" ), 0 ) -> 0
B21: BSHE n | C21: £m 2009/10 Prices | G21: =Baselines!F8 -> 0.215 | H21: =Baselines!G8 -> 6.02 | I21: =Baselines!H8 -> 45.944 | J21: =Baselines!I8 -> 30.881 | K21: =Baselines!J8 -> 0 | L21: =Baselines!K8 -> 0 | M21: =Baselines!L8 -> 0 | N21: =Baselines!M8 -> 0 | O21: =Baselines!N8 -> 0 | P21: =Baselines!O8 -> 0 | R21: =SUM(G21:P21) -> 83.06
B22: RPE n | C22: Scaler | G22: =RPE!C9 -> 1.046 | H22: =RPE!D9 -> 1.061 | I22: =RPE!E9 -> 1.077 | J22: =RPE!F9 -> 1.093 | K22: =RPE!G9 -> 1.11 | L22: =RPE!H9 -> 1.126 | M22: =RPE!I9 -> 1.143 | N22: =RPE!J9 -> 1.161 | O22: =RPE!K9 -> 1.178 | P22: =RPE!L9 -> 1.196
B24: OSHE t, n | C24: £m 2009/10 Prices
B25: t (Year ending March) =
B26: 2014 | G26: =OSHE!G9 -> 0 | H26: =OSHE!H9 -> 0 | I26: =OSHE!I9 -> 0 | J26: =OSHE!J9 -> 0 | K26: =OSHE!K9 -> 0 | L26: =OSHE!L9 -> 0 | M26: =OSHE!M9 -> 0 | N26: =OSHE!N9 -> 0 | O26: =OSHE!O9 -> 0 | P26: =OSHE!P9 -> 0 | R26: =SUM(G26:P26) -> 0 | S26: =SUMIF(G$6:P$6, "<=" & $B26, $G26:$P26) -> 0
B27: 2015 | G27: =OSHE!G10 -> 0 | H27: =OSHE!H10 -> 0 | I27: =OSHE!I10 -> 0 | J27: =OSHE!J10 -> 0 | K27: =OSHE!K10 -> 0 | L27: =OSHE!L10 -> 0 | M27: =OSHE!M10 -> 0 | N27: =OSHE!N10 -> 0 | O27: =OSHE!O10 -> 0 | P27: =OSHE!P10 -> 0 | R27: 0 | S27: =SUMIF(G$6:P$6, "<=" & $B27, $G27:$P27) -> 0
B28: 2016 | G28: =OSHE!G11 -> 0 | H28: =OSHE!H11 -> 0 | I28: =OSHE!I11 -> 0 | J28: =OSHE!J11 -> 0 | K28: =OSHE!K11 -> 0 | L28: =OSHE!L11 -> 0 | M28: =OSHE!M11 -> 0 | N28: =OSHE!N11 -> 0 | O28: =OSHE!O11 -> 0 | P28: =OSHE!P11 -> 0 | R28: 0 | S28: 0
B29: 2017 | G29: =OSHE!G12 -> 0 | H29: =OSHE!H12 -> 0 | I29: =OSHE!I12 -> 0 | J29: =OSHE!J12 -> 0 | K29: =OSHE!K12 -> 0 | L29: =OSHE!L12 -> 0 | M29: =OSHE!M12 -> 0 | N29: =OSHE!N12 -> 0 | O29: =OSHE!O12 -> 0 | P29: =OSHE!P12 -> 0 | R29: 0 | S29: 0
B30: 2018 | G30: =OSHE!G13 -> 0 | H30: =OSHE!H13 -> 0 | I30: =OSHE!I13 -> 0 | J30: =OSHE!J13 -> 0 | K30: =OSHE!K13 -> 0 | L30: =OSHE!L13 -> 0 | M30: =OSHE!M13 -> 0 | N30: =OSHE!N13 -> 0 | O30: =OSHE!O13 -> 0 | P30: =OSHE!P13 -> 0 | R30: 0 | S30: 0
B31: 2019 | G31: =OSHE!G14 -> 0 | H31: =OSHE!H14 -> 0 | I31: =OSHE!I14 -> 0 | J31: =OSHE!J14 -> 0 | K31: =OSHE!K14 -> 0 | L31: =OSHE!L14 -> 0 | M31: =OSHE!M14 -> 0 | N31: =OSHE!N14 -> 0 | O31: =OSHE!O14 -> 0 | P31: =OSHE!P14 -> 0 | R31: 0 | S31: 0
B32: 2020 | G32: =OSHE!G15 -> 0 | H32: =OSHE!H15 -> 0 | I32: =OSHE!I15 -> 0 | J32: =OSHE!J15 -> 0 | K32: =OSHE!K15 -> 0 | L32: =OSHE!L15 -> 0 | M32: =OSHE!M15 -> 0 | N32: =OSHE!N15 -> 0 | O32: =OSHE!O15 -> 0 | P32: =OSHE!P15 -> 0 | R32: 0 | S32: 0
B33: 2021 | G33: =OSHE!G16 -> 0 | H33: =OSHE!H16 -> 0 | I33: =OSHE!I16 -> 0 | J33: =OSHE!J16 -> 0 | K33: =OSHE!K16 -> 0 | L33: =OSHE!L16 -> 0 | M33: =OSHE!M16 -> 0 | N33: =OSHE!N16 -> 0 | O33: =OSHE!O16 -> 0 | P33: =OSHE!P16 -> 0 | R33: 0 | S33: 0
B34: 2022 | G34: =OSHE!G17 -> 0 | H34: =OSHE!H17 -> 0 | I34: =OSHE!I17 -> 0 | J34: =OSHE!J17 -> 0 | K34: =OSHE!K17 -> 0 | L34: =OSHE!L17 -> 0 | M34: =OSHE!M17 -> 0 | N34: =OSHE!N17 -> 0 | O34: =OSHE!O17 -> 0 | P34: =OSHE!P17 -> 0 | R34: 0 | S34: 0
B35: 2023 | G35: =OSHE!G18 -> 0 | H35: =OSHE!H18 -> 0 | I35: =OSHE!I18 -> 0 | J35: =OSHE!J18 -> 0 | K35: =OSHE!K18 -> 0 | L35: =OSHE!L18 -> 0 | M35: =OSHE!M18 -> 0 | N35: =OSHE!N18 -> 0 | O35: =OSHE!O18 -> 0 | P35: =OSHE!P18 -> 0 | R35: 0 | S35: 0
B37: OPSH t - n | C37: £m 2009/10 Prices
B38: t (Year ending March) =
B39: 2014 | G39: =OPSH!G16 -> 0 | H39: =OPSH!H16 -> 0 | I39: =OPSH!I16 -> 0 | J39: =OPSH!J16 -> 0 | K39: =OPSH!K16 -> 0 | L39: =OPSH!L16 -> 0 | M39: =OPSH!M16 -> 0 | N39: =OPSH!N16 -> 0 | O39: =OPSH!O16 -> 0 | P39: =OPSH!P16 -> 0 | R39: =SUM(G39:P39) -> 0 | S39: =SUMIF(G$6:P$6, "<=" & $B39, $G39:$P39) -> 0
B40: 2015 | G40: =OPSH!G17 -> 0 | H40: =OPSH!H17 -> 0 | I40: =OPSH!I17 -> 0 | J40: =OPSH!J17 -> 0 | K40: =OPSH!K17 -> 0 | L40: =OPSH!L17 -> 0 | M40: =OPSH!M17 -> 0 | N40: =OPSH!N17 -> 0 | O40: =OPSH!O17 -> 0 | P40: =OPSH!P17 -> 0 | R40: 0 | S40: =SUMIF(G$6:P$6, "<=" & $B40, $G40:$P40) -> 0
B41: 2016 | G41: =OPSH!G18 -> 0 | H41: =OPSH!H18 -> 0 | I41: =OPSH!I18 -> 0 | J41: =OPSH!J18 -> 0 | K41: =OPSH!K18 -> 0 | L41: =OPSH!L18 -> 0 | M41: =OPSH!M18 -> 0 | N41: =OPSH!N18 -> 0 | O41: =OPSH!O18 -> 0 | P41: =OPSH!P18 -> 0 | R41: 0 | S41: 0
B42: 2017 | G42: =OPSH!G19 -> 0 | H42: =OPSH!H19 -> 0 | I42: =OPSH!I19 -> 0 | J42: =OPSH!J19 -> 0 | K42: =OPSH!K19 -> 0 | L42: =OPSH!L19 -> 0 | M42: =OPSH!M19 -> 0 | N42: =OPSH!N19 -> 0 | O42: =OPSH!O19 -> 0 | P42: =OPSH!P19 -> 0 | R42: 0 | S42: 0
B43: 2018 | G43: =OPSH!G20 -> 0 | H43: =OPSH!H20 -> 0 | I43: =OPSH!I20 -> 0 | J43: =OPSH!J20 -> 0 | K43: =OPSH!K20 -> 0 | L43: =OPSH!L20 -> 0 | M43: =OPSH!M20 -> 0 | N43: =OPSH!N20 -> 0 | O43: =OPSH!O20 -> 0 | P43: =OPSH!P20 -> 0 | R43: 0 | S43: 0
B44: 2019 | G44: =OPSH!G21 -> 0 | H44: =OPSH!H21 -> 0 | I44: =OPSH!I21 -> 0 | J44: =OPSH!J21 -> 0 | K44: =OPSH!K21 -> 0 | L44: =OPSH!L21 -> 0 | M44: =OPSH!M21 -> 0 | N44: =OPSH!N21 -> 0 | O44: =OPSH!O21 -> 0 | P44: =OPSH!P21 -> 0 | R44: 0 | S44: 0
B45: 2020 | G45: =OPSH!G22 -> 0 | H45: =OPSH!H22 -> 0 | I45: =OPSH!I22 -> 0 | J45: =OPSH!J22 -> 0 | K45: =OPSH!K22 -> 0 | L45: =OPSH!L22 -> 0 | M45: =OPSH!M22 -> 0 | N45: =OPSH!N22 -> 0 | O45: =OPSH!O22 -> 0 | P45: =OPSH!P22 -> 0 | R45: 0 | S45: 0
B46: 2021 | G46: =OPSH!G23 -> 0 | H46: =OPSH!H23 -> 0 | I46: =OPSH!I23 -> 0 | J46: =OPSH!J23 -> 0 | K46: =OPSH!K23 -> 0 | L46: =OPSH!L23 -> 0 | M46: =OPSH!M23 -> 0 | N46: =OPSH!N23 -> 0 | O46: =OPSH!O23 -> 0 | P46: =OPSH!P23 -> 0 | R46: 0 | S46: 0
B47: 2022 | G47: =OPSH!G24 -> 0 | H47: =OPSH!H24 -> 0 | I47: =OPSH!I24 -> 0 | J47: =OPSH!J24 -> 0 | K47: =OPSH!K24 -> 0 | L47: =OPSH!L24 -> 0 | M47: =OPSH!M24 -> 0 | N47: =OPSH!N24 -> 0 | O47: =OPSH!O24 -> 0 | P47: =OPSH!P24 -> 0 | R47: 0 | S47: 0
B48: 2023 | G48: =OPSH!G25 -> 0 | H48: =OPSH!H25 -> 0 | I48: =OPSH!I25 -> 0 | J48: =OPSH!J25 -> 0 | K48: =OPSH!K25 -> 0 | L48: =OPSH!L25 -> 0 | M48: =OPSH!M25 -> 0 | N48: =OPSH!N25 -> 0 | O48: =OPSH!O25 -> 0 | P48: =OPSH!P25 -> 0 | R48: 0 | S48: 0
B50: FSHA t - n - 2 | C50: £m 2009/10 Prices
B51: t (Year ending March) =
B52: 2014 | G52: =FSHA!G9 -> 0 | H52: =FSHA!H9 -> 0 | I52: =FSHA!I9 -> 0 | J52: =FSHA!J9 -> 0 | K52: =FSHA!K9 -> 0 | L52: =FSHA!L9 -> 0 | M52: =FSHA!M9 -> 0 | N52: =FSHA!N9 -> 0 | O52: =FSHA!O9 -> 0 | P52: =FSHA!P9 -> 0 | R52: =SUM(G52:P52) -> 0 | S52: =SUMIF(G$6:P$6, "<=" & $B52, $G52:$P52) -> 0
B53: 2015 | G53: =FSHA!G10 -> 0 | H53: =FSHA!H10 -> 0 | I53: =FSHA!I10 -> 0 | J53: =FSHA!J10 -> 0 | K53: =FSHA!K10 -> 0 | L53: =FSHA!L10 -> 0 | M53: =FSHA!M10 -> 0 | N53: =FSHA!N10 -> 0 | O53: =FSHA!O10 -> 0 | P53: =FSHA!P10 -> 0 | R53: 0 | S53: =SUMIF(G$6:P$6, "<=" & $B53, $G53:$P53) -> 0
B54: 2016 | G54: =FSHA!G11 -> 0 | H54: =FSHA!H11 -> 0 | I54: =FSHA!I11 -> 0 | J54: =FSHA!J11 -> 0 | K54: =FSHA!K11 -> 0 | L54: =FSHA!L11 -> 0 | M54: =FSHA!M11 -> 0 | N54: =FSHA!N11 -> 0 | O54: =FSHA!O11 -> 0 | P54: =FSHA!P11 -> 0 | R54: 0 | S54: 0
B55: 2017 | G55: =FSHA!G12 -> 0 | H55: =FSHA!H12 -> 0 | I55: =FSHA!I12 -> 0 | J55: =FSHA!J12 -> 18.0077215 | K55: =FSHA!K12 -> 0 | L55: =FSHA!L12 -> 0 | M55: =FSHA!M12 -> 0 | N55: =FSHA!N12 -> 0 | O55: =FSHA!O12 -> 0 | P55: =FSHA!P12 -> 0 | R55: 18.0077215 | S55: 18.0077215
B56: 2018 | G56: =FSHA!G13 -> 0 | H56: =FSHA!H13 -> 0 | I56: =FSHA!I13 -> 0 | J56: =FSHA!J13 -> 18.0077215 | K56: =FSHA!K13 -> 18.287805 | L56: =FSHA!L13 -> 0 | M56: =FSHA!M13 -> 0 | N56: =FSHA!N13 -> 0 | O56: =FSHA!O13 -> 0 | P56: =FSHA!P13 -> 0 | R56: 36.2955265 | S56: 36.2955265
B57: 2019 | G57: =FSHA!G14 -> 0 | H57: =FSHA!H14 -> 0 | I57: =FSHA!I14 -> 0 | J57: =FSHA!J14 -> 18.0077215 | K57: =FSHA!K14 -> 18.287805 | L57: =FSHA!L14 -> 18.551413 | M57: =FSHA!M14 -> 0 | N57: =FSHA!N14 -> 0 | O57: =FSHA!O14 -> 0 | P57: =FSHA!P14 -> 0 | R57: 54.8469395 | S57: 54.8469395
B58: 2020 | G58: =FSHA!G15 -> 0 | H58: =FSHA!H15 -> 0 | I58: =FSHA!I15 -> 0 | J58: =FSHA!J15 -> 0 | K58: =FSHA!K15 -> 0 | L58: =FSHA!L15 -> 0 | M58: =FSHA!M15 -> 0 | N58: =FSHA!N15 -> 0 | O58: =FSHA!O15 -> 0 | P58: =FSHA!P15 -> 0 | R58: 0 | S58: 0
B59: 2021 | G59: =FSHA!G16 -> 0 | H59: =FSHA!H16 -> 0 | I59: =FSHA!I16 -> 0 | J59: =FSHA!J16 -> 0 | K59: =FSHA!K16 -> 0 | L59: =FSHA!L16 -> 0 | M59: =FSHA!M16 -> 0 | N59: =FSHA!N16 -> 0 | O59: =FSHA!O16 -> 0 | P59: =FSHA!P16 -> 0 | R59: 0 | S59: 0
B60: 2022 | G60: =FSHA!G17 -> 0 | H60: =FSHA!H17 -> 0 | I60: =FSHA!I17 -> 0 | J60: =FSHA!J17 -> 0 | K60: =FSHA!K17 -> 0 | L60: =FSHA!L17 -> 0 | M60: =FSHA!M17 -> 0 | N60: =FSHA!N17 -> 0 | O60: =FSHA!O17 -> 0 | P60: =FSHA!P17 -> 0 | R60: 0 | S60: 0
B61: 2023 | G61: =FSHA!G18 -> 0 | H61: =FSHA!H18 -> 0 | I61: =FSHA!I18 -> 0 | J61: =FSHA!J18 -> 0 | K61: =FSHA!K18 -> 0 | L61: =FSHA!L18 -> 0 | M61: =FSHA!M18 -> 0 | N61: =FSHA!N18 -> 0 | O61: =FSHA!O18 -> 0 | P61: =FSHA!P18 -> 0 | R61: 0 | S61: 0

Sheet OSHE
A1: OSHE - Shared-Use Allowed Expenditure for delivered capacity beyond the capacity threshold
B6: Parameter | C6: Units | E6: Constant | F6: n= | G6: 2014 | H6: 2015 | I6: 2016 | J6: 2017 | K6: 2018 | L6: 2019 | M6: 2020 | N6: 2021 | O6: 2022 | P6: 2023 | R6: Total
B7: OHSE t, n | C7: £m 2009/10 Prices | D7: m= | E7: all
B8: t (Year ending March) =
B9: 2014 | G9: =IFERROR( INDEX($G41:$P41,1,MATCH(G$6,$G$39:$P$39,FALSE)), 0) +IFERROR( INDEX($G54:$P54,1,MATCH(G$6,$G$52:$P$52,FALSE)), 0) +IFERROR( INDEX($G67:$P67,1,MATCH(G$6,$G$65:$P$65,FALSE)), 0) +IFERROR( INDEX($G80:$P80,1,MATCH(G$6,$G$78:$P$78,FALSE)), 0) -> 0 | H9: 0 | I9: 0 | J9: 0 | K9: 0 | L9: 0 | M9: 0 | N9: 0 | O9: 0 | P9: 0 | R9: =SUM(G9:P9) -> 0 | S9: =SUMIF(G$6:P$6, "<=" & $B9, $G9:$P9) -> 0
B10: 2015 | G10: 0 | H10: 0 | I10: 0 | J10: 0 | K10: 0 | L10: 0 | M10: 0 | N10: 0 | O10: 0 | P10: 0 | R10: 0 | S10: =SUMIF(G$6:P$6, "<=" & $B10, $G10:$P10) -> 0
B11: 2016 | G11: 0 | H11: 0 | I11: 0 | J11: 0 | K11: 0 | L11: 0 | M11: 0 | N11: 0 | O11: 0 | P11: 0 | R11: 0 | S11: 0
B12: 2017 | G12: 0 | H12: 0 | I12: 0 | J12: 0 | K12: 0 | L12: 0 | M12: 0 | N12: 0 | O12: 0 | P12: 0 | R12: 0 | S12: 0
B13: 2018 | G13: 0 | H13: 0 | I13: 0 | J13: 0 | K13: 0 | L13: 0 | M13: 0 | N13: 0 | O13: 0 | P13: 0 | R13: 0 | S13: 0
B14: 2019 | G14: 0 | H14: 0 | I14: 0 | J14: 0 | K14: 0 | L14: 0 | M14: 0 | N14: 0 | O14: 0 | P14: 0 | R14: 0 | S14: 0
B15: 2020 | G15: 0 | H15: 0 | I15: 0 | J15: 0 | K15: 0 | L15: 0 | M15: 0 | N15: 0 | O15: 0 | P15: 0 | R15: 0 | S15: 0
B16: 2021 | G16: 0 | H16: 0 | I16: 0 | J16: 0 | K16: 0 | L16: 0 | M16: 0 | N16: 0 | O16: 0 | P16: 0 | R16: 0 | S16: 0
B17: 2022 | G17: 0 | H17: 0 | I17: 0 | J17: 0 | K17: 0 | L17: 0 | M17: 0 | N17: 0 | O17: 0 | P17: 0 | R17: 0 | S17: 0
B18: 2023 | G18: 0 | H18: 0 | I18: 0 | J18: 0 | K18: 0 | L18: 0 | M18: 0 | N18: 0 | O18: 0 | P18: 0 | R18: 0 | S18: 0
B20: UCA | C20: £m 2009/10 Prices /MW | E20: =UCAallowances!$D$8 -> 0.083
B21: Capacity Threshold | C21: MW | E21: =UCAallowances!$C$8 -> 1006
B22: RPE n | C22: Scaler | G22: =RPE!C9 -> 1.046 | H22: =RPE!D9 -> 1.061 | I22: =RPE!E9 -> 1.077 | J22: =RPE!F9 -> 1.093 | K22: =RPE!G9 -> 1.11 | L22: =RPE!H9 -> 1.126 | M22: =RPE!I9 -> 1.143 | N22: =RPE!J9 -> 1.161 | O22: =RPE!K9 -> 1.178 | P22: =RPE!L9 -> 1.196
B23: DSHG n - 1 | C23: MW | G23: =IFERROR( GETPIVOTDATA( TEXT(Connections[[#Headers],[Generation connection capacity (MW/MVA)]], 0), ConnectionsCapacity!$A$6, Connections[[#Headers],[Delivery year ending March]], G$6 - 1, Connections[[#Headers],[ConnectionStatus (Delivered/Forecast)]], "Delivered", Connections[[#Headers],[Usage?]], "Shared", Connections[[#Headers],[Type?]], "Typical" ), 0 ) -> 0 | H23: =IFERROR( GETPIVOTDATA( TEXT(Connections[[#Headers],[Generation connection capacity (MW/MVA)]], 0), ConnectionsCapacity!$A$6, Connections[[#Headers],[Delivery year ending March]], H$6 - 1, Connections[[#Headers],[ConnectionStatus (Delivered/Forecast)]], "Delivered", Connections[[#Headers],[Usage?]], "Shared", Connections[[#Headers],[Type?]], "Typical" ), 0 ) -> 0 | I23: =IFERROR( GETPIVOTDATA( TEXT(Connections[[#Headers],[Generation connection capacity (MW/MVA)]], 0), ConnectionsCapacity!$A$6, Connections[[#Headers],[Delivery year ending March]], I$6 - 1, Connections[[#Headers],[ConnectionStatus (Delivered/Forecast)]], "Delivered", Connections[[#Headers],[Usage?]], "Shared", Connections[[#Headers],[Type?]], "Typical" ), 0 ) -> 0 | J23: =IFERROR( GETPIVOTDATA( TEXT(Connections[[#Headers],[Generation connection capacity (MW/MVA)]], 0), ConnectionsCapacity!$A$6, Connections[[#Headers],[Delivery year ending March]], J$6 - 1, Connections[[#Headers],[ConnectionStatus (Delivered/Forecast)]], "Delivered", Connections[[#Headers],[Usage?]], "Shared", Connections[[#Headers],[Type?]], "Typical" ), 0 ) -> 0 | K23: =IFERROR( GETPIVOTDATA( TEXT(Connections[[#Headers],[Generation connection capacity (MW/MVA)]], 0), ConnectionsCapacity!$A$6, Connections[[#Headers],[Delivery year ending March]], K$6 - 1, Connections[[#Headers],[ConnectionStatus (Delivered/Forecast)]], "Delivered", Connections[[#Headers],[Usage?]], "Shared", Connections[[#Headers],[Type?]], "Typical" ), 0 ) -> 0 | L23: =IFERROR( GETPIVOTDATA( TEXT(Connections[[#Headers],[Generation connection capacity (MW/MVA)]], 0), ConnectionsCapacity!$A$6, Connections[[#Headers],[Delivery year ending March]], L$6 - 1, Connections[[#Headers],[ConnectionStatus (Delivered/Forecast)]], "Delivered", Connections[[#Headers],[Usage?]], "Shared", Connections[[#Headers],[Type?]], "Typical" ), 0 ) -> 800 | M23: =IFERROR( GETPIVOTDATA( TEXT(Connections[[#Headers],[Generation connection capacity (MW/MVA)]], 0), ConnectionsCapacity!$A$6, Connections[[#Headers],[Delivery year ending March]], M$6 - 1, Connections[[#Headers],[ConnectionStatus (Delivered/Forecast)]], "Delivered", Connections[[#Headers],[Usage?]], "Shared", Connections[[#Headers],[Type?]], "Typical" ), 0 ) -> 0 | N23: =IFERROR( GETPIVOTDATA( TEXT(Connections[[#Headers],[Generation connection capacity (MW/MVA)]], 0), ConnectionsCapacity!$A$6, Connections[[#Headers],[Delivery year ending March]], N$6 - 1, Connections[[#Headers],[ConnectionStatus (Delivered/Forecast)]], "Delivered", Connections[[#Headers],[Usage?]], "Shared", Connections[[#Headers],[Type?]], "Typical" ), 0 ) -> 800 | O23: =IFERROR( GETPIVOTDATA( TEXT(Connections[[#Headers],[Generation connection capacity (MW/MVA)]], 0), ConnectionsCapacity!$A$6, Connections[[#Headers],[Delivery year ending March]], O$6 - 1, Connections[[#Headers],[ConnectionStatus (Delivered/Forecast)]], "Delivered", Connections[[#Headers],[Usage?]], "Shared", Connections[[#Headers],[Type?]], "Typical" ), 0 ) -> 0 | P23: =IFERROR( GETPIVOTDATA( TEXT(Connections[[#Headers],[Generation connection capacity (MW/MVA)]], 0), ConnectionsCapacity!$A$6, Connections[[#Headers],[Delivery year ending March]], P$6 - 1, Connections[[#Headers],[ConnectionStatus (Delivered/Forecast)]], "Delivered", Connections[[#Headers],[Usage?]], "Shared", Connections[[#Headers],[Type?]], "Typical" ), 0 ) -> 0
B24: DSHG n | C24: MW | G24: =IFERROR( GETPIVOTDATA( TEXT(Connections[[#Headers],[Generation connection capacity (MW/MVA)]], 0), ConnectionsCapacity!$A$6, Connections[[#Headers],[Delivery year ending March]], G$6, Connections[[#Headers],[ConnectionStatus (Delivered/Forecast)]], "Delivered", Connections[[#Headers],[Usage?]], "Shared", Connections[[#Headers],[Type?]], "Typical" ), 0 ) -> 0 | H24: =IFERROR( GETPIVOTDATA( TEXT(Connections[[#Headers],[Generation connection capacity (MW/MVA)]], 0), ConnectionsCapacity!$A$6, Connections[[#Headers],[Delivery year ending March]], H$6, Connections[[#Headers],[ConnectionStatus (Delivered/Forecast)]], "Delivered", Connections[[#Headers],[Usage?]], "Shared", Connections[[#Headers],[Type?]], "Typical" ), 0 ) -> 0 | I24: =IFERROR( GETPIVOTDATA( TEXT(Connections[[#Headers],[Generation connection capacity (MW/MVA)]], 0), ConnectionsCapacity!$A$6, Connections[[#Headers],[Delivery year ending March]], I$6, Connections[[#Headers],[ConnectionStatus (Delivered/Forecast)]], "Delivered", Connections[[#Headers],[Usage?]], "Shared", Connections[[#Headers],[Type?]], "Typical" ), 0 ) -> 0 | J24: =IFERROR( GETPIVOTDATA( TEXT(Connections[[#Headers],[Generation connection capacity (MW/MVA)]], 0), ConnectionsCapacity!$A$6, Connections[[#Headers],[Delivery year ending March]], J$6, Connections[[#Headers],[ConnectionStatus (Delivered/Forecast)]], "Delivered", Connections[[#Headers],[Usage?]], "Shared", Connections[[#Headers],[Type?]], "Typical" ), 0 ) -> 0 | K24: =IFERROR( GETPIVOTDATA( TEXT(Connections[[#Headers],[Generation connection capacity (MW/MVA)]], 0), ConnectionsCapacity!$A$6, Connections[[#Headers],[Delivery year ending March]], K$6, Connections[[#Headers],[ConnectionStatus (Delivered/Forecast)]], "Delivered", Connections[[#Headers],[Usage?]], "Shared", Connections[[#Headers],[Type?]], "Typical" ), 0 ) -> 800 | L24: =IFERROR( GETPIVOTDATA( TEXT(Connections[[#Headers],[Generation connection capacity (MW/MVA)]], 0), ConnectionsCapacity!$A$6, Connections[[#Headers],[Delivery year ending March]], L$6, Connections[[#Headers],[ConnectionStatus (Delivered/Forecast)]], "Delivered", Connections[[#Headers],[Usage?]], "Shared", Connections[[#Headers],[Type?]], "Typical" ), 0 ) -> 0 | M24: =IFERROR( GETPIVOTDATA( TEXT(Connections[[#Headers],[Generation connection capacity (MW/MVA)]], 0), ConnectionsCapacity!$A$6, Connections[[#Headers],[Delivery year ending March]], M$6, Connections[[#Headers],[ConnectionStatus (Delivered/Forecast)]], "Delivered", Connections[[#Headers],[Usage?]], "Shared", Connections[[#Headers],[Type?]], "Typical" ), 0 ) -> 800 | N24: =IFERROR( GETPIVOTDATA( TEXT(Connections[[#Headers],[Generation connection capacity (MW/MVA)]], 0), ConnectionsCapacity!$A$6, Connections[[#Headers],[Delivery year ending March]], N$6, Connections[[#Headers],[ConnectionStatus (Delivered/Forecast)]], "Delivered", Connections[[#Headers],[Usage?]], "Shared", Connections[[#Headers],[Type?]], "Typical" ), 0 ) -> 0 | O24: =IFERROR( GETPIVOTDATA( TEXT(Connections[[#Headers],[Generation connection capacity (MW/MVA)]], 0), ConnectionsCapacity!$A$6, Connections[[#Headers],[Delivery year ending March]], O$6, Connections[[#Headers],[ConnectionStatus (Delivered/Forecast)]], "Delivered", Connections[[#Headers],[Usage?]], "Shared", Connections[[#Headers],[Type?]], "Typical" ), 0 ) -> 0 | P24: =IFERROR( GETPIVOTDATA( TEXT(Connections[[#Headers],[Generation connection capacity (MW/MVA)]], 0), ConnectionsCapacity!$A$6, Connections[[#Headers],[Delivery year ending March]], P$6, Connections[[#Headers],[ConnectionStatus (Delivered/Forecast)]], "Delivered", Connections[[#Headers],[Usage?]], "Shared", Connections[[#Headers],[Type?]], "Typical" ), 0 ) -> 0
B26: WF t, n | E26: 4
B27: t (Year ending March) =
B28: 2014 | G28: =IF($B28 > G$6, MIN($E$26, G$6 - 2014 + 1), 0) -> 0 | H28: 0 | I28: 0 | J28: 0 | K28: 0 | L28: 0 | M28: 0 | N28: 0 | O28: 0 | P28: 0
B29: 2015 | G29: 1 | H29: 0 | I29: 0 | J29: 0 | K29: 0 | L29: 0 | M29: 0 | N29: 0 | O29: 0 | P29: 0
B30: 2016 | G30: 1 | H30: 2 | I30: 0 | J30: 0 | K30: 0 | L30: 0 | M30: 0 | N30: 0 | O30: 0 | P30: 0
B31: 2017 | G31: 1 | H31: 2 | I31: 3 | J31: 0 | K31: 0 | L31: 0 | M31: 0 | N31: 0 | O31: 0 | P31: 0
B32: 2018 | G32: 1 | H32: 2 | I32: 3 | J32: 4 | K32: 0 | L32: 0 | M32: 0 | N32: 0 | O32: 0 | P32: 0
B33: 2019 | G33: 1 | H33: 2 | I33: 3 | J33: 4 | K33: 4 | L33: 0 | M33: 0 | N33: 0 | O33: 0 | P33: 0
B34: 2020 | G34: 1 | H34: 2 | I34: 3 | J34: 4 | K34: 4 | L34: 4 | M34: 0 | N34: 0 | O34: 0 | P34: 0
B35: 2021 | G35: 1 | H35: 2 | I35: 3 | J35: 4 | K35: 4 | L35: 4 | M35: 4 | N35: 0 | O35: 0 | P35: 0
B36: 2022 | G36: 1 | H36: 2 | I36: 3 | J36: 4 | K36: 4 | L36: 4 | M36: 4 | N36: 4 | O36: 0 | P36: 0
B37: 2023 | G37: 1 | H37: 2 | I37: 3 | J37: 4 | K37: 4 | L37: 4 | M37: 4 | N37: 4 | O37: 4 | P37: 0
B39: OHSE t, n | C39: £m 2009/10 Prices | D39: m = | E39: 0 | F39: n - m= | G39: =IF( G$6 - $E39 < 2014, "exclude", G$6 - $E39 ) -> 2014 | H39: =IF( H$6 - $E39 < 2014, "exclude", H$6 - $E39 ) -> 2015 | I39: 2016 | J39: 2017 | K39: 2018 | L39: 2019 | M39: 2020 | N39: 2021 | O39: 2022 | P39: 2023
B40: t (Year ending March) =
B41: 2014 | G41: =IF( G$39 = "exclude", 0, IF(OR(G28 <=0, $B41 - 2 < G$6), 0, MAX(0, (G$24 - MAX($E$21,G$23))) * $E$20 * INDEX($G$22:$P$22, 1, MATCH(G$39,$G$6:$P$6,FALSE)) / G28 ) ) -> 0 | H41: =IF( H$39 = "exclude", 0, IF(OR(H28 <=0, $B41 - 2 < H$6), 0, MAX(0, (H$24 - MAX($E$21,H$23))) * $E$20 * INDEX($G$22:$P$22, 1, MATCH(H$39,$G$6:$P$6,FALSE)) / H28 ) ) -> 0 | I41: 0 | J41: 0 | K41: 0 | L41: 0 | M41: 0 | N41: 0 | O41: 0 | P41: 0
B42: 2015 | G42: =IF( G$39 = "exclude", 0, IF(OR(G29 <=0, $B42 - 2 < G$6), 0, MAX(0, (G$24 - MAX($E$21,G$23))) * $E$20 * INDEX($G$22:$P$22, 1, MATCH(G$39,$G$6:$P$6,FALSE)) / G29 ) ) -> 0 | H42: 0 | I42: 0 | J42: 0 | K42: 0 | L42: 0 | M42: 0 | N42: 0 | O42: 0 | P42: 0
B43: 2016 | G43: 0 | H43: 0 | I43: 0 | J43: 0 | K43: 0 | L43: 0 | M43: 0 | N43: 0 | O43: 0 | P43: 0
B44: 2017 | G44: 0 | H44: 0 | I44: 0 | J44: 0 | K44: 0 | L44: 0 | M44: 0 | N44: 0 | O44: 0 | P44: 0
B45: 2018 | G45: 0 | H45: 0 | I45: 0 | J45: 0 | K45: 0 | L45: 0 | M45: 0 | N45: 0 | O45: 0 | P45: 0
B46: 2019 | G46: 0 | H46: 0 | I46: 0 | J46: 0 | K46: 0 | L46: 0 | M46: 0 | N46: 0 | O46: 0 | P46: 0
B47: 2020 | G47: 0 | H47: 0 | I47: 0 | J47: 0 | K47: 0 | L47: 0 | M47: 0 | N47: 0 | O47: 0 | P47: 0
B48: 2021 | G48: 0 | H48: 0 | I48: 0 | J48: 0 | K48: 0 | L48: 0 | M48: 0 | N48: 0 | O48: 0 | P48: 0
B49: 2022 | G49: 0 | H49: 0 | I49: 0 | J49: 0 | K49: 0 | L49: 0 | M49: 0 | N49: 0 | O49: 0 | P49: 0
B50: 2023 | G50: 0 | H50: 0 | I50: 0 | J50: 0 | K50: 0 | L50: 0 | M50: 0 | N50: 0 | O50: 0 | P50: 0
B52: OHSE t, n | C52: £m 2009/10 Prices | D52: m = | E52: 1 | F52: n - m= | G52: =IF( G$6 - $E52 < 2014, "exclude", G$6 - $E52 ) -> exclude | H52: =IF( H$6 - $E52 < 2014, "exclude", H$6 - $E52 ) -> 2014 | I52: 2015 | J52: 2016 | K52: 2017 | L52: 2018 | M52: 2019 | N52: 2020 | O52: 2021 | P52: 2022
B53: t (Year ending March) =
B54: 2014 | G54: =IF( G$52 = "exclude", 0, IF(OR(G41 <=0, $B54 - 2 < G$6), 0, MAX(0, (G$24 - MAX($E$21,G$23))) * $E$20 * INDEX($G$22:$P$22, 1, MATCH(G$52,$G$6:$P$6,FALSE)) / G28 ) ) -> 0 | H54: =IF( H$52 = "exclude", 0, IF(OR(H41 <=0, $B54 - 2 < H$6), 0, MAX(0, (H$24 - MAX($E$21,H$23))) * $E$20 * INDEX($G$22:$P$22, 1, MATCH(H$52,$G$6:$P$6,FALSE)) / H28 ) ) -> 0 | I54: 0 | J54: 0 | K54: 0 | L54: 0 | M54: 0 | N54: 0 | O54: 0 | P54: 0
B55: 2015 | G55: =IF( G$52 = "exclude", 0, IF(OR(G42 <=0, $B55 - 2 < G$6), 0, MAX(0, (G$24 - MAX($E$21,G$23))) * $E$20 * INDEX($G$22:$P$22, 1, MATCH(G$52,$G$6:$P$6,FALSE)) / G29 ) ) -> 0 | H55: 0 | I55: 0 | J55: 0 | K55: 0 | L55: 0 | M55: 0 | N55: 0 | O55: 0 | P55: 0
B56: 2016 | G56: 0 | H56: 0 | I56: 0 | J56: 0 | K56: 0 | L56: 0 | M56: 0 | N56: 0 | O56: 0 | P56: 0
B57: 2017 | G57: 0 | H57: 0 | I57: 0 | J57: 0 | K57: 0 | L57: 0 | M57: 0 | N57: 0 | O57: 0 | P57: 0
B58: 2018 | G58: 0 | H58: 0 | I58: 0 | J58: 0 | K58: 0 | L58: 0 | M58: 0 | N58: 0 | O58: 0 | P58: 0
B59: 2019 | G59: 0 | H59: 0 | I59: 0 | J59: 0 | K59: 0 | L59: 0 | M59: 0 | N59: 0 | O59: 0 | P59: 0
B60: 2020 | G60: 0 | H60: 0 | I60: 0 | J60: 0 | K60: 0 | L60: 0 | M60: 0 | N60: 0 | O60: 0 | P60: 0
B61: 2021 | G61: 0 | H61: 0 | I61: 0 | J61: 0 | K61: 0 | L61: 0 | M61: 0 | N61: 0 | O61: 0 | P61: 0
B62: 2022 | G62: 0 | H62: 0 | I62: 0 | J62: 0 | K62: 0 | L62: 0 | M62: 0 | N62: 0 | O62: 0 | P62: 0
B63: 2023 | G63: 0 | H63: 0 | I63: 0 | J63: 0 | K63: 0 | L63: 0 | M63: 0 | N63: 0 | O63: 0 | P63: 0
B65: OHSE t, n | C65: £m 2009/10 Prices | D65: m = | E65: 2 | F65: n - m= | G65: =IF( G$6 - $E65 < 2014, "exclude", G$6 - $E65 ) -> exclude | H65: =IF( H$6 - $E65 < 2014, "exclude", H$6 - $E65 ) -> exclude | I65: 2014 | J65: 2015 | K65: 2016 | L65: 2017 | M65: 2018 | N65: 2019 | O65: 2020 | P65: 2021
B66: t (Year ending March) =
B67: 2014 | G67: =IF( G$65 = "exclude", 0, IF(OR(G54 <=0, $B67 - 2 < G$6), 0, MAX(0, (G$24 - MAX($E$21,G$23))) * $E$20 * INDEX($G$22:$P$22, 1, MATCH(G$65,$G$6:$P$6,FALSE)) / G28 ) ) -> 0 | H67: =IF( H$65 = "exclude", 0, IF(OR(H54 <=0, $B67 - 2 < H$6), 0, MAX(0, (H$24 - MAX($E$21,H$23))) * $E$20 * INDEX($G$22:$P$22, 1, MATCH(H$65,$G$6:$P$6,FALSE)) / H28 ) ) -> 0 | I67: 0 | J67: 0 | K67: 0 | L67: 0 | M67: 0 | N67: 0 | O67: 0 | P67: 0
B68: 2015 | G68: =IF( G$65 = "exclude", 0, IF(OR(G55 <=0, $B68 - 2 < G$6), 0, MAX(0, (G$24 - MAX($E$21,G$23))) * $E$20 * INDEX($G$22:$P$22, 1, MATCH(G$65,$G$6:$P$6,FALSE)) / G29 ) ) -> 0 | H68: 0 | I68: 0 | J68: 0 | K68: 0 | L68: 0 | M68: 0 | N68: 0 | O68: 0 | P68: 0
B69: 2016 | G69: 0 | H69: 0 | I69: 0 | J69: 0 | K69: 0 | L69: 0 | M69: 0 | N69: 0 | O69: 0 | P69: 0
B70: 2017 | G70: 0 | H70: 0 | I70: 0 | J70: 0 | K70: 0 | L70: 0 | M70: 0 | N70: 0 | O70: 0 | P70: 0
B71: 2018 | G71: 0 | H71: 0 | I71: 0 | J71: 0 | K71: 0 | L71: 0 | M71: 0 | N71: 0 | O71: 0 | P71: 0
B72: 2019 | G72: 0 | H72: 0 | I72: 0 | J72: 0 | K72: 0 | L72: 0 | M72: 0 | N72: 0 | O72: 0 | P72: 0
B73: 2020 | G73: 0 | H73: 0 | I73: 0 | J73: 0 | K73: 0 | L73: 0 | M73: 0 | N73: 0 | O73: 0 | P73: 0
B74: 2021 | G74: 0 | H74: 0 | I74: 0 | J74: 0 | K74: 0 | L74: 0 | M74: 0 | N74: 0 | O74: 0 | P74: 0
B75: 2022 | G75: 0 | H75: 0 | I75: 0 | J75: 0 | K75: 0 | L75: 0 | M75: 0 | N75: 0 | O75: 0 | P75: 0
B76: 2023 | G76: 0 | H76: 0 | I76: 0 | J76: 0 | K76: 0 | L76: 0 | M76: 0 | N76: 0 | O76: 0 | P76: 0
B78: OHSE t, n | C78: £m 2009/10 Prices | D78: m = | E78: 3 | F78: n - m= | G78: =IF( G$6 - $E78 < 2014, "exclude", G$6 - $E78 ) -> exclude | H78: =IF( H$6 - $E78 < 2014, "exclude", H$6 - $E78 ) -> exclude | I78: exclude | J78: 2014 | K78: 2015 | L78: 2016 | M78: 2017 | N78: 2018 | O78: 2019 | P78: 2020
B79: t (Year ending March) =
B80: 2014 | G80: =IF( G$78 = "exclude", 0, IF(OR(G67 <=0, $B80 - 2 < G$6), 0, MAX(0, (G$24 - MAX($E$21,G$23))) * $E$20 * INDEX($G$22:$P$22, 1, MATCH(G$78,$G$6:$P$6,FALSE)) / G28 ) ) -> 0 | H80: =IF( H$78 = "exclude", 0, IF(OR(H67 <=0, $B80 - 2 < H$6), 0, MAX(0, (H$24 - MAX($E$21,H$23))) * $E$20 * INDEX($G$22:$P$22, 1, MATCH(H$78,$G$6:$P$6,FALSE)) / H28 ) ) -> 0 | I80: 0 | J80: 0 | K80: 0 | L80: 0 | M80: 0 | N80: 0 | O80: 0 | P80: 0
B81: 2015 | G81: =IF( G$78 = "exclude", 0, IF(OR(G68 <=0, $B81 - 2 < G$6), 0, MAX(0, (G$24 - MAX($E$21,G$23))) * $E$20 * INDEX($G$22:$P$22, 1, MATCH(G$78,$G$6:$P$6,FALSE)) / G29 ) ) -> 0 | H81: 0 | I81: 0 | J81: 0 | K81: 0 | L81: 0 | M81: 0 | N81: 0 | O81: 0 | P81: 0
B82: 2016 | G82: 0 | H82: 0 | I82: 0 | J82: 0 | K82: 0 | L82: 0 | M82: 0 | N82: 0 | O82: 0 | P82: 0
B83: 2017 | G83: 0 | H83: 0 | I83: 0 | J83: 0 | K83: 0 | L83: 0 | M83: 0 | N83: 0 | O83: 0 | P83: 0
B84: 2018 | G84: 0 | H84: 0 | I84: 0 | J84: 0 | K84: 0 | L84: 0 | M84: 0 | N84: 0 | O84: 0 | P84: 0
B85: 2019 | G85: 0 | H85: 0 | I85: 0 | J85: 0 | K85: 0 | L85: 0 | M85: 0 | N85: 0 | O85: 0 | P85: 0
B86: 2020 | G86: 0 | H86: 0 | I86: 0 | J86: 0 | K86: 0 | L86: 0 | M86: 0 | N86: 0 | O86: 0 | P86: 0
B87: 2021 | G87: 0 | H87: 0 | I87: 0 | J87: 0 | K87: 0 | L87: 0 | M87: 0 | N87: 0 | O87: 0 | P87: 0
B88: 2022 | G88: 0 | H88: 0 | I88: 0 | J88: 0 | K88: 0 | L88: 0 | M88: 0 | N88: 0 | O88: 0 | P88: 0
B89: 2023 | G89: 0 | H89: 0 | I89: 0 | J89: 0 | K89: 0 | L89: 0 | M89: 0 | N89: 0 | O89: 0 | P89: 0

Sheet OPSH
A1: OPSH - Shared-Use Allowed Expenditure for O&M costs for Delivered Outputs
B6: Parameter | C6: Units | E6: Constant | F6: n= | G6: 2014 | H6: 2015 | I6: 2016 | J6: 2017 | K6: 2018 | L6: 2019 | M6: 2020 | N6: 2021 | O6: 2022 | P6: 2023 | R6: Total
B8: Capacity Threshold | C8: MW | E8: =UCAallowances!$C$8 -> 1006
B9: DSHG n | C9: MW | G9: =IFERROR( GETPIVOTDATA( TEXT(Connections[[#Headers],[Generation connection capacity (MW/MVA)]], 0), ConnectionsCapacity!$A$6, Connections[[#Headers],[Delivery year ending March]], G$6, Connections[[#Headers],[ConnectionStatus (Delivered/Forecast)]], "Delivered", Connections[[#Headers],[Usage?]], "Shared", Connections[[#Headers],[Type?]], "Typical" ), 0 ) -> 0 | H9: =IFERROR( GETPIVOTDATA( TEXT(Connections[[#Headers],[Generation connection capacity (MW/MVA)]], 0), ConnectionsCapacity!$A$6, Connections[[#Headers],[Delivery year ending March]], H$6, Connections[[#Headers],[ConnectionStatus (Delivered/Forecast)]], "Delivered", Connections[[#Headers],[Usage?]], "Shared", Connections[[#Headers],[Type?]], "Typical" ), 0 ) -> 0 | I9: =IFERROR( GETPIVOTDATA( TEXT(Connections[[#Headers],[Generation connection capacity (MW/MVA)]], 0), ConnectionsCapacity!$A$6, Connections[[#Headers],[Delivery year ending March]], I$6, Connections[[#Headers],[ConnectionStatus (Delivered/Forecast)]], "Delivered", Connections[[#Headers],[Usage?]], "Shared", Connections[[#Headers],[Type?]], "Typical" ), 0 ) -> 0 | J9: =IFERROR( GETPIVOTDATA( TEXT(Connections[[#Headers],[Generation connection capacity (MW/MVA)]], 0), ConnectionsCapacity!$A$6, Connections[[#Headers],[Delivery year ending March]], J$6, Connections[[#Headers],[ConnectionStatus (Delivered/Forecast)]], "Delivered", Connections[[#Headers],[Usage?]], "Shared", Connections[[#Headers],[Type?]], "Typical" ), 0 ) -> 0 | K9: =IFERROR( GETPIVOTDATA( TEXT(Connections[[#Headers],[Generation connection capacity (MW/MVA)]], 0), ConnectionsCapacity!$A$6, Connections[[#Headers],[Delivery year ending March]], K$6, Connections[[#Headers],[ConnectionStatus (Delivered/Forecast)]], "Delivered", Connections[[#Headers],[Usage?]], "Shared", Connections[[#Headers],[Type?]], "Typical" ), 0 ) -> 800 | L9: =IFERROR( GETPIVOTDATA( TEXT(Connections[[#Headers],[Generation connection capacity (MW/MVA)]], 0), ConnectionsCapacity!$A$6, Connections[[#Headers],[Delivery year ending March]], L$6, Connections[[#Headers],[ConnectionStatus (Delivered/Forecast)]], "Delivered", Connections[[#Headers],[Usage?]], "Shared", Connections[[#Headers],[Type?]], "Typical" ), 0 ) -> 0 | M9: =IFERROR( GETPIVOTDATA( TEXT(Connections[[#Headers],[Generation connection capacity (MW/MVA)]], 0), ConnectionsCapacity!$A$6, Connections[[#Headers],[Delivery year ending March]], M$6, Connections[[#Headers],[ConnectionStatus (Delivered/Forecast)]], "Delivered", Connections[[#Headers],[Usage?]], "Shared", Connections[[#Headers],[Type?]], "Typical" ), 0 ) -> 800 | N9: =IFERROR( GETPIVOTDATA( TEXT(Connections[[#Headers],[Generation connection capacity (MW/MVA)]], 0), ConnectionsCapacity!$A$6, Connections[[#Headers],[Delivery year ending March]], N$6, Connections[[#Headers],[ConnectionStatus (Delivered/Forecast)]], "Delivered", Connections[[#Headers],[Usage?]], "Shared", Connections[[#Headers],[Type?]], "Typical" ), 0 ) -> 0 | O9: =IFERROR( GETPIVOTDATA( TEXT(Connections[[#Headers],[Generation connection capacity (MW/MVA)]], 0), ConnectionsCapacity!$A$6, Connections[[#Headers],[Delivery year ending March]], O$6, Connections[[#Headers],[ConnectionStatus (Delivered/Forecast)]], "Delivered", Connections[[#Headers],[Usage?]], "Shared", Connections[[#Headers],[Type?]], "Typical" ), 0 ) -> 0 | P9: =IFERROR( GETPIVOTDATA( TEXT(Connections[[#Headers],[Generation connection capacity (MW/MVA)]], 0), ConnectionsCapacity!$A$6, Connections[[#Headers],[Delivery year ending March]], P$6, Connections[[#Headers],[ConnectionStatus (Delivered/Forecast)]], "Delivered", Connections[[#Headers],[Usage?]], "Shared", Connections[[#Headers],[Type?]], "Typical" ), 0 ) -> 0
B10: Cumulative over threshold | C10: MW | G10: =MAX(0,G9-$E$8) -> 0 | H10: =MAX(0,H9-$E$8) -> 0 | I10: 0 | J10: 0 | K10: 0 | L10: 0 | M10: 0 | N10: 0 | O10: 0 | P10: 0
B11: UCA | C11: £m 2009/10 Prices /MW | E11: =UCAallowances!$D$8 -> 0.083
B12: RPE n | C12: Scaler | G12: =RPE!C9 -> 1.046 | H12: =RPE!D9 -> 1.061 | I12: =RPE!E9 -> 1.077 | J12: =RPE!F9 -> 1.093 | K12: =RPE!G9 -> 1.11 | L12: =RPE!H9 -> 1.126 | M12: =RPE!I9 -> 1.143 | N12: =RPE!J9 -> 1.161 | O12: =RPE!K9 -> 1.178 | P12: =RPE!L9 -> 1.196
B14: OPSH t, n | C14: £m 2009/10 Prices
B15: t (Year ending March) =
B16: 2014 | G16: =IF( OR($B16 - 2 < G$6, G$6 = 2014), 0, G$10 * $E$11 * G$12 * 0.01 ) -> 0 | H16: =IF( OR($B16 - 2 < H$6, H$6 = 2014), 0, H$10 * $E$11 * H$12 * 0.01 ) -> 0 | I16: 0 | J16: 0 | K16: 0 | L16: 0 | M16: 0 | N16: 0 | O16: 0 | P16: 0 | R16: =SUM(G16:P16) -> 0 | S16: =SUMIF(G$6:P$6, "<=" & $B16, $G16:$P16) -> 0
B17: 2015 | G17: =IF( OR($B17 - 2 < G$6, G$6 = 2014), 0, G$10 * $E$11 * G$12 * 0.01 ) -> 0 | H17: 0 | I17: 0 | J17: 0 | K17: 0 | L17: 0 | M17: 0 | N17: 0 | O17: 0 | P17: 0 | R17: =SUM(G17:P17) -> 0 | S17: =SUMIF(G$6:P$6, "<=" & $B17, $G17:$P17) -> 0
B18: 2016 | G18: 0 | H18: 0 | I18: 0 | J18: 0 | K18: 0 | L18: 0 | M18: 0 | N18: 0 | O18: 0 | P18: 0 | R18: 0 | S18: 0
B19: 2017 | G19: 0 | H19: 0 | I19: 0 | J19: 0 | K19: 0 | L19: 0 | M19: 0 | N19: 0 | O19: 0 | P19: 0 | R19: 0 | S19: 0
B20: 2018 | G20: 0 | H20: 0 | I20: 0 | J20: 0 | K20: 0 | L20: 0 | M20: 0 | N20: 0 | O20: 0 | P20: 0 | R20: 0 | S20: 0
B21: 2019 | G21: 0 | H21: 0 | I21: 0 | J21: 0 | K21: 0 | L21: 0 | M21: 0 | N21: 0 | O21: 0 | P21: 0 | R21: 0 | S21: 0
B22: 2020 | G22: 0 | H22: 0 | I22: 0 | J22: 0 | K22: 0 | L22: 0 | M22: 0 | N22: 0 | O22: 0 | P22: 0 | R22: 0 | S22: 0
B23: 2021 | G23: 0 | H23: 0 | I23: 0 | J23: 0 | K23: 0 | L23: 0 | M23: 0 | N23: 0 | O23: 0 | P23: 0 | R23: 0 | S23: 0
B24: 2022 | G24: 0 | H24: 0 | I24: 0 | J24: 0 | K24: 0 | L24: 0 | M24: 0 | N24: 0 | O24: 0 | P24: 0 | R24: 0 | S24: 0
B25: 2023 | G25: 0 | H25: 0 | I25: 0 | J25: 0 | K25: 0 | L25: 0 | M25: 0 | N25: 0 | O25: 0 | P25: 0 | R25: 0 | S25: 0

Sheet FSHA
A1: FSHA - Shared-Use Adjusted Allowed Expenditure for works still to be delivered
B6: Parameter | C6: Units | E6: Constant | F6: n= | G6: 2014 | H6: 2015 | I6: 2016 | J6: 2017 | K6: 2018 | L6: 2019 | M6: 2020 | N6: 2021 | O6: 2022 | P6: 2023 | R6: Total
B7: FSHA t, n | C7: £m 2009/10 Prices | D7: m= | E7: all
B8: t (Year ending March) =
B9: 2014 | G9: =IFERROR( INDEX($G32:$P32,1,MATCH(G$6,$G$30:$P$30,FALSE)), 0) +IFERROR( INDEX($G45:$P45,1,MATCH(G$6,$G$43:$P$43,FALSE)), 0) +IFERROR( INDEX($G58:$P58,1,MATCH(G$6,$G$56:$P$56,FALSE)), 0) -> 0 | H9: 0 | I9: 0 | J9: 0 | K9: 0 | L9: 0 | M9: 0 | N9: 0 | O9: 0 | P9: 0 | R9: =SUM(G9:P9) -> 0 | S9: =SUMIF(G$6:P$6, "<=" & $B9, $G9:$P9) -> 0
B10: 2015 | G10: 0 | H10: 0 | I10: 0 | J10: 0 | K10: 0 | L10: 0 | M10: 0 | N10: 0 | O10: 0 | P10: 0 | R10: =SUM(G10:P10) -> 0 | S10: =SUMIF(G$6:P$6, "<=" & $B10, $G10:$P10) -> 0
B11: 2016 | G11: 0 | H11: 0 | I11: 0 | J11: 0 | K11: 0 | L11: 0 | M11: 0 | N11: 0 | O11: 0 | P11: 0 | R11: 0 | S11: 0
B12: 2017 | G12: 0 | H12: 0 | I12: 0 | J12: 18.0077215 | K12: 0 | L12: 0 | M12: 0 | N12: 0 | O12: 0 | P12: 0 | R12: 18.0077215 | S12: 18.0077215
B13: 2018 | G13: 0 | H13: 0 | I13: 0 | J13: 18.0077215 | K13: 18.287805 | L13: 0 | M13: 0 | N13: 0 | O13: 0 | P13: 0 | R13: 36.2955265 | S13: 36.2955265
B14: 2019 | G14: 0 | H14: 0 | I14: 0 | J14: 18.0077215 | K14: 18.287805 | L14: 18.551413 | M14: 0 | N14: 0 | O14: 0 | P14: 0 | R14: 54.8469395 | S14: 54.8469395
B15: 2020 | G15: 0 | H15: 0 | I15: 0 | J15: 0 | K15: 0 | L15: 0 | M15: 0 | N15: 0 | O15: 0 | P15: 0 | R15: 0 | S15: 0
B16: 2021 | G16: 0 | H16: 0 | I16: 0 | J16: 0 | K16: 0 | L16: 0 | M16: 0 | N16: 0 | O16: 0 | P16: 0 | R16: 0 | S16: 0
B17: 2022 | G17: 0 | H17: 0 | I17: 0 | J17: 0 | K17: 0 | L17: 0 | M17: 0 | N17: 0 | O17: 0 | P17: 0 | R17: 0 | S17: 0
B18: 2023 | G18: 0 | H18: 0 | I18: 0 | J18: 0 | K18: 0 | L18: 0 | M18: 0 | N18: 0 | O18: 0 | P18: 0 | R18: 0 | S18: 0
B20: UCA | C20: £m 2009/10 Prices /MW | E20: =UCAallowances!$D$8 -> 0.083
B21: Capacity Threshold | C21: MW | E21: =UCAallowances!$C$8 -> 1006
B22: RPE n | C22: Scaler | G22: =RPE!C9 -> 1.046 | H22: =RPE!D9 -> 1.061 | I22: =RPE!E9 -> 1.077 | J22: =RPE!F9 -> 1.093 | K22: =RPE!G9 -> 1.11 | L22: =RPE!H9 -> 1.126 | M22: =RPE!I9 -> 1.143 | N22: =RPE!J9 -> 1.161 | O22: =RPE!K9 -> 1.178 | P22: =RPE!L9 -> 1.196
B23: DSHG n - 1 (Delivered) | C23: MW | G23: =IFERROR( GETPIVOTDATA( TEXT(Connections[[#Headers],[Generation connection capacity (MW/MVA)]], 0), ConnectionsCapacity!$A$6, Connections[[#Headers],[Delivery year ending March]], G$6 - 1, Connections[[#Headers],[ConnectionStatus (Delivered/Forecast)]], "Delivered", Connections[[#Headers],[Usage?]], "Shared", Connections[[#Headers],[Type?]], "Typical" ), 0 ) -> 0 | H23: =IFERROR( GETPIVOTDATA( TEXT(Connections[[#Headers],[Generation connection capacity (MW/MVA)]], 0), ConnectionsCapacity!$A$6, Connections[[#Headers],[Delivery year ending March]], H$6 - 1, Connections[[#Headers],[ConnectionStatus (Delivered/Forecast)]], "Delivered", Connections[[#Headers],[Usage?]], "Shared", Connections[[#Headers],[Type?]], "Typical" ), 0 ) -> 0 | I23: =IFERROR( GETPIVOTDATA( TEXT(Connections[[#Headers],[Generation connection capacity (MW/MVA)]], 0), ConnectionsCapacity!$A$6, Connections[[#Headers],[Delivery year ending March]], I$6 - 1, Connections[[#Headers],[ConnectionStatus (Delivered/Forecast)]], "Delivered", Connections[[#Headers],[Usage?]], "Shared", Connections[[#Headers],[Type?]], "Typical" ), 0 ) -> 0 | J23: =IFERROR( GETPIVOTDATA( TEXT(Connections[[#Headers],[Generation connection capacity (MW/MVA)]], 0), ConnectionsCapacity!$A$6, Connections[[#Headers],[Delivery year ending March]], J$6 - 1, Connections[[#Headers],[ConnectionStatus (Delivered/Forecast)]], "Delivered", Connections[[#Headers],[Usage?]], "Shared", Connections[[#Headers],[Type?]], "Typical" ), 0 ) -> 0 | K23: =IFERROR( GETPIVOTDATA( TEXT(Connections[[#Headers],[Generation connection capacity (MW/MVA)]], 0), ConnectionsCapacity!$A$6, Connections[[#Headers],[Delivery year ending March]], K$6 - 1, Connections[[#Headers],[ConnectionStatus (Delivered/Forecast)]], "Delivered", Connections[[#Headers],[Usage?]], "Shared", Connections[[#Headers],[Type?]], "Typical" ), 0 ) -> 0 | L23: =IFERROR( GETPIVOTDATA( TEXT(Connections[[#Headers],[Generation connection capacity (MW/MVA)]], 0), ConnectionsCapacity!$A$6, Connections[[#Headers],[Delivery year ending March]], L$6 - 1, Connections[[#Headers],[ConnectionStatus (Delivered/Forecast)]], "Delivered", Connections[[#Headers],[Usage?]], "Shared", Connections[[#Headers],[Type?]], "Typical" ), 0 ) -> 800 | M23: =IFERROR( GETPIVOTDATA( TEXT(Connections[[#Headers],[Generation connection capacity (MW/MVA)]], 0), ConnectionsCapacity!$A$6, Connections[[#Headers],[Delivery year ending March]], M$6 - 1, Connections[[#Headers],[ConnectionStatus (Delivered/Forecast)]], "Delivered", Connections[[#Headers],[Usage?]], "Shared", Connections[[#Headers],[Type?]], "Typical" ), 0 ) -> 0 | N23: =IFERROR( GETPIVOTDATA( TEXT(Connections[[#Headers],[Generation connection capacity (MW/MVA)]], 0), ConnectionsCapacity!$A$6, Connections[[#Headers],[Delivery year ending March]], N$6 - 1, Connections[[#Headers],[ConnectionStatus (Delivered/Forecast)]], "Delivered", Connections[[#Headers],[Usage?]], "Shared", Connections[[#Headers],[Type?]], "Typical" ), 0 ) -> 800 | O23: =IFERROR( GETPIVOTDATA( TEXT(Connections[[#Headers],[Generation connection capacity (MW/MVA)]], 0), ConnectionsCapacity!$A$6, Connections[[#Headers],[Delivery year ending March]], O$6 - 1, Connections[[#Headers],[ConnectionStatus (Delivered/Forecast)]], "Delivered", Connections[[#Headers],[Usage?]], "Shared", Connections[[#Headers],[Type?]], "Typical" ), 0 ) -> 0 | P23: =IFERROR( GETPIVOTDATA( TEXT(Connections[[#Headers],[Generation connection capacity (MW/MVA)]], 0), ConnectionsCapacity!$A$6, Connections[[#Headers],[Delivery year ending March]], P$6 - 1, Connections[[#Headers],[ConnectionStatus (Delivered/Forecast)]], "Delivered", Connections[[#Headers],[Usage?]], "Shared", Connections[[#Headers],[Type?]], "Typical" ), 0 ) -> 0
B24: DSHG n (Delivered) | C24: MW | G24: =IFERROR( GETPIVOTDATA( TEXT(Connections[[#Headers],[Generation connection capacity (MW/MVA)]], 0), ConnectionsCapacity!$A$6, Connections[[#Headers],[Delivery year ending March]], G$6, Connections[[#Headers],[ConnectionStatus (Delivered/Forecast)]], "Delivered", Connections[[#Headers],[Usage?]], "Shared", Connections[[#Headers],[Type?]], "Typical" ), 0 ) -> 0 | H24: =IFERROR( GETPIVOTDATA( TEXT(Connections[[#Headers],[Generation connection capacity (MW/MVA)]], 0), ConnectionsCapacity!$A$6, Connections[[#Headers],[Delivery year ending March]], H$6, Connections[[#Headers],[ConnectionStatus (Delivered/Forecast)]], "Delivered", Connections[[#Headers],[Usage?]], "Shared", Connections[[#Headers],[Type?]], "Typical" ), 0 ) -> 0 | I24: =IFERROR( GETPIVOTDATA( TEXT(Connections[[#Headers],[Generation connection capacity (MW/MVA)]], 0), ConnectionsCapacity!$A$6, Connections[[#Headers],[Delivery year ending March]], I$6, Connections[[#Headers],[ConnectionStatus (Delivered/Forecast)]], "Delivered", Connections[[#Headers],[Usage?]], "Shared", Connections[[#Headers],[Type?]], "Typical" ), 0 ) -> 0 | J24: =IFERROR( GETPIVOTDATA( TEXT(Connections[[#Headers],[Generation connection capacity (MW/MVA)]], 0), ConnectionsCapacity!$A$6, Connections[[#Headers],[Delivery year ending March]], J$6, Connections[[#Headers],[ConnectionStatus (Delivered/Forecast)]], "Delivered", Connections[[#Headers],[Usage?]], "Shared", Connections[[#Headers],[Type?]], "Typical" ), 0 ) -> 0 | K24: =IFERROR( GETPIVOTDATA( TEXT(Connections[[#Headers],[Generation connection capacity (MW/MVA)]], 0), ConnectionsCapacity!$A$6, Connections[[#Headers],[Delivery year ending March]], K$6, Connections[[#Headers],[ConnectionStatus (Delivered/Forecast)]], "Delivered", Connections[[#Headers],[Usage?]], "Shared", Connections[[#Headers],[Type?]], "Typical" ), 0 ) -> 800 | L24: =IFERROR( GETPIVOTDATA( TEXT(Connections[[#Headers],[Generation connection capacity (MW/MVA)]], 0), ConnectionsCapacity!$A$6, Connections[[#Headers],[Delivery year ending March]], L$6, Connections[[#Headers],[ConnectionStatus (Delivered/Forecast)]], "Delivered", Connections[[#Headers],[Usage?]], "Shared", Connections[[#Headers],[Type?]], "Typical" ), 0 ) -> 0 | M24: =IFERROR( GETPIVOTDATA( TEXT(Connections[[#Headers],[Generation connection capacity (MW/MVA)]], 0), ConnectionsCapacity!$A$6, Connections[[#Headers],[Delivery year ending March]], M$6, Connections[[#Headers],[ConnectionStatus (Delivered/Forecast)]], "Delivered", Connections[[#Headers],[Usage?]], "Shared", Connections[[#Headers],[Type?]], "Typical" ), 0 ) -> 800 | N24: =IFERROR( GETPIVOTDATA( TEXT(Connections[[#Headers],[Generation connection capacity (MW/MVA)]], 0), ConnectionsCapacity!$A$6, Connections[[#Headers],[Delivery year ending March]], N$6, Connections[[#Headers],[ConnectionStatus (Delivered/Forecast)]], "Delivered", Connections[[#Headers],[Usage?]], "Shared", Connections[[#Headers],[Type?]], "Typical" ), 0 ) -> 0 | O24: =IFERROR( GETPIVOTDATA( TEXT(Connections[[#Headers],[Generation connection capacity (MW/MVA)]], 0), ConnectionsCapacity!$A$6, Connections[[#Headers],[Delivery year ending March]], O$6, Connections[[#Headers],[ConnectionStatus (Delivered/Forecast)]], "Delivered", Connections[[#Headers],[Usage?]], "Shared", Connections[[#Headers],[Type?]], "Typical" ), 0 ) -> 0 | P24: =IFERROR( GETPIVOTDATA( TEXT(Connections[[#Headers],[Generation connection capacity (MW/MVA)]], 0), ConnectionsCapacity!$A$6, Connections[[#Headers],[Delivery year ending March]], P$6, Connections[[#Headers],[ConnectionStatus (Delivered/Forecast)]], "Delivered", Connections[[#Headers],[Usage?]], "Shared", Connections[[#Headers],[Type?]], "Typical" ), 0 ) -> 0
B25: DSHG n - 1 (Forecast) | C25: MW | G25: =IFERROR( GETPIVOTDATA( TEXT(Connections[[#Headers],[Generation connection capacity (MW/MVA)]], 0), ConnectionsCapacity!$A$6, Connections[[#Headers],[Delivery year ending March]], G$6 - 1, Connections[[#Headers],[ConnectionStatus (Delivered/Forecast)]], "Forecast", Connections[[#Headers],[Usage?]], "Shared", Connections[[#Headers],[Type?]], "Typical" ), 0 ) -> 0 | H25: =IFERROR( GETPIVOTDATA( TEXT(Connections[[#Headers],[Generation connection capacity (MW/MVA)]], 0), ConnectionsCapacity!$A$6, Connections[[#Headers],[Delivery year ending March]], H$6 - 1, Connections[[#Headers],[ConnectionStatus (Delivered/Forecast)]], "Forecast", Connections[[#Headers],[Usage?]], "Shared", Connections[[#Headers],[Type?]], "Typical" ), 0 ) -> 0 | I25: =IFERROR( GETPIVOTDATA( TEXT(Connections[[#Headers],[Generation connection capacity (MW/MVA)]], 0), ConnectionsCapacity!$A$6, Connections[[#Headers],[Delivery year ending March]], I$6 - 1, Connections[[#Headers],[ConnectionStatus (Delivered/Forecast)]], "Forecast", Connections[[#Headers],[Usage?]], "Shared", Connections[[#Headers],[Type?]], "Typical" ), 0 ) -> 0 | J25: =IFERROR( GETPIVOTDATA( TEXT(Connections[[#Headers],[Generation connection capacity (MW/MVA)]], 0), ConnectionsCapacity!$A$6, Connections[[#Headers],[Delivery year ending March]], J$6 - 1, Connections[[#Headers],[ConnectionStatus (Delivered/Forecast)]], "Forecast", Connections[[#Headers],[Usage?]], "Shared", Connections[[#Headers],[Type?]], "Typical" ), 0 ) -> 0 | K25: =IFERROR( GETPIVOTDATA( TEXT(Connections[[#Headers],[Generation connection capacity (MW/MVA)]], 0), ConnectionsCapacity!$A$6, Connections[[#Headers],[Delivery year ending March]], K$6 - 1, Connections[[#Headers],[ConnectionStatus (Delivered/Forecast)]], "Forecast", Connections[[#Headers],[Usage?]], "Shared", Connections[[#Headers],[Type?]], "Typical" ), 0 ) -> 0 | L25: =IFERROR( GETPIVOTDATA( TEXT(Connections[[#Headers],[Generation connection capacity (MW/MVA)]], 0), ConnectionsCapacity!$A$6, Connections[[#Headers],[Delivery year ending March]], L$6 - 1, Connections[[#Headers],[ConnectionStatus (Delivered/Forecast)]], "Forecast", Connections[[#Headers],[Usage?]], "Shared", Connections[[#Headers],[Type?]], "Typical" ), 0 ) -> 0 | M25: =IFERROR( GETPIVOTDATA( TEXT(Connections[[#Headers],[Generation connection capacity (MW/MVA)]], 0), ConnectionsCapacity!$A$6, Connections[[#Headers],[Delivery year ending March]], M$6 - 1, Connections[[#Headers],[ConnectionStatus (Delivered/Forecast)]], "Forecast", Connections[[#Headers],[Usage?]], "Shared", Connections[[#Headers],[Type?]], "Typical" ), 0 ) -> 0 | N25: =IFERROR( GETPIVOTDATA( TEXT(Connections[[#Headers],[Generation connection capacity (MW/MVA)]], 0), ConnectionsCapacity!$A$6, Connections[[#Headers],[Delivery year ending March]], N$6 - 1, Connections[[#Headers],[ConnectionStatus (Delivered/Forecast)]], "Forecast", Connections[[#Headers],[Usage?]], "Shared", Connections[[#Headers],[Type?]], "Typical" ), 0 ) -> 1000 | O25: =IFERROR( GETPIVOTDATA( TEXT(Connections[[#Headers],[Generation connection capacity (MW/MVA)]], 0), ConnectionsCapacity!$A$6, Connections[[#Headers],[Delivery year ending March]], O$6 - 1, Connections[[#Headers],[ConnectionStatus (Delivered/Forecast)]], "Forecast", Connections[[#Headers],[Usage?]], "Shared", Connections[[#Headers],[Type?]], "Typical" ), 0 ) -> 0 | P25: =IFERROR( GETPIVOTDATA( TEXT(Connections[[#Headers],[Generation connection capacity (MW/MVA)]], 0), ConnectionsCapacity!$A$6, Connections[[#Headers],[Delivery year ending March]], P$6 - 1, Connections[[#Headers],[ConnectionStatus (Delivered/Forecast)]], "Forecast", Connections[[#Headers],[Usage?]], "Shared", Connections[[#Headers],[Type?]], "Typical" ), 0 ) -> 0
B26: DSHG n (Forecast) | C26: MW | G26: =IFERROR( GETPIVOTDATA( TEXT(Connections[[#Headers],[Generation connection capacity (MW/MVA)]], 0), ConnectionsCapacity!$A$6, Connections[[#Headers],[Delivery year ending March]], G$6, Connections[[#Headers],[ConnectionStatus (Delivered/Forecast)]], "Forecast", Connections[[#Headers],[Usage?]], "Shared", Connections[[#Headers],[Type?]], "Typical" ), 0 ) -> 0 | H26: =IFERROR( GETPIVOTDATA( TEXT(Connections[[#Headers],[Generation connection capacity (MW/MVA)]], 0), ConnectionsCapacity!$A$6, Connections[[#Headers],[Delivery year ending March]], H$6, Connections[[#Headers],[ConnectionStatus (Delivered/Forecast)]], "Forecast", Connections[[#Headers],[Usage?]], "Shared", Connections[[#Headers],[Type?]], "Typical" ), 0 ) -> 0 | I26: =IFERROR( GETPIVOTDATA( TEXT(Connections[[#Headers],[Generation connection capacity (MW/MVA)]], 0), ConnectionsCapacity!$A$6, Connections[[#Headers],[Delivery year ending March]], I$6, Connections[[#Headers],[ConnectionStatus (Delivered/Forecast)]], "Forecast", Connections[[#Headers],[Usage?]], "Shared", Connections[[#Headers],[Type?]], "Typical" ), 0 ) -> 0 | J26: =IFERROR( GETPIVOTDATA( TEXT(Connections[[#Headers],[Generation connection capacity (MW/MVA)]], 0), ConnectionsCapacity!$A$6, Connections[[#Headers],[Delivery year ending March]], J$6, Connections[[#Headers],[ConnectionStatus (Delivered/Forecast)]], "Forecast", Connections[[#Headers],[Usage?]], "Shared", Connections[[#Headers],[Type?]], "Typical" ), 0 ) -> 0 | K26: =IFERROR( GETPIVOTDATA( TEXT(Connections[[#Headers],[Generation connection capacity (MW/MVA)]], 0), ConnectionsCapacity!$A$6, Connections[[#Headers],[Delivery year ending March]], K$6, Connections[[#Headers],[ConnectionStatus (Delivered/Forecast)]], "Forecast", Connections[[#Headers],[Usage?]], "Shared", Connections[[#Headers],[Type?]], "Typical" ), 0 ) -> 0 | L26: =IFERROR( GETPIVOTDATA( TEXT(Connections[[#Headers],[Generation connection capacity (MW/MVA)]], 0), ConnectionsCapacity!$A$6, Connections[[#Headers],[Delivery year ending March]], L$6, Connections[[#Headers],[ConnectionStatus (Delivered/Forecast)]], "Forecast", Connections[[#Headers],[Usage?]], "Shared", Connections[[#Headers],[Type?]], "Typical" ), 0 ) -> 0 | M26: =IFERROR( GETPIVOTDATA( TEXT(Connections[[#Headers],[Generation connection capacity (MW/MVA)]], 0), ConnectionsCapacity!$A$6, Connections[[#Headers],[Delivery year ending March]], M$6, Connections[[#Headers],[ConnectionStatus (Delivered/Forecast)]], "Forecast", Connections[[#Headers],[Usage?]], "Shared", Connections[[#Headers],[Type?]], "Typical" ), 0 ) -> 1000 | N26: =IFERROR( GETPIVOTDATA( TEXT(Connections[[#Headers],[Generation connection capacity (MW/MVA)]], 0), ConnectionsCapacity!$A$6, Connections[[#Headers],[Delivery year ending March]], N$6, Connections[[#Headers],[ConnectionStatus (Delivered/Forecast)]], "Forecast", Connections[[#Headers],[Usage?]], "Shared", Connections[[#Headers],[Type?]], "Typical" ), 0 ) -> 0 | O26: =IFERROR( GETPIVOTDATA( TEXT(Connections[[#Headers],[Generation connection capacity (MW/MVA)]], 0), ConnectionsCapacity!$A$6, Connections[[#Headers],[Delivery year ending March]], O$6, Connections[[#Headers],[ConnectionStatus (Delivered/Forecast)]], "Forecast", Connections[[#Headers],[Usage?]], "Shared", Connections[[#Headers],[Type?]], "Typical" ), 0 ) -> 0 | P26: =IFERROR( GETPIVOTDATA( TEXT(Connections[[#Headers],[Generation connection capacity (MW/MVA)]], 0), ConnectionsCapacity!$A$6, Connections[[#Headers],[Delivery year ending March]], P$6, Connections[[#Headers],[ConnectionStatus (Delivered/Forecast)]], "Forecast", Connections[[#Headers],[Usage?]], "Shared", Connections[[#Headers],[Type?]], "Typical" ), 0 ) -> 0
B27: SHF n - 1 (Delivered + Forecast) | C27: MW | G27: =G23+G25 -> 0 | H27: =H23+H25 -> 0 | I27: 0 | J27: 0 | K27: 0 | L27: 800 | M27: 0 | N27: 1800 | O27: 0 | P27: 0
B28: SHF n (Delivered + Forecast) | C28: MW | G28: =G24+G26 -> 0 | H28: 0 | I28: 0 | J28: 0 | K28: 800 | L28: 0 | M28: 1800 | N28: 0 | O28: 0 | P28: 0
B30: FSHA t, n | C30: £m 2009/10 Prices | D30: m = | E30: 0 | F30: n - m - 1= | G30: =IF( G$6 - $E30 - 1 < 2014, "exclude", G$6 - $E30 - 1 ) -> exclude | H30: =IF( H$6 - $E30 - 1 < 2014, "exclude", H$6 - $E30 - 1 ) -> 2014 | I30: 2015 | J30: 2016 | K30: 2017 | L30: 2018 | M30: 2019 | N30: 2020 | O30: 2021 | P30: 2022
B31: t (Year ending March) =
B32: 2014 | G32: =IF( G$30 = "exclude", 0, IF(OR($B32 >= G$30 + 3, G$30 > $B32, G$6 <= $B32), 0, MAX(0,G$28-MAX(G$27,MAX($E$21,G$24))) * $E$20 * INDEX($G$22:$P$22, 1, MATCH(G$30,$G$6:$P$6,FALSE)) / 4 ) ) -> 0 | H32: =IF( H$30 = "exclude", 0, IF(OR($B32 >= H$30 + 3, H$30 > $B32, H$6 <= $B32), 0, MAX(0,H$28-MAX(H$27,MAX($E$21,H$24))) * $E$20 * INDEX($G$22:$P$22, 1, MATCH(H$30,$G$6:$P$6,FALSE)) / 4 ) ) -> 0 | I32: 0 | J32: 0 | K32: 0 | L32: 0 | M32: 0 | N32: 0 | O32: 0 | P32: 0
B33: 2015 | G33: =IF( G$30 = "exclude", 0, IF(OR($B33 >= G$30 + 3, G$30 > $B33, G$6 <= $B33), 0, MAX(0,G$28-MAX(G$27,MAX($E$21,G$24))) * $E$20 * INDEX($G$22:$P$22, 1, MATCH(G$30,$G$6:$P$6,FALSE)) / 4 ) ) -> 0 | H33: 0 | I33: 0 | J33: 0 | K33: 0 | L33: 0 | M33: 0 | N33: 0 | O33: 0 | P33: 0
B34: 2016 | G34: 0 | H34: 0 | I34: 0 | J34: 0 | K34: 0 | L34: 0 | M34: 0 | N34: 0 | O34: 0 | P34: 0
B35: 2017 | G35: 0 | H35: 0 | I35: 0 | J35: 0 | K35: 0 | L35: 0 | M35: 0 | N35: 0 | O35: 0 | P35: 0
B36: 2018 | G36: 0 | H36: 0 | I36: 0 | J36: 0 | K36: 0 | L36: 0 | M36: 0 | N36: 0 | O36: 0 | P36: 0
B37: 2019 | G37: 0 | H37: 0 | I37: 0 | J37: 0 | K37: 0 | L37: 0 | M37: 18.551413 | N37: 0 | O37: 0 | P37: 0
B38: 2020 | G38: 0 | H38: 0 | I38: 0 | J38: 0 | K38: 0 | L38: 0 | M38: 0 | N38: 0 | O38: 0 | P38: 0
B39: 2021 | G39: 0 | H39: 0 | I39: 0 | J39: 0 | K39: 0 | L39: 0 | M39: 0 | N39: 0 | O39: 0 | P39: 0
B40: 2022 | G40: 0 | H40: 0 | I40: 0 | J40: 0 | K40: 0 | L40: 0 | M40: 0 | N40: 0 | O40: 0 | P40: 0
B41: 2023 | G41: 0 | H41: 0 | I41: 0 | J41: 0 | K41: 0 | L41: 0 | M41: 0 | N41: 0 | O41: 0 | P41: 0
B43: FSHA t, n | C43: £m 2009/10 Prices | D43: m = | E43: 1 | F43: n - m - 1= | G43: =IF( G$6 - $E43 - 1 < 2014, "exclude", G$6 - $E43 - 1 ) -> exclude | H43: =IF( H$6 - $E43 - 1 < 2014, "exclude", H$6 - $E43 - 1 ) -> exclude | I43: 2014 | J43: 2015 | K43: 2016 | L43: 2017 | M43: 2018 | N43: 2019 | O43: 2020 | P43: 2021
B44: t (Year ending March) =
B45: 2014 | G45: =IF( G$43 = "exclude", 0, IF(OR($B45 >= G$43 + 3, G$43 > $B45, G$6 <= $B45), 0, MAX(0,G$28-MAX(G$27,MAX($E$21,G$24))) * $E$20 * INDEX($G$22:$P$22, 1, MATCH(G$43,$G$6:$P$6,FALSE)) / 4 ) ) -> 0 | H45: =IF( H$43 = "exclude", 0, IF(OR($B45 >= H$43 + 3, H$43 > $B45, H$6 <= $B45), 0, MAX(0,H$28-MAX(H$27,MAX($E$21,H$24))) * $E$20 * INDEX($G$22:$P$22, 1, MATCH(H$43,$G$6:$P$6,FALSE)) / 4 ) ) -> 0 | I45: 0 | J45: 0 | K45: 0 | L45: 0 | M45: 0 | N45: 0 | O45: 0 | P45: 0
B46: 2015 | G46: =IF( G$43 = "exclude", 0, IF(OR($B46 >= G$43 + 3, G$43 > $B46, G$6 <= $B46), 0, MAX(0,G$28-MAX(G$27,MAX($E$21,G$24))) * $E$20 * INDEX($G$22:$P$22, 1, MATCH(G$43,$G$6:$P$6,FALSE)) / 4 ) ) -> 0 | H46: 0 | I46: 0 | J46: 0 | K46: 0 | L46: 0 | M46: 0 | N46: 0 | O46: 0 | P46: 0
B47: 2016 | G47: 0 | H47: 0 | I47: 0 | J47: 0 | K47: 0 | L47: 0 | M47: 0 | N47: 0 | O47: 0 | P47: 0
B48: 2017 | G48: 0 | H48: 0 | I48: 0 | J48: 0 | K48: 0 | L48: 0 | M48: 0 | N48: 0 | O48: 0 | P48: 0
B49: 2018 | G49: 0 | H49: 0 | I49: 0 | J49: 0 | K49: 0 | L49: 0 | M49: 18.287805 | N49: 0 | O49: 0 | P49: 0
B50: 2019 | G50: 0 | H50: 0 | I50: 0 | J50: 0 | K50: 0 | L50: 0 | M50: 18.287805 | N50: 0 | O50: 0 | P50: 0
B51: 2020 | G51: 0 | H51: 0 | I51: 0 | J51: 0 | K51: 0 | L51: 0 | M51: 0 | N51: 0 | O51: 0 | P51: 0
B52: 2021 | G52: 0 | H52: 0 | I52: 0 | J52: 0 | K52: 0 | L52: 0 | M52: 0 | N52: 0 | O52: 0 | P52: 0
B53: 2022 | G53: 0 | H53: 0 | I53: 0 | J53: 0 | K53: 0 | L53: 0 | M53: 0 | N53: 0 | O53: 0 | P53: 0
B54: 2023 | G54: 0 | H54: 0 | I54: 0 | J54: 0 | K54: 0 | L54: 0 | M54: 0 | N54: 0 | O54: 0 | P54: 0
B56: FSHA t, n | C56: £m 2009/10 Prices | D56: m = | E56: 2 | F56: n - m - 1= | G56: =IF( G$6 - $E56 - 1 < 2014, "exclude", G$6 - $E56 - 1 ) -> exclude | H56: =IF( H$6 - $E56 - 1 < 2014, "exclude", H$6 - $E56 - 1 ) -> exclude | I56: exclude | J56: 2014 | K56: 2015 | L56: 2016 | M56: 2017 | N56: 2018 | O56: 2019 | P56: 2020
B57: t (Year ending March) =
B58: 2014 | G58: =IF( G$56 = "exclude", 0, IF(OR($B58 >= G$56 + 3, G$56 > $B58, G$6 <= $B58), 0, MAX(0,G$28-MAX(G$27,MAX($E$21,G$24))) * $E$20 * INDEX($G$22:$P$22, 1, MATCH(G$56,$G$6:$P$6,FALSE)) / 4 ) ) -> 0 | H58: =IF( H$56 = "exclude", 0, IF(OR($B58 >= H$56 + 3, H$56 > $B58, H$6 <= $B58), 0, MAX(0,H$28-MAX(H$27,MAX($E$21,H$24))) * $E$20 * INDEX($G$22:$P$22, 1, MATCH(H$56,$G$6:$P$6,FALSE)) / 4 ) ) -> 0 | I58: 0 | J58: 0 | K58: 0 | L58: 0 | M58: 0 | N58: 0 | O58: 0 | P58: 0
B59: 2015 | G59: =IF( G$56 = "exclude", 0, IF(OR($B59 >= G$56 + 3, G$56 > $B59, G$6 <= $B59), 0, MAX(0,G$28-MAX(G$27,MAX($E$21,G$24))) * $E$20 * INDEX($G$22:$P$22, 1, MATCH(G$56,$G$6:$P$6,FALSE)) / 4 ) ) -> 0 | H59: 0 | I59: 0 | J59: 0 | K59: 0 | L59: 0 | M59: 0 | N59: 0 | O59: 0 | P59: 0
B60: 2016 | G60: 0 | H60: 0 | I60: 0 | J60: 0 | K60: 0 | L60: 0 | M60: 0 | N60: 0 | O60: 0 | P60: 0
B61: 2017 | G61: 0 | H61: 0 | I61: 0 | J61: 0 | K61: 0 | L61: 0 | M61: 18.0077215 | N61: 0 | O61: 0 | P61: 0
B62: 2018 | G62: 0 | H62: 0 | I62: 0 | J62: 0 | K62: 0 | L62: 0 | M62: 18.0077215 | N62: 0 | O62: 0 | P62: 0
B63: 2019 | G63: 0 | H63: 0 | I63: 0 | J63: 0 | K63: 0 | L63: 0 | M63: 18.0077215 | N63: 0 | O63: 0 | P63: 0
B64: 2020 | G64: 0 | H64: 0 | I64: 0 | J64: 0 | K64: 0 | L64: 0 | M64: 0 | N64: 0 | O64: 0 | P64: 0
B65: 2021 | G65: 0 | H65: 0 | I65: 0 | J65: 0 | K65: 0 | L65: 0 | M65: 0 | N65: 0 | O65: 0 | P65: 0
B66: 2022 | G66: 0 | H66: 0 | I66: 0 | J66: 0 | K66: 0 | L66: 0 | M66: 0 | N66: 0 | O66: 0 | P66: 0
B67: 2023 | G67: 0 | H67: 0 | I67: 0 | J67: 0 | K67: 0 | L67: 0 | M67: 0 | N67: 0 | O67: 0 | P67: 0

Sheet DASLE
A1: DASLE - Atypical Sole-Use Allowed Expenditure for Delivered Connections Capacity
B6: Parameter | C6: Units | E6: Constant | F6: n= | G6: 2014 | H6: 2015 | I6: 2016 | J6: 2017 | K6: 2018 | L6: 2019 | M6: 2020 | N6: 2021 | O6: 2022 | P6: 2023 | R6: Total
B7: DASLE t, n | C7: £m 2009/10 Prices
B8: t (Year ending March) =
B9: 2014 | G9: =G50 + G24 + G37 -> 0 | H9: =H50 + H24 + H37 -> 0 | I9: 0 | J9: 0 | K9: 0 | L9: 0 | M9: 0 | N9: 0 | O9: 0 | P9: 0 | R9: =SUM(G9:P9) -> 0 | S9: =SUMIF(G$6:P$6, "<=" & $B9, $G9:$P9) -> 0
B10: 2015 | G10: =G51 + G25 + G38 -> 0 | H10: 0 | I10: 0 | J10: 0 | K10: 0 | L10: 0 | M10: 0 | N10: 0 | O10: 0 | P10: 0 | R10: 0 | S10: =SUMIF(G$6:P$6, "<=" & $B10, $G10:$P10) -> 0
B11: 2016 | G11: 0 | H11: 0 | I11: 0 | J11: 0 | K11: 0 | L11: 0 | M11: 0 | N11: 0 | O11: 0 | P11: 0 | R11: 0 | S11: 0
B12: 2017 | G12: 0 | H12: 0 | I12: 0 | J12: 0 | K12: 0 | L12: 0 | M12: 0 | N12: 0 | O12: 0 | P12: 0 | R12: 0 | S12: 0
B13: 2018 | G13: 0 | H13: 0 | I13: 0 | J13: 0 | K13: 0 | L13: 0 | M13: 0 | N13: 0 | O13: 0 | P13: 0 | R13: 0 | S13: 0
B14: 2019 | G14: 0 | H14: 0 | I14: 0 | J14: 0 | K14: 0 | L14: 0 | M14: 0 | N14: 0 | O14: 0 | P14: 0 | R14: 0 | S14: 0
B15: 2020 | G15: 0 | H15: 28.8592 | I15: 29.2944 | J15: 29.7296 | K15: 31.39968 | L15: 0 | M15: 0 | N15: 0 | O15: 0 | P15: 0 | R15: 119.28288 | S15: 119.28288
B16: 2021 | G16: 0 | H16: 28.8592 | I16: 29.2944 | J16: 29.7296 | K16: 31.39968 | L16: 0 | M16: 0 | N16: 0 | O16: 0 | P16: 0 | R16: 119.28288 | S16: 119.28288
B17: 2022 | G17: 0 | H17: 28.8592 | I17: 29.2944 | J17: 45.7967 | K17: 47.71668 | L17: 16.5522 | M17: 17.474184 | N17: 0 | O17: 0 | P17: 0 | R17: 185.693364 | S17: 185.693364
B18: 2023 | G18: 0 | H18: 28.8592 | I18: 29.2944 | J18: 45.7967 | K18: 47.71668 | L18: 16.5522 | M18: 17.474184 | N18: 0 | O18: 0 | P18: 0 | R18: 185.693364 | S18: 185.693364
B20: DASLG n | C20: MVA | G20: =IFERROR( GETPIVOTDATA( TEXT(Connections[[#Headers],[Generation connection capacity (MW/MVA)]], 0), ConnectionsCapacity!$A$6, Connections[[#Headers],[Delivery year ending March]], G$6, Connections[[#Headers],[ConnectionStatus (Delivered/Forecast)]], "Delivered", Connections[[#Headers],[Usage?]], "Sole", Connections[[#Headers],[Type?]], "Typical" ), 0 ) -> 0 | H20: =IFERROR( GETPIVOTDATA( TEXT(Connections[[#Headers],[Generation connection capacity (MW/MVA)]], 0), ConnectionsCapacity!$A$6, Connections[[#Headers],[Delivery year ending March]], H$6, Connections[[#Headers],[ConnectionStatus (Delivered/Forecast)]], "Delivered", Connections[[#Headers],[Usage?]], "Sole", Connections[[#Headers],[Type?]], "Typical" ), 0 ) -> 0 | I20: =IFERROR( GETPIVOTDATA( TEXT(Connections[[#Headers],[Generation connection capacity (MW/MVA)]], 0), ConnectionsCapacity!$A$6, Connections[[#Headers],[Delivery year ending March]], I$6, Connections[[#Headers],[ConnectionStatus (Delivered/Forecast)]], "Delivered", Connections[[#Headers],[Usage?]], "Sole", Connections[[#Headers],[Type?]], "Typical" ), 0 ) -> 0 | J20: =IFERROR( GETPIVOTDATA( TEXT(Connections[[#Headers],[Generation connection capacity (MW/MVA)]], 0), ConnectionsCapacity!$A$6, Connections[[#Headers],[Delivery year ending March]], J$6, Connections[[#Headers],[ConnectionStatus (Delivered/Forecast)]], "Delivered", Connections[[#Headers],[Usage?]], "Sole", Connections[[#Headers],[Type?]], "Typical" ), 0 ) -> 1000 | K20: =IFERROR( GETPIVOTDATA( TEXT(Connections[[#Headers],[Generation connection capacity (MW/MVA)]], 0), ConnectionsCapacity!$A$6, Connections[[#Headers],[Delivery year ending March]], K$6, Connections[[#Headers],[ConnectionStatus (Delivered/Forecast)]], "Delivered", Connections[[#Headers],[Usage?]], "Sole", Connections[[#Headers],[Type?]], "Typical" ), 0 ) -> 1000 | L20: =IFERROR( GETPIVOTDATA( TEXT(Connections[[#Headers],[Generation connection capacity (MW/MVA)]], 0), ConnectionsCapacity!$A$6, Connections[[#Headers],[Delivery year ending March]], L$6, Connections[[#Headers],[ConnectionStatus (Delivered/Forecast)]], "Delivered", Connections[[#Headers],[Usage?]], "Sole", Connections[[#Headers],[Type?]], "Typical" ), 0 ) -> 0 | M20: =IFERROR( GETPIVOTDATA( TEXT(Connections[[#Headers],[Generation connection capacity (MW/MVA)]], 0), ConnectionsCapacity!$A$6, Connections[[#Headers],[Delivery year ending March]], M$6, Connections[[#Headers],[ConnectionStatus (Delivered/Forecast)]], "Delivered", Connections[[#Headers],[Usage?]], "Sole", Connections[[#Headers],[Type?]], "Typical" ), 0 ) -> 1000 | N20: =IFERROR( GETPIVOTDATA( TEXT(Connections[[#Headers],[Generation connection capacity (MW/MVA)]], 0), ConnectionsCapacity!$A$6, Connections[[#Headers],[Delivery year ending March]], N$6, Connections[[#Headers],[ConnectionStatus (Delivered/Forecast)]], "Delivered", Connections[[#Headers],[Usage?]], "Sole", Connections[[#Headers],[Type?]], "Typical" ), 0 ) -> 0 | O20: =IFERROR( GETPIVOTDATA( TEXT(Connections[[#Headers],[Generation connection capacity (MW/MVA)]], 0), ConnectionsCapacity!$A$6, Connections[[#Headers],[Delivery year ending March]], O$6, Connections[[#Headers],[ConnectionStatus (Delivered/Forecast)]], "Delivered", Connections[[#Headers],[Usage?]], "Sole", Connections[[#Headers],[Type?]], "Typical" ), 0 ) -> 0 | P20: =IFERROR( GETPIVOTDATA( TEXT(Connections[[#Headers],[Generation connection capacity (MW/MVA)]], 0), ConnectionsCapacity!$A$6, Connections[[#Headers],[Delivery year ending March]], P$6, Connections[[#Headers],[ConnectionStatus (Delivered/Forecast)]], "Delivered", Connections[[#Headers],[Usage?]], "Sole", Connections[[#Headers],[Type?]], "Typical" ), 0 ) -> 0
B22: OALSE t, n | C22: £m 2009/10 Prices
B23: t (Year ending March) =
B24: 2014 | G24: =OASLE!G9 -> 0 | H24: =OASLE!H9 -> 0 | I24: =OASLE!I9 -> 0 | J24: =OASLE!J9 -> 0 | K24: =OASLE!K9 -> 0 | L24: =OASLE!L9 -> 0 | M24: =OASLE!M9 -> 0 | N24: =OASLE!N9 -> 0 | O24: =OASLE!O9 -> 0 | P24: =OASLE!P9 -> 0 | R24: =SUM(G24:P24) -> 0 | S24: =SUMIF(G$6:P$6, "<=" & $B24, $G24:$P24) -> 0
B25: 2015 | G25: =OASLE!G10 -> 0 | H25: =OASLE!H10 -> 0 | I25: =OASLE!I10 -> 0 | J25: =OASLE!J10 -> 0 | K25: =OASLE!K10 -> 0 | L25: =OASLE!L10 -> 0 | M25: =OASLE!M10 -> 0 | N25: =OASLE!N10 -> 0 | O25: =OASLE!O10 -> 0 | P25: =OASLE!P10 -> 0 | R25: 0 | S25: =SUMIF(G$6:P$6, "<=" & $B25, $G25:$P25) -> 0
B26: 2016 | G26: =OASLE!G11 -> 0 | H26: =OASLE!H11 -> 0 | I26: =OASLE!I11 -> 0 | J26: =OASLE!J11 -> 0 | K26: =OASLE!K11 -> 0 | L26: =OASLE!L11 -> 0 | M26: =OASLE!M11 -> 0 | N26: =OASLE!N11 -> 0 | O26: =OASLE!O11 -> 0 | P26: =OASLE!P11 -> 0 | R26: 0 | S26: 0
B27: 2017 | G27: =OASLE!G12 -> 0 | H27: =OASLE!H12 -> 0 | I27: =OASLE!I12 -> 0 | J27: =OASLE!J12 -> 0 | K27: =OASLE!K12 -> 0 | L27: =OASLE!L12 -> 0 | M27: =OASLE!M12 -> 0 | N27: =OASLE!N12 -> 0 | O27: =OASLE!O12 -> 0 | P27: =OASLE!P12 -> 0 | R27: 0 | S27: 0
B28: 2018 | G28: =OASLE!G13 -> 0 | H28: =OASLE!H13 -> 0 | I28: =OASLE!I13 -> 0 | J28: =OASLE!J13 -> 0 | K28: =OASLE!K13 -> 0 | L28: =OASLE!L13 -> 0 | M28: =OASLE!M13 -> 0 | N28: =OASLE!N13 -> 0 | O28: =OASLE!O13 -> 0 | P28: =OASLE!P13 -> 0 | R28: 0 | S28: 0
B29: 2019 | G29: =OASLE!G14 -> 0 | H29: =OASLE!H14 -> 0 | I29: =OASLE!I14 -> 0 | J29: =OASLE!J14 -> 0 | K29: =OASLE!K14 -> 0 | L29: =OASLE!L14 -> 0 | M29: =OASLE!M14 -> 0 | N29: =OASLE!N14 -> 0 | O29: =OASLE!O14 -> 0 | P29: =OASLE!P14 -> 0 | R29: 0 | S29: 0
B30: 2020 | G30: =OASLE!G15 -> 0 | H30: =OASLE!H15 -> 28.8592 | I30: =OASLE!I15 -> 29.2944 | J30: =OASLE!J15 -> 29.7296 | K30: =OASLE!K15 -> 30.192 | L30: =OASLE!L15 -> 0 | M30: =OASLE!M15 -> 0 | N30: =OASLE!N15 -> 0 | O30: =OASLE!O15 -> 0 | P30: =OASLE!P15 -> 0 | R30: 118.0752 | S30: 118.0752
B31: 2021 | G31: =OASLE!G16 -> 0 | H31: =OASLE!H16 -> 28.8592 | I31: =OASLE!I16 -> 29.2944 | J31: =OASLE!J16 -> 29.7296 | K31: =OASLE!K16 -> 30.192 | L31: =OASLE!L16 -> 0 | M31: =OASLE!M16 -> 0 | N31: =OASLE!N16 -> 0 | O31: =OASLE!O16 -> 0 | P31: =OASLE!P16 -> 0 | R31: 118.0752 | S31: 118.0752
B32: 2022 | G32: =OASLE!G17 -> 0 | H32: =OASLE!H17 -> 28.8592 | I32: =OASLE!I17 -> 29.2944 | J32: =OASLE!J17 -> 45.7967 | K32: =OASLE!K17 -> 46.509 | L32: =OASLE!L17 -> 16.5522 | M32: =OASLE!M17 -> 16.8021 | N32: =OASLE!N17 -> 0 | O32: =OASLE!O17 -> 0 | P32: =OASLE!P17 -> 0 | R32: 183.8136 | S32: 183.8136
B33: 2023 | G33: =OASLE!G18 -> 0 | H33: =OASLE!H18 -> 28.8592 | I33: =OASLE!I18 -> 29.2944 | J33: =OASLE!J18 -> 45.7967 | K33: =OASLE!K18 -> 46.509 | L33: =OASLE!L18 -> 16.5522 | M33: =OASLE!M18 -> 16.8021 | N33: =OASLE!N18 -> 0 | O33: =OASLE!O18 -> 0 | P33: =OASLE!P18 -> 0 | R33: 183.8136 | S33: 183.8136
B35: OPASL t - n | C35: £m 2009/10 Prices
B36: t (Year ending March) =
B37: 2014 | G37: =OPASL!G16 -> 0 | H37: =OPASL!H16 -> 0 | I37: =OPASL!I16 -> 0 | J37: =OPASL!J16 -> 0 | K37: =OPASL!K16 -> 0 | L37: =OPASL!L16 -> 0 | M37: =OPASL!M16 -> 0 | N37: =OPASL!N16 -> 0 | O37: =OPASL!O16 -> 0 | P37: =OPASL!P16 -> 0 | R37: =SUM(G37:P37) -> 0 | S37: =SUMIF(G$6:P$6, "<=" & $B37, $G37:$P37) -> 0
B38: 2015 | G38: =OPASL!G17 -> 0 | H38: =OPASL!H17 -> 0 | I38: =OPASL!I17 -> 0 | J38: =OPASL!J17 -> 0 | K38: =OPASL!K17 -> 0 | L38: =OPASL!L17 -> 0 | M38: =OPASL!M17 -> 0 | N38: =OPASL!N17 -> 0 | O38: =OPASL!O17 -> 0 | P38: =OPASL!P17 -> 0 | R38: 0 | S38: =SUMIF(G$6:P$6, "<=" & $B38, $G38:$P38) -> 0
B39: 2016 | G39: =OPASL!G18 -> 0 | H39: =OPASL!H18 -> 0 | I39: =OPASL!I18 -> 0 | J39: =OPASL!J18 -> 0 | K39: =OPASL!K18 -> 0 | L39: =OPASL!L18 -> 0 | M39: =OPASL!M18 -> 0 | N39: =OPASL!N18 -> 0 | O39: =OPASL!O18 -> 0 | P39: =OPASL!P18 -> 0 | R39: 0 | S39: 0
B40: 2017 | G40: =OPASL!G19 -> 0 | H40: =OPASL!H19 -> 0 | I40: =OPASL!I19 -> 0 | J40: =OPASL!J19 -> 0 | K40: =OPASL!K19 -> 0 | L40: =OPASL!L19 -> 0 | M40: =OPASL!M19 -> 0 | N40: =OPASL!N19 -> 0 | O40: =OPASL!O19 -> 0 | P40: =OPASL!P19 -> 0 | R40: 0 | S40: 0
B41: 2018 | G41: =OPASL!G20 -> 0 | H41: =OPASL!H20 -> 0 | I41: =OPASL!I20 -> 0 | J41: =OPASL!J20 -> 0 | K41: =OPASL!K20 -> 0 | L41: =OPASL!L20 -> 0 | M41: =OPASL!M20 -> 0 | N41: =OPASL!N20 -> 0 | O41: =OPASL!O20 -> 0 | P41: =OPASL!P20 -> 0 | R41: 0 | S41: 0
B42: 2019 | G42: =OPASL!G21 -> 0 | H42: =OPASL!H21 -> 0 | I42: =OPASL!I21 -> 0 | J42: =OPASL!J21 -> 0 | K42: =OPASL!K21 -> 0 | L42: =OPASL!L21 -> 0 | M42: =OPASL!M21 -> 0 | N42: =OPASL!N21 -> 0 | O42: =OPASL!O21 -> 0 | P42: =OPASL!P21 -> 0 | R42: 0 | S42: 0
B43: 2020 | G43: =OPASL!G22 -> 0 | H43: =OPASL!H22 -> 0 | I43: =OPASL!I22 -> 0 | J43: =OPASL!J22 -> 0 | K43: =OPASL!K22 -> 1.20768 | L43: =OPASL!L22 -> 0 | M43: =OPASL!M22 -> 0 | N43: =OPASL!N22 -> 0 | O43: =OPASL!O22 -> 0 | P43: =OPASL!P22 -> 0 | R43: 1.20768 | S43: 1.20768
B44: 2021 | G44: =OPASL!G23 -> 0 | H44: =OPASL!H23 -> 0 | I44: =OPASL!I23 -> 0 | J44: =OPASL!J23 -> 0 | K44: =OPASL!K23 -> 1.20768 | L44: =OPASL!L23 -> 0 | M44: =OPASL!M23 -> 0 | N44: =OPASL!N23 -> 0 | O44: =OPASL!O23 -> 0 | P44: =OPASL!P23 -> 0 | R44: 1.20768 | S44: 1.20768
B45: 2022 | G45: =OPASL!G24 -> 0 | H45: =OPASL!H24 -> 0 | I45: =OPASL!I24 -> 0 | J45: =OPASL!J24 -> 0 | K45: =OPASL!K24 -> 1.20768 | L45: =OPASL!L24 -> 0 | M45: =OPASL!M24 -> 0.672084 | N45: =OPASL!N24 -> 0 | O45: =OPASL!O24 -> 0 | P45: =OPASL!P24 -> 0 | R45: 1.879764 | S45: 1.879764
B46: 2023 | G46: =OPASL!G25 -> 0 | H46: =OPASL!H25 -> 0 | I46: =OPASL!I25 -> 0 | J46: =OPASL!J25 -> 0 | K46: =OPASL!K25 -> 1.20768 | L46: =OPASL!L25 -> 0 | M46: =OPASL!M25 -> 0.672084 | N46: =OPASL!N25 -> 0 | O46: =OPASL!O25 -> 0 | P46: =OPASL!P25 -> 0 | R46: 1.879764 | S46: 1.879764
B48: FSLA t - n - 2 | C48: £m 2009/10 Prices
B49: t (Year ending March) =
B50: 2014 | G50: =FASLA!G9 -> 0 | H50: =FASLA!H9 -> 0 | I50: =FASLA!I9 -> 0 | J50: =FASLA!J9 -> 0 | K50: =FASLA!K9 -> 0 | L50: =FASLA!L9 -> 0 | M50: =FASLA!M9 -> 0 | N50: =FASLA!N9 -> 0 | O50: =FASLA!O9 -> 0 | P50: =FASLA!P9 -> 0 | R50: =SUM(G50:P50) -> 0 | S50: =SUMIF(G$6:P$6, "<=" & $B50, $G50:$P50) -> 0
B51: 2015 | G51: =FASLA!G10 -> 0 | H51: =FASLA!H10 -> 0 | I51: =FASLA!I10 -> 0 | J51: =FASLA!J10 -> 0 | K51: =FASLA!K10 -> 0 | L51: =FASLA!L10 -> 0 | M51: =FASLA!M10 -> 0 | N51: =FASLA!N10 -> 0 | O51: =FASLA!O10 -> 0 | P51: =FASLA!P10 -> 0 | R51: 0 | S51: =SUMIF(G$6:P$6, "<=" & $B51, $G51:$P51) -> 0
B52: 2016 | G52: =FASLA!G11 -> 0 | H52: =FASLA!H11 -> 0 | I52: =FASLA!I11 -> 0 | J52: =FASLA!J11 -> 0 | K52: =FASLA!K11 -> 0 | L52: =FASLA!L11 -> 0 | M52: =FASLA!M11 -> 0 | N52: =FASLA!N11 -> 0 | O52: =FASLA!O11 -> 0 | P52: =FASLA!P11 -> 0 | R52: 0 | S52: 0
B53: 2017 | G53: =FASLA!G12 -> 0 | H53: =FASLA!H12 -> 0 | I53: =FASLA!I12 -> 0 | J53: =FASLA!J12 -> 0 | K53: =FASLA!K12 -> 0 | L53: =FASLA!L12 -> 0 | M53: =FASLA!M12 -> 0 | N53: =FASLA!N12 -> 0 | O53: =FASLA!O12 -> 0 | P53: =FASLA!P12 -> 0 | R53: 0 | S53: 0
B54: 2018 | G54: =FASLA!G13 -> 0 | H54: =FASLA!H13 -> 0 | I54: =FASLA!I13 -> 0 | J54: =FASLA!J13 -> 0 | K54: =FASLA!K13 -> 0 | L54: =FASLA!L13 -> 0 | M54: =FASLA!M13 -> 0 | N54: =FASLA!N13 -> 0 | O54: =FASLA!O13 -> 0 | P54: =FASLA!P13 -> 0 | R54: 0 | S54: 0
B55: 2019 | G55: =FASLA!G14 -> 0 | H55: =FASLA!H14 -> 0 | I55: =FASLA!I14 -> 0 | J55: =FASLA!J14 -> 0 | K55: =FASLA!K14 -> 0 | L55: =FASLA!L14 -> 0 | M55: =FASLA!M14 -> 0 | N55: =FASLA!N14 -> 0 | O55: =FASLA!O14 -> 0 | P55: =FASLA!P14 -> 0 | R55: 0 | S55: 0
B56: 2020 | G56: =FASLA!G15 -> 0 | H56: =FASLA!H15 -> 0 | I56: =FASLA!I15 -> 0 | J56: =FASLA!J15 -> 0 | K56: =FASLA!K15 -> 0 | L56: =FASLA!L15 -> 0 | M56: =FASLA!M15 -> 0 | N56: =FASLA!N15 -> 0 | O56: =FASLA!O15 -> 0 | P56: =FASLA!P15 -> 0 | R56: 0 | S56: 0
B57: 2021 | G57: =FASLA!G16 -> 0 | H57: =FASLA!H16 -> 0 | I57: =FASLA!I16 -> 0 | J57: =FASLA!J16 -> 0 | K57: =FASLA!K16 -> 0 | L57: =FASLA!L16 -> 0 | M57: =FASLA!M16 -> 0 | N57: =FASLA!N16 -> 0 | O57: =FASLA!O16 -> 0 | P57: =FASLA!P16 -> 0 | R57: 0 | S57: 0
B58: 2022 | G58: =FASLA!G17 -> 0 | H58: =FASLA!H17 -> 0 | I58: =FASLA!I17 -> 0 | J58: =FASLA!J17 -> 0 | K58: =FASLA!K17 -> 0 | L58: =FASLA!L17 -> 0 | M58: =FASLA!M17 -> 0 | N58: =FASLA!N17 -> 0 | O58: =FASLA!O17 -> 0 | P58: =FASLA!P17 -> 0 | R58: 0 | S58: 0
B59: 2023 | G59: =FASLA!G18 -> 0 | H59: =FASLA!H18 -> 0 | I59: =FASLA!I18 -> 0 | J59: =FASLA!J18 -> 0 | K59: =FASLA!K18 -> 0 | L59: =FASLA!L18 -> 0 | M59: =FASLA!M18 -> 0 | N59: =FASLA!N18 -> 0 | O59: =FASLA!O18 -> 0 | P59: =FASLA!P18 -> 0 | R59: 0 | S59: 0

Sheet OASLE
A1: OASLE - Atypical Sole-Use Allowed Expenditure for delivered capacity
B6: Parameter | C6: Units | E6: Constant | F6: n= | G6: 2014 | H6: 2015 | I6: 2016 | J6: 2017 | K6: 2018 | L6: 2019 | M6: 2020 | N6: 2021 | O6: 2022 | P6: 2023 | R6: Total
B7: OALSE t, n | C7: £m 2009/10 Prices | D7: m= | E7: all
B8: t (Year ending March) =
B9: 2014 | G9: =IFERROR( INDEX($G41:$P41,1,MATCH(G$6,$G$39:$P$39,FALSE)), 0) +IFERROR( INDEX($G54:$P54,1,MATCH(G$6,$G$52:$P$52,FALSE)), 0) +IFERROR( INDEX($G67:$P67,1,MATCH(G$6,$G$65:$P$65,FALSE)), 0) +IFERROR( INDEX($G80:$P80,1,MATCH(G$6,$G$78:$P$78,FALSE)), 0) -> 0 | H9: 0 | I9: 0 | J9: 0 | K9: 0 | L9: 0 | M9: 0 | N9: 0 | O9: 0 | P9: 0 | R9: =SUM(G9:P9) -> 0 | S9: =SUMIF(G$6:P$6, "<=" & $B9, $G9:$P9) -> 0
B10: 2015 | G10: 0 | H10: 0 | I10: 0 | J10: 0 | K10: 0 | L10: 0 | M10: 0 | N10: 0 | O10: 0 | P10: 0 | R10: 0 | S10: =SUMIF(G$6:P$6, "<=" & $B10, $G10:$P10) -> 0
B11: 2016 | G11: 0 | H11: 0 | I11: 0 | J11: 0 | K11: 0 | L11: 0 | M11: 0 | N11: 0 | O11: 0 | P11: 0 | R11: 0 | S11: 0
B12: 2017 | G12: 0 | H12: 0 | I12: 0 | J12: 0 | K12: 0 | L12: 0 | M12: 0 | N12: 0 | O12: 0 | P12: 0 | R12: 0 | S12: 0
B13: 2018 | G13: 0 | H13: 0 | I13: 0 | J13: 0 | K13: 0 | L13: 0 | M13: 0 | N13: 0 | O13: 0 | P13: 0 | R13: 0 | S13: 0
B14: 2019 | G14: 0 | H14: 0 | I14: 0 | J14: 0 | K14: 0 | L14: 0 | M14: 0 | N14: 0 | O14: 0 | P14: 0 | R14: 0 | S14: 0
B15: 2020 | G15: 0 | H15: 28.8592 | I15: 29.2944 | J15: 29.7296 | K15: 30.192 | L15: 0 | M15: 0 | N15: 0 | O15: 0 | P15: 0 | R15: 118.0752 | S15: 118.0752
B16: 2021 | G16: 0 | H16: 28.8592 | I16: 29.2944 | J16: 29.7296 | K16: 30.192 | L16: 0 | M16: 0 | N16: 0 | O16: 0 | P16: 0 | R16: 118.0752 | S16: 118.0752
B17: 2022 | G17: 0 | H17: 28.8592 | I17: 29.2944 | J17: 45.7967 | K17: 46.509 | L17: 16.5522 | M17: 16.8021 | N17: 0 | O17: 0 | P17: 0 | R17: 183.8136 | S17: 183.8136
B18: 2023 | G18: 0 | H18: 28.8592 | I18: 29.2944 | J18: 45.7967 | K18: 46.509 | L18: 16.5522 | M18: 16.8021 | N18: 0 | O18: 0 | P18: 0 | R18: 183.8136 | S18: 183.8136
B20: UCA | C20: £m 2009/10 Prices /MVA | E20: =UCAallowances!$E$7 -> 0.294
B21: ASLCn | C21: £m 2009/10 Prices | G21: =IFERROR( GETPIVOTDATA( TEXT(Connections[[#Headers],[Actual expenditure (£2009/10 million prices)]], 0), ConnectionsCostForecastAtypical!$A$6, Connections[[#Headers],[Delivery year ending March]], G$6, Connections[[#Headers],[ConnectionStatus (Delivered/Forecast)]], "Delivered", Connections[[#Headers],[Usage?]], "Sole", Connections[[#Headers],[Type?]], "Atypical" ), 0 ) -> 0 | H21: =IFERROR( GETPIVOTDATA( TEXT(Connections[[#Headers],[Actual expenditure (£2009/10 million prices)]], 0), ConnectionsCostForecastAtypical!$A$6, Connections[[#Headers],[Delivery year ending March]], H$6, Connections[[#Headers],[ConnectionStatus (Delivered/Forecast)]], "Delivered", Connections[[#Headers],[Usage?]], "Sole", Connections[[#Headers],[Type?]], "Atypical" ), 0 ) -> 0 | I21: =IFERROR( GETPIVOTDATA( TEXT(Connections[[#Headers],[Actual expenditure (£2009/10 million prices)]], 0), ConnectionsCostForecastAtypical!$A$6, Connections[[#Headers],[Delivery year ending March]], I$6, Connections[[#Headers],[ConnectionStatus (Delivered/Forecast)]], "Delivered", Connections[[#Headers],[Usage?]], "Sole", Connections[[#Headers],[Type?]], "Atypical" ), 0 ) -> 0 | J21: =IFERROR( GETPIVOTDATA( TEXT(Connections[[#Headers],[Actual expenditure (£2009/10 million prices)]], 0), ConnectionsCostForecastAtypical!$A$6, Connections[[#Headers],[Delivery year ending March]], J$6, Connections[[#Headers],[ConnectionStatus (Delivered/Forecast)]], "Delivered", Connections[[#Headers],[Usage?]], "Sole", Connections[[#Headers],[Type?]], "Atypical" ), 0 ) -> 0 | K21: =IFERROR( GETPIVOTDATA( TEXT(Connections[[#Headers],[Actual expenditure (£2009/10 million prices)]], 0), ConnectionsCostForecastAtypical!$A$6, Connections[[#Headers],[Delivery year ending March]], K$6, Connections[[#Headers],[ConnectionStatus (Delivered/Forecast)]], "Delivered", Connections[[#Headers],[Usage?]], "Sole", Connections[[#Headers],[Type?]], "Atypical" ), 0 ) -> 100 | L21: =IFERROR( GETPIVOTDATA( TEXT(Connections[[#Headers],[Actual expenditure (£2009/10 million prices)]], 0), ConnectionsCostForecastAtypical!$A$6, Connections[[#Headers],[Delivery year ending March]], L$6, Connections[[#Headers],[ConnectionStatus (Delivered/Forecast)]], "Delivered", Connections[[#Headers],[Usage?]], "Sole", Connections[[#Headers],[Type?]], "Atypical" ), 0 ) -> 0 | M21: =IFERROR( GETPIVOTDATA( TEXT(Connections[[#Headers],[Actual expenditure (£2009/10 million prices)]], 0), ConnectionsCostForecastAtypical!$A$6, Connections[[#Headers],[Delivery year ending March]], M$6, Connections[[#Headers],[ConnectionStatus (Delivered/Forecast)]], "Delivered", Connections[[#Headers],[Usage?]], "Sole", Connections[[#Headers],[Type?]], "Atypical" ), 0 ) -> 0 | N21: =IFERROR( GETPIVOTDATA( TEXT(Connections[[#Headers],[Actual expenditure (£2009/10 million prices)]], 0), ConnectionsCostForecastAtypical!$A$6, Connections[[#Headers],[Delivery year ending March]], N$6, Connections[[#Headers],[ConnectionStatus (Delivered/Forecast)]], "Delivered", Connections[[#Headers],[Usage?]], "Sole", Connections[[#Headers],[Type?]], "Atypical" ), 0 ) -> 0 | O21: =IFERROR( GETPIVOTDATA( TEXT(Connections[[#Headers],[Actual expenditure (£2009/10 million prices)]], 0), ConnectionsCostForecastAtypical!$A$6, Connections[[#Headers],[Delivery year ending March]], O$6, Connections[[#Headers],[ConnectionStatus (Delivered/Forecast)]], "Delivered", Connections[[#Headers],[Usage?]], "Sole", Connections[[#Headers],[Type?]], "Atypical" ), 0 ) -> 0 | P21: =IFERROR( GETPIVOTDATA( TEXT(Connections[[#Headers],[Actual expenditure (£2009/10 million prices)]], 0), ConnectionsCostForecastAtypical!$A$6, Connections[[#Headers],[Delivery year ending March]], P$6, Connections[[#Headers],[ConnectionStatus (Delivered/Forecast)]], "Delivered", Connections[[#Headers],[Usage?]], "Sole", Connections[[#Headers],[Type?]], "Atypical" ), 0 ) -> 0
B22: RPE n | C22: Scaler | G22: =RPE!C9 -> 1.046 | H22: =RPE!D9 -> 1.061 | I22: =RPE!E9 -> 1.077 | J22: =RPE!F9 -> 1.093 | K22: =RPE!G9 -> 1.11 | L22: =RPE!H9 -> 1.126 | M22: =RPE!I9 -> 1.143 | N22: =RPE!J9 -> 1.161 | O22: =RPE!K9 -> 1.178 | P22: =RPE!L9 -> 1.196
B23: DASLG n - 1 | C23: MVA | G23: =IFERROR( GETPIVOTDATA( TEXT(Connections[[#Headers],[Generation connection capacity (MW/MVA)]], 0), ConnectionsCapacity!$A$6, Connections[[#Headers],[Delivery year ending March]], G$6 - 1, Connections[[#Headers],[ConnectionStatus (Delivered/Forecast)]], "Delivered", Connections[[#Headers],[Usage?]], "Sole", Connections[[#Headers],[Type?]], "Atypical" ), 0 ) -> 0 | H23: =IFERROR( GETPIVOTDATA( TEXT(Connections[[#Headers],[Generation connection capacity (MW/MVA)]], 0), ConnectionsCapacity!$A$6, Connections[[#Headers],[Delivery year ending March]], H$6 - 1, Connections[[#Headers],[ConnectionStatus (Delivered/Forecast)]], "Delivered", Connections[[#Headers],[Usage?]], "Sole", Connections[[#Headers],[Type?]], "Atypical" ), 0 ) -> 0 | I23: =IFERROR( GETPIVOTDATA( TEXT(Connections[[#Headers],[Generation connection capacity (MW/MVA)]], 0), ConnectionsCapacity!$A$6, Connections[[#Headers],[Delivery year ending March]], I$6 - 1, Connections[[#Headers],[ConnectionStatus (Delivered/Forecast)]], "Delivered", Connections[[#Headers],[Usage?]], "Sole", Connections[[#Headers],[Type?]], "Atypical" ), 0 ) -> 0 | J23: =IFERROR( GETPIVOTDATA( TEXT(Connections[[#Headers],[Generation connection capacity (MW/MVA)]], 0), ConnectionsCapacity!$A$6, Connections[[#Headers],[Delivery year ending March]], J$6 - 1, Connections[[#Headers],[ConnectionStatus (Delivered/Forecast)]], "Delivered", Connections[[#Headers],[Usage?]], "Sole", Connections[[#Headers],[Type?]], "Atypical" ), 0 ) -> 0 | K23: =IFERROR( GETPIVOTDATA( TEXT(Connections[[#Headers],[Generation connection capacity (MW/MVA)]], 0), ConnectionsCapacity!$A$6, Connections[[#Headers],[Delivery year ending March]], K$6 - 1, Connections[[#Headers],[ConnectionStatus (Delivered/Forecast)]], "Delivered", Connections[[#Headers],[Usage?]], "Sole", Connections[[#Headers],[Type?]], "Atypical" ), 0 ) -> 0 | L23: =IFERROR( GETPIVOTDATA( TEXT(Connections[[#Headers],[Generation connection capacity (MW/MVA)]], 0), ConnectionsCapacity!$A$6, Connections[[#Headers],[Delivery year ending March]], L$6 - 1, Connections[[#Headers],[ConnectionStatus (Delivered/Forecast)]], "Delivered", Connections[[#Headers],[Usage?]], "Sole", Connections[[#Headers],[Type?]], "Atypical" ), 0 ) -> 400 | M23: =IFERROR( GETPIVOTDATA( TEXT(Connections[[#Headers],[Generation connection capacity (MW/MVA)]], 0), ConnectionsCapacity!$A$6, Connections[[#Headers],[Delivery year ending March]], M$6 - 1, Connections[[#Headers],[ConnectionStatus (Delivered/Forecast)]], "Delivered", Connections[[#Headers],[Usage?]], "Sole", Connections[[#Headers],[Type?]], "Atypical" ), 0 ) -> 0 | N23: =IFERROR( GETPIVOTDATA( TEXT(Connections[[#Headers],[Generation connection capacity (MW/MVA)]], 0), ConnectionsCapacity!$A$6, Connections[[#Headers],[Delivery year ending March]], N$6 - 1, Connections[[#Headers],[ConnectionStatus (Delivered/Forecast)]], "Delivered", Connections[[#Headers],[Usage?]], "Sole", Connections[[#Headers],[Type?]], "Atypical" ), 0 ) -> 400 | O23: =IFERROR( GETPIVOTDATA( TEXT(Connections[[#Headers],[Generation connection capacity (MW/MVA)]], 0), ConnectionsCapacity!$A$6, Connections[[#Headers],[Delivery year ending March]], O$6 - 1, Connections[[#Headers],[ConnectionStatus (Delivered/Forecast)]], "Delivered", Connections[[#Headers],[Usage?]], "Sole", Connections[[#Headers],[Type?]], "Atypical" ), 0 ) -> 0 | P23: =IFERROR( GETPIVOTDATA( TEXT(Connections[[#Headers],[Generation connection capacity (MW/MVA)]], 0), ConnectionsCapacity!$A$6, Connections[[#Headers],[Delivery year ending March]], P$6 - 1, Connections[[#Headers],[ConnectionStatus (Delivered/Forecast)]], "Delivered", Connections[[#Headers],[Usage?]], "Sole", Connections[[#Headers],[Type?]], "Atypical" ), 0 ) -> 0
B24: DASLG n | C24: MVA | G24: =IFERROR( GETPIVOTDATA( TEXT(Connections[[#Headers],[Generation connection capacity (MW/MVA)]], 0), ConnectionsCapacity!$A$6, Connections[[#Headers],[Delivery year ending March]], G$6, Connections[[#Headers],[ConnectionStatus (Delivered/Forecast)]], "Delivered", Connections[[#Headers],[Usage?]], "Sole", Connections[[#Headers],[Type?]], "Atypical" ), 0 ) -> 0 | H24: =IFERROR( GETPIVOTDATA( TEXT(Connections[[#Headers],[Generation connection capacity (MW/MVA)]], 0), ConnectionsCapacity!$A$6, Connections[[#Headers],[Delivery year ending March]], H$6, Connections[[#Headers],[ConnectionStatus (Delivered/Forecast)]], "Delivered", Connections[[#Headers],[Usage?]], "Sole", Connections[[#Headers],[Type?]], "Atypical" ), 0 ) -> 0 | I24: =IFERROR( GETPIVOTDATA( TEXT(Connections[[#Headers],[Generation connection capacity (MW/MVA)]], 0), ConnectionsCapacity!$A$6, Connections[[#Headers],[Delivery year ending March]], I$6, Connections[[#Headers],[ConnectionStatus (Delivered/Forecast)]], "Delivered", Connections[[#Headers],[Usage?]], "Sole", Connections[[#Headers],[Type?]], "Atypical" ), 0 ) -> 0 | J24: =IFERROR( GETPIVOTDATA( TEXT(Connections[[#Headers],[Generation connection capacity (MW/MVA)]], 0), ConnectionsCapacity!$A$6, Connections[[#Headers],[Delivery year ending March]], J$6, Connections[[#Headers],[ConnectionStatus (Delivered/Forecast)]], "Delivered", Connections[[#Headers],[Usage?]], "Sole", Connections[[#Headers],[Type?]], "Atypical" ), 0 ) -> 0 | K24: =IFERROR( GETPIVOTDATA( TEXT(Connections[[#Headers],[Generation connection capacity (MW/MVA)]], 0), ConnectionsCapacity!$A$6, Connections[[#Headers],[Delivery year ending March]], K$6, Connections[[#Headers],[ConnectionStatus (Delivered/Forecast)]], "Delivered", Connections[[#Headers],[Usage?]], "Sole", Connections[[#Headers],[Type?]], "Atypical" ), 0 ) -> 400 | L24: =IFERROR( GETPIVOTDATA( TEXT(Connections[[#Headers],[Generation connection capacity (MW/MVA)]], 0), ConnectionsCapacity!$A$6, Connections[[#Headers],[Delivery year ending March]], L$6, Connections[[#Headers],[ConnectionStatus (Delivered/Forecast)]], "Delivered", Connections[[#Headers],[Usage?]], "Sole", Connections[[#Headers],[Type?]], "Atypical" ), 0 ) -> 0 | M24: =IFERROR( GETPIVOTDATA( TEXT(Connections[[#Headers],[Generation connection capacity (MW/MVA)]], 0), ConnectionsCapacity!$A$6, Connections[[#Headers],[Delivery year ending March]], M$6, Connections[[#Headers],[ConnectionStatus (Delivered/Forecast)]], "Delivered", Connections[[#Headers],[Usage?]], "Sole", Connections[[#Headers],[Type?]], "Atypical" ), 0 ) -> 400 | N24: =IFERROR( GETPIVOTDATA( TEXT(Connections[[#Headers],[Generation connection capacity (MW/MVA)]], 0), ConnectionsCapacity!$A$6, Connections[[#Headers],[Delivery year ending March]], N$6, Connections[[#Headers],[ConnectionStatus (Delivered/Forecast)]], "Delivered", Connections[[#Headers],[Usage?]], "Sole", Connections[[#Headers],[Type?]], "Atypical" ), 0 ) -> 0 | O24: =IFERROR( GETPIVOTDATA( TEXT(Connections[[#Headers],[Generation connection capacity (MW/MVA)]], 0), ConnectionsCapacity!$A$6, Connections[[#Headers],[Delivery year ending March]], O$6, Connections[[#Headers],[ConnectionStatus (Delivered/Forecast)]], "Delivered", Connections[[#Headers],[Usage?]], "Sole", Connections[[#Headers],[Type?]], "Atypical" ), 0 ) -> 0 | P24: =IFERROR( GETPIVOTDATA( TEXT(Connections[[#Headers],[Generation connection capacity (MW/MVA)]], 0), ConnectionsCapacity!$A$6, Connections[[#Headers],[Delivery year ending March]], P$6, Connections[[#Headers],[ConnectionStatus (Delivered/Forecast)]], "Delivered", Connections[[#Headers],[Usage?]], "Sole", Connections[[#Headers],[Type?]], "Atypical" ), 0 ) -> 0
B26: WF t, n | E26: 4
B27: t (Year ending March) =
B28: 2014 | G28: =IF($B28 > G$6, MIN($E$26, G$6 - 2014 + 1), 0) -> 0 | H28: 0 | I28: 0 | J28: 0 | K28: 0 | L28: 0 | M28: 0 | N28: 0 | O28: 0 | P28: 0
B29: 2015 | G29: 1 | H29: 0 | I29: 0 | J29: 0 | K29: 0 | L29: 0 | M29: 0 | N29: 0 | O29: 0 | P29: 0
B30: 2016 | G30: 1 | H30: 2 | I30: 0 | J30: 0 | K30: 0 | L30: 0 | M30: 0 | N30: 0 | O30: 0 | P30: 0
B31: 2017 | G31: 1 | H31: 2 | I31: 3 | J31: 0 | K31: 0 | L31: 0 | M31: 0 | N31: 0 | O31: 0 | P31: 0
B32: 2018 | G32: 1 | H32: 2 | I32: 3 | J32: 4 | K32: 0 | L32: 0 | M32: 0 | N32: 0 | O32: 0 | P32: 0
B33: 2019 | G33: 1 | H33: 2 | I33: 3 | J33: 4 | K33: 4 | L33: 0 | M33: 0 | N33: 0 | O33: 0 | P33: 0
B34: 2020 | G34: 1 | H34: 2 | I34: 3 | J34: 4 | K34: 4 | L34: 4 | M34: 0 | N34: 0 | O34: 0 | P34: 0
B35: 2021 | G35: 1 | H35: 2 | I35: 3 | J35: 4 | K35: 4 | L35: 4 | M35: 4 | N35: 0 | O35: 0 | P35: 0
B36: 2022 | G36: 1 | H36: 2 | I36: 3 | J36: 4 | K36: 4 | L36: 4 | M36: 4 | N36: 4 | O36: 0 | P36: 0
B37: 2023 | G37: 1 | H37: 2 | I37: 3 | J37: 4 | K37: 4 | L37: 4 | M37: 4 | N37: 4 | O37: 4 | P37: 0
B39: OALSE t, n | C39: £m 2009/10 Prices | D39: m = | E39: 0 | F39: n - m= | G39: =IF( G$6 - $E39 < 2014, "exclude", G$6 - $E39 ) -> 2014 | H39: =IF( H$6 - $E39 < 2014, "exclude", H$6 - $E39 ) -> 2015 | I39: 2016 | J39: 2017 | K39: 2018 | L39: 2019 | M39: 2020 | N39: 2021 | O39: 2022 | P39: 2023
B40: t (Year ending March) =
B41: 2014 | G41: =IF( G$39 = "exclude", 0, IF(OR(G28 <=0, $B41 - 2 < G$6), 0, ((MAX(0, (G$24 - G$23)) * $E$20) + G$21) * INDEX($G$22:$P$22, 1, MATCH(G$39,$G$6:$P$6,FALSE)) * 0.5 / G28 ) ) -> 0 | H41: =IF( H$39 = "exclude", 0, IF(OR(H28 <=0, $B41 - 2 < H$6), 0, ((MAX(0, (H$24 - H$23)) * $E$20) + H$21) * INDEX($G$22:$P$22, 1, MATCH(H$39,$G$6:$P$6,FALSE)) * 0.5 / H28 ) ) -> 0 | I41: 0 | J41: 0 | K41: 0 | L41: 0 | M41: 0 | N41: 0 | O41: 0 | P41: 0
B42: 2015 | G42: =IF( G$39 = "exclude", 0, IF(OR(G29 <=0, $B42 - 2 < G$6), 0, ((MAX(0, (G$24 - G$23)) * $E$20) + G$21) * INDEX($G$22:$P$22, 1, MATCH(G$39,$G$6:$P$6,FALSE)) * 0.5 / G29 ) ) -> 0 | H42: 0 | I42: 0 | J42: 0 | K42: 0 | L42: 0 | M42: 0 | N42: 0 | O42: 0 | P42: 0
B43: 2016 | G43: 0 | H43: 0 | I43: 0 | J43: 0 | K43: 0 | L43: 0 | M43: 0 | N43: 0 | O43: 0 | P43: 0
B44: 2017 | G44: 0 | H44: 0 | I44: 0 | J44: 0 | K44: 0 | L44: 0 | M44: 0 | N44: 0 | O44: 0 | P44: 0
B45: 2018 | G45: 0 | H45: 0 | I45: 0 | J45: 0 | K45: 0 | L45: 0 | M45: 0 | N45: 0 | O45: 0 | P45: 0
B46: 2019 | G46: 0 | H46: 0 | I46: 0 | J46: 0 | K46: 0 | L46: 0 | M46: 0 | N46: 0 | O46: 0 | P46: 0
B47: 2020 | G47: 0 | H47: 0 | I47: 0 | J47: 0 | K47: 30.192 | L47: 0 | M47: 0 | N47: 0 | O47: 0 | P47: 0
B48: 2021 | G48: 0 | H48: 0 | I48: 0 | J48: 0 | K48: 30.192 | L48: 0 | M48: 0 | N48: 0 | O48: 0 | P48: 0
B49: 2022 | G49: 0 | H49: 0 | I49: 0 | J49: 0 | K49: 30.192 | L49: 0 | M49: 16.8021 | N49: 0 | O49: 0 | P49: 0
B50: 2023 | G50: 0 | H50: 0 | I50: 0 | J50: 0 | K50: 30.192 | L50: 0 | M50: 16.8021 | N50: 0 | O50: 0 | P50: 0
B52: OALSE t, n | C52: £m 2009/10 Prices | D52: m = | E52: 1 | F52: n - m= | G52: =IF( G$6 - $E52 < 2014, "exclude", G$6 - $E52 ) -> exclude | H52: =IF( H$6 - $E52 < 2014, "exclude", H$6 - $E52 ) -> 2014 | I52: 2015 | J52: 2016 | K52: 2017 | L52: 2018 | M52: 2019 | N52: 2020 | O52: 2021 | P52: 2022
B53: t (Year ending March) =
B54: 2014 | G54: =IF( G$52 = "exclude", 0, IF(OR(G41 <=0, $B54 - 2 < G$6), 0, ((MAX(0, (G$24 - G$23)) * $E$20) + G$21) * INDEX($G$22:$P$22, 1, MATCH(G$52,$G$6:$P$6,FALSE)) * 0.5 / G28 ) ) -> 0 | H54: =IF( H$52 = "exclude", 0, IF(OR(H41 <=0, $B54 - 2 < H$6), 0, ((MAX(0, (H$24 - H$23)) * $E$20) + H$21) * INDEX($G$22:$P$22, 1, MATCH(H$52,$G$6:$P$6,FALSE)) * 0.5 / H28 ) ) -> 0 | I54: 0 | J54: 0 | K54: 0 | L54: 0 | M54: 0 | N54: 0 | O54: 0 | P54: 0
B55: 2015 | G55: =IF( G$52 = "exclude", 0, IF(OR(G42 <=0, $B55 - 2 < G$6), 0, ((MAX(0, (G$24 - G$23)) * $E$20) + G$21) * INDEX($G$22:$P$22, 1, MATCH(G$52,$G$6:$P$6,FALSE)) * 0.5 / G29 ) ) -> 0 | H55: 0 | I55: 0 | J55: 0 | K55: 0 | L55: 0 | M55: 0 | N55: 0 | O55: 0 | P55: 0
B56: 2016 | G56: 0 | H56: 0 | I56: 0 | J56: 0 | K56: 0 | L56: 0 | M56: 0 | N56: 0 | O56: 0 | P56: 0
B57: 2017 | G57: 0 | H57: 0 | I57: 0 | J57: 0 | K57: 0 | L57: 0 | M57: 0 | N57: 0 | O57: 0 | P57: 0
B58: 2018 | G58: 0 | H58: 0 | I58: 0 | J58: 0 | K58: 0 | L58: 0 | M58: 0 | N58: 0 | O58: 0 | P58: 0
B59: 2019 | G59: 0 | H59: 0 | I59: 0 | J59: 0 | K59: 0 | L59: 0 | M59: 0 | N59: 0 | O59: 0 | P59: 0
B60: 2020 | G60: 0 | H60: 0 | I60: 0 | J60: 0 | K60: 29.7296 | L60: 0 | M60: 0 | N60: 0 | O60: 0 | P60: 0
B61: 2021 | G61: 0 | H61: 0 | I61: 0 | J61: 0 | K61: 29.7296 | L61: 0 | M61: 0 | N61: 0 | O61: 0 | P61: 0
B62: 2022 | G62: 0 | H62: 0 | I62: 0 | J62: 0 | K62: 29.7296 | L62: 0 | M62: 16.5522 | N62: 0 | O62: 0 | P62: 0
B63: 2023 | G63: 0 | H63: 0 | I63: 0 | J63: 0 | K63: 29.7296 | L63: 0 | M63: 16.5522 | N63: 0 | O63: 0 | P63: 0
B65: OALSE t, n | C65: £m 2009/10 Prices | D65: m = | E65: 2 | F65: n - m= | G65: =IF( G$6 - $E65 < 2014, "exclude", G$6 - $E65 ) -> exclude | H65: =IF( H$6 - $E65 < 2014, "exclude", H$6 - $E65 ) -> exclude | I65: 2014 | J65: 2015 | K65: 2016 | L65: 2017 | M65: 2018 | N65: 2019 | O65: 2020 | P65: 2021
B66: t (Year ending March) =
B67: 2014 | G67: =IF( G$65 = "exclude", 0, IF(OR(G54 <=0, $B67 - 2 < G$6), 0, ((MAX(0, (G$24 - G$23)) * $E$20) + G$21) * INDEX($G$22:$P$22, 1, MATCH(G$65,$G$6:$P$6,FALSE)) * 0.5 / G28 ) ) -> 0 | H67: =IF( H$65 = "exclude", 0, IF(OR(H54 <=0, $B67 - 2 < H$6), 0, ((MAX(0, (H$24 - H$23)) * $E$20) + H$21) * INDEX($G$22:$P$22, 1, MATCH(H$65,$G$6:$P$6,FALSE)) * 0.5 / H28 ) ) -> 0 | I67: 0 | J67: 0 | K67: 0 | L67: 0 | M67: 0 | N67: 0 | O67: 0 | P67: 0
B68: 2015 | G68: =IF( G$65 = "exclude", 0, IF(OR(G55 <=0, $B68 - 2 < G$6), 0, ((MAX(0, (G$24 - G$23)) * $E$20) + G$21) * INDEX($G$22:$P$22, 1, MATCH(G$65,$G$6:$P$6,FALSE)) * 0.5 / G29 ) ) -> 0 | H68: 0 | I68: 0 | J68: 0 | K68: 0 | L68: 0 | M68: 0 | N68: 0 | O68: 0 | P68: 0
B69: 2016 | G69: 0 | H69: 0 | I69: 0 | J69: 0 | K69: 0 | L69: 0 | M69: 0 | N69: 0 | O69: 0 | P69: 0
B70: 2017 | G70: 0 | H70: 0 | I70: 0 | J70: 0 | K70: 0 | L70: 0 | M70: 0 | N70: 0 | O70: 0 | P70: 0
B71: 2018 | G71: 0 | H71: 0 | I71: 0 | J71: 0 | K71: 0 | L71: 0 | M71: 0 | N71: 0 | O71: 0 | P71: 0
B72: 2019 | G72: 0 | H72: 0 | I72: 0 | J72: 0 | K72: 0 | L72: 0 | M72: 0 | N72: 0 | O72: 0 | P72: 0
B73: 2020 | G73: 0 | H73: 0 | I73: 0 | J73: 0 | K73: 29.2944 | L73: 0 | M73: 0 | N73: 0 | O73: 0 | P73: 0
B74: 2021 | G74: 0 | H74: 0 | I74: 0 | J74: 0 | K74: 29.2944 | L74: 0 | M74: 0 | N74: 0 | O74: 0 | P74: 0
B75: 2022 | G75: 0 | H75: 0 | I75: 0 | J75: 0 | K75: 29.2944 | L75: 0 | M75: 16.317 | N75: 0 | O75: 0 | P75: 0
B76: 2023 | G76: 0 | H76: 0 | I76: 0 | J76: 0 | K76: 29.2944 | L76: 0 | M76: 16.317 | N76: 0 | O76: 0 | P76: 0
B78: OALSE t, n | C78: £m 2009/10 Prices | D78: m = | E78: 3 | F78: n - m= | G78: =IF( G$6 - $E78 < 2014, "exclude", G$6 - $E78 ) -> exclude | H78: =IF( H$6 - $E78 < 2014, "exclude", H$6 - $E78 ) -> exclude | I78: exclude | J78: 2014 | K78: 2015 | L78: 2016 | M78: 2017 | N78: 2018 | O78: 2019 | P78: 2020
B79: t (Year ending March) =
B80: 2014 | G80: =IF( G$78 = "exclude", 0, IF(OR(G67 <=0, $B80 - 2 < G$6), 0, ((MAX(0, (G$24 - G$23)) * $E$20) + G$21) * INDEX($G$22:$P$22, 1, MATCH(G$78,$G$6:$P$6,FALSE)) * 0.5 / G28 ) ) -> 0 | H80: =IF( H$78 = "exclude", 0, IF(OR(H67 <=0, $B80 - 2 < H$6), 0, ((MAX(0, (H$24 - H$23)) * $E$20) + H$21) * INDEX($G$22:$P$22, 1, MATCH(H$78,$G$6:$P$6,FALSE)) * 0.5 / H28 ) ) -> 0 | I80: 0 | J80: 0 | K80: 0 | L80: 0 | M80: 0 | N80: 0 | O80: 0 | P80: 0
B81: 2015 | G81: =IF( G$78 = "exclude", 0, IF(OR(G68 <=0, $B81 - 2 < G$6), 0, ((MAX(0, (G$24 - G$23)) * $E$20) + G$21) * INDEX($G$22:$P$22, 1, MATCH(G$78,$G$6:$P$6,FALSE)) * 0.5 / G29 ) ) -> 0 | H81: 0 | I81: 0 | J81: 0 | K81: 0 | L81: 0 | M81: 0 | N81: 0 | O81: 0 | P81: 0
B82: 2016 | G82: 0 | H82: 0 | I82: 0 | J82: 0 | K82: 0 | L82: 0 | M82: 0 | N82: 0 | O82: 0 | P82: 0
B83: 2017 | G83: 0 | H83: 0 | I83: 0 | J83: 0 | K83: 0 | L83: 0 | M83: 0 | N83: 0 | O83: 0 | P83: 0
B84: 2018 | G84: 0 | H84: 0 | I84: 0 | J84: 0 | K84: 0 | L84: 0 | M84: 0 | N84: 0 | O84: 0 | P84: 0
B85: 2019 | G85: 0 | H85: 0 | I85: 0 | J85: 0 | K85: 0 | L85: 0 | M85: 0 | N85: 0 | O85: 0 | P85: 0
B86: 2020 | G86: 0 | H86: 0 | I86: 0 | J86: 0 | K86: 28.8592 | L86: 0 | M86: 0 | N86: 0 | O86: 0 | P86: 0
B87: 2021 | G87: 0 | H87: 0 | I87: 0 | J87: 0 | K87: 28.8592 | L87: 0 | M87: 0 | N87: 0 | O87: 0 | P87: 0
B88: 2022 | G88: 0 | H88: 0 | I88: 0 | J88: 0 | K88: 28.8592 | L88: 0 | M88: 16.0671 | N88: 0 | O88: 0 | P88: 0
B89: 2023 | G89: 0 | H89: 0 | I89: 0 | J89: 0 | K89: 28.8592 | L89: 0 | M89: 16.0671 | N89: 0 | O89: 0 | P89: 0

Sheet OPASL
A1: OPASL - Atypical Sole-Use Allowed Expenditure for O&M costs for Delivered Outputs
B6: Parameter | C6: Units | E6: Constant | F6: n= | G6: 2014 | H6: 2015 | I6: 2016 | J6: 2017 | K6: 2018 | L6: 2019 | M6: 2020 | N6: 2021 | O6: 2022 | P6: 2023 | R6: Total
B8: DASLG n | C8: MW | G8: =IFERROR( GETPIVOTDATA( TEXT(Connections[[#Headers],[Generation connection capacity (MW/MVA)]], 0), ConnectionsCapacity!$A$6, Connections[[#Headers],[Delivery year ending March]], G$6, Connections[[#Headers],[ConnectionStatus (Delivered/Forecast)]], "Delivered", Connections[[#Headers],[Usage?]], "Sole", Connections[[#Headers],[Type?]], "Atypical" ), 0 ) -> 0 | H8: =IFERROR( GETPIVOTDATA( TEXT(Connections[[#Headers],[Generation connection capacity (MW/MVA)]], 0), ConnectionsCapacity!$A$6, Connections[[#Headers],[Delivery year ending March]], H$6, Connections[[#Headers],[ConnectionStatus (Delivered/Forecast)]], "Delivered", Connections[[#Headers],[Usage?]], "Sole", Connections[[#Headers],[Type?]], "Atypical" ), 0 ) -> 0 | I8: =IFERROR( GETPIVOTDATA( TEXT(Connections[[#Headers],[Generation connection capacity (MW/MVA)]], 0), ConnectionsCapacity!$A$6, Connections[[#Headers],[Delivery year ending March]], I$6, Connections[[#Headers],[ConnectionStatus (Delivered/Forecast)]], "Delivered", Connections[[#Headers],[Usage?]], "Sole", Connections[[#Headers],[Type?]], "Atypical" ), 0 ) -> 0 | J8: =IFERROR( GETPIVOTDATA( TEXT(Connections[[#Headers],[Generation connection capacity (MW/MVA)]], 0), ConnectionsCapacity!$A$6, Connections[[#Headers],[Delivery year ending March]], J$6, Connections[[#Headers],[ConnectionStatus (Delivered/Forecast)]], "Delivered", Connections[[#Headers],[Usage?]], "Sole", Connections[[#Headers],[Type?]], "Atypical" ), 0 ) -> 0 | K8: =IFERROR( GETPIVOTDATA( TEXT(Connections[[#Headers],[Generation connection capacity (MW/MVA)]], 0), ConnectionsCapacity!$A$6, Connections[[#Headers],[Delivery year ending March]], K$6, Connections[[#Headers],[ConnectionStatus (Delivered/Forecast)]], "Delivered", Connections[[#Headers],[Usage?]], "Sole", Connections[[#Headers],[Type?]], "Atypical" ), 0 ) -> 400 | L8: =IFERROR( GETPIVOTDATA( TEXT(Connections[[#Headers],[Generation connection capacity (MW/MVA)]], 0), ConnectionsCapacity!$A$6, Connections[[#Headers],[Delivery year ending March]], L$6, Connections[[#Headers],[ConnectionStatus (Delivered/Forecast)]], "Delivered", Connections[[#Headers],[Usage?]], "Sole", Connections[[#Headers],[Type?]], "Atypical" ), 0 ) -> 0 | M8: =IFERROR( GETPIVOTDATA( TEXT(Connections[[#Headers],[Generation connection capacity (MW/MVA)]], 0), ConnectionsCapacity!$A$6, Connections[[#Headers],[Delivery year ending March]], M$6, Connections[[#Headers],[ConnectionStatus (Delivered/Forecast)]], "Delivered", Connections[[#Headers],[Usage?]], "Sole", Connections[[#Headers],[Type?]], "Atypical" ), 0 ) -> 400 | N8: =IFERROR( GETPIVOTDATA( TEXT(Connections[[#Headers],[Generation connection capacity (MW/MVA)]], 0), ConnectionsCapacity!$A$6, Connections[[#Headers],[Delivery year ending March]], N$6, Connections[[#Headers],[ConnectionStatus (Delivered/Forecast)]], "Delivered", Connections[[#Headers],[Usage?]], "Sole", Connections[[#Headers],[Type?]], "Atypical" ), 0 ) -> 0 | O8: =IFERROR( GETPIVOTDATA( TEXT(Connections[[#Headers],[Generation connection capacity (MW/MVA)]], 0), ConnectionsCapacity!$A$6, Connections[[#Headers],[Delivery year ending March]], O$6, Connections[[#Headers],[ConnectionStatus (Delivered/Forecast)]], "Delivered", Connections[[#Headers],[Usage?]], "Sole", Connections[[#Headers],[Type?]], "Atypical" ), 0 ) -> 0 | P8: =IFERROR( GETPIVOTDATA( TEXT(Connections[[#Headers],[Generation connection capacity (MW/MVA)]], 0), ConnectionsCapacity!$A$6, Connections[[#Headers],[Delivery year ending March]], P$6, Connections[[#Headers],[ConnectionStatus (Delivered/Forecast)]], "Delivered", Connections[[#Headers],[Usage?]], "Sole", Connections[[#Headers],[Type?]], "Atypical" ), 0 ) -> 0
B9: Cumulative over threshold | C9: MW | G9: =G8 -> 0 | H9: =H8 -> 0 | I9: 0 | J9: 0 | K9: 400 | L9: 0 | M9: 400 | N9: 0 | O9: 0 | P9: 0
B10: ASLCn | C10: £m 2009/10 Prices | G10: =IFERROR( GETPIVOTDATA( TEXT(Connections[[#Headers],[Actual expenditure (£2009/10 million prices)]], 0), ConnectionsCostForecastAtypical!$A$6, Connections[[#Headers],[Delivery year ending March]], G$6, Connections[[#Headers],[ConnectionStatus (Delivered/Forecast)]], "Delivered", Connections[[#Headers],[Usage?]], "Sole", Connections[[#Headers],[Type?]], "Atypical" ), 0 ) -> 0 | H10: =IFERROR( GETPIVOTDATA( TEXT(Connections[[#Headers],[Actual expenditure (£2009/10 million prices)]], 0), ConnectionsCostForecastAtypical!$A$6, Connections[[#Headers],[Delivery year ending March]], H$6, Connections[[#Headers],[ConnectionStatus (Delivered/Forecast)]], "Delivered", Connections[[#Headers],[Usage?]], "Sole", Connections[[#Headers],[Type?]], "Atypical" ), 0 ) -> 0 | I10: =IFERROR( GETPIVOTDATA( TEXT(Connections[[#Headers],[Actual expenditure (£2009/10 million prices)]], 0), ConnectionsCostForecastAtypical!$A$6, Connections[[#Headers],[Delivery year ending March]], I$6, Connections[[#Headers],[ConnectionStatus (Delivered/Forecast)]], "Delivered", Connections[[#Headers],[Usage?]], "Sole", Connections[[#Headers],[Type?]], "Atypical" ), 0 ) -> 0 | J10: =IFERROR( GETPIVOTDATA( TEXT(Connections[[#Headers],[Actual expenditure (£2009/10 million prices)]], 0), ConnectionsCostForecastAtypical!$A$6, Connections[[#Headers],[Delivery year ending March]], J$6, Connections[[#Headers],[ConnectionStatus (Delivered/Forecast)]], "Delivered", Connections[[#Headers],[Usage?]], "Sole", Connections[[#Headers],[Type?]], "Atypical" ), 0 ) -> 0 | K10: =IFERROR( GETPIVOTDATA( TEXT(Connections[[#Headers],[Actual expenditure (£2009/10 million prices)]], 0), ConnectionsCostForecastAtypical!$A$6, Connections[[#Headers],[Delivery year ending March]], K$6, Connections[[#Headers],[ConnectionStatus (Delivered/Forecast)]], "Delivered", Connections[[#Headers],[Usage?]], "Sole", Connections[[#Headers],[Type?]], "Atypical" ), 0 ) -> 100 | L10: =IFERROR( GETPIVOTDATA( TEXT(Connections[[#Headers],[Actual expenditure (£2009/10 million prices)]], 0), ConnectionsCostForecastAtypical!$A$6, Connections[[#Headers],[Delivery year ending March]], L$6, Connections[[#Headers],[ConnectionStatus (Delivered/Forecast)]], "Delivered", Connections[[#Headers],[Usage?]], "Sole", Connections[[#Headers],[Type?]], "Atypical" ), 0 ) -> 0 | M10: =IFERROR( GETPIVOTDATA( TEXT(Connections[[#Headers],[Actual expenditure (£2009/10 million prices)]], 0), ConnectionsCostForecastAtypical!$A$6, Connections[[#Headers],[Delivery year ending March]], M$6, Connections[[#Headers],[ConnectionStatus (Delivered/Forecast)]], "Delivered", Connections[[#Headers],[Usage?]], "Sole", Connections[[#Headers],[Type?]], "Atypical" ), 0 ) -> 0 | N10: =IFERROR( GETPIVOTDATA( TEXT(Connections[[#Headers],[Actual expenditure (£2009/10 million prices)]], 0), ConnectionsCostForecastAtypical!$A$6, Connections[[#Headers],[Delivery year ending March]], N$6, Connections[[#Headers],[ConnectionStatus (Delivered/Forecast)]], "Delivered", Connections[[#Headers],[Usage?]], "Sole", Connections[[#Headers],[Type?]], "Atypical" ), 0 ) -> 0 | O10: =IFERROR( GETPIVOTDATA( TEXT(Connections[[#Headers],[Actual expenditure (£2009/10 million prices)]], 0), ConnectionsCostForecastAtypical!$A$6, Connections[[#Headers],[Delivery year ending March]], O$6, Connections[[#Headers],[ConnectionStatus (Delivered/Forecast)]], "Delivered", Connections[[#Headers],[Usage?]], "Sole", Connections[[#Headers],[Type?]], "Atypical" ), 0 ) -> 0 | P10: =IFERROR( GETPIVOTDATA( TEXT(Connections[[#Headers],[Actual expenditure (£2009/10 million prices)]], 0), ConnectionsCostForecastAtypical!$A$6, Connections[[#Headers],[Delivery year ending March]], P$6, Connections[[#Headers],[ConnectionStatus (Delivered/Forecast)]], "Delivered", Connections[[#Headers],[Usage?]], "Sole", Connections[[#Headers],[Type?]], "Atypical" ), 0 ) -> 0
B11: UCA | C11: £m 2009/10 Prices /MVA | E11: =UCAallowances!$E$7 -> 0.294
B12: RPE n | C12: Scaler | G12: =RPE!C9 -> 1.046 | H12: =RPE!D9 -> 1.061 | I12: =RPE!E9 -> 1.077 | J12: =RPE!F9 -> 1.093 | K12: =RPE!G9 -> 1.11 | L12: =RPE!H9 -> 1.126 | M12: =RPE!I9 -> 1.143 | N12: =RPE!J9 -> 1.161 | O12: =RPE!K9 -> 1.178 | P12: =RPE!L9 -> 1.196
B14: OPASL t, n | C14: £m 2009/10 Prices
B15: t (Year ending March) =
B16: 2014 | G16: =IF( OR($B16 - 2 < G$6, G$6 = 2014), 0, ((G$9 * $E$11) + G$10) * G$12 / 2 * 0.01 ) -> 0 | H16: =IF( OR($B16 - 2 < H$6, H$6 = 2014), 0, ((H$9 * $E$11) + H$10) * H$12 / 2 * 0.01 ) -> 0 | I16: 0 | J16: 0 | K16: 0 | L16: 0 | M16: 0 | N16: 0 | O16: 0 | P16: 0 | R16: =SUM(G16:P16) -> 0 | S16: =SUMIF(G$6:P$6, "<=" & $B16, $G16:$P16) -> 0
B17: 2015 | G17: =IF( OR($B17 - 2 < G$6, G$6 = 2014), 0, ((G$9 * $E$11) + G$10) * G$12 / 2 * 0.01 ) -> 0 | H17: 0 | I17: 0 | J17: 0 | K17: 0 | L17: 0 | M17: 0 | N17: 0 | O17: 0 | P17: 0 | R17: =SUM(G17:P17) -> 0 | S17: =SUMIF(G$6:P$6, "<=" & $B17, $G17:$P17) -> 0
B18: 2016 | G18: 0 | H18: 0 | I18: 0 | J18: 0 | K18: 0 | L18: 0 | M18: 0 | N18: 0 | O18: 0 | P18: 0 | R18: 0 | S18: 0
B19: 2017 | G19: 0 | H19: 0 | I19: 0 | J19: 0 | K19: 0 | L19: 0 | M19: 0 | N19: 0 | O19: 0 | P19: 0 | R19: 0 | S19: 0
B20: 2018 | G20: 0 | H20: 0 | I20: 0 | J20: 0 | K20: 0 | L20: 0 | M20: 0 | N20: 0 | O20: 0 | P20: 0 | R20: 0 | S20: 0
B21: 2019 | G21: 0 | H21: 0 | I21: 0 | J21: 0 | K21: 0 | L21: 0 | M21: 0 | N21: 0 | O21: 0 | P21: 0 | R21: 0 | S21: 0
B22: 2020 | G22: 0 | H22: 0 | I22: 0 | J22: 0 | K22: 1.20768 | L22: 0 | M22: 0 | N22: 0 | O22: 0 | P22: 0 | R22: 1.20768 | S22: 1.20768
B23: 2021 | G23: 0 | H23: 0 | I23: 0 | J23: 0 | K23: 1.20768 | L23: 0 | M23: 0 | N23: 0 | O23: 0 | P23: 0 | R23: 1.20768 | S23: 1.20768
B24: 2022 | G24: 0 | H24: 0 | I24: 0 | J24: 0 | K24: 1.20768 | L24: 0 | M24: 0.672084 | N24: 0 | O24: 0 | P24: 0 | R24: 1.879764 | S24: 1.879764
B25: 2023 | G25: 0 | H25: 0 | I25: 0 | J25: 0 | K25: 1.20768 | L25: 0 | M25: 0.672084 | N25: 0 | O25: 0 | P25: 0 | R25: 1.879764 | S25: 1.879764

Sheet FASLA
A1: FASLA - Atypical Sole-Use Adjusted Allowed Expenditure for works still to be delivered
B6: Parameter | C6: Units | E6: Constant | F6: n= | G6: 2014 | H6: 2015 | I6: 2016 | J6: 2017 | K6: 2018 | L6: 2019 | M6: 2020 | N6: 2021 | O6: 2022 | P6: 2023 | R6: Total
B7: FASLA t, n | C7: £m 2009/10 Prices | D7: m= | E7: all
B8: t (Year ending March) =
B9: 2014 | G9: =IFERROR( INDEX($G32:$P32,1,MATCH(G$6,$G$30:$P$30,FALSE)), 0) +IFERROR( INDEX($G45:$P45,1,MATCH(G$6,$G$43:$P$43,FALSE)), 0) +IFERROR( INDEX($G58:$P58,1,MATCH(G$6,$G$56:$P$56,FALSE)), 0) -> 0 | H9: 0 | I9: 0 | J9: 0 | K9: 0 | L9: 0 | M9: 0 | N9: 0 | O9: 0 | P9: 0 | R9: =SUM(G9:P9) -> 0 | S9: =SUMIF(G$6:P$6, "<=" & $B9, $G9:$P9) -> 0
B10: 2015 | G10: 0 | H10: 0 | I10: 0 | J10: 0 | K10: 0 | L10: 0 | M10: 0 | N10: 0 | O10: 0 | P10: 0 | R10: =SUM(G10:P10) -> 0 | S10: =SUMIF(G$6:P$6, "<=" & $B10, $G10:$P10) -> 0
B11: 2016 | G11: 0 | H11: 0 | I11: 0 | J11: 0 | K11: 0 | L11: 0 | M11: 0 | N11: 0 | O11: 0 | P11: 0 | R11: 0 | S11: 0
B12: 2017 | G12: 0 | H12: 0 | I12: 0 | J12: 0 | K12: 0 | L12: 0 | M12: 0 | N12: 0 | O12: 0 | P12: 0 | R12: 0 | S12: 0
B13: 2018 | G13: 0 | H13: 0 | I13: 0 | J13: 0 | K13: 0 | L13: 0 | M13: 0 | N13: 0 | O13: 0 | P13: 0 | R13: 0 | S13: 0
B14: 2019 | G14: 0 | H14: 0 | I14: 0 | J14: 0 | K14: 0 | L14: 0 | M14: 0 | N14: 0 | O14: 0 | P14: 0 | R14: 0 | S14: 0
B15: 2020 | G15: 0 | H15: 0 | I15: 0 | J15: 0 | K15: 0 | L15: 0 | M15: 0 | N15: 0 | O15: 0 | P15: 0 | R15: 0 | S15: 0
B16: 2021 | G16: 0 | H16: 0 | I16: 0 | J16: 0 | K16: 0 | L16: 0 | M16: 0 | N16: 0 | O16: 0 | P16: 0 | R16: 0 | S16: 0
B17: 2022 | G17: 0 | H17: 0 | I17: 0 | J17: 0 | K17: 0 | L17: 0 | M17: 0 | N17: 0 | O17: 0 | P17: 0 | R17: 0 | S17: 0
B18: 2023 | G18: 0 | H18: 0 | I18: 0 | J18: 0 | K18: 0 | L18: 0 | M18: 0 | N18: 0 | O18: 0 | P18: 0 | R18: 0 | S18: 0
B20: UCA | C20: £m 2009/10 Prices /MVA | E20: =UCAallowances!$E$7 -> 0.294
B22: RPE n | C22: Scaler | G22: =RPE!C9 -> 1.046 | H22: =RPE!D9 -> 1.061 | I22: =RPE!E9 -> 1.077 | J22: =RPE!F9 -> 1.093 | K22: =RPE!G9 -> 1.11 | L22: =RPE!H9 -> 1.126 | M22: =RPE!I9 -> 1.143 | N22: =RPE!J9 -> 1.161 | O22: =RPE!K9 -> 1.178 | P22: =RPE!L9 -> 1.196
B23: DASLG n - 1 (Delivered) | C23: MVA | G23: =IFERROR( GETPIVOTDATA( TEXT(Connections[[#Headers],[Generation connection capacity (MW/MVA)]], 0), ConnectionsCapacity!$A$6, Connections[[#Headers],[Delivery year ending March]], G$6 - 1, Connections[[#Headers],[ConnectionStatus (Delivered/Forecast)]], "Delivered", Connections[[#Headers],[Usage?]], "Sole", Connections[[#Headers],[Type?]], "Atypical" ), 0 ) -> 0 | H23: =IFERROR( GETPIVOTDATA( TEXT(Connections[[#Headers],[Generation connection capacity (MW/MVA)]], 0), ConnectionsCapacity!$A$6, Connections[[#Headers],[Delivery year ending March]], H$6 - 1, Connections[[#Headers],[ConnectionStatus (Delivered/Forecast)]], "Delivered", Connections[[#Headers],[Usage?]], "Sole", Connections[[#Headers],[Type?]], "Atypical" ), 0 ) -> 0 | I23: =IFERROR( GETPIVOTDATA( TEXT(Connections[[#Headers],[Generation connection capacity (MW/MVA)]], 0), ConnectionsCapacity!$A$6, Connections[[#Headers],[Delivery year ending March]], I$6 - 1, Connections[[#Headers],[ConnectionStatus (Delivered/Forecast)]], "Delivered", Connections[[#Headers],[Usage?]], "Sole", Connections[[#Headers],[Type?]], "Atypical" ), 0 ) -> 0 | J23: =IFERROR( GETPIVOTDATA( TEXT(Connections[[#Headers],[Generation connection capacity (MW/MVA)]], 0), ConnectionsCapacity!$A$6, Connections[[#Headers],[Delivery year ending March]], J$6 - 1, Connections[[#Headers],[ConnectionStatus (Delivered/Forecast)]], "Delivered", Connections[[#Headers],[Usage?]], "Sole", Connections[[#Headers],[Type?]], "Atypical" ), 0 ) -> 0 | K23: =IFERROR( GETPIVOTDATA( TEXT(Connections[[#Headers],[Generation connection capacity (MW/MVA)]], 0), ConnectionsCapacity!$A$6, Connections[[#Headers],[Delivery year ending March]], K$6 - 1, Connections[[#Headers],[ConnectionStatus (Delivered/Forecast)]], "Delivered", Connections[[#Headers],[Usage?]], "Sole", Connections[[#Headers],[Type?]], "Atypical" ), 0 ) -> 0 | L23: =IFERROR( GETPIVOTDATA( TEXT(Connections[[#Headers],[Generation connection capacity (MW/MVA)]], 0), ConnectionsCapacity!$A$6, Connections[[#Headers],[Delivery year ending March]], L$6 - 1, Connections[[#Headers],[ConnectionStatus (Delivered/Forecast)]], "Delivered", Connections[[#Headers],[Usage?]], "Sole", Connections[[#Headers],[Type?]], "Atypical" ), 0 ) -> 400 | M23: =IFERROR( GETPIVOTDATA( TEXT(Connections[[#Headers],[Generation connection capacity (MW/MVA)]], 0), ConnectionsCapacity!$A$6, Connections[[#Headers],[Delivery year ending March]], M$6 - 1, Connections[[#Headers],[ConnectionStatus (Delivered/Forecast)]], "Delivered", Connections[[#Headers],[Usage?]], "Sole", Connections[[#Headers],[Type?]], "Atypical" ), 0 ) -> 0 | N23: =IFERROR( GETPIVOTDATA( TEXT(Connections[[#Headers],[Generation connection capacity (MW/MVA)]], 0), ConnectionsCapacity!$A$6, Connections[[#Headers],[Delivery year ending March]], N$6 - 1, Connections[[#Headers],[ConnectionStatus (Delivered/Forecast)]], "Delivered", Connections[[#Headers],[Usage?]], "Sole", Connections[[#Headers],[Type?]], "Atypical" ), 0 ) -> 400 | O23: =IFERROR( GETPIVOTDATA( TEXT(Connections[[#Headers],[Generation connection capacity (MW/MVA)]], 0), ConnectionsCapacity!$A$6, Connections[[#Headers],[Delivery year ending March]], O$6 - 1, Connections[[#Headers],[ConnectionStatus (Delivered/Forecast)]], "Delivered", Connections[[#Headers],[Usage?]], "Sole", Connections[[#Headers],[Type?]], "Atypical" ), 0 ) -> 0 | P23: =IFERROR( GETPIVOTDATA( TEXT(Connections[[#Headers],[Generation connection capacity (MW/MVA)]], 0), ConnectionsCapacity!$A$6, Connections[[#Headers],[Delivery year ending March]], P$6 - 1, Connections[[#Headers],[ConnectionStatus (Delivered/Forecast)]], "Delivered", Connections[[#Headers],[Usage?]], "Sole", Connections[[#Headers],[Type?]], "Atypical" ), 0 ) -> 0
B24: DASLG n (Delivered) | C24: MVA | G24: =IFERROR( GETPIVOTDATA( TEXT(Connections[[#Headers],[Generation connection capacity (MW/MVA)]], 0), ConnectionsCapacity!$A$6, Connections[[#Headers],[Delivery year ending March]], G$6, Connections[[#Headers],[ConnectionStatus (Delivered/Forecast)]], "Delivered", Connections[[#Headers],[Usage?]], "Sole", Connections[[#Headers],[Type?]], "Atypical" ), 0 ) -> 0 | H24: =IFERROR( GETPIVOTDATA( TEXT(Connections[[#Headers],[Generation connection capacity (MW/MVA)]], 0), ConnectionsCapacity!$A$6, Connections[[#Headers],[Delivery year ending March]], H$6, Connections[[#Headers],[ConnectionStatus (Delivered/Forecast)]], "Delivered", Connections[[#Headers],[Usage?]], "Sole", Connections[[#Headers],[Type?]], "Atypical" ), 0 ) -> 0 | I24: =IFERROR( GETPIVOTDATA( TEXT(Connections[[#Headers],[Generation connection capacity (MW/MVA)]], 0), ConnectionsCapacity!$A$6, Connections[[#Headers],[Delivery year ending March]], I$6, Connections[[#Headers],[ConnectionStatus (Delivered/Forecast)]], "Delivered", Connections[[#Headers],[Usage?]], "Sole", Connections[[#Headers],[Type?]], "Atypical" ), 0 ) -> 0 | J24: =IFERROR( GETPIVOTDATA( TEXT(Connections[[#Headers],[Generation connection capacity (MW/MVA)]], 0), ConnectionsCapacity!$A$6, Connections[[#Headers],[Delivery year ending March]], J$6, Connections[[#Headers],[ConnectionStatus (Delivered/Forecast)]], "Delivered", Connections[[#Headers],[Usage?]], "Sole", Connections[[#Headers],[Type?]], "Atypical" ), 0 ) -> 0 | K24: =IFERROR( GETPIVOTDATA( TEXT(Connections[[#Headers],[Generation connection capacity (MW/MVA)]], 0), ConnectionsCapacity!$A$6, Connections[[#Headers],[Delivery year ending March]], K$6, Connections[[#Headers],[ConnectionStatus (Delivered/Forecast)]], "Delivered", Connections[[#Headers],[Usage?]], "Sole", Connections[[#Headers],[Type?]], "Atypical" ), 0 ) -> 400 | L24: =IFERROR( GETPIVOTDATA( TEXT(Connections[[#Headers],[Generation connection capacity (MW/MVA)]], 0), ConnectionsCapacity!$A$6, Connections[[#Headers],[Delivery year ending March]], L$6, Connections[[#Headers],[ConnectionStatus (Delivered/Forecast)]], "Delivered", Connections[[#Headers],[Usage?]], "Sole", Connections[[#Headers],[Type?]], "Atypical" ), 0 ) -> 0 | M24: =IFERROR( GETPIVOTDATA( TEXT(Connections[[#Headers],[Generation connection capacity (MW/MVA)]], 0), ConnectionsCapacity!$A$6, Connections[[#Headers],[Delivery year ending March]], M$6, Connections[[#Headers],[ConnectionStatus (Delivered/Forecast)]], "Delivered", Connections[[#Headers],[Usage?]], "Sole", Connections[[#Headers],[Type?]], "Atypical" ), 0 ) -> 400 | N24: =IFERROR( GETPIVOTDATA( TEXT(Connections[[#Headers],[Generation connection capacity (MW/MVA)]], 0), ConnectionsCapacity!$A$6, Connections[[#Headers],[Delivery year ending March]], N$6, Connections[[#Headers],[ConnectionStatus (Delivered/Forecast)]], "Delivered", Connections[[#Headers],[Usage?]], "Sole", Connections[[#Headers],[Type?]], "Atypical" ), 0 ) -> 0 | O24: =IFERROR( GETPIVOTDATA( TEXT(Connections[[#Headers],[Generation connection capacity (MW/MVA)]], 0), ConnectionsCapacity!$A$6, Connections[[#Headers],[Delivery year ending March]], O$6, Connections[[#Headers],[ConnectionStatus (Delivered/Forecast)]], "Delivered", Connections[[#Headers],[Usage?]], "Sole", Connections[[#Headers],[Type?]], "Atypical" ), 0 ) -> 0 | P24: =IFERROR( GETPIVOTDATA( TEXT(Connections[[#Headers],[Generation connection capacity (MW/MVA)]], 0), ConnectionsCapacity!$A$6, Connections[[#Headers],[Delivery year ending March]], P$6, Connections[[#Headers],[ConnectionStatus (Delivered/Forecast)]], "Delivered", Connections[[#Headers],[Usage?]], "Sole", Connections[[#Headers],[Type?]], "Atypical" ), 0 ) -> 0
B25: DASLG n - 1 (Forecast) | C25: MVA | G25: =IFERROR( GETPIVOTDATA( TEXT(Connections[[#Headers],[Generation connection capacity (MW/MVA)]], 0), ConnectionsCapacity!$A$6, Connections[[#Headers],[Delivery year ending March]], G$6 - 1, Connections[[#Headers],[ConnectionStatus (Delivered/Forecast)]], "Forecast", Connections[[#Headers],[Usage?]], "Sole", Connections[[#Headers],[Type?]], "Atypical" ), 0 ) -> 0 | H25: =IFERROR( GETPIVOTDATA( TEXT(Connections[[#Headers],[Generation connection capacity (MW/MVA)]], 0), ConnectionsCapacity!$A$6, Connections[[#Headers],[Delivery year ending March]], H$6 - 1, Connections[[#Headers],[ConnectionStatus (Delivered/Forecast)]], "Forecast", Connections[[#Headers],[Usage?]], "Sole", Connections[[#Headers],[Type?]], "Atypical" ), 0 ) -> 0 | I25: =IFERROR( GETPIVOTDATA( TEXT(Connections[[#Headers],[Generation connection capacity (MW/MVA)]], 0), ConnectionsCapacity!$A$6, Connections[[#Headers],[Delivery year ending March]], I$6 - 1, Connections[[#Headers],[ConnectionStatus (Delivered/Forecast)]], "Forecast", Connections[[#Headers],[Usage?]], "Sole", Connections[[#Headers],[Type?]], "Atypical" ), 0 ) -> 0 | J25: =IFERROR( GETPIVOTDATA( TEXT(Connections[[#Headers],[Generation connection capacity (MW/MVA)]], 0), ConnectionsCapacity!$A$6, Connections[[#Headers],[Delivery year ending March]], J$6 - 1, Connections[[#Headers],[ConnectionStatus (Delivered/Forecast)]], "Forecast", Connections[[#Headers],[Usage?]], "Sole", Connections[[#Headers],[Type?]], "Atypical" ), 0 ) -> 0 | K25: =IFERROR( GETPIVOTDATA( TEXT(Connections[[#Headers],[Generation connection capacity (MW/MVA)]], 0), ConnectionsCapacity!$A$6, Connections[[#Headers],[Delivery year ending March]], K$6 - 1, Connections[[#Headers],[ConnectionStatus (Delivered/Forecast)]], "Forecast", Connections[[#Headers],[Usage?]], "Sole", Connections[[#Headers],[Type?]], "Atypical" ), 0 ) -> 0 | L25: =IFERROR( GETPIVOTDATA( TEXT(Connections[[#Headers],[Generation connection capacity (MW/MVA)]], 0), ConnectionsCapacity!$A$6, Connections[[#Headers],[Delivery year ending March]], L$6 - 1, Connections[[#Headers],[ConnectionStatus (Delivered/Forecast)]], "Forecast", Connections[[#Headers],[Usage?]], "Sole", Connections[[#Headers],[Type?]], "Atypical" ), 0 ) -> 0 | M25: =IFERROR( GETPIVOTDATA( TEXT(Connections[[#Headers],[Generation connection capacity (MW/MVA)]], 0), ConnectionsCapacity!$A$6, Connections[[#Headers],[Delivery year ending March]], M$6 - 1, Connections[[#Headers],[ConnectionStatus (Delivered/Forecast)]], "Forecast", Connections[[#Headers],[Usage?]], "Sole", Connections[[#Headers],[Type?]], "Atypical" ), 0 ) -> 0 | N25: =IFERROR( GETPIVOTDATA( TEXT(Connections[[#Headers],[Generation connection capacity (MW/MVA)]], 0), ConnectionsCapacity!$A$6, Connections[[#Headers],[Delivery year ending March]], N$6 - 1, Connections[[#Headers],[ConnectionStatus (Delivered/Forecast)]], "Forecast", Connections[[#Headers],[Usage?]], "Sole", Connections[[#Headers],[Type?]], "Atypical" ), 0 ) -> 0 | O25: =IFERROR( GETPIVOTDATA( TEXT(Connections[[#Headers],[Generation connection capacity (MW/MVA)]], 0), ConnectionsCapacity!$A$6, Connections[[#Headers],[Delivery year ending March]], O$6 - 1, Connections[[#Headers],[ConnectionStatus (Delivered/Forecast)]], "Forecast", Connections[[#Headers],[Usage?]], "Sole", Connections[[#Headers],[Type?]], "Atypical" ), 0 ) -> 0 | P25: =IFERROR( GETPIVOTDATA( TEXT(Connections[[#Headers],[Generation connection capacity (MW/MVA)]], 0), ConnectionsCapacity!$A$6, Connections[[#Headers],[Delivery year ending March]], P$6 - 1, Connections[[#Headers],[ConnectionStatus (Delivered/Forecast)]], "Forecast", Connections[[#Headers],[Usage?]], "Sole", Connections[[#Headers],[Type?]], "Atypical" ), 0 ) -> 0
B26: DASLG n (Forecast) | C26: MVA | G26: =IFERROR( GETPIVOTDATA( TEXT(Connections[[#Headers],[Generation connection capacity (MW/MVA)]], 0), ConnectionsCapacity!$A$6, Connections[[#Headers],[Delivery year ending March]], G$6, Connections[[#Headers],[ConnectionStatus (Delivered/Forecast)]], "Forecast", Connections[[#Headers],[Usage?]], "Sole", Connections[[#Headers],[Type?]], "Atypical" ), 0 ) -> 0 | H26: =IFERROR( GETPIVOTDATA( TEXT(Connections[[#Headers],[Generation connection capacity (MW/MVA)]], 0), ConnectionsCapacity!$A$6, Connections[[#Headers],[Delivery year ending March]], H$6, Connections[[#Headers],[ConnectionStatus (Delivered/Forecast)]], "Forecast", Connections[[#Headers],[Usage?]], "Sole", Connections[[#Headers],[Type?]], "Atypical" ), 0 ) -> 0 | I26: =IFERROR( GETPIVOTDATA( TEXT(Connections[[#Headers],[Generation connection capacity (MW/MVA)]], 0), ConnectionsCapacity!$A$6, Connections[[#Headers],[Delivery year ending March]], I$6, Connections[[#Headers],[ConnectionStatus (Delivered/Forecast)]], "Forecast", Connections[[#Headers],[Usage?]], "Sole", Connections[[#Headers],[Type?]], "Atypical" ), 0 ) -> 0 | J26: =IFERROR( GETPIVOTDATA( TEXT(Connections[[#Headers],[Generation connection capacity (MW/MVA)]], 0), ConnectionsCapacity!$A$6, Connections[[#Headers],[Delivery year ending March]], J$6, Connections[[#Headers],[ConnectionStatus (Delivered/Forecast)]], "Forecast", Connections[[#Headers],[Usage?]], "Sole", Connections[[#Headers],[Type?]], "Atypical" ), 0 ) -> 0 | K26: =IFERROR( GETPIVOTDATA( TEXT(Connections[[#Headers],[Generation connection capacity (MW/MVA)]], 0), ConnectionsCapacity!$A$6, Connections[[#Headers],[Delivery year ending March]], K$6, Connections[[#Headers],[ConnectionStatus (Delivered/Forecast)]], "Forecast", Connections[[#Headers],[Usage?]], "Sole", Connections[[#Headers],[Type?]], "Atypical" ), 0 ) -> 0 | L26: =IFERROR( GETPIVOTDATA( TEXT(Connections[[#Headers],[Generation connection capacity (MW/MVA)]], 0), ConnectionsCapacity!$A$6, Connections[[#Headers],[Delivery year ending March]], L$6, Connections[[#Headers],[ConnectionStatus (Delivered/Forecast)]], "Forecast", Connections[[#Headers],[Usage?]], "Sole", Connections[[#Headers],[Type?]], "Atypical" ), 0 ) -> 0 | M26: =IFERROR( GETPIVOTDATA( TEXT(Connections[[#Headers],[Generation connection capacity (MW/MVA)]], 0), ConnectionsCapacity!$A$6, Connections[[#Headers],[Delivery year ending March]], M$6, Connections[[#Headers],[ConnectionStatus (Delivered/Forecast)]], "Forecast", Connections[[#Headers],[Usage?]], "Sole", Connections[[#Headers],[Type?]], "Atypical" ), 0 ) -> 0 | N26: =IFERROR( GETPIVOTDATA( TEXT(Connections[[#Headers],[Generation connection capacity (MW/MVA)]], 0), ConnectionsCapacity!$A$6, Connections[[#Headers],[Delivery year ending March]], N$6, Connections[[#Headers],[ConnectionStatus (Delivered/Forecast)]], "Forecast", Connections[[#Headers],[Usage?]], "Sole", Connections[[#Headers],[Type?]], "Atypical" ), 0 ) -> 0 | O26: =IFERROR( GETPIVOTDATA( TEXT(Connections[[#Headers],[Generation connection capacity (MW/MVA)]], 0), ConnectionsCapacity!$A$6, Connections[[#Headers],[Delivery year ending March]], O$6, Connections[[#Headers],[ConnectionStatus (Delivered/Forecast)]], "Forecast", Connections[[#Headers],[Usage?]], "Sole", Connections[[#Headers],[Type?]], "Atypical" ), 0 ) -> 0 | P26: =IFERROR( GETPIVOTDATA( TEXT(Connections[[#Headers],[Generation connection capacity (MW/MVA)]], 0), ConnectionsCapacity!$A$6, Connections[[#Headers],[Delivery year ending March]], P$6, Connections[[#Headers],[ConnectionStatus (Delivered/Forecast)]], "Forecast", Connections[[#Headers],[Usage?]], "Sole", Connections[[#Headers],[Type?]], "Atypical" ), 0 ) -> 0
B27: ASLF n - 1 (Delivered + Forecast) | C27: MVA | G27: =G23+G25 -> 0 | H27: =H23+H25 -> 0 | I27: 0 | J27: 0 | K27: 0 | L27: 400 | M27: 0 | N27: 400 | O27: 0 | P27: 0
B28: ASLF n (Delivered + Forecast) | C28: MVA | G28: =G24+G26 -> 0 | H28: 0 | I28: 0 | J28: 0 | K28: 400 | L28: 0 | M28: 400 | N28: 0 | O28: 0 | P28: 0
B30: FASLA t, n | C30: £m 2009/10 Prices | D30: m = | E30: 0 | F30: n - m - 1= | G30: =IF( G$6 - $E30 - 1 < 2014, "exclude", G$6 - $E30 - 1 ) -> exclude | H30: =IF( H$6 - $E30 - 1 < 2014, "exclude", H$6 - $E30 - 1 ) -> 2014 | I30: 2015 | J30: 2016 | K30: 2017 | L30: 2018 | M30: 2019 | N30: 2020 | O30: 2021 | P30: 2022
B31: t (Year ending March) =
B32: 2014 | G32: =IF( G$30 = "exclude", 0, IF(OR($B32 >= G$30 + 3, G$30 > $B32, G$6 <= $B32), 0, MAX(0,G$28-MAX(G$27,G$24)) * $E$20 * INDEX($G$22:$P$22, 1, MATCH(G$30,$G$6:$P$6,FALSE)) / 4 ) ) -> 0 | H32: =IF( H$30 = "exclude", 0, IF(OR($B32 >= H$30 + 3, H$30 > $B32, H$6 <= $B32), 0, MAX(0,H$28-MAX(H$27,H$24)) * $E$20 * INDEX($G$22:$P$22, 1, MATCH(H$30,$G$6:$P$6,FALSE)) / 4 ) ) -> 0 | I32: 0 | J32: 0 | K32: 0 | L32: 0 | M32: 0 | N32: 0 | O32: 0 | P32: 0
B33: 2015 | G33: =IF( G$30 = "exclude", 0, IF(OR($B33 >= G$30 + 3, G$30 > $B33, G$6 <= $B33), 0, MAX(0,G$28-MAX(G$27,G$24)) * $E$20 * INDEX($G$22:$P$22, 1, MATCH(G$30,$G$6:$P$6,FALSE)) / 4 ) ) -> 0 | H33: 0 | I33: 0 | J33: 0 | K33: 0 | L33: 0 | M33: 0 | N33: 0 | O33: 0 | P33: 0
B34: 2016 | G34: 0 | H34: 0 | I34: 0 | J34: 0 | K34: 0 | L34: 0 | M34: 0 | N34: 0 | O34: 0 | P34: 0
B35: 2017 | G35: 0 | H35: 0 | I35: 0 | J35: 0 | K35: 0 | L35: 0 | M35: 0 | N35: 0 | O35: 0 | P35: 0
B36: 2018 | G36: 0 | H36: 0 | I36: 0 | J36: 0 | K36: 0 | L36: 0 | M36: 0 | N36: 0 | O36: 0 | P36: 0
B37: 2019 | G37: 0 | H37: 0 | I37: 0 | J37: 0 | K37: 0 | L37: 0 | M37: 0 | N37: 0 | O37: 0 | P37: 0
B38: 2020 | G38: 0 | H38: 0 | I38: 0 | J38: 0 | K38: 0 | L38: 0 | M38: 0 | N38: 0 | O38: 0 | P38: 0
B39: 2021 | G39: 0 | H39: 0 | I39: 0 | J39: 0 | K39: 0 | L39: 0 | M39: 0 | N39: 0 | O39: 0 | P39: 0
B40: 2022 | G40: 0 | H40: 0 | I40: 0 | J40: 0 | K40: 0 | L40: 0 | M40: 0 | N40: 0 | O40: 0 | P40: 0
B41: 2023 | G41: 0 | H41: 0 | I41: 0 | J41: 0 | K41: 0 | L41: 0 | M41: 0 | N41: 0 | O41: 0 | P41: 0
B43: FASLA t, n | C43: £m 2009/10 Prices | D43: m = | E43: 1 | F43: n - m - 1= | G43: =IF( G$6 - $E43 - 1 < 2014, "exclude", G$6 - $E43 - 1 ) -> exclude | H43: =IF( H$6 - $E43 - 1 < 2014, "exclude", H$6 - $E43 - 1 ) -> exclude | I43: 2014 | J43: 2015 | K43: 2016 | L43: 2017 | M43: 2018 | N43: 2019 | O43: 2020 | P43: 2021
B44: t (Year ending March) =
B45: 2014 | G45: =IF( G$43 = "exclude", 0, IF(OR($B45 >= G$43 + 3, G$43 > $B45, G$6 <= $B45), 0, MAX(0,G$28-MAX(G$27,G$24)) * $E$20 * INDEX($G$22:$P$22, 1, MATCH(G$43,$G$6:$P$6,FALSE)) / 4 ) ) -> 0 | H45: =IF( H$43 = "exclude", 0, IF(OR($B45 >= H$43 + 3, H$43 > $B45, H$6 <= $B45), 0, MAX(0,H$28-MAX(H$27,H$24)) * $E$20 * INDEX($G$22:$P$22, 1, MATCH(H$43,$G$6:$P$6,FALSE)) / 4 ) ) -> 0 | I45: 0 | J45: 0 | K45: 0 | L45: 0 | M45: 0 | N45: 0 | O45: 0 | P45: 0
B46: 2015 | G46: =IF( G$43 = "exclude", 0, IF(OR($B46 >= G$43 + 3, G$43 > $B46, G$6 <= $B46), 0, MAX(0,G$28-MAX(G$27,G$24)) * $E$20 * INDEX($G$22:$P$22, 1, MATCH(G$43,$G$6:$P$6,FALSE)) / 4 ) ) -> 0 | H46: 0 | I46: 0 | J46: 0 | K46: 0 | L46: 0 | M46: 0 | N46: 0 | O46: 0 | P46: 0
B47: 2016 | G47: 0 | H47: 0 | I47: 0 | J47: 0 | K47: 0 | L47: 0 | M47: 0 | N47: 0 | O47: 0 | P47: 0
B48: 2017 | G48: 0 | H48: 0 | I48: 0 | J48: 0 | K48: 0 | L48: 0 | M48: 0 | N48: 0 | O48: 0 | P48: 0
B49: 2018 | G49: 0 | H49: 0 | I49: 0 | J49: 0 | K49: 0 | L49: 0 | M49: 0 | N49: 0 | O49: 0 | P49: 0
B50: 2019 | G50: 0 | H50: 0 | I50: 0 | J50: 0 | K50: 0 | L50: 0 | M50: 0 | N50: 0 | O50: 0 | P50: 0
B51: 2020 | G51: 0 | H51: 0 | I51: 0 | J51: 0 | K51: 0 | L51: 0 | M51: 0 | N51: 0 | O51: 0 | P51: 0
B52: 2021 | G52: 0 | H52: 0 | I52: 0 | J52: 0 | K52: 0 | L52: 0 | M52: 0 | N52: 0 | O52: 0 | P52: 0
B53: 2022 | G53: 0 | H53: 0 | I53: 0 | J53: 0 | K53: 0 | L53: 0 | M53: 0 | N53: 0 | O53: 0 | P53: 0
B54: 2023 | G54: 0 | H54: 0 | I54: 0 | J54: 0 | K54: 0 | L54: 0 | M54: 0 | N54: 0 | O54: 0 | P54: 0
B56: FASLA t, n | C56: £m 2009/10 Prices | D56: m = | E56: 2 | F56: n - m - 1= | G56: =IF( G$6 - $E56 - 1 < 2014, "exclude", G$6 - $E56 - 1 ) -> exclude | H56: =IF( H$6 - $E56 - 1 < 2014, "exclude", H$6 - $E56 - 1 ) -> exclude | I56: exclude | J56: 2014 | K56: 2015 | L56: 2016 | M56: 2017 | N56: 2018 | O56: 2019 | P56: 2020
B57: t (Year ending March) =
B58: 2014 | G58: =IF( G$56 = "exclude", 0, IF(OR($B58 >= G$56 + 3, G$56 > $B58, G$6 <= $B58), 0, MAX(0,G$28-MAX(G$27,G$24)) * $E$20 * INDEX($G$22:$P$22, 1, MATCH(G$56,$G$6:$P$6,FALSE)) / 4 ) ) -> 0 | H58: =IF( H$56 = "exclude", 0, IF(OR($B58 >= H$56 + 3, H$56 > $B58, H$6 <= $B58), 0, MAX(0,H$28-MAX(H$27,H$24)) * $E$20 * INDEX($G$22:$P$22, 1, MATCH(H$56,$G$6:$P$6,FALSE)) / 4 ) ) -> 0 | I58: 0 | J58: 0 | K58: 0 | L58: 0 | M58: 0 | N58: 0 | O58: 0 | P58: 0
B59: 2015 | G59: =IF( G$56 = "exclude", 0, IF(OR($B59 >= G$56 + 3, G$56 > $B59, G$6 <= $B59), 0, MAX(0,G$28-MAX(G$27,G$24)) * $E$20 * INDEX($G$22:$P$22, 1, MATCH(G$56,$G$6:$P$6,FALSE)) / 4 ) ) -> 0 | H59: 0 | I59: 0 | J59: 0 | K59: 0 | L59: 0 | M59: 0 | N59: 0 | O59: 0 | P59: 0
B60: 2016 | G60: 0 | H60: 0 | I60: 0 | J60: 0 | K60: 0 | L60: 0 | M60: 0 | N60: 0 | O60: 0 | P60: 0
B61: 2017 | G61: 0 | H61: 0 | I61: 0 | J61: 0 | K61: 0 | L61: 0 | M61: 0 | N61: 0 | O61: 0 | P61: 0
B62: 2018 | G62: 0 | H62: 0 | I62: 0 | J62: 0 | K62: 0 | L62: 0 | M62: 0 | N62: 0 | O62: 0 | P62: 0
B63: 2019 | G63: 0 | H63: 0 | I63: 0 | J63: 0 | K63: 0 | L63: 0 | M63: 0 | N63: 0 | O63: 0 | P63: 0
B64: 2020 | G64: 0 | H64: 0 | I64: 0 | J64: 0 | K64: 0 | L64: 0 | M64: 0 | N64: 0 | O64: 0 | P64: 0
B65: 2021 | G65: 0 | H65: 0 | I65: 0 | J65: 0 | K65: 0 | L65: 0 | M65: 0 | N65: 0 | O65: 0 | P65: 0
B66: 2022 | G66: 0 | H66: 0 | I66: 0 | J66: 0 | K66: 0 | L66: 0 | M66: 0 | N66: 0 | O66: 0 | P66: 0
B67: 2023 | G67: 0 | H67: 0 | I67: 0 | J67: 0 | K67: 0 | L67: 0 | M67: 0 | N67: 0 | O67: 0 | P67: 0

Sheet DASHE
A1: DASHE - Atypical Shared-Use Allowed Expenditure for Delivered Connections Capacity
B6: Parameter | C6: Units | E6: Constant | F6: n= | G6: 2014 | H6: 2015 | I6: 2016 | J6: 2017 | K6: 2018 | L6: 2019 | M6: 2020 | N6: 2021 | O6: 2022 | P6: 2023 | R6: Total
B7: DASHE t, n | C7: £m 2009/10 Prices
B8: t (Year ending March) =
B9: 2014 | G9: =G50 + G24 + G37 -> 0 | H9: =H50 + H24 + H37 -> 0 | I9: 0 | J9: 0 | K9: 0 | L9: 0 | M9: 0 | N9: 0 | O9: 0 | P9: 0 | R9: =SUM(G9:P9) -> 0 | S9: =SUMIF(G$6:P$6, "<=" & $B9, $G9:$P9) -> 0
B10: 2015 | G10: =G51 + G25 + G38 -> 0 | H10: 0 | I10: 0 | J10: 0 | K10: 0 | L10: 0 | M10: 0 | N10: 0 | O10: 0 | P10: 0 | R10: 0 | S10: =SUMIF(G$6:P$6, "<=" & $B10, $G10:$P10) -> 0
B11: 2016 | G11: 0 | H11: 0 | I11: 0 | J11: 0 | K11: 0 | L11: 0 | M11: 0 | N11: 0 | O11: 0 | P11: 0 | R11: 0 | S11: 0
B12: 2017 | G12: 0 | H12: 0 | I12: 0 | J12: 0 | K12: 0 | L12: 0 | M12: 0 | N12: 0 | O12: 0 | P12: 0 | R12: 0 | S12: 0
B13: 2018 | G13: 0 | H13: 0 | I13: 0 | J13: 0 | K13: 0 | L13: 0 | M13: 0 | N13: 0 | O13: 0 | P13: 0 | R13: 0 | S13: 0
B14: 2019 | G14: 0 | H14: 0 | I14: 0 | J14: 0 | K14: 0 | L14: 0 | M14: 0 | N14: 0 | O14: 0 | P14: 0 | R14: 0 | S14: 0
B15: 2020 | G15: 0 | H15: 0 | I15: 0 | J15: 0 | K15: 0 | L15: 0 | M15: 0 | N15: 0 | O15: 0 | P15: 0 | R15: 0 | S15: 0
B16: 2021 | G16: 0 | H16: 0 | I16: 0 | J16: 0 | K16: 0 | L16: 0 | M16: 0 | N16: 0 | O16: 0 | P16: 0 | R16: 0 | S16: 0
B17: 2022 | G17: 0 | H17: 0 | I17: 0 | J17: 0 | K17: 0 | L17: 0 | M17: 0 | N17: 0 | O17: 0 | P17: 0 | R17: 0 | S17: 0
B18: 2023 | G18: 0 | H18: 0 | I18: 0 | J18: 0 | K18: 0 | L18: 0 | M18: 0 | N18: 0 | O18: 0 | P18: 0 | R18: 0 | S18: 0
B20: DASLG n | C20: MVA | G20: =IFERROR( GETPIVOTDATA( TEXT(Connections[[#Headers],[Generation connection capacity (MW/MVA)]], 0), ConnectionsCapacity!$A$6, Connections[[#Headers],[Delivery year ending March]], G$6, Connections[[#Headers],[ConnectionStatus (Delivered/Forecast)]], "Delivered", Connections[[#Headers],[Usage?]], "Sole", Connections[[#Headers],[Type?]], "Typical" ), 0 ) -> 0 | H20: =IFERROR( GETPIVOTDATA( TEXT(Connections[[#Headers],[Generation connection capacity (MW/MVA)]], 0), ConnectionsCapacity!$A$6, Connections[[#Headers],[Delivery year ending March]], H$6, Connections[[#Headers],[ConnectionStatus (Delivered/Forecast)]], "Delivered", Connections[[#Headers],[Usage?]], "Sole", Connections[[#Headers],[Type?]], "Typical" ), 0 ) -> 0 | I20: =IFERROR( GETPIVOTDATA( TEXT(Connections[[#Headers],[Generation connection capacity (MW/MVA)]], 0), ConnectionsCapacity!$A$6, Connections[[#Headers],[Delivery year ending March]], I$6, Connections[[#Headers],[ConnectionStatus (Delivered/Forecast)]], "Delivered", Connections[[#Headers],[Usage?]], "Sole", Connections[[#Headers],[Type?]], "Typical" ), 0 ) -> 0 | J20: =IFERROR( GETPIVOTDATA( TEXT(Connections[[#Headers],[Generation connection capacity (MW/MVA)]], 0), ConnectionsCapacity!$A$6, Connections[[#Headers],[Delivery year ending March]], J$6, Connections[[#Headers],[ConnectionStatus (Delivered/Forecast)]], "Delivered", Connections[[#Headers],[Usage?]], "Sole", Connections[[#Headers],[Type?]], "Typical" ), 0 ) -> 1000 | K20: =IFERROR( GETPIVOTDATA( TEXT(Connections[[#Headers],[Generation connection capacity (MW/MVA)]], 0), ConnectionsCapacity!$A$6, Connections[[#Headers],[Delivery year ending March]], K$6, Connections[[#Headers],[ConnectionStatus (Delivered/Forecast)]], "Delivered", Connections[[#Headers],[Usage?]], "Sole", Connections[[#Headers],[Type?]], "Typical" ), 0 ) -> 1000 | L20: =IFERROR( GETPIVOTDATA( TEXT(Connections[[#Headers],[Generation connection capacity (MW/MVA)]], 0), ConnectionsCapacity!$A$6, Connections[[#Headers],[Delivery year ending March]], L$6, Connections[[#Headers],[ConnectionStatus (Delivered/Forecast)]], "Delivered", Connections[[#Headers],[Usage?]], "Sole", Connections[[#Headers],[Type?]], "Typical" ), 0 ) -> 0 | M20: =IFERROR( GETPIVOTDATA( TEXT(Connections[[#Headers],[Generation connection capacity (MW/MVA)]], 0), ConnectionsCapacity!$A$6, Connections[[#Headers],[Delivery year ending March]], M$6, Connections[[#Headers],[ConnectionStatus (Delivered/Forecast)]], "Delivered", Connections[[#Headers],[Usage?]], "Sole", Connections[[#Headers],[Type?]], "Typical" ), 0 ) -> 1000 | N20: =IFERROR( GETPIVOTDATA( TEXT(Connections[[#Headers],[Generation connection capacity (MW/MVA)]], 0), ConnectionsCapacity!$A$6, Connections[[#Headers],[Delivery year ending March]], N$6, Connections[[#Headers],[ConnectionStatus (Delivered/Forecast)]], "Delivered", Connections[[#Headers],[Usage?]], "Sole", Connections[[#Headers],[Type?]], "Typical" ), 0 ) -> 0 | O20: =IFERROR( GETPIVOTDATA( TEXT(Connections[[#Headers],[Generation connection capacity (MW/MVA)]], 0), ConnectionsCapacity!$A$6, Connections[[#Headers],[Delivery year ending March]], O$6, Connections[[#Headers],[ConnectionStatus (Delivered/Forecast)]], "Delivered", Connections[[#Headers],[Usage?]], "Sole", Connections[[#Headers],[Type?]], "Typical" ), 0 ) -> 0 | P20: =IFERROR( GETPIVOTDATA( TEXT(Connections[[#Headers],[Generation connection capacity (MW/MVA)]], 0), ConnectionsCapacity!$A$6, Connections[[#Headers],[Delivery year ending March]], P$6, Connections[[#Headers],[ConnectionStatus (Delivered/Forecast)]], "Delivered", Connections[[#Headers],[Usage?]], "Sole", Connections[[#Headers],[Type?]], "Typical" ), 0 ) -> 0
B22: OASHE t, n | C22: £m 2009/10 Prices
B23: t (Year ending March) =
B24: 2014 | G24: =OASHE!G9 -> 0 | H24: =OASHE!H9 -> 0 | I24: =OASHE!I9 -> 0 | J24: =OASHE!J9 -> 0 | K24: =OASHE!K9 -> 0 | L24: =OASHE!L9 -> 0 | M24: =OASHE!M9 -> 0 | N24: =OASHE!N9 -> 0 | O24: =OASHE!O9 -> 0 | P24: =OASHE!P9 -> 0 | R24: =SUM(G24:P24) -> 0 | S24: =SUMIF(G$6:P$6, "<=" & $B24, $G24:$P24) -> 0
B25: 2015 | G25: =OASHE!G10 -> 0 | H25: =OASHE!H10 -> 0 | I25: =OASHE!I10 -> 0 | J25: =OASHE!J10 -> 0 | K25: =OASHE!K10 -> 0 | L25: =OASHE!L10 -> 0 | M25: =OASHE!M10 -> 0 | N25: =OASHE!N10 -> 0 | O25: =OASHE!O10 -> 0 | P25: =OASHE!P10 -> 0 | R25: 0 | S25: =SUMIF(G$6:P$6, "<=" & $B25, $G25:$P25) -> 0
B26: 2016 | G26: =OASHE!G11 -> 0 | H26: =OASHE!H11 -> 0 | I26: =OASHE!I11 -> 0 | J26: =OASHE!J11 -> 0 | K26: =OASHE!K11 -> 0 | L26: =OASHE!L11 -> 0 | M26: =OASHE!M11 -> 0 | N26: =OASHE!N11 -> 0 | O26: =OASHE!O11 -> 0 | P26: =OASHE!P11 -> 0 | R26: 0 | S26: 0
B27: 2017 | G27: =OASHE!G12 -> 0 | H27: =OASHE!H12 -> 0 | I27: =OASHE!I12 -> 0 | J27: =OASHE!J12 -> 0 | K27: =OASHE!K12 -> 0 | L27: =OASHE!L12 -> 0 | M27: =OASHE!M12 -> 0 | N27: =OASHE!N12 -> 0 | O27: =OASHE!O12 -> 0 | P27: =OASHE!P12 -> 0 | R27: 0 | S27: 0
B28: 2018 | G28: =OASHE!G13 -> 0 | H28: =OASHE!H13 -> 0 | I28: =OASHE!I13 -> 0 | J28: =OASHE!J13 -> 0 | K28: =OASHE!K13 -> 0 | L28: =OASHE!L13 -> 0 | M28: =OASHE!M13 -> 0 | N28: =OASHE!N13 -> 0 | O28: =OASHE!O13 -> 0 | P28: =OASHE!P13 -> 0 | R28: 0 | S28: 0
B29: 2019 | G29: =OASHE!G14 -> 0 | H29: =OASHE!H14 -> 0 | I29: =OASHE!I14 -> 0 | J29: =OASHE!J14 -> 0 | K29: =OASHE!K14 -> 0 | L29: =OASHE!L14 -> 0 | M29: =OASHE!M14 -> 0 | N29: =OASHE!N14 -> 0 | O29: =OASHE!O14 -> 0 | P29: =OASHE!P14 -> 0 | R29: 0 | S29: 0
B30: 2020 | G30: =OASHE!G15 -> 0 | H30: =OASHE!H15 -> 0 | I30: =OASHE!I15 -> 0 | J30: =OASHE!J15 -> 0 | K30: =OASHE!K15 -> 0 | L30: =OASHE!L15 -> 0 | M30: =OASHE!M15 -> 0 | N30: =OASHE!N15 -> 0 | O30: =OASHE!O15 -> 0 | P30: =OASHE!P15 -> 0 | R30: 0 | S30: 0
B31: 2021 | G31: =OASHE!G16 -> 0 | H31: =OASHE!H16 -> 0 | I31: =OASHE!I16 -> 0 | J31: =OASHE!J16 -> 0 | K31: =OASHE!K16 -> 0 | L31: =OASHE!L16 -> 0 | M31: =OASHE!M16 -> 0 | N31: =OASHE!N16 -> 0 | O31: =OASHE!O16 -> 0 | P31: =OASHE!P16 -> 0 | R31: 0 | S31: 0
B32: 2022 | G32: =OASHE!G17 -> 0 | H32: =OASHE!H17 -> 0 | I32: =OASHE!I17 -> 0 | J32: =OASHE!J17 -> 0 | K32: =OASHE!K17 -> 0 | L32: =OASHE!L17 -> 0 | M32: =OASHE!M17 -> 0 | N32: =OASHE!N17 -> 0 | O32: =OASHE!O17 -> 0 | P32: =OASHE!P17 -> 0 | R32: 0 | S32: 0
B33: 2023 | G33: =OASHE!G18 -> 0 | H33: =OASHE!H18 -> 0 | I33: =OASHE!I18 -> 0 | J33: =OASHE!J18 -> 0 | K33: =OASHE!K18 -> 0 | L33: =OASHE!L18 -> 0 | M33: =OASHE!M18 -> 0 | N33: =OASHE!N18 -> 0 | O33: =OASHE!O18 -> 0 | P33: =OASHE!P18 -> 0 | R33: 0 | S33: 0
B35: OPASH t - n | C35: £m 2009/10 Prices
B36: t (Year ending March) =
B37: 2014 | G37: =OPASHE!G16 -> 0 | H37: =OPASHE!H16 -> 0 | I37: =OPASHE!I16 -> 0 | J37: =OPASHE!J16 -> 0 | K37: =OPASHE!K16 -> 0 | L37: =OPASHE!L16 -> 0 | M37: =OPASHE!M16 -> 0 | N37: =OPASHE!N16 -> 0 | O37: =OPASHE!O16 -> 0 | P37: =OPASHE!P16 -> 0 | R37: =SUM(G37:P37) -> 0 | S37: =SUMIF(G$6:P$6, "<=" & $B37, $G37:$P37) -> 0
B38: 2015 | G38: =OPASHE!G17 -> 0 | H38: =OPASHE!H17 -> 0 | I38: =OPASHE!I17 -> 0 | J38: =OPASHE!J17 -> 0 | K38: =OPASHE!K17 -> 0 | L38: =OPASHE!L17 -> 0 | M38: =OPASHE!M17 -> 0 | N38: =OPASHE!N17 -> 0 | O38: =OPASHE!O17 -> 0 | P38: =OPASHE!P17 -> 0 | R38: 0 | S38: =SUMIF(G$6:P$6, "<=" & $B38, $G38:$P38) -> 0
B39: 2016 | G39: =OPASHE!G18 -> 0 | H39: =OPASHE!H18 -> 0 | I39: =OPASHE!I18 -> 0 | J39: =OPASHE!J18 -> 0 | K39: =OPASHE!K18 -> 0 | L39: =OPASHE!L18 -> 0 | M39: =OPASHE!M18 -> 0 | N39: =OPASHE!N18 -> 0 | O39: =OPASHE!O18 -> 0 | P39: =OPASHE!P18 -> 0 | R39: 0 | S39: 0
B40: 2017 | G40: =OPASHE!G19 -> 0 | H40: =OPASHE!H19 -> 0 | I40: =OPASHE!I19 -> 0 | J40: =OPASHE!J19 -> 0 | K40: =OPASHE!K19 -> 0 | L40: =OPASHE!L19 -> 0 | M40: =OPASHE!M19 -> 0 | N40: =OPASHE!N19 -> 0 | O40: =OPASHE!O19 -> 0 | P40: =OPASHE!P19 -> 0 | R40: 0 | S40: 0
B41: 2018 | G41: =OPASHE!G20 -> 0 | H41: =OPASHE!H20 -> 0 | I41: =OPASHE!I20 -> 0 | J41: =OPASHE!J20 -> 0 | K41: =OPASHE!K20 -> 0 | L41: =OPASHE!L20 -> 0 | M41: =OPASHE!M20 -> 0 | N41: =OPASHE!N20 -> 0 | O41: =OPASHE!O20 -> 0 | P41: =OPASHE!P20 -> 0 | R41: 0 | S41: 0
B42: 2019 | G42: =OPASHE!G21 -> 0 | H42: =OPASHE!H21 -> 0 | I42: =OPASHE!I21 -> 0 | J42: =OPASHE!J21 -> 0 | K42: =OPASHE!K21 -> 0 | L42: =OPASHE!L21 -> 0 | M42: =OPASHE!M21 -> 0 | N42: =OPASHE!N21 -> 0 | O42: =OPASHE!O21 -> 0 | P42: =OPASHE!P21 -> 0 | R42: 0 | S42: 0
B43: 2020 | G43: =OPASHE!G22 -> 0 | H43: =OPASHE!H22 -> 0 | I43: =OPASHE!I22 -> 0 | J43: =OPASHE!J22 -> 0 | K43: =OPASHE!K22 -> 0 | L43: =OPASHE!L22 -> 0 | M43: =OPASHE!M22 -> 0 | N43: =OPASHE!N22 -> 0 | O43: =OPASHE!O22 -> 0 | P43: =OPASHE!P22 -> 0 | R43: 0 | S43: 0
B44: 2021 | G44: =OPASHE!G23 -> 0 | H44: =OPASHE!H23 -> 0 | I44: =OPASHE!I23 -> 0 | J44: =OPASHE!J23 -> 0 | K44: =OPASHE!K23 -> 0 | L44: =OPASHE!L23 -> 0 | M44: =OPASHE!M23 -> 0 | N44: =OPASHE!N23 -> 0 | O44: =OPASHE!O23 -> 0 | P44: =OPASHE!P23 -> 0 | R44: 0 | S44: 0
B45: 2022 | G45: =OPASHE!G24 -> 0 | H45: =OPASHE!H24 -> 0 | I45: =OPASHE!I24 -> 0 | J45: =OPASHE!J24 -> 0 | K45: =OPASHE!K24 -> 0 | L45: =OPASHE!L24 -> 0 | M45: =OPASHE!M24 -> 0 | N45: =OPASHE!N24 -> 0 | O45: =OPASHE!O24 -> 0 | P45: =OPASHE!P24 -> 0 | R45: 0 | S45: 0
B46: 2023 | G46: =OPASHE!G25 -> 0 | H46: =OPASHE!H25 -> 0 | I46: =OPASHE!I25 -> 0 | J46: =OPASHE!J25 -> 0 | K46: =OPASHE!K25 -> 0 | L46: =OPASHE!L25 -> 0 | M46: =OPASHE!M25 -> 0 | N46: =OPASHE!N25 -> 0 | O46: =OPASHE!O25 -> 0 | P46: =OPASHE!P25 -> 0 | R46: 0 | S46: 0
B48: FASHA t - n - 2 | C48: £m 2009/10 Prices
B49: t (Year ending March) =
B50: 2014 | G50: =FASHA!G9 -> 0 | H50: =FASHA!H9 -> 0 | I50: =FASHA!I9 -> 0 | J50: =FASHA!J9 -> 0 | K50: =FASHA!K9 -> 0 | L50: =FASHA!L9 -> 0 | M50: =FASHA!M9 -> 0 | N50: =FASHA!N9 -> 0 | O50: =FASHA!O9 -> 0 | P50: =FASHA!P9 -> 0 | R50: =SUM(G50:P50) -> 0 | S50: =SUMIF(G$6:P$6, "<=" & $B50, $G50:$P50) -> 0
B51: 2015 | G51: =FASHA!G10 -> 0 | H51: =FASHA!H10 -> 0 | I51: =FASHA!I10 -> 0 | J51: =FASHA!J10 -> 0 | K51: =FASHA!K10 -> 0 | L51: =FASHA!L10 -> 0 | M51: =FASHA!M10 -> 0 | N51: =FASHA!N10 -> 0 | O51: =FASHA!O10 -> 0 | P51: =FASHA!P10 -> 0 | R51: 0 | S51: =SUMIF(G$6:P$6, "<=" & $B51, $G51:$P51) -> 0
B52: 2016 | G52: =FASHA!G11 -> 0 | H52: =FASHA!H11 -> 0 | I52: =FASHA!I11 -> 0 | J52: =FASHA!J11 -> 0 | K52: =FASHA!K11 -> 0 | L52: =FASHA!L11 -> 0 | M52: =FASHA!M11 -> 0 | N52: =FASHA!N11 -> 0 | O52: =FASHA!O11 -> 0 | P52: =FASHA!P11 -> 0 | R52: 0 | S52: 0
B53: 2017 | G53: =FASHA!G12 -> 0 | H53: =FASHA!H12 -> 0 | I53: =FASHA!I12 -> 0 | J53: =FASHA!J12 -> 0 | K53: =FASHA!K12 -> 0 | L53: =FASHA!L12 -> 0 | M53: =FASHA!M12 -> 0 | N53: =FASHA!N12 -> 0 | O53: =FASHA!O12 -> 0 | P53: =FASHA!P12 -> 0 | R53: 0 | S53: 0
B54: 2018 | G54: =FASHA!G13 -> 0 | H54: =FASHA!H13 -> 0 | I54: =FASHA!I13 -> 0 | J54: =FASHA!J13 -> 0 | K54: =FASHA!K13 -> 0 | L54: =FASHA!L13 -> 0 | M54: =FASHA!M13 -> 0 | N54: =FASHA!N13 -> 0 | O54: =FASHA!O13 -> 0 | P54: =FASHA!P13 -> 0 | R54: 0 | S54: 0
B55: 2019 | G55: =FASHA!G14 -> 0 | H55: =FASHA!H14 -> 0 | I55: =FASHA!I14 -> 0 | J55: =FASHA!J14 -> 0 | K55: =FASHA!K14 -> 0 | L55: =FASHA!L14 -> 0 | M55: =FASHA!M14 -> 0 | N55: =FASHA!N14 -> 0 | O55: =FASHA!O14 -> 0 | P55: =FASHA!P14 -> 0 | R55: 0 | S55: 0
B56: 2020 | G56: =FASHA!G15 -> 0 | H56: =FASHA!H15 -> 0 | I56: =FASHA!I15 -> 0 | J56: =FASHA!J15 -> 0 | K56: =FASHA!K15 -> 0 | L56: =FASHA!L15 -> 0 | M56: =FASHA!M15 -> 0 | N56: =FASHA!N15 -> 0 | O56: =FASHA!O15 -> 0 | P56: =FASHA!P15 -> 0 | R56: 0 | S56: 0
B57: 2021 | G57: =FASHA!G16 -> 0 | H57: =FASHA!H16 -> 0 | I57: =FASHA!I16 -> 0 | J57: =FASHA!J16 -> 0 | K57: =FASHA!K16 -> 0 | L57: =FASHA!L16 -> 0 | M57: =FASHA!M16 -> 0 | N57: =FASHA!N16 -> 0 | O57: =FASHA!O16 -> 0 | P57: =FASHA!P16 -> 0 | R57: 0 | S57: 0
B58: 2022 | G58: =FASHA!G17 -> 0 | H58: =FASHA!H17 -> 0 | I58: =FASHA!I17 -> 0 | J58: =FASHA!J17 -> 0 | K58: =FASHA!K17 -> 0 | L58: =FASHA!L17 -> 0 | M58: =FASHA!M17 -> 0 | N58: =FASHA!N17 -> 0 | O58: =FASHA!O17 -> 0 | P58: =FASHA!P17 -> 0 | R58: 0 | S58: 0
B59: 2023 | G59: =FASHA!G18 -> 0 | H59: =FASHA!H18 -> 0 | I59: =FASHA!I18 -> 0 | J59: =FASHA!J18 -> 0 | K59: =FASHA!K18 -> 0 | L59: =FASHA!L18 -> 0 | M59: =FASHA!M18 -> 0 | N59: =FASHA!N18 -> 0 | O59: =FASHA!O18 -> 0 | P59: =FASHA!P18 -> 0 | R59: 0 | S59: 0

Sheet OASHE
A1: OASHE - Atypical Shared-Use Allowed Expenditure for delivered capacity
B6: Parameter | C6: Units | E6: Constant | F6: n= | G6: 2014 | H6: 2015 | I6: 2016 | J6: 2017 | K6: 2018 | L6: 2019 | M6: 2020 | N6: 2021 | O6: 2022 | P6: 2023 | R6: Total
B7: OASHE t, n | C7: £m 2009/10 Prices | D7: m= | E7: all
B8: t (Year ending March) =
B9: 2014 | G9: =IFERROR( INDEX($G41:$P41,1,MATCH(G$6,$G$39:$P$39,FALSE)), 0) +IFERROR( INDEX($G54:$P54,1,MATCH(G$6,$G$52:$P$52,FALSE)), 0) +IFERROR( INDEX($G67:$P67,1,MATCH(G$6,$G$65:$P$65,FALSE)), 0) +IFERROR( INDEX($G80:$P80,1,MATCH(G$6,$G$78:$P$78,FALSE)), 0) -> 0 | H9: 0 | I9: 0 | J9: 0 | K9: 0 | L9: 0 | M9: 0 | N9: 0 | O9: 0 | P9: 0 | R9: =SUM(G9:P9) -> 0 | S9: =SUMIF(G$6:P$6, "<=" & $B9, $G9:$P9) -> 0
B10: 2015 | G10: 0 | H10: 0 | I10: 0 | J10: 0 | K10: 0 | L10: 0 | M10: 0 | N10: 0 | O10: 0 | P10: 0 | R10: 0 | S10: =SUMIF(G$6:P$6, "<=" & $B10, $G10:$P10) -> 0
B11: 2016 | G11: 0 | H11: 0 | I11: 0 | J11: 0 | K11: 0 | L11: 0 | M11: 0 | N11: 0 | O11: 0 | P11: 0 | R11: 0 | S11: 0
B12: 2017 | G12: 0 | H12: 0 | I12: 0 | J12: 0 | K12: 0 | L12: 0 | M12: 0 | N12: 0 | O12: 0 | P12: 0 | R12: 0 | S12: 0
B13: 2018 | G13: 0 | H13: 0 | I13: 0 | J13: 0 | K13: 0 | L13: 0 | M13: 0 | N13: 0 | O13: 0 | P13: 0 | R13: 0 | S13: 0
B14: 2019 | G14: 0 | H14: 0 | I14: 0 | J14: 0 | K14: 0 | L14: 0 | M14: 0 | N14: 0 | O14: 0 | P14: 0 | R14: 0 | S14: 0
B15: 2020 | G15: 0 | H15: 0 | I15: 0 | J15: 0 | K15: 0 | L15: 0 | M15: 0 | N15: 0 | O15: 0 | P15: 0 | R15: 0 | S15: 0
B16: 2021 | G16: 0 | H16: 0 | I16: 0 | J16: 0 | K16: 0 | L16: 0 | M16: 0 | N16: 0 | O16: 0 | P16: 0 | R16: 0 | S16: 0
B17: 2022 | G17: 0 | H17: 0 | I17: 0 | J17: 0 | K17: 0 | L17: 0 | M17: 0 | N17: 0 | O17: 0 | P17: 0 | R17: 0 | S17: 0
B18: 2023 | G18: 0 | H18: 0 | I18: 0 | J18: 0 | K18: 0 | L18: 0 | M18: 0 | N18: 0 | O18: 0 | P18: 0 | R18: 0 | S18: 0
B20: UCA | C20: £m 2009/10 Prices /MVA | E20: =UCAallowances!$E$8 -> 0.182
B21: ASHCn | C21: £m 2009/10 Prices | G21: =IFERROR( GETPIVOTDATA( TEXT(Connections[[#Headers],[Actual expenditure (£2009/10 million prices)]], 0), ConnectionsCostForecastAtypical!$A$6, Connections[[#Headers],[Delivery year ending March]], G$6, Connections[[#Headers],[ConnectionStatus (Delivered/Forecast)]], "Delivered", Connections[[#Headers],[Usage?]], "Shared", Connections[[#Headers],[Type?]], "Atypical" ), 0 ) -> 0 | H21: =IFERROR( GETPIVOTDATA( TEXT(Connections[[#Headers],[Actual expenditure (£2009/10 million prices)]], 0), ConnectionsCostForecastAtypical!$A$6, Connections[[#Headers],[Delivery year ending March]], H$6, Connections[[#Headers],[ConnectionStatus (Delivered/Forecast)]], "Delivered", Connections[[#Headers],[Usage?]], "Shared", Connections[[#Headers],[Type?]], "Atypical" ), 0 ) -> 0 | I21: =IFERROR( GETPIVOTDATA( TEXT(Connections[[#Headers],[Actual expenditure (£2009/10 million prices)]], 0), ConnectionsCostForecastAtypical!$A$6, Connections[[#Headers],[Delivery year ending March]], I$6, Connections[[#Headers],[ConnectionStatus (Delivered/Forecast)]], "Delivered", Connections[[#Headers],[Usage?]], "Shared", Connections[[#Headers],[Type?]], "Atypical" ), 0 ) -> 0 | J21: =IFERROR( GETPIVOTDATA( TEXT(Connections[[#Headers],[Actual expenditure (£2009/10 million prices)]], 0), ConnectionsCostForecastAtypical!$A$6, Connections[[#Headers],[Delivery year ending March]], J$6, Connections[[#Headers],[ConnectionStatus (Delivered/Forecast)]], "Delivered", Connections[[#Headers],[Usage?]], "Shared", Connections[[#Headers],[Type?]], "Atypical" ), 0 ) -> 0 | K21: =IFERROR( GETPIVOTDATA( TEXT(Connections[[#Headers],[Actual expenditure (£2009/10 million prices)]], 0), ConnectionsCostForecastAtypical!$A$6, Connections[[#Headers],[Delivery year ending March]], K$6, Connections[[#Headers],[ConnectionStatus (Delivered/Forecast)]], "Delivered", Connections[[#Headers],[Usage?]], "Shared", Connections[[#Headers],[Type?]], "Atypical" ), 0 ) -> 0 | L21: =IFERROR( GETPIVOTDATA( TEXT(Connections[[#Headers],[Actual expenditure (£2009/10 million prices)]], 0), ConnectionsCostForecastAtypical!$A$6, Connections[[#Headers],[Delivery year ending March]], L$6, Connections[[#Headers],[ConnectionStatus (Delivered/Forecast)]], "Delivered", Connections[[#Headers],[Usage?]], "Shared", Connections[[#Headers],[Type?]], "Atypical" ), 0 ) -> 0 | M21: =IFERROR( GETPIVOTDATA( TEXT(Connections[[#Headers],[Actual expenditure (£2009/10 million prices)]], 0), ConnectionsCostForecastAtypical!$A$6, Connections[[#Headers],[Delivery year ending March]], M$6, Connections[[#Headers],[ConnectionStatus (Delivered/Forecast)]], "Delivered", Connections[[#Headers],[Usage?]], "Shared", Connections[[#Headers],[Type?]], "Atypical" ), 0 ) -> 0 | N21: =IFERROR( GETPIVOTDATA( TEXT(Connections[[#Headers],[Actual expenditure (£2009/10 million prices)]], 0), ConnectionsCostForecastAtypical!$A$6, Connections[[#Headers],[Delivery year ending March]], N$6, Connections[[#Headers],[ConnectionStatus (Delivered/Forecast)]], "Delivered", Connections[[#Headers],[Usage?]], "Shared", Connections[[#Headers],[Type?]], "Atypical" ), 0 ) -> 0 | O21: =IFERROR( GETPIVOTDATA( TEXT(Connections[[#Headers],[Actual expenditure (£2009/10 million prices)]], 0), ConnectionsCostForecastAtypical!$A$6, Connections[[#Headers],[Delivery year ending March]], O$6, Connections[[#Headers],[ConnectionStatus (Delivered/Forecast)]], "Delivered", Connections[[#Headers],[Usage?]], "Shared", Connections[[#Headers],[Type?]], "Atypical" ), 0 ) -> 0 | P21: =IFERROR( GETPIVOTDATA( TEXT(Connections[[#Headers],[Actual expenditure (£2009/10 million prices)]], 0), ConnectionsCostForecastAtypical!$A$6, Connections[[#Headers],[Delivery year ending March]], P$6, Connections[[#Headers],[ConnectionStatus (Delivered/Forecast)]], "Delivered", Connections[[#Headers],[Usage?]], "Shared", Connections[[#Headers],[Type?]], "Atypical" ), 0 ) -> 0
B22: RPE n | C22: Scaler | G22: =RPE!C9 -> 1.046 | H22: =RPE!D9 -> 1.061 | I22: =RPE!E9 -> 1.077 | J22: =RPE!F9 -> 1.093 | K22: =RPE!G9 -> 1.11 | L22: =RPE!H9 -> 1.126 | M22: =RPE!I9 -> 1.143 | N22: =RPE!J9 -> 1.161 | O22: =RPE!K9 -> 1.178 | P22: =RPE!L9 -> 1.196
B23: DASHG n - 1 | C23: MVA | G23: =IFERROR( GETPIVOTDATA( TEXT(Connections[[#Headers],[Generation connection capacity (MW/MVA)]], 0), ConnectionsCapacity!$A$6, Connections[[#Headers],[Delivery year ending March]], G$6 - 1, Connections[[#Headers],[ConnectionStatus (Delivered/Forecast)]], "Delivered", Connections[[#Headers],[Usage?]], "Shared", Connections[[#Headers],[Type?]], "Atypical" ), 0 ) -> 0 | H23: =IFERROR( GETPIVOTDATA( TEXT(Connections[[#Headers],[Generation connection capacity (MW/MVA)]], 0), ConnectionsCapacity!$A$6, Connections[[#Headers],[Delivery year ending March]], H$6 - 1, Connections[[#Headers],[ConnectionStatus (Delivered/Forecast)]], "Delivered", Connections[[#Headers],[Usage?]], "Shared", Connections[[#Headers],[Type?]], "Atypical" ), 0 ) -> 0 | I23: =IFERROR( GETPIVOTDATA( TEXT(Connections[[#Headers],[Generation connection capacity (MW/MVA)]], 0), ConnectionsCapacity!$A$6, Connections[[#Headers],[Delivery year ending March]], I$6 - 1, Connections[[#Headers],[ConnectionStatus (Delivered/Forecast)]], "Delivered", Connections[[#Headers],[Usage?]], "Shared", Connections[[#Headers],[Type?]], "Atypical" ), 0 ) -> 0 | J23: =IFERROR( GETPIVOTDATA( TEXT(Connections[[#Headers],[Generation connection capacity (MW/MVA)]], 0), ConnectionsCapacity!$A$6, Connections[[#Headers],[Delivery year ending March]], J$6 - 1, Connections[[#Headers],[ConnectionStatus (Delivered/Forecast)]], "Delivered", Connections[[#Headers],[Usage?]], "Shared", Connections[[#Headers],[Type?]], "Atypical" ), 0 ) -> 0 | K23: =IFERROR( GETPIVOTDATA( TEXT(Connections[[#Headers],[Generation connection capacity (MW/MVA)]], 0), ConnectionsCapacity!$A$6, Connections[[#Headers],[Delivery year ending March]], K$6 - 1, Connections[[#Headers],[ConnectionStatus (Delivered/Forecast)]], "Delivered", Connections[[#Headers],[Usage?]], "Shared", Connections[[#Headers],[Type?]], "Atypical" ), 0 ) -> 0 | L23: =IFERROR( GETPIVOTDATA( TEXT(Connections[[#Headers],[Generation connection capacity (MW/MVA)]], 0), ConnectionsCapacity!$A$6, Connections[[#Headers],[Delivery year ending March]], L$6 - 1, Connections[[#Headers],[ConnectionStatus (Delivered/Forecast)]], "Delivered", Connections[[#Headers],[Usage?]], "Shared", Connections[[#Headers],[Type?]], "Atypical" ), 0 ) -> 0 | M23: =IFERROR( GETPIVOTDATA( TEXT(Connections[[#Headers],[Generation connection capacity (MW/MVA)]], 0), ConnectionsCapacity!$A$6, Connections[[#Headers],[Delivery year ending March]], M$6 - 1, Connections[[#Headers],[ConnectionStatus (Delivered/Forecast)]], "Delivered", Connections[[#Headers],[Usage?]], "Shared", Connections[[#Headers],[Type?]], "Atypical" ), 0 ) -> 0 | N23: =IFERROR( GETPIVOTDATA( TEXT(Connections[[#Headers],[Generation connection capacity (MW/MVA)]], 0), ConnectionsCapacity!$A$6, Connections[[#Headers],[Delivery year ending March]], N$6 - 1, Connections[[#Headers],[ConnectionStatus (Delivered/Forecast)]], "Delivered", Connections[[#Headers],[Usage?]], "Shared", Connections[[#Headers],[Type?]], "Atypical" ), 0 ) -> 0 | O23: =IFERROR( GETPIVOTDATA( TEXT(Connections[[#Headers],[Generation connection capacity (MW/MVA)]], 0), ConnectionsCapacity!$A$6, Connections[[#Headers],[Delivery year ending March]], O$6 - 1, Connections[[#Headers],[ConnectionStatus (Delivered/Forecast)]], "Delivered", Connections[[#Headers],[Usage?]], "Shared", Connections[[#Headers],[Type?]], "Atypical" ), 0 ) -> 0 | P23: =IFERROR( GETPIVOTDATA( TEXT(Connections[[#Headers],[Generation connection capacity (MW/MVA)]], 0), ConnectionsCapacity!$A$6, Connections[[#Headers],[Delivery year ending March]], P$6 - 1, Connections[[#Headers],[ConnectionStatus (Delivered/Forecast)]], "Delivered", Connections[[#Headers],[Usage?]], "Shared", Connections[[#Headers],[Type?]], "Atypical" ), 0 ) -> 0
B24: DASHG n | C24: MVA | G24: =IFERROR( GETPIVOTDATA( TEXT(Connections[[#Headers],[Generation connection capacity (MW/MVA)]], 0), ConnectionsCapacity!$A$6, Connections[[#Headers],[Delivery year ending March]], G$6, Connections[[#Headers],[ConnectionStatus (Delivered/Forecast)]], "Delivered", Connections[[#Headers],[Usage?]], "Shared", Connections[[#Headers],[Type?]], "Atypical" ), 0 ) -> 0 | H24: =IFERROR( GETPIVOTDATA( TEXT(Connections[[#Headers],[Generation connection capacity (MW/MVA)]], 0), ConnectionsCapacity!$A$6, Connections[[#Headers],[Delivery year ending March]], H$6, Connections[[#Headers],[ConnectionStatus (Delivered/Forecast)]], "Delivered", Connections[[#Headers],[Usage?]], "Shared", Connections[[#Headers],[Type?]], "Atypical" ), 0 ) -> 0 | I24: =IFERROR( GETPIVOTDATA( TEXT(Connections[[#Headers],[Generation connection capacity (MW/MVA)]], 0), ConnectionsCapacity!$A$6, Connections[[#Headers],[Delivery year ending March]], I$6, Connections[[#Headers],[ConnectionStatus (Delivered/Forecast)]], "Delivered", Connections[[#Headers],[Usage?]], "Shared", Connections[[#Headers],[Type?]], "Atypical" ), 0 ) -> 0 | J24: =IFERROR( GETPIVOTDATA( TEXT(Connections[[#Headers],[Generation connection capacity (MW/MVA)]], 0), ConnectionsCapacity!$A$6, Connections[[#Headers],[Delivery year ending March]], J$6, Connections[[#Headers],[ConnectionStatus (Delivered/Forecast)]], "Delivered", Connections[[#Headers],[Usage?]], "Shared", Connections[[#Headers],[Type?]], "Atypical" ), 0 ) -> 0 | K24: =IFERROR( GETPIVOTDATA( TEXT(Connections[[#Headers],[Generation connection capacity (MW/MVA)]], 0), ConnectionsCapacity!$A$6, Connections[[#Headers],[Delivery year ending March]], K$6, Connections[[#Headers],[ConnectionStatus (Delivered/Forecast)]], "Delivered", Connections[[#Headers],[Usage?]], "Shared", Connections[[#Headers],[Type?]], "Atypical" ), 0 ) -> 0 | L24: =IFERROR( GETPIVOTDATA( TEXT(Connections[[#Headers],[Generation connection capacity (MW/MVA)]], 0), ConnectionsCapacity!$A$6, Connections[[#Headers],[Delivery year ending March]], L$6, Connections[[#Headers],[ConnectionStatus (Delivered/Forecast)]], "Delivered", Connections[[#Headers],[Usage?]], "Shared", Connections[[#Headers],[Type?]], "Atypical" ), 0 ) -> 0 | M24: =IFERROR( GETPIVOTDATA( TEXT(Connections[[#Headers],[Generation connection capacity (MW/MVA)]], 0), ConnectionsCapacity!$A$6, Connections[[#Headers],[Delivery year ending March]], M$6, Connections[[#Headers],[ConnectionStatus (Delivered/Forecast)]], "Delivered", Connections[[#Headers],[Usage?]], "Shared", Connections[[#Headers],[Type?]], "Atypical" ), 0 ) -> 0 | N24: =IFERROR( GETPIVOTDATA( TEXT(Connections[[#Headers],[Generation connection capacity (MW/MVA)]], 0), ConnectionsCapacity!$A$6, Connections[[#Headers],[Delivery year ending March]], N$6, Connections[[#Headers],[ConnectionStatus (Delivered/Forecast)]], "Delivered", Connections[[#Headers],[Usage?]], "Shared", Connections[[#Headers],[Type?]], "Atypical" ), 0 ) -> 0 | O24: =IFERROR( GETPIVOTDATA( TEXT(Connections[[#Headers],[Generation connection capacity (MW/MVA)]], 0), ConnectionsCapacity!$A$6, Connections[[#Headers],[Delivery year ending March]], O$6, Connections[[#Headers],[ConnectionStatus (Delivered/Forecast)]], "Delivered", Connections[[#Headers],[Usage?]], "Shared", Connections[[#Headers],[Type?]], "Atypical" ), 0 ) -> 0 | P24: =IFERROR( GETPIVOTDATA( TEXT(Connections[[#Headers],[Generation connection capacity (MW/MVA)]], 0), ConnectionsCapacity!$A$6, Connections[[#Headers],[Delivery year ending March]], P$6, Connections[[#Headers],[ConnectionStatus (Delivered/Forecast)]], "Delivered", Connections[[#Headers],[Usage?]], "Shared", Connections[[#Headers],[Type?]], "Atypical" ), 0 ) -> 0
B26: WF t, n | E26: 4
B27: t (Year ending March) =
B28: 2014 | G28: =IF($B28 > G$6, MIN($E$26, G$6 - 2014 + 1), 0) -> 0 | H28: 0 | I28: 0 | J28: 0 | K28: 0 | L28: 0 | M28: 0 | N28: 0 | O28: 0 | P28: 0
B29: 2015 | G29: 1 | H29: 0 | I29: 0 | J29: 0 | K29: 0 | L29: 0 | M29: 0 | N29: 0 | O29: 0 | P29: 0
B30: 2016 | G30: 1 | H30: 2 | I30: 0 | J30: 0 | K30: 0 | L30: 0 | M30: 0 | N30: 0 | O30: 0 | P30: 0
B31: 2017 | G31: 1 | H31: 2 | I31: 3 | J31: 0 | K31: 0 | L31: 0 | M31: 0 | N31: 0 | O31: 0 | P31: 0
B32: 2018 | G32: 1 | H32: 2 | I32: 3 | J32: 4 | K32: 0 | L32: 0 | M32: 0 | N32: 0 | O32: 0 | P32: 0
B33: 2019 | G33: 1 | H33: 2 | I33: 3 | J33: 4 | K33: 4 | L33: 0 | M33: 0 | N33: 0 | O33: 0 | P33: 0
B34: 2020 | G34: 1 | H34: 2 | I34: 3 | J34: 4 | K34: 4 | L34: 4 | M34: 0 | N34: 0 | O34: 0 | P34: 0
B35: 2021 | G35: 1 | H35: 2 | I35: 3 | J35: 4 | K35: 4 | L35: 4 | M35: 4 | N35: 0 | O35: 0 | P35: 0
B36: 2022 | G36: 1 | H36: 2 | I36: 3 | J36: 4 | K36: 4 | L36: 4 | M36: 4 | N36: 4 | O36: 0 | P36: 0
B37: 2023 | G37: 1 | H37: 2 | I37: 3 | J37: 4 | K37: 4 | L37: 4 | M37: 4 | N37: 4 | O37: 4 | P37: 0
B39: OASHE t, n | C39: £m 2009/10 Prices | D39: m = | E39: 0 | F39: n - m= | G39: =IF( G$6 - $E39 < 2014, "exclude", G$6 - $E39 ) -> 2014 | H39: =IF( H$6 - $E39 < 2014, "exclude", H$6 - $E39 ) -> 2015 | I39: 2016 | J39: 2017 | K39: 2018 | L39: 2019 | M39: 2020 | N39: 2021 | O39: 2022 | P39: 2023
B40: t (Year ending March) =
B41: 2014 | G41: =IF( G$39 = "exclude", 0, IF(OR(G28 <=0, $B41 - 2 < G$6), 0, ((MAX(0, (G$24 - G$23)) * $E$20) + G$21) * INDEX($G$22:$P$22, 1, MATCH(G$39,$G$6:$P$6,FALSE)) * 0.5 / G28 ) ) -> 0 | H41: =IF( H$39 = "exclude", 0, IF(OR(H28 <=0, $B41 - 2 < H$6), 0, ((MAX(0, (H$24 - H$23)) * $E$20) + H$21) * INDEX($G$22:$P$22, 1, MATCH(H$39,$G$6:$P$6,FALSE)) * 0.5 / H28 ) ) -> 0 | I41: 0 | J41: 0 | K41: 0 | L41: 0 | M41: 0 | N41: 0 | O41: 0 | P41: 0
B42: 2015 | G42: =IF( G$39 = "exclude", 0, IF(OR(G29 <=0, $B42 - 2 < G$6), 0, ((MAX(0, (G$24 - G$23)) * $E$20) + G$21) * INDEX($G$22:$P$22, 1, MATCH(G$39,$G$6:$P$6,FALSE)) * 0.5 / G29 ) ) -> 0 | H42: 0 | I42: 0 | J42: 0 | K42: 0 | L42: 0 | M42: 0 | N42: 0 | O42: 0 | P42: 0
B43: 2016 | G43: 0 | H43: 0 | I43: 0 | J43: 0 | K43: 0 | L43: 0 | M43: 0 | N43: 0 | O43: 0 | P43: 0
B44: 2017 | G44: 0 | H44: 0 | I44: 0 | J44: 0 | K44: 0 | L44: 0 | M44: 0 | N44: 0 | O44: 0 | P44: 0
B45: 2018 | G45: 0 | H45: 0 | I45: 0 | J45: 0 | K45: 0 | L45: 0 | M45: 0 | N45: 0 | O45: 0 | P45: 0
B46: 2019 | G46: 0 | H46: 0 | I46: 0 | J46: 0 | K46: 0 | L46: 0 | M46: 0 | N46: 0 | O46: 0 | P46: 0
B47: 2020 | G47: 0 | H47: 0 | I47: 0 | J47: 0 | K47: 0 | L47: 0 | M47: 0 | N47: 0 | O47: 0 | P47: 0
B48: 2021 | G48: 0 | H48: 0 | I48: 0 | J48: 0 | K48: 0 | L48: 0 | M48: 0 | N48: 0 | O48: 0 | P48: 0
B49: 2022 | G49: 0 | H49: 0 | I49: 0 | J49: 0 | K49: 0 | L49: 0 | M49: 0 | N49: 0 | O49: 0 | P49: 0
B50: 2023 | G50: 0 | H50: 0 | I50: 0 | J50: 0 | K50: 0 | L50: 0 | M50: 0 | N50: 0 | O50: 0 | P50: 0
B52: OASHE t, n | C52: £m 2009/10 Prices | D52: m = | E52: 1 | F52: n - m= | G52: =IF( G$6 - $E52 < 2014, "exclude", G$6 - $E52 ) -> exclude | H52: =IF( H$6 - $E52 < 2014, "exclude", H$6 - $E52 ) -> 2014 | I52: 2015 | J52: 2016 | K52: 2017 | L52: 2018 | M52: 2019 | N52: 2020 | O52: 2021 | P52: 2022
B53: t (Year ending March) =
B54: 2014 | G54: =IF( G$52 = "exclude", 0, IF(OR(G41 <=0, $B54 - 2 < G$6), 0, ((MAX(0, (G$24 - G$23)) * $E$20) + G$21) * INDEX($G$22:$P$22, 1, MATCH(G$52,$G$6:$P$6,FALSE)) * 0.5 / G28 ) ) -> 0 | H54: =IF( H$52 = "exclude", 0, IF(OR(H41 <=0, $B54 - 2 < H$6), 0, ((MAX(0, (H$24 - H$23)) * $E$20) + H$21) * INDEX($G$22:$P$22, 1, MATCH(H$52,$G$6:$P$6,FALSE)) * 0.5 / H28 ) ) -> 0 | I54: 0 | J54: 0 | K54: 0 | L54: 0 | M54: 0 | N54: 0 | O54: 0 | P54: 0
B55: 2015 | G55: =IF( G$52 = "exclude", 0, IF(OR(G42 <=0, $B55 - 2 < G$6), 0, ((MAX(0, (G$24 - G$23)) * $E$20) + G$21) * INDEX($G$22:$P$22, 1, MATCH(G$52,$G$6:$P$6,FALSE)) * 0.5 / G29 ) ) -> 0 | H55: 0 | I55: 0 | J55: 0 | K55: 0 | L55: 0 | M55: 0 | N55: 0 | O55: 0 | P55: 0
B56: 2016 | G56: 0 | H56: 0 | I56: 0 | J56: 0 | K56: 0 | L56: 0 | M56: 0 | N56: 0 | O56: 0 | P56: 0
B57: 2017 | G57: 0 | H57: 0 | I57: 0 | J57: 0 | K57: 0 | L57: 0 | M57: 0 | N57: 0 | O57: 0 | P57: 0
B58: 2018 | G58: 0 | H58: 0 | I58: 0 | J58: 0 | K58: 0 | L58: 0 | M58: 0 | N58: 0 | O58: 0 | P58: 0
B59: 2019 | G59: 0 | H59: 0 | I59: 0 | J59: 0 | K59: 0 | L59: 0 | M59: 0 | N59: 0 | O59: 0 | P59: 0
B60: 2020 | G60: 0 | H60: 0 | I60: 0 | J60: 0 | K60: 0 | L60: 0 | M60: 0 | N60: 0 | O60: 0 | P60: 0
B61: 2021 | G61: 0 | H61: 0 | I61: 0 | J61: 0 | K61: 0 | L61: 0 | M61: 0 | N61: 0 | O61: 0 | P61: 0
B62: 2022 | G62: 0 | H62: 0 | I62: 0 | J62: 0 | K62: 0 | L62: 0 | M62: 0 | N62: 0 | O62: 0 | P62: 0
B63: 2023 | G63: 0 | H63: 0 | I63: 0 | J63: 0 | K63: 0 | L63: 0 | M63: 0 | N63: 0 | O63: 0 | P63: 0
B65: OASHE t, n | C65: £m 2009/10 Prices | D65: m = | E65: 2 | F65: n - m= | G65: =IF( G$6 - $E65 < 2014, "exclude", G$6 - $E65 ) -> exclude | H65: =IF( H$6 - $E65 < 2014, "exclude", H$6 - $E65 ) -> exclude | I65: 2014 | J65: 2015 | K65: 2016 | L65: 2017 | M65: 2018 | N65: 2019 | O65: 2020 | P65: 2021
B66: t (Year ending March) =
B67: 2014 | G67: =IF( G$65 = "exclude", 0, IF(OR(G54 <=0, $B67 - 2 < G$6), 0, ((MAX(0, (G$24 - G$23)) * $E$20) + G$21) * INDEX($G$22:$P$22, 1, MATCH(G$65,$G$6:$P$6,FALSE)) * 0.5 / G28 ) ) -> 0 | H67: =IF( H$65 = "exclude", 0, IF(OR(H54 <=0, $B67 - 2 < H$6), 0, ((MAX(0, (H$24 - H$23)) * $E$20) + H$21) * INDEX($G$22:$P$22, 1, MATCH(H$65,$G$6:$P$6,FALSE)) * 0.5 / H28 ) ) -> 0 | I67: 0 | J67: 0 | K67: 0 | L67: 0 | M67: 0 | N67: 0 | O67: 0 | P67: 0
B68: 2015 | G68: =IF( G$65 = "exclude", 0, IF(OR(G55 <=0, $B68 - 2 < G$6), 0, ((MAX(0, (G$24 - G$23)) * $E$20) + G$21) * INDEX($G$22:$P$22, 1, MATCH(G$65,$G$6:$P$6,FALSE)) * 0.5 / G29 ) ) -> 0 | H68: 0 | I68: 0 | J68: 0 | K68: 0 | L68: 0 | M68: 0 | N68: 0 | O68: 0 | P68: 0
B69: 2016 | G69: 0 | H69: 0 | I69: 0 | J69: 0 | K69: 0 | L69: 0 | M69: 0 | N69: 0 | O69: 0 | P69: 0
B70: 2017 | G70: 0 | H70: 0 | I70: 0 | J70: 0 | K70: 0 | L70: 0 | M70: 0 | N70: 0 | O70: 0 | P70: 0
B71: 2018 | G71: 0 | H71: 0 | I71: 0 | J71: 0 | K71: 0 | L71: 0 | M71: 0 | N71: 0 | O71: 0 | P71: 0
B72: 2019 | G72: 0 | H72: 0 | I72: 0 | J72: 0 | K72: 0 | L72: 0 | M72: 0 | N72: 0 | O72: 0 | P72: 0
B73: 2020 | G73: 0 | H73: 0 | I73: 0 | J73: 0 | K73: 0 | L73: 0 | M73: 0 | N73: 0 | O73: 0 | P73: 0
B74: 2021 | G74: 0 | H74: 0 | I74: 0 | J74: 0 | K74: 0 | L74: 0 | M74: 0 | N74: 0 | O74: 0 | P74: 0
B75: 2022 | G75: 0 | H75: 0 | I75: 0 | J75: 0 | K75: 0 | L75: 0 | M75: 0 | N75: 0 | O75: 0 | P75: 0
B76: 2023 | G76: 0 | H76: 0 | I76: 0 | J76: 0 | K76: 0 | L76: 0 | M76: 0 | N76: 0 | O76: 0 | P76: 0
B78: OASHE t, n | C78: £m 2009/10 Prices | D78: m = | E78: 3 | F78: n - m= | G78: =IF( G$6 - $E78 < 2014, "exclude", G$6 - $E78 ) -> exclude | H78: =IF( H$6 - $E78 < 2014, "exclude", H$6 - $E78 ) -> exclude | I78: exclude | J78: 2014 | K78: 2015 | L78: 2016 | M78: 2017 | N78: 2018 | O78: 2019 | P78: 2020
B79: t (Year ending March) =
B80: 2014 | G80: =IF( G$78 = "exclude", 0, IF(OR(G67 <=0, $B80 - 2 < G$6), 0, ((MAX(0, (G$24 - G$23)) * $E$20) + G$21) * INDEX($G$22:$P$22, 1, MATCH(G$78,$G$6:$P$6,FALSE)) * 0.5 / G28 ) ) -> 0 | H80: =IF( H$78 = "exclude", 0, IF(OR(H67 <=0, $B80 - 2 < H$6), 0, ((MAX(0, (H$24 - H$23)) * $E$20) + H$21) * INDEX($G$22:$P$22, 1, MATCH(H$78,$G$6:$P$6,FALSE)) * 0.5 / H28 ) ) -> 0 | I80: 0 | J80: 0 | K80: 0 | L80: 0 | M80: 0 | N80: 0 | O80: 0 | P80: 0
B81: 2015 | G81: =IF( G$78 = "exclude", 0, IF(OR(G68 <=0, $B81 - 2 < G$6), 0, ((MAX(0, (G$24 - G$23)) * $E$20) + G$21) * INDEX($G$22:$P$22, 1, MATCH(G$78,$G$6:$P$6,FALSE)) * 0.5 / G29 ) ) -> 0 | H81: 0 | I81: 0 | J81: 0 | K81: 0 | L81: 0 | M81: 0 | N81: 0 | O81: 0 | P81: 0
B82: 2016 | G82: 0 | H82: 0 | I82: 0 | J82: 0 | K82: 0 | L82: 0 | M82: 0 | N82: 0 | O82: 0 | P82: 0
B83: 2017 | G83: 0 | H83: 0 | I83: 0 | J83: 0 | K83: 0 | L83: 0 | M83: 0 | N83: 0 | O83: 0 | P83: 0
B84: 2018 | G84: 0 | H84: 0 | I84: 0 | J84: 0 | K84: 0 | L84: 0 | M84: 0 | N84: 0 | O84: 0 | P84: 0
B85: 2019 | G85: 0 | H85: 0 | I85: 0 | J85: 0 | K85: 0 | L85: 0 | M85: 0 | N85: 0 | O85: 0 | P85: 0
B86: 2020 | G86: 0 | H86: 0 | I86: 0 | J86: 0 | K86: 0 | L86: 0 | M86: 0 | N86: 0 | O86: 0 | P86: 0
B87: 2021 | G87: 0 | H87: 0 | I87: 0 | J87: 0 | K87: 0 | L87: 0 | M87: 0 | N87: 0 | O87: 0 | P87: 0
B88: 2022 | G88: 0 | H88: 0 | I88: 0 | J88: 0 | K88: 0 | L88: 0 | M88: 0 | N88: 0 | O88: 0 | P88: 0
B89: 2023 | G89: 0 | H89: 0 | I89: 0 | J89: 0 | K89: 0 | L89: 0 | M89: 0 | N89: 0 | O89: 0 | P89: 0

Sheet OPASHE
A1: OPASH - Atypical Shared-Use Allowed Expenditure for O&M costs for Delivered Outputs
B6: Parameter | C6: Units | E6: Constant | F6: n= | G6: 2014 | H6: 2015 | I6: 2016 | J6: 2017 | K6: 2018 | L6: 2019 | M6: 2020 | N6: 2021 | O6: 2022 | P6: 2023 | R6: Total
B8: DASHG n | C8: MW | G8: =IFERROR( GETPIVOTDATA( TEXT(Connections[[#Headers],[Generation connection capacity (MW/MVA)]], 0), ConnectionsCapacity!$A$6, Connections[[#Headers],[Delivery year ending March]], G$6, Connections[[#Headers],[ConnectionStatus (Delivered/Forecast)]], "Delivered", Connections[[#Headers],[Usage?]], "Shared", Connections[[#Headers],[Type?]], "Atypical" ), 0 ) -> 0 | H8: =IFERROR( GETPIVOTDATA( TEXT(Connections[[#Headers],[Generation connection capacity (MW/MVA)]], 0), ConnectionsCapacity!$A$6, Connections[[#Headers],[Delivery year ending March]], H$6, Connections[[#Headers],[ConnectionStatus (Delivered/Forecast)]], "Delivered", Connections[[#Headers],[Usage?]], "Shared", Connections[[#Headers],[Type?]], "Atypical" ), 0 ) -> 0 | I8: =IFERROR( GETPIVOTDATA( TEXT(Connections[[#Headers],[Generation connection capacity (MW/MVA)]], 0), ConnectionsCapacity!$A$6, Connections[[#Headers],[Delivery year ending March]], I$6, Connections[[#Headers],[ConnectionStatus (Delivered/Forecast)]], "Delivered", Connections[[#Headers],[Usage?]], "Shared", Connections[[#Headers],[Type?]], "Atypical" ), 0 ) -> 0 | J8: =IFERROR( GETPIVOTDATA( TEXT(Connections[[#Headers],[Generation connection capacity (MW/MVA)]], 0), ConnectionsCapacity!$A$6, Connections[[#Headers],[Delivery year ending March]], J$6, Connections[[#Headers],[ConnectionStatus (Delivered/Forecast)]], "Delivered", Connections[[#Headers],[Usage?]], "Shared", Connections[[#Headers],[Type?]], "Atypical" ), 0 ) -> 0 | K8: =IFERROR( GETPIVOTDATA( TEXT(Connections[[#Headers],[Generation connection capacity (MW/MVA)]], 0), ConnectionsCapacity!$A$6, Connections[[#Headers],[Delivery year ending March]], K$6, Connections[[#Headers],[ConnectionStatus (Delivered/Forecast)]], "Delivered", Connections[[#Headers],[Usage?]], "Shared", Connections[[#Headers],[Type?]], "Atypical" ), 0 ) -> 0 | L8: =IFERROR( GETPIVOTDATA( TEXT(Connections[[#Headers],[Generation connection capacity (MW/MVA)]], 0), ConnectionsCapacity!$A$6, Connections[[#Headers],[Delivery year ending March]], L$6, Connections[[#Headers],[ConnectionStatus (Delivered/Forecast)]], "Delivered", Connections[[#Headers],[Usage?]], "Shared", Connections[[#Headers],[Type?]], "Atypical" ), 0 ) -> 0 | M8: =IFERROR( GETPIVOTDATA( TEXT(Connections[[#Headers],[Generation connection capacity (MW/MVA)]], 0), ConnectionsCapacity!$A$6, Connections[[#Headers],[Delivery year ending March]], M$6, Connections[[#Headers],[ConnectionStatus (Delivered/Forecast)]], "Delivered", Connections[[#Headers],[Usage?]], "Shared", Connections[[#Headers],[Type?]], "Atypical" ), 0 ) -> 0 | N8: =IFERROR( GETPIVOTDATA( TEXT(Connections[[#Headers],[Generation connection capacity (MW/MVA)]], 0), ConnectionsCapacity!$A$6, Connections[[#Headers],[Delivery year ending March]], N$6, Connections[[#Headers],[ConnectionStatus (Delivered/Forecast)]], "Delivered", Connections[[#Headers],[Usage?]], "Shared", Connections[[#Headers],[Type?]], "Atypical" ), 0 ) -> 0 | O8: =IFERROR( GETPIVOTDATA( TEXT(Connections[[#Headers],[Generation connection capacity (MW/MVA)]], 0), ConnectionsCapacity!$A$6, Connections[[#Headers],[Delivery year ending March]], O$6, Connections[[#Headers],[ConnectionStatus (Delivered/Forecast)]], "Delivered", Connections[[#Headers],[Usage?]], "Shared", Connections[[#Headers],[Type?]], "Atypical" ), 0 ) -> 0 | P8: =IFERROR( GETPIVOTDATA( TEXT(Connections[[#Headers],[Generation connection capacity (MW/MVA)]], 0), ConnectionsCapacity!$A$6, Connections[[#Headers],[Delivery year ending March]], P$6, Connections[[#Headers],[ConnectionStatus (Delivered/Forecast)]], "Delivered", Connections[[#Headers],[Usage?]], "Shared", Connections[[#Headers],[Type?]], "Atypical" ), 0 ) -> 0
B9: Cumulative over threshold | C9: MW | G9: =G8 -> 0 | H9: =H8 -> 0 | I9: 0 | J9: 0 | K9: 0 | L9: 0 | M9: 0 | N9: 0 | O9: 0 | P9: 0
B10: ASHCn | C10: £m 2009/10 Prices | G10: =IFERROR( GETPIVOTDATA( TEXT(Connections[[#Headers],[Actual expenditure (£2009/10 million prices)]], 0), ConnectionsCostForecastAtypical!$A$6, Connections[[#Headers],[Delivery year ending March]], G$6, Connections[[#Headers],[ConnectionStatus (Delivered/Forecast)]], "Delivered", Connections[[#Headers],[Usage?]], "Shared", Connections[[#Headers],[Type?]], "Atypical" ), 0 ) -> 0 | H10: =IFERROR( GETPIVOTDATA( TEXT(Connections[[#Headers],[Actual expenditure (£2009/10 million prices)]], 0), ConnectionsCostForecastAtypical!$A$6, Connections[[#Headers],[Delivery year ending March]], H$6, Connections[[#Headers],[ConnectionStatus (Delivered/Forecast)]], "Delivered", Connections[[#Headers],[Usage?]], "Shared", Connections[[#Headers],[Type?]], "Atypical" ), 0 ) -> 0 | I10: =IFERROR( GETPIVOTDATA( TEXT(Connections[[#Headers],[Actual expenditure (£2009/10 million prices)]], 0), ConnectionsCostForecastAtypical!$A$6, Connections[[#Headers],[Delivery year ending March]], I$6, Connections[[#Headers],[ConnectionStatus (Delivered/Forecast)]], "Delivered", Connections[[#Headers],[Usage?]], "Shared", Connections[[#Headers],[Type?]], "Atypical" ), 0 ) -> 0 | J10: =IFERROR( GETPIVOTDATA( TEXT(Connections[[#Headers],[Actual expenditure (£2009/10 million prices)]], 0), ConnectionsCostForecastAtypical!$A$6, Connections[[#Headers],[Delivery year ending March]], J$6, Connections[[#Headers],[ConnectionStatus (Delivered/Forecast)]], "Delivered", Connections[[#Headers],[Usage?]], "Shared", Connections[[#Headers],[Type?]], "Atypical" ), 0 ) -> 0 | K10: =IFERROR( GETPIVOTDATA( TEXT(Connections[[#Headers],[Actual expenditure (£2009/10 million prices)]], 0), ConnectionsCostForecastAtypical!$A$6, Connections[[#Headers],[Delivery year ending March]], K$6, Connections[[#Headers],[ConnectionStatus (Delivered/Forecast)]], "Delivered", Connections[[#Headers],[Usage?]], "Shared", Connections[[#Headers],[Type?]], "Atypical" ), 0 ) -> 0 | L10: =IFERROR( GETPIVOTDATA( TEXT(Connections[[#Headers],[Actual expenditure (£2009/10 million prices)]], 0), ConnectionsCostForecastAtypical!$A$6, Connections[[#Headers],[Delivery year ending March]], L$6, Connections[[#Headers],[ConnectionStatus (Delivered/Forecast)]], "Delivered", Connections[[#Headers],[Usage?]], "Shared", Connections[[#Headers],[Type?]], "Atypical" ), 0 ) -> 0 | M10: =IFERROR( GETPIVOTDATA( TEXT(Connections[[#Headers],[Actual expenditure (£2009/10 million prices)]], 0), ConnectionsCostForecastAtypical!$A$6, Connections[[#Headers],[Delivery year ending March]], M$6, Connections[[#Headers],[ConnectionStatus (Delivered/Forecast)]], "Delivered", Connections[[#Headers],[Usage?]], "Shared", Connections[[#Headers],[Type?]], "Atypical" ), 0 ) -> 0 | N10: =IFERROR( GETPIVOTDATA( TEXT(Connections[[#Headers],[Actual expenditure (£2009/10 million prices)]], 0), ConnectionsCostForecastAtypical!$A$6, Connections[[#Headers],[Delivery year ending March]], N$6, Connections[[#Headers],[ConnectionStatus (Delivered/Forecast)]], "Delivered", Connections[[#Headers],[Usage?]], "Shared", Connections[[#Headers],[Type?]], "Atypical" ), 0 ) -> 0 | O10: =IFERROR( GETPIVOTDATA( TEXT(Connections[[#Headers],[Actual expenditure (£2009/10 million prices)]], 0), ConnectionsCostForecastAtypical!$A$6, Connections[[#Headers],[Delivery year ending March]], O$6, Connections[[#Headers],[ConnectionStatus (Delivered/Forecast)]], "Delivered", Connections[[#Headers],[Usage?]], "Shared", Connections[[#Headers],[Type?]], "Atypical" ), 0 ) -> 0 | P10: =IFERROR( GETPIVOTDATA( TEXT(Connections[[#Headers],[Actual expenditure (£2009/10 million prices)]], 0), ConnectionsCostForecastAtypical!$A$6, Connections[[#Headers],[Delivery year ending March]], P$6, Connections[[#Headers],[ConnectionStatus (Delivered/Forecast)]], "Delivered", Connections[[#Headers],[Usage?]], "Shared", Connections[[#Headers],[Type?]], "Atypical" ), 0 ) -> 0
B11: UCA | C11: £m 2009/10 Prices /MVA | E11: =UCAallowances!$E$8 -> 0.182
B12: RPE n | C12: Scaler | G12: =RPE!C9 -> 1.046 | H12: =RPE!D9 -> 1.061 | I12: =RPE!E9 -> 1.077 | J12: =RPE!F9 -> 1.093 | K12: =RPE!G9 -> 1.11 | L12: =RPE!H9 -> 1.126 | M12: =RPE!I9 -> 1.143 | N12: =RPE!J9 -> 1.161 | O12: =RPE!K9 -> 1.178 | P12: =RPE!L9 -> 1.196
B14: OPASL t, n | C14: £m 2009/10 Prices
B15: t (Year ending March) =
B16: 2014 | G16: =IF( OR($B16 - 2 < G$6, G$6 = 2014), 0, ((G$9 * $E$11) + G$10) * G$12 / 2 * 0.01 ) -> 0 | H16: =IF( OR($B16 - 2 < H$6, H$6 = 2014), 0, ((H$9 * $E$11) + H$10) * H$12 / 2 * 0.01 ) -> 0 | I16: 0 | J16: 0 | K16: 0 | L16: 0 | M16: 0 | N16: 0 | O16: 0 | P16: 0 | R16: =SUM(G16:P16) -> 0 | S16: =SUMIF(G$6:P$6, "<=" & $B16, $G16:$P16) -> 0
B17: 2015 | G17: =IF( OR($B17 - 2 < G$6, G$6 = 2014), 0, ((G$9 * $E$11) + G$10) * G$12 / 2 * 0.01 ) -> 0 | H17: 0 | I17: 0 | J17: 0 | K17: 0 | L17: 0 | M17: 0 | N17: 0 | O17: 0 | P17: 0 | R17: =SUM(G17:P17) -> 0 | S17: =SUMIF(G$6:P$6, "<=" & $B17, $G17:$P17) -> 0
B18: 2016 | G18: 0 | H18: 0 | I18: 0 | J18: 0 | K18: 0 | L18: 0 | M18: 0 | N18: 0 | O18: 0 | P18: 0 | R18: 0 | S18: 0
B19: 2017 | G19: 0 | H19: 0 | I19: 0 | J19: 0 | K19: 0 | L19: 0 | M19: 0 | N19: 0 | O19: 0 | P19: 0 | R19: 0 | S19: 0
B20: 2018 | G20: 0 | H20: 0 | I20: 0 | J20: 0 | K20: 0 | L20: 0 | M20: 0 | N20: 0 | O20: 0 | P20: 0 | R20: 0 | S20: 0
B21: 2019 | G21: 0 | H21: 0 | I21: 0 | J21: 0 | K21: 0 | L21: 0 | M21: 0 | N21: 0 | O21: 0 | P21: 0 | R21: 0 | S21: 0
B22: 2020 | G22: 0 | H22: 0 | I22: 0 | J22: 0 | K22: 0 | L22: 0 | M22: 0 | N22: 0 | O22: 0 | P22: 0 | R22: 0 | S22: 0
B23: 2021 | G23: 0 | H23: 0 | I23: 0 | J23: 0 | K23: 0 | L23: 0 | M23: 0 | N23: 0 | O23: 0 | P23: 0 | R23: 0 | S23: 0
B24: 2022 | G24: 0 | H24: 0 | I24: 0 | J24: 0 | K24: 0 | L24: 0 | M24: 0 | N24: 0 | O24: 0 | P24: 0 | R24: 0 | S24: 0
B25: 2023 | G25: 0 | H25: 0 | I25: 0 | J25: 0 | K25: 0 | L25: 0 | M25: 0 | N25: 0 | O25: 0 | P25: 0 | R25: 0 | S25: 0

Sheet FASHA
A1: FASHA - Atypical Shared-Use Adjusted Allowed Expenditure for works still to be delivered
B6: Parameter | C6: Units | E6: Constant | F6: n= | G6: 2014 | H6: 2015 | I6: 2016 | J6: 2017 | K6: 2018 | L6: 2019 | M6: 2020 | N6: 2021 | O6: 2022 | P6: 2023 | R6: Total
B7: FASHA t, n | C7: £m 2009/10 Prices | D7: m= | E7: all
B8: t (Year ending March) =
B9: 2014 | G9: =IFERROR( INDEX($G32:$P32,1,MATCH(G$6,$G$30:$P$30,FALSE)), 0) +IFERROR( INDEX($G45:$P45,1,MATCH(G$6,$G$43:$P$43,FALSE)), 0) +IFERROR( INDEX($G58:$P58,1,MATCH(G$6,$G$56:$P$56,FALSE)), 0) -> 0 | H9: 0 | I9: 0 | J9: 0 | K9: 0 | L9: 0 | M9: 0 | N9: 0 | O9: 0 | P9: 0 | R9: =SUM(G9:P9) -> 0 | S9: =SUMIF(G$6:P$6, "<=" & $B9, $G9:$P9) -> 0
B10: 2015 | G10: 0 | H10: 0 | I10: 0 | J10: 0 | K10: 0 | L10: 0 | M10: 0 | N10: 0 | O10: 0 | P10: 0 | R10: =SUM(G10:P10) -> 0 | S10: =SUMIF(G$6:P$6, "<=" & $B10, $G10:$P10) -> 0
B11: 2016 | G11: 0 | H11: 0 | I11: 0 | J11: 0 | K11: 0 | L11: 0 | M11: 0 | N11: 0 | O11: 0 | P11: 0 | R11: 0 | S11: 0
B12: 2017 | G12: 0 | H12: 0 | I12: 0 | J12: 0 | K12: 0 | L12: 0 | M12: 0 | N12: 0 | O12: 0 | P12: 0 | R12: 0 | S12: 0
B13: 2018 | G13: 0 | H13: 0 | I13: 0 | J13: 0 | K13: 0 | L13: 0 | M13: 0 | N13: 0 | O13: 0 | P13: 0 | R13: 0 | S13: 0
B14: 2019 | G14: 0 | H14: 0 | I14: 0 | J14: 0 | K14: 0 | L14: 0 | M14: 0 | N14: 0 | O14: 0 | P14: 0 | R14: 0 | S14: 0
B15: 2020 | G15: 0 | H15: 0 | I15: 0 | J15: 0 | K15: 0 | L15: 0 | M15: 0 | N15: 0 | O15: 0 | P15: 0 | R15: 0 | S15: 0
B16: 2021 | G16: 0 | H16: 0 | I16: 0 | J16: 0 | K16: 0 | L16: 0 | M16: 0 | N16: 0 | O16: 0 | P16: 0 | R16: 0 | S16: 0
B17: 2022 | G17: 0 | H17: 0 | I17: 0 | J17: 0 | K17: 0 | L17: 0 | M17: 0 | N17: 0 | O17: 0 | P17: 0 | R17: 0 | S17: 0
B18: 2023 | G18: 0 | H18: 0 | I18: 0 | J18: 0 | K18: 0 | L18: 0 | M18: 0 | N18: 0 | O18: 0 | P18: 0 | R18: 0 | S18: 0
B20: UCA | C20: £m 2009/10 Prices /MVA | E20: =UCAallowances!$E$8 -> 0.182
